Workbook

Sheet Summary
A1: =RIGHT(CELL("filename",A1),LEN(CELL("filename",A1))- SEARCH("]",CELL("filename",A1))) -> Summary
B2: Solar Model Example
E5: Key Dates | F5: Start | H5: Return Metrics
E6: Financial Close Date | F6: =InputC!F9 -> 2023-01-01 | H6: Equity IRR -- All Equity | I6: ='Returns and Ratios'!H33 -> 0
E7: Commercial Operation | F7: =InputC!F13 -> 2025-01-01 | H7: SHL IRR
E8: Operations Period End | F8: =InputC!F16 -> 2024-12-01 | H8: Equity IRR - without SHL | I8: ='Returns and Ratios'!H39 -> 
E10: Key Metrics - Tariff & Financial Score | H10: Post-Tax Project IRR | I10: ='Returns and Ratios'!H28 -> 0
E11: PPA Rate | F11: USD/MWH | H11: Pre-Tax Project IRR | I11: ='Returns and Ratios'!H19 -> 0
E12: PPA Inflation | F12: =InputC!F39 -> 0.025
H13: Debt Metrics
E14: Capacity (MWp) | F14: =InputC!F22 -> 60 | H14: DSCR Output from Sculpting | I14: ='Returns and Ratios'!H53 -> 
H15: LLCR | I15: ='Returns and Ratios'!H53 -> 
E16: Annual Yield - P50 | H16: PLCR | I16: ='Returns and Ratios'!H58 -> 
E17: Annual Yield - P90
H18: Target Leverage | I18: =ConstM!F62 -> 0.8
E19: EPC Cost | H19: Average Debt Life | I19: ='Returns and Ratios'!H64 -> 
E20: Total Plant Cost
H21: Uses of Funds
H22: Total EPC Cost Incl. Contingency | I22: =ConstM!H17 -> 0
H23: Total Development Bonus | I23: =ConstM!F21 -> 3600000
H24: Other Inputs | I24: =ConstM!G64-Summary!I22-Summary!I23 -> -3600000
H25: Total | I25: =SUM(I22:I24) -> 0
H27: Sources of funds
H28: Sponsor Share Capital | I28: =ConstM!G63 -> 0
H29: Total Senior Debt | I29: =ConstM!G62 -> 0
H30: Total Senior Debt | I30: =SUM(I28:I29) -> 0

Sheet InputC
F1: Project IRR | G1: ='Returns and Ratios'!H28 -> 0 | K1: =Checks!E12 -> S-Curve (Lookup) Error Repayment Flag Test Error Circular Check Error
F2: Equity IRR | G2: ='Returns and Ratios'!H33 -> 0
F3: =_xlfn.XLOOKUP(active_scenario,K4:Q4,K3:Q3,0,0) -> No PPA Inflation | K3: Base Case | L3: No PPA Inflation | M3: P90 and No Inflation | N3: Lower P90 | O3: Delay Case | P3: Lower PPA | Q3: Longer Life
E4: Active Scenario | F4: 2 | G4: Scenario | I4: =MATCH(active_scenario,K4:Q4) -> 2 | K4: 1 | L4: 2 | M4: 3 | N4: 4 | O4: 5 | P4: 6 | Q4: 7
E6: =INDEX(K3:Q3,F6) -> No PPA Inflation | F6: =INDEX(K4:Q4,I4) -> 2
B8: Model Timeline
E9: Financial Close Date | F9: =INDEX(K9:Q9,active_scenario) -> 2023-01-01 | G9: Date | K9: 2023-01-01 | L9: 2023-01-01 | M9: 2023-01-01 | N9: 2023-01-01 | O9: 2023-01-01 | P9: 2023-01-01 | Q9: 2023-01-01
E10: Construction Start | F10: =INDEX(K10:Q10,active_scenario) -> 2023-01-01 | G10: Date | K10: 2023-01-01 | L10: 2023-01-01 | M10: 2023-01-01 | N10: 2023-01-01 | O10: 2023-01-01 | P10: 2023-01-01 | Q10: 2023-01-01
E11: Construction Period | F11: =INDEX(K11:Q11,F6) -> 24 | G11: Month | K11: 24 | L11: 24 | M11: 24 | N11: 24 | O11: 36 | P11: 24 | Q11: 24
E12: Construction Period End | F12: =EDATE(F10,F11-1) -> 2024-12-01 | G12: Date
E13: Commerical Operation Date | F13: =EDATE(F10,F11) -> 2025-01-01 | G13: Date
E14: Operating Life | G14: Years | K14: 30 | L14: 30 | M14: 30 | N14: 30 | O14: 30 | P14: 30
E15: Decomission Date | F15: =EDATE(F13,F14*Months) -> 2025-01-01 | G15: Date
E16: Operation End Date | F16: =EDATE(F15,-1) -> 2024-12-01 | G16: Date
E18: Months in Period for Semi-Annual | F18: =INDEX(K18:S18,$F$4) -> 6 | G18: Months | K18: 6 | L18: 6 | M18: 6 | N18: 6 | O18: 6 | P18: 6 | Q18: 6
E19: Months in Period pre-COD | F19: =INDEX(K19:S19,$F$4) -> 1 | G19: Months | K19: 1 | L19: 1 | M19: 1 | N19: 1 | O19: 1 | P19: 1 | Q19: 1
B21: Solar Plant Details
E22: Capacity of Plant | F22: =INDEX(K22:S22,$F$4) -> 60 | G22: MWp | K22: 60 | L22: 60 | M22: 60 | N22: 60 | O22: 60 | P22: 60 | Q22: 60
E24: Apply P50 (1-yes) | F24: 0 | G24: Flag | H24: 1 =P50; 0 =P90 | K24: 1 | L24: 1 | M24: 0 | N24: 0 | O24: 0 | P24: 0 | Q24: 0
E26: P50 Plant Yield - Annual | F26: =INDEX(K26:S26,$F$4) -> 2477 | G26: MWh/MWp | K26: 2477 | L26: 2477 | M26: 2477 | N26: 2477 | O26: 2477 | P26: 2477 | Q26: 2477
E27: P90 Plant Yield - Annual | F27: =INDEX(K27:S27,$F$4) -> 2373 | G27: MWh/MWp | K27: 2373 | L27: 2373 | M27: 2373 | N27: 2373 | O27: =O26*0.8 -> 1981.6 | P27: 1981.6 | Q27: 1981.6
E28: P90 vs P50 | F28: =F27/F26 -> 0.9580137263 | G28: %
E30: Plant Availability Factor | F30: =INDEX(K30:S30,$F$4) -> 0.99 | G30: % | H30: Energy generated to the grid | K30: 0.99 | L30: 0.99 | M30: 0.99 | N30: 0.99 | O30: 0.99 | P30: 0.99 | Q30: 0.99
E31: Degradation | F31: 0.005 | G31: % p.a. | H31: Solar Cells Degradation | K31: 0.5 | L31: 0.5 | M31: 0.5 | N31: 0.5 | O31: 0.5 | P31: 0.5 | Q31: 0.5
B33: Revenues
E34: PPA Term Contract | F34: =INDEX(K34:S34,$F$4) -> 30 | G34: Years | K34: 30 | L34: 30 | M34: 30 | N34: 30 | O34: 30 | P34: 30 | Q34: 30
E35: Offtake Amount | F35: =INDEX(K35:S35,$F$4) -> 1 | G35: % | H35: Of Total Production | K35: 1 | L35: 1 | M35: 1 | N35: 1 | O35: 1 | P35: 1 | Q35: 1
E36: Power Price for Offtake (USD 2021) | F36: =INDEX(K36:S36,$F$4) -> 40 | G36: USD/MWh | H36: Real Terms - 2021 | K36: 40 | L36: 40 | M36: 40 | N36: 40 | O36: 40 | P36: 35 | Q36: 40
E37: Apply PPA Inflation | F37: =INDEX(K37:Q37,active_scenario) -> 0 | G37: Flag | H37: 1 =Yes; 0 - No | K37: 1 | L37: 0 | M37: 0 | N37: 0 | O37: 0 | P37: 0 | Q37: 0
E38: Start Date for Infaltion | F38: =INDEX(K38:S38,$F$4) -> 2021-01-01 | G38: Date | K38: 2021-01-01 | L38: 2021-01-01 | M38: 2021-01-01 | N38: 2021-01-01 | O38: 2021-01-01 | P38: 2021-01-01 | Q38: 2021-01-01
E39: PPA Inflation Rate from COD | F39: =INDEX(K39:S39,$F$4) -> 0.025 | G39: % p.a. | H39: On costs and Revenues | K39: 0.025 | L39: 0.025 | M39: 0.025 | N39: 0.025 | O39: 0.025 | P39: 0.025 | Q39: 0.025
E41: Revenues Arrear Collection | F41: =INDEX(K41:S41,$F$4) -> 2 | G41: Months | H41: Received in Arrears | K41: 2 | L41: 2 | M41: 2 | N41: 2 | O41: 2 | P41: 2 | Q41: 2
B43: Operation and Maintenance
E44: Land Lease | F44: =INDEX(K44:S44,$F$4) -> 300 | G44: KUSD/Yr | H44: Payable Through Construction | K44: 300 | L44: 300 | M44: 300 | N44: 300 | O44: 300 | P44: 300 | Q44: 300
E45: Land Lease Inflated Switch | F45: 0 | G45: 1 =yes; 0 - No | K45: 0 | L45: 0 | M45: 0 | N45: 0 | O45: 0 | P45: 0 | Q45: 0
E46: Land Lease Infaltion Start | F46: =INDEX(K46:Q46,active_scenario) -> 2023-01-01 | K46: 2023-01-01 | L46: 2023-01-01 | M46: 2023-01-01 | N46: 2023-01-01 | O46: 2023-01-01 | P46: 2023-01-01 | Q46: 2023-01-01
E47: Land Lease Inflation if Applied | F47: =INDEX(K47:S47,$F$4) -> 0.025 | G47: % p.a. | H47: On costs and Revenues | K47: 0.025 | L47: 0.025 | M47: 0.025 | N47: 0.025 | O47: 0.025 | P47: 0.025 | Q47: 0.025
E49: Land Lease Infaltion Start | F49: =F13 -> 2025-01-01 | K49: 2023-01-01
E50: O&M Inflation | F50: =INDEX(K50:S50,$F$4) -> 0.025 | G50: % p.a. | H50: On costs and Revenues | K50: 0.025 | L50: 0.025 | M50: 0.025 | N50: 0.025 | O50: 0.025 | P50: 0.025 | Q50: 0.025
E52: O&M per Year - Initial | F52: =INDEX(K52:S52,$F$4) -> 7 | G52: kUSD/MWp-yr | H52: Starting OpEx | K52: 7 | L52: 7 | M52: 7 | N52: 7 | O52: 7 | P52: 7 | Q52: 7
E53: Initial Period | F53: =INDEX(K53:S53,$F$4) -> 5 | G53: Years | K53: 5 | L53: 5 | M53: 5 | N53: 5 | O53: 5 | P53: 5 | Q53: 5
E54: O&M per Year after Initial Period | F54: =INDEX(K54:S54,$F$4) -> 5 | G54: kUSD/MWp | H54: Due to Economies of Scale | K54: 5 | L54: 5 | M54: 5 | N54: 5 | O54: 5 | P54: 5 | Q54: 5
E56: Insurance During Operation | F56: =INDEX(K56:S56,$F$4) -> 5 | G56: kUSD/MWp-yr | H56: Yearly Estimate | K56: 5 | L56: 5 | M56: 5 | N56: 5 | O56: 5 | P56: 5 | Q56: 5
E57: Asset Management Charge | F57: =INDEX(K57:S57,$F$4) -> 18 | G57: kUSD/Yr | H57: Charged to the Plant | K57: 18 | L57: 18 | M57: 18 | N57: 18 | O57: 18 | P57: 18 | Q57: 18
E58: Security Services | F58: =INDEX(K58:S58,$F$4) -> 20 | G58: kUSD/Yr | H58: Protection Against Vandalism | K58: 20 | L58: 20 | M58: 20 | N58: 20 | O58: 20 | P58: 20 | Q58: 20
E59: Additional OpEx | F59: =INDEX(K59:S59,$F$4) -> 30 | G59: kUSD/Yr | H59: Grass Cutting & Cleaning | K59: 30 | L59: 30 | M59: 30 | N59: 30 | O59: 30 | P59: 30 | Q59: 30
E61: Operation and Maintenance Payment Arrears | F61: =INDEX(K61:S61,$F$4) -> 2 | G61: Months | K61: 2 | L61: 2 | M61: 2 | N61: 2 | O61: 2 | P61: 2 | Q61: 2
B63: Capital Expenditures | H63: Paid at Financial Close
E64: Developer Bonus | F64: =INDEX(K64:S64,$F$4) -> 3.6 | G64: mnUSD | H64: Paid to Developer | K64: 3.6 | L64: 3.6 | M64: 3.6 | N64: 3.6 | O64: 3.6 | P64: 3.6 | Q64: 3.6
E65: Period of Developer Bonus | F65: =F9 -> 2023-01-01 | G65: Date | H65: Assume paid in Fin Close (up-front)
E66: EPC Contractor | F66: =INDEX(K66:S66,$F$4) -> 750 | G66: kUSD/MWp | H66: Detailed in Input-S | K66: 750 | L66: 750 | M66: 750 | N66: 750 | O66: 900 | P66: 750 | Q66: 750
E67: Contingency | F67: =INDEX(K67:S67,$F$4) -> 0.005 | G67: % | H67: On base EPC Cost | K67: 0.005 | L67: 0.005 | M67: 0.005 | N67: 0.005 | O67: 0.005 | P67: 0.005 | Q67: 0.005
E68: Additional Costs | F68: =INDEX(K68:S68,$F$4) -> 1.5 | G68: mnUSD | H68: Grid Connection | K68: 1.5 | L68: 1.5 | M68: 1.5 | N68: 1.5 | O68: 1.5 | P68: 1.5 | Q68: 1.5
E69: Insurance | F69: =INDEX(K69:S69,$F$4) -> 10 | G69: kUSD/MW p.a. | H69: Against Delays for Shipping | K69: 10 | L69: 10 | M69: 10 | N69: 10 | O69: 10 | P69: 10 | Q69: 10
E71: S-Curve Code Number | G71: Code | K71: 1 | L71: 2 | M71: 1 | N71: 3 | O71: 4 | P71: 1 | Q71: 1
B73: Taxes and Capital Allowance
E74: Capital Allowance | F74: =INDEX(K74:S74,$F$4) -> 0.2 | G74: % p.a. | H74: Construction are 100% eligible for capital allowance | K74: 0.2 | L74: 0.2 | M74: 0.2 | N74: 0.2 | O74: 0.2 | P74: 0.2 | Q74: 0.2
E75: Tax Rate | F75: =INDEX(K75:S75,$F$4) -> 0.2 | G75: % | K75: 0.2 | L75: 0.2 | M75: 0.2 | N75: 0.2 | O75: 0.2 | P75: 0.2 | Q75: 0.2
B78: Funding
D79: Senior Debt
E80: Debt | F80: =INDEX(K80:S80,$F$4) -> 0.8 | G80: % | H80: From third Party | K80: 0.8 | L80: 0.8 | M80: 0.8 | N80: 0.8 | O80: 0.8 | P80: 0.8 | Q80: 0.8
E81: Equity | F81: =INDEX(K81:S81,$F$4) -> 0.2 | G81: % | K81: =1-K80 -> 0.2 | L81: =1-L80 -> 0.2 | M81: =1-M80 -> 0.2 | N81: =1-N80 -> 0.2 | O81: =1-O80 -> 0.2 | P81: 0.2 | Q81: 0.2
E82: Maximum Debt Sizing | F82: =INDEX(K82:S82,$F$4) -> 0.8 | G82: % | H82: Tested through DSCR | K82: 0.8 | L82: 0.8 | M82: 0.8 | N82: 0.8 | O82: 0.8 | P82: 0.8 | Q82: 0.8
E83: DSCR Target | F83: 1.25 | K83: 1.25 | L83: 1.25 | M83: 1.25 | N83: 1.25 | O83: 1.25 | P83: 1.25 | Q83: 1.25
E85: Debt Tenor | F85: =INDEX(K85:S85,$F$4) -> 18 | G85: Years | K85: 18 | L85: 18 | M85: 18 | N85: 18 | O85: 18 | P85: 18 | Q85: 18
E86: End of Debt Repayment | F86: =EDATE(F13,F85*Months-1) -> 2042-12-01
E87: Interest and Principal Repayments Timing | F87: =INDEX(K87:S87,$F$4) -> 6 | G87: Months | H87: Every 6 Months | K87: 6 | L87: 6 | M87: 6 | N87: 6 | O87: 6 | P87: 6 | Q87: 6
E89: Annual Interest Rate | F89: =INDEX(K89:S89,$F$4) -> 0.025 | G89: % p.a. | H89: Annual Rate | K89: 0.025 | L89: 0.025 | M89: 0.025 | N89: 0.025 | O89: 0.025 | P89: 0.025 | Q89: 0.025
E90: Up-Front Fee | F90: =INDEX(K90:Q90,active_scenario) -> 0.01 | G90: % | K90: 0.01 | L90: 0.01 | M90: 0.01 | N90: 0.01 | O90: 0.01 | P90: 0.01 | Q90: 0.01
E91: Commitment Fee | F91: =INDEX(K91:Q91,active_scenario) -> 0.007 | G91: % p.a. | K91: 0.007 | L91: 0.007 | M91: 0.007 | N91: 0.007 | O91: 0.007 | P91: 0.007 | Q91: 0.007
E92: DSRA Months | F92: =INDEX(K92:Q92,active_scenario) -> 6 | G92: Months | K92: 6 | L92: 6 | M92: 6 | N92: 6 | O92: 6 | P92: 6 | Q92: 6
D94: Shareholder Loan
E95: Shareholder Loan as Percent of Equity | F95: =INDEX(K95:S95,$F$4) -> 0 | K95: 0 | L95: 0 | M95: 0 | N95: 0 | O95: 0 | P95: 0 | Q95: 0.9
E96: Shareholder Loan Interest Rate | F96: =INDEX(K96:S96,$F$4) -> 0.08 | G96: % p.a. | K96: 0.08 | L96: 0.08 | M96: 0.08 | N96: 0.08 | O96: 0.08 | P96: 0.08 | Q96: 0.08
E97: Capitalise Interest on Shareholder Loan | F97: 1 | G97: 1=yes;0=no
E98: Allow SHL Interest Deduction in Taxes | F98: 0 | G98: 1=yes;0=no
E99: Cash Flow Sweep Percent | F99: =INDEX(K99:S99,$F$4) -> 0 | G99: % | K99: =K95 -> 0 | L99: =L95 -> 0 | M99: 0 | N99: 0 | O99: 0 | P99: 0 | Q99: 0.9
B101: Constants
E102: Months in Year | F102: 12 | G102: Months
E103: Inflation Days in Year | F103: 365.25 | G103: Days Inflation
E104: Semi-Annual Periods | F104: 2 | G104: Semi

Sheet InputS
A1: =RIGHT(CELL("filename",A1),LEN(CELL("filename",A1))- SEARCH("]",CELL("filename",A1))) -> InputS
B4: Construction Timeline
E5: Start Period | G5: Date | J5: =TimeM!J2 -> 2023-01-01 | K5: =TimeM!K2 -> 2023-02-01 | L5: =TimeM!L2 -> 2023-03-01 | M5: =TimeM!M2 -> 2023-04-01 | N5: =TimeM!N2 -> 2023-05-01 | O5: =TimeM!O2 -> 2023-06-01 | P5: =TimeM!P2 -> 2023-07-01 | Q5: =TimeM!Q2 -> 2023-08-01 | R5: =TimeM!R2 -> 2023-09-01 | S5: =TimeM!S2 -> 2023-10-01 | T5: =TimeM!T2 -> 2023-11-01 | U5: =TimeM!U2 -> 2023-12-01 | V5: =TimeM!V2 -> 2024-01-01 | W5: =TimeM!W2 -> 2024-02-01 | X5: =TimeM!X2 -> 2024-03-01 | Y5: =TimeM!Y2 -> 2024-04-01 | Z5: =TimeM!Z2 -> 2024-05-01 | AA5: =TimeM!AA2 -> 2024-06-01 | AB5: =TimeM!AB2 -> 2024-07-01 | AC5: =TimeM!AC2 -> 2024-08-01 | AD5: =TimeM!AD2 -> 2024-09-01 | AE5: =TimeM!AE2 -> 2024-10-01 | AF5: =TimeM!AF2 -> 2024-11-01 | AG5: =TimeM!AG2 -> 2024-12-01 | AH5: =TimeM!AH2 -> 2025-01-01
E6: End Period | G6: Date | J6: =TimeM!J3 -> 2023-01-31 | K6: =TimeM!K3 -> 2023-02-28 | L6: =TimeM!L3 -> 2023-03-31 | M6: =TimeM!M3 -> 2023-04-30 | N6: =TimeM!N3 -> 2023-05-31 | O6: =TimeM!O3 -> 2023-06-30 | P6: =TimeM!P3 -> 2023-07-31 | Q6: =TimeM!Q3 -> 2023-08-31 | R6: =TimeM!R3 -> 2023-09-30 | S6: =TimeM!S3 -> 2023-10-31 | T6: =TimeM!T3 -> 2023-11-30 | U6: =TimeM!U3 -> 2023-12-31 | V6: =TimeM!V3 -> 2024-01-31 | W6: =TimeM!W3 -> 2024-02-29 | X6: =TimeM!X3 -> 2024-03-31 | Y6: =TimeM!Y3 -> 2024-04-30 | Z6: =TimeM!Z3 -> 2024-05-31 | AA6: =TimeM!AA3 -> 2024-06-30 | AB6: =TimeM!AB3 -> 2024-07-31 | AC6: =TimeM!AC3 -> 2024-08-31 | AD6: =TimeM!AD3 -> 2024-09-30 | AE6: =TimeM!AE3 -> 2024-10-31 | AF6: =TimeM!AF3 -> 2024-11-30 | AG6: =TimeM!AG3 -> 2024-12-31 | AH6: =TimeM!AH3 -> 2025-01-31
E7: Time Label | G7: Label | J7: =TimeM!J4 -> FC/Const. | K7: =TimeM!K4 -> Const | L7: =TimeM!L4 -> Const | M7: =TimeM!M4 -> Const | N7: =TimeM!N4 -> Const | O7: =TimeM!O4 -> Const | P7: =TimeM!P4 -> Const | Q7: =TimeM!Q4 -> Const | R7: =TimeM!R4 -> Const | S7: =TimeM!S4 -> Const | T7: =TimeM!T4 -> Const | U7: =TimeM!U4 -> Const | V7: =TimeM!V4 -> Const | W7: =TimeM!W4 -> Const | X7: =TimeM!X4 -> Const | Y7: =TimeM!Y4 -> Const | Z7: =TimeM!Z4 -> Const | AA7: =TimeM!AA4 -> Const | AB7: =TimeM!AB4 -> Const | AC7: =TimeM!AC4 -> Const | AD7: =TimeM!AD4 -> Const | AE7: =TimeM!AE4 -> Const | AF7: =TimeM!AF4 -> Const | AG7: =TimeM!AG4 -> Const | AH7: =TimeM!AH4 -> Const
B9: S-Curve | G9: Year | H9: Month
E11: Construction Period | I11: 0 | J11: 1 | K11: 2 | L11: 3 | M11: 4 | N11: 5 | O11: 6 | P11: 7 | Q11: 8 | R11: 9 | S11: 10 | T11: 11 | U11: 12 | V11: 13 | W11: 14 | X11: 15 | Y11: 16 | Z11: 17 | AA11: 18 | AB11: 19 | AC11: 20 | AD11: 21 | AE11: 22 | AF11: 23 | AG11: 24 | AH11: 25 | AI11: 26 | AJ11: 27 | AK11: 28 | AL11: 29 | AM11: 30 | AN11: 31 | AO11: 32 | AP11: 33 | AQ11: 34 | AR11: 35 | AS11: 36 | AT11: 37 | AU11: 38 | AV11: 39 | AW11: 40 | AX11: 41 | AY11: 42 | AZ11: 43 | BA11: 44 | BB11: 45 | BC11: 46 | BD11: 47 | BE11: 48 | BF11: 49 | BG11: 50
E12: Construction Year | J12: =ROUNDUP(J11/12,0) -> 1 | K12: =ROUNDUP(K11/12,0) -> 1 | L12: 1 | M12: 1 | N12: 1 | O12: 1 | P12: 1 | Q12: 1 | R12: 1 | S12: 1 | T12: 1 | U12: 1 | V12: 2 | W12: 2 | X12: 2 | Y12: 2 | Z12: 2 | AA12: 2 | AB12: 2 | AC12: 2 | AD12: 2 | AE12: 2 | AF12: 2 | AG12: 2 | AH12: 3 | AI12: 3 | AJ12: 3 | AK12: 3 | AL12: 3 | AM12: 3 | AN12: 3 | AO12: 3 | AP12: 3 | AQ12: 3 | AR12: 3 | AS12: 3 | AT12: 4 | AU12: 4 | AV12: 4 | AW12: 4 | AX12: 4 | AY12: 4 | AZ12: 4 | BA12: 4 | BB12: 4 | BC12: 4 | BD12: 4 | BE12: 4 | BF12: 5 | BG12: 5
E13: Construction Months | G13: =InputC!F11 -> 24 | J13: =J11<=$G$13 -> TRUE | K13: =K11<=$G$13 -> TRUE | L13: TRUE | M13: TRUE | N13: TRUE | O13: TRUE | P13: TRUE | Q13: TRUE | R13: TRUE | S13: TRUE | T13: TRUE | U13: TRUE | V13: TRUE | W13: TRUE | X13: TRUE | Y13: TRUE | Z13: TRUE | AA13: TRUE | AB13: TRUE | AC13: TRUE | AD13: TRUE | AE13: TRUE | AF13: TRUE | AG13: TRUE | AH13: FALSE | AI13: FALSE | AJ13: FALSE | AK13: FALSE | AL13: FALSE | AM13: FALSE | AN13: FALSE | AO13: FALSE | AP13: FALSE | AQ13: FALSE | AR13: FALSE | AS13: FALSE | AT13: FALSE | AU13: FALSE | AV13: FALSE | AW13: FALSE | AX13: FALSE | AY13: FALSE | AZ13: FALSE | BA13: FALSE | BB13: FALSE | BC13: FALSE | BD13: FALSE | BE13: FALSE | BF13: FALSE | BG13: FALSE
E15: S-Curve Code Number
E16: S-Curve Normal | F16: =G13/2 -> 12 | G16: 4 | H16: =SUM(J16:BG16) -> 0.9971625729 | J16: =_xlfn.NORM.DIST(J11,$F$16,$G$16,0)*J13 -> 0.002273390625 | K16: =_xlfn.NORM.DIST(K11,$F$16,$G$16,0)*K13 -> 0.004382075123 | L16: 0.007934912959 | M16: 0.01349774163 | N16: 0.02156932971 | O16: 0.03237939892 | P16: 0.04566227135 | Q16: 0.06049268113 | R16: 0.07528435804 | S16: 0.08801633169 | T16: 0.0966670292 | U16: 0.0997355701 | V16: 0.0966670292 | W16: 0.08801633169 | X16: 0.07528435804 | Y16: 0.06049268113 | Z16: 0.04566227135 | AA16: 0.03237939892 | AB16: 0.02156932971 | AC16: 0.01349774163 | AD16: 0.007934912959 | AE16: 0.004382075123 | AF16: 0.002273390625 | AG16: 0.001107962103 | AH16: 0 | AI16: 0 | AJ16: 0 | AK16: 0 | AL16: 0 | AM16: 0 | AN16: 0 | AO16: 0 | AP16: 0 | AQ16: 0 | AR16: 0 | AS16: 0 | AT16: 0 | AU16: 0 | AV16: 0 | AW16: 0 | AX16: 0 | AY16: 0 | AZ16: 0 | BA16: 0 | BB16: 0 | BC16: 0 | BD16: 0 | BE16: 0 | BF16: 0 | BG16: 0
E17: S-Curve Wiebull | F17: 0.9 | G17: 1.6 | H17: =SUM(I17:XFD17) -> 0.9693294489 | J17: =_xlfn.WEIBULL.DIST(J11,$G$17,$F$17*$F$16,0)*J13 -> 0.03475336675 | K17: =_xlfn.WEIBULL.DIST(K11,$G$17,$F$17*$F$16,0)*K13 -> 0.05035255641 | L17: =_xlfn.WEIBULL.DIST(L11,$G$17,$F$17*$F$16,0)*L13 -> 0.06039174519 | M17: =_xlfn.WEIBULL.DIST(M11,$G$17,$F$17*$F$16,0)*M13 -> 0.06656463775 | N17: =_xlfn.WEIBULL.DIST(N11,$G$17,$F$17*$F$16,0)*N13 -> 0.06972017779 | O17: =_xlfn.WEIBULL.DIST(O11,$G$17,$F$17*$F$16,0)*O13 -> 0.07046330413 | P17: =_xlfn.WEIBULL.DIST(P11,$G$17,$F$17*$F$16,0)*P13 -> 0.06929455062 | Q17: =_xlfn.WEIBULL.DIST(Q11,$G$17,$F$17*$F$16,0)*Q13 -> 0.066651008 | R17: =_xlfn.WEIBULL.DIST(R11,$G$17,$F$17*$F$16,0)*R13 -> 0.06291836323 | S17: =_xlfn.WEIBULL.DIST(S11,$G$17,$F$17*$F$16,0)*S13 -> 0.05843378374 | T17: =_xlfn.WEIBULL.DIST(T11,$G$17,$F$17*$F$16,0)*T13 -> 0.05348645383 | U17: =_xlfn.WEIBULL.DIST(U11,$G$17,$F$17*$F$16,0)*U13 -> 0.04831827863 | V17: =_xlfn.WEIBULL.DIST(V11,$G$17,$F$17*$F$16,0)*V13 -> 0.04312560381 | W17: =_xlfn.WEIBULL.DIST(W11,$G$17,$F$17*$F$16,0)*W13 -> 0.03806208773 | X17: =_xlfn.WEIBULL.DIST(X11,$G$17,$F$17*$F$16,0)*X13 -> 0.03324255325 | Y17: =_xlfn.WEIBULL.DIST(Y11,$G$17,$F$17*$F$16,0)*Y13 -> 0.02874752671 | Z17: =_xlfn.WEIBULL.DIST(Z11,$G$17,$F$17*$F$16,0)*Z13 -> 0.02462814746 | AA17: =_xlfn.WEIBULL.DIST(AA11,$G$17,$F$17*$F$16,0)*AA13 -> 0.02091115699 | AB17: =_xlfn.WEIBULL.DIST(AB11,$G$17,$F$17*$F$16,0)*AB13 -> 0.01760372632 | AC17: =_xlfn.WEIBULL.DIST(AC11,$G$17,$F$17*$F$16,0)*AC13 -> 0.01469793918 | AD17: =_xlfn.WEIBULL.DIST(AD11,$G$17,$F$17*$F$16,0)*AD13 -> 0.01217480719 | AE17: =_xlfn.WEIBULL.DIST(AE11,$G$17,$F$17*$F$16,0)*AE13 -> 0.01000774621 | AF17: =_xlfn.WEIBULL.DIST(AF11,$G$17,$F$17*$F$16,0)*AF13 -> 0.008165488428 | AG17: =_xlfn.WEIBULL.DIST(AG11,$G$17,$F$17*$F$16,0)*AG13 -> 0.006614439542 | AH17: =_xlfn.WEIBULL.DIST(AH11,$G$17,$F$17*$F$16,0)*AH13 -> 0 | AI17: =_xlfn.WEIBULL.DIST(AI11,$G$17,$F$17*$F$16,0)*AI13 -> 0 | AJ17: =_xlfn.WEIBULL.DIST(AJ11,$G$17,$F$17*$F$16,0)*AJ13 -> 0 | AK17: =_xlfn.WEIBULL.DIST(AK11,$G$17,$F$17*$F$16,0)*AK13 -> 0 | AL17: =_xlfn.WEIBULL.DIST(AL11,$G$17,$F$17*$F$16,0)*AL13 -> 0 | AM17: =_xlfn.WEIBULL.DIST(AM11,$G$17,$F$17*$F$16,0)*AM13 -> 0 | AN17: =_xlfn.WEIBULL.DIST(AN11,$G$17,$F$17*$F$16,0)*AN13 -> 0 | AO17: =_xlfn.WEIBULL.DIST(AO11,$G$17,$F$17*$F$16,0)*AO13 -> 0 | AP17: =_xlfn.WEIBULL.DIST(AP11,$G$17,$F$17*$F$16,0)*AP13 -> 0 | AQ17: =_xlfn.WEIBULL.DIST(AQ11,$G$17,$F$17*$F$16,0)*AQ13 -> 0 | AR17: =_xlfn.WEIBULL.DIST(AR11,$G$17,$F$17*$F$16,0)*AR13 -> 0 | AS17: =_xlfn.WEIBULL.DIST(AS11,$G$17,$F$17*$F$16,0)*AS13 -> 0 | AT17: =_xlfn.WEIBULL.DIST(AT11,$G$17,$F$17*$F$16,0)*AT13 -> 0 | AU17: =_xlfn.WEIBULL.DIST(AU11,$G$17,$F$17*$F$16,0)*AU13 -> 0 | AV17: =_xlfn.WEIBULL.DIST(AV11,$G$17,$F$17*$F$16,0)*AV13 -> 0 | AW17: =_xlfn.WEIBULL.DIST(AW11,$G$17,$F$17*$F$16,0)*AW13 -> 0 | AX17: =_xlfn.WEIBULL.DIST(AX11,$G$17,$F$17*$F$16,0)*AX13 -> 0 | AY17: =_xlfn.WEIBULL.DIST(AY11,$G$17,$F$17*$F$16,0)*AY13 -> 0 | AZ17: =_xlfn.WEIBULL.DIST(AZ11,$G$17,$F$17*$F$16,0)*AZ13 -> 0 | BA17: =_xlfn.WEIBULL.DIST(BA11,$G$17,$F$17*$F$16,0)*BA13 -> 0 | BB17: =_xlfn.WEIBULL.DIST(BB11,$G$17,$F$17*$F$16,0)*BB13 -> 0 | BC17: =_xlfn.WEIBULL.DIST(BC11,$G$17,$F$17*$F$16,0)*BC13 -> 0 | BD17: =_xlfn.WEIBULL.DIST(BD11,$G$17,$F$17*$F$16,0)*BD13 -> 0 | BE17: =_xlfn.WEIBULL.DIST(BE11,$G$17,$F$17*$F$16,0)*BE13 -> 0 | BF17: =_xlfn.WEIBULL.DIST(BF11,$G$17,$F$17*$F$16,0)*BF13 -> 0 | BG17: =_xlfn.WEIBULL.DIST(BG11,$G$17,$F$17*$F$16,0)*BG13 -> 0
E19: S-Curve Normal Adjusted | H19: =SUM(J19:BG19) -> 1 | J19: =J16/$H$16 -> 0.002279859561 | K19: =K16/$H$16 -> 0.004394544322 | L19: =L16/$H$16 -> 0.007957491761 | M19: =M16/$H$16 -> 0.01353614947 | N19: =N16/$H$16 -> 0.02163070526 | O19: =O16/$H$16 -> 0.03247153453 | P19: =P16/$H$16 -> 0.04579220338 | Q19: =Q16/$H$16 -> 0.06066481311 | R19: =R16/$H$16 -> 0.07549857975 | S19: =S16/$H$16 -> 0.08826678225 | T19: =T16/$H$16 -> 0.09694209533 | U19: =U16/$H$16 -> 0.1000193678 | V19: =V16/$H$16 -> 0.09694209533 | W19: =W16/$H$16 -> 0.08826678225 | X19: =X16/$H$16 -> 0.07549857975 | Y19: =Y16/$H$16 -> 0.06066481311 | Z19: =Z16/$H$16 -> 0.04579220338 | AA19: =AA16/$H$16 -> 0.03247153453 | AB19: =AB16/$H$16 -> 0.02163070526 | AC19: =AC16/$H$16 -> 0.01353614947 | AD19: =AD16/$H$16 -> 0.007957491761 | AE19: =AE16/$H$16 -> 0.004394544322 | AF19: =AF16/$H$16 -> 0.002279859561 | AG19: =AG16/$H$16 -> 0.00111111481 | AH19: =AH16/$H$16 -> 0 | AI19: =AI16/$H$16 -> 0 | AJ19: =AJ16/$H$16 -> 0 | AK19: =AK16/$H$16 -> 0 | AL19: =AL16/$H$16 -> 0 | AM19: =AM16/$H$16 -> 0 | AN19: =AN16/$H$16 -> 0 | AO19: =AO16/$H$16 -> 0 | AP19: =AP16/$H$16 -> 0 | AQ19: =AQ16/$H$16 -> 0 | AR19: =AR16/$H$16 -> 0 | AS19: =AS16/$H$16 -> 0 | AT19: =AT16/$H$16 -> 0 | AU19: =AU16/$H$16 -> 0 | AV19: =AV16/$H$16 -> 0 | AW19: =AW16/$H$16 -> 0 | AX19: =AX16/$H$16 -> 0 | AY19: =AY16/$H$16 -> 0 | AZ19: =AZ16/$H$16 -> 0 | BA19: =BA16/$H$16 -> 0 | BB19: =BB16/$H$16 -> 0 | BC19: =BC16/$H$16 -> 0 | BD19: =BD16/$H$16 -> 0 | BE19: =BE16/$H$16 -> 0 | BF19: =BF16/$H$16 -> 0 | BG19: =BG16/$H$16 -> 0
E20: S-Curve Wiebull Adjusted | H20: =SUM(J20:BG20) -> 1 | J20: =J17/$H$17 -> 0.03585299796 | K20: =K17/$H$17 -> 0.05194576154 | L20: =L17/$H$17 -> 0.06230260028 | M20: =M17/$H$17 -> 0.06867080931 | N20: =N17/$H$17 -> 0.07192619379 | O20: =O17/$H$17 -> 0.0726928334 | P20: =P17/$H$17 -> 0.07148709936 | Q20: =Q17/$H$17 -> 0.06875991241 | R20: =R17/$H$17 -> 0.06490916303 | S20: =S17/$H$17 -> 0.06028268698 | T20: =T17/$H$17 -> 0.05517881861 | U20: =U17/$H$17 -> 0.04984711718 | V20: =V17/$H$17 -> 0.04449014095 | W20: =W17/$H$17 -> 0.03926641017 | X20: =X17/$H$17 -> 0.03429438081 | Y20: =Y17/$H$17 -> 0.02965712714 | Z20: =Z17/$H$17 -> 0.02540740662 | AA20: =AA17/$H$17 -> 0.02157280687 | AB20: =AB17/$H$17 -> 0.01816072579 | AC20: =AC17/$H$17 -> 0.01516299665 | AD20: =AD17/$H$17 -> 0.01256003024 | AE20: =AE17/$H$17 -> 0.01032440129 | AF20: =AF17/$H$17 -> 0.00842385263 | AG20: =AG17/$H$17 -> 0.00682372701 | AH20: =AH17/$H$17 -> 0 | AI20: =AI17/$H$17 -> 0 | AJ20: =AJ17/$H$17 -> 0 | AK20: =AK17/$H$17 -> 0 | AL20: =AL17/$H$17 -> 0 | AM20: =AM17/$H$17 -> 0 | AN20: =AN17/$H$17 -> 0 | AO20: =AO17/$H$17 -> 0 | AP20: =AP17/$H$17 -> 0 | AQ20: =AQ17/$H$17 -> 0 | AR20: =AR17/$H$17 -> 0 | AS20: =AS17/$H$17 -> 0 | AT20: =AT17/$H$17 -> 0 | AU20: =AU17/$H$17 -> 0 | AV20: =AV17/$H$17 -> 0 | AW20: =AW17/$H$17 -> 0 | AX20: =AX17/$H$17 -> 0 | AY20: =AY17/$H$17 -> 0 | AZ20: =AZ17/$H$17 -> 0 | BA20: =BA17/$H$17 -> 0 | BB20: =BB17/$H$17 -> 0 | BC20: =BC17/$H$17 -> 0 | BD20: =BD17/$H$17 -> 0 | BE20: =BE17/$H$17 -> 0 | BF20: =BF17/$H$17 -> 0 | BG20: =BG17/$H$17 -> 0
E21: S-Curve Input | H21: =SUM(I21:XFD21) -> 1 | J21: 0.05 | K21: 0.1 | L21: 0.05 | M21: 0.05 | N21: 0.2 | O21: 0.05 | P21: 0.05 | Q21: 0.1 | R21: 0.1 | S21: 0.02 | T21: 0.03 | U21: 0.2 | V21: 0 | W21: 0 | X21: 0 | Y21: 0 | Z21: 0 | AA21: 0 | AB21: 0 | AC21: 0 | AD21: 0 | AE21: 0 | AF21: 0 | AG21: 0 | AH21: 0 | AI21: 0 | AJ21: 0 | AK21: 0 | AL21: 0 | AM21: 0 | AN21: 0 | AO21: 0 | AP21: 0 | AQ21: 0 | AR21: 0 | AS21: 0 | AT21: 0 | AU21: 0 | AV21: 0 | AW21: 0 | AX21: 0 | AY21: 0 | AZ21: 0 | BA21: 0 | BB21: 0 | BC21: 0 | BD21: 0 | BE21: 0 | BF21: 0 | BG21: 0
E22: S-Curve Flat | H22: =SUM(I22:XFD22) -> 1 | J22: =1/$G$13*J13 -> 0.04166666667 | K22: =1/$G$13*K13 -> 0.04166666667 | L22: 0.04166666667 | M22: 0.04166666667 | N22: 0.04166666667 | O22: 0.04166666667 | P22: 0.04166666667 | Q22: 0.04166666667 | R22: 0.04166666667 | S22: 0.04166666667 | T22: 0.04166666667 | U22: 0.04166666667 | V22: 0.04166666667 | W22: 0.04166666667 | X22: 0.04166666667 | Y22: 0.04166666667 | Z22: 0.04166666667 | AA22: 0.04166666667 | AB22: 0.04166666667 | AC22: 0.04166666667 | AD22: 0.04166666667 | AE22: 0.04166666667 | AF22: 0.04166666667 | AG22: 0.04166666667 | AH22: 0 | AI22: 0 | AJ22: 0 | AK22: 0 | AL22: 0 | AM22: 0 | AN22: 0 | AO22: 0 | AP22: 0 | AQ22: 0 | AR22: 0 | AS22: 0 | AT22: 0 | AU22: 0 | AV22: 0 | AW22: 0 | AX22: 0 | AY22: 0 | AZ22: 0 | BA22: 0 | BB22: 0 | BC22: 0 | BD22: 0 | BE22: 0 | BF22: 0 | BG22: 0
E24: S-Curve
B26: Solar Seasonality
E27: Month Name | G27: Month | J27: Jan | K27: Feb | L27: March | M27: April | N27: May | O27: June | P27: July | Q27: August | R27: Sept | S27: October | T27: Nov | U27: Dec
E28: Month Number | J28: 1 | K28: 2 | L28: 3 | M28: 4 | N28: 5 | O28: 6 | P28: 7 | Q28: 8 | R28: 9 | S28: 10 | T28: 11 | U28: 12
E29: Resource Availability | G29: % | J29: 0.1242 | K29: 0.1037 | L29: 0.0975 | M29: 0.0714 | N29: 0.0518 | O29: 0.0419 | P29: 0.048 | Q29: 0.0596 | R29: 0.0753 | S29: 0.0986 | T29: 0.1122 | U29: 0.1159

Sheet TimeM
A1: =MID(CELL("filename"),FIND("]",CELL("filename"),1)+1,250) -> Checks
E2: Model period start date - monthly - header | J2: =J9 -> 2023-01-01 | K2: =K9 -> 2023-02-01 | L2: 2023-03-01 | M2: 2023-04-01 | N2: 2023-05-01 | O2: 2023-06-01 | P2: 2023-07-01 | Q2: 2023-08-01 | R2: 2023-09-01 | S2: 2023-10-01 | T2: 2023-11-01 | U2: 2023-12-01 | V2: 2024-01-01 | W2: 2024-02-01 | X2: 2024-03-01 | Y2: 2024-04-01 | Z2: 2024-05-01 | AA2: 2024-06-01 | AB2: 2024-07-01 | AC2: 2024-08-01 | AD2: 2024-09-01 | AE2: 2024-10-01 | AF2: 2024-11-01 | AG2: 2024-12-01 | AH2: 2025-01-01 | AI2: 2025-02-01 | AJ2: 2025-03-01 | AK2: 2025-04-01 | AL2: 2025-05-01 | AM2: 2025-06-01 | AN2: 2025-07-01 | AO2: 2025-08-01 | AP2: 2025-09-01 | AQ2: 2025-10-01 | AR2: 2025-11-01 | AS2: 2025-12-01 | AT2: 2026-01-01 | AU2: 2026-02-01 | AV2: 2026-03-01 | AW2: 2026-04-01 | AX2: 2026-05-01 | AY2: 2026-06-01 | AZ2: 2026-07-01 | BA2: 2026-08-01 | BB2: 2026-09-01 | BC2: 2026-10-01 | BD2: 2026-11-01 | BE2: 2026-12-01 | BF2: 2027-01-01 | BG2: 2027-02-01 | BH2: 2027-03-01 | BI2: 2027-04-01 | BJ2: 2027-05-01 | BK2: 2027-06-01 | BL2: 2027-07-01 | BM2: 2027-08-01 | BN2: 2027-09-01 | BO2: 2027-10-01 | BP2: 2027-11-01 | BQ2: 2027-12-01 | BR2: 2028-01-01 | BS2: 2028-02-01 | BT2: 2028-03-01 | BU2: 2028-04-01 | BV2: 2028-05-01 | BW2: =BW9 -> 2028-06-01 | BX2: 2028-07-01 | BY2: 2028-08-01 | BZ2: 2028-09-01 | CA2: 2028-10-01 | CB2: 2028-11-01 | CC2: 2028-12-01 | CD2: 2029-01-01 | CE2: 2029-02-01 | CF2: 2029-03-01 | CG2: 2029-04-01 | CH2: 2029-05-01 | CI2: 2029-06-01 | CJ2: 2029-07-01 | CK2: 2029-08-01 | CL2: 2029-09-01 | CM2: 2029-10-01 | CN2: 2029-11-01 | CO2: 2029-12-01 | CP2: 2030-01-01 | CQ2: 2030-02-01 | CR2: 2030-03-01 | CS2: 2030-04-01 | CT2: 2030-05-01 | CU2: 2030-06-01 | CV2: 2030-07-01 | CW2: 2030-08-01 | CX2: 2030-09-01 | CY2: 2030-10-01 | CZ2: 2030-11-01 | DA2: 2030-12-01 | DB2: 2031-01-01 | DC2: 2031-02-01 | DD2: 2031-03-01 | DE2: 2031-04-01 | DF2: 2031-05-01 | DG2: 2031-06-01 | DH2: 2031-07-01 | DI2: 2031-08-01 | DJ2: 2031-09-01 | DK2: 2031-10-01 | DL2: 2031-11-01 | DM2: 2031-12-01 | DN2: 2032-01-01 | DO2: 2032-02-01 | DP2: 2032-03-01 | DQ2: 2032-04-01 | DR2: 2032-05-01 | DS2: 2032-06-01 | DT2: 2032-07-01 | DU2: 2032-08-01 | DV2: 2032-09-01 | DW2: 2032-10-01 | DX2: 2032-11-01 | DY2: 2032-12-01 | DZ2: 2033-01-01 | EA2: 2033-02-01 | EB2: 2033-03-01 | EC2: 2033-04-01 | ED2: 2033-05-01 | EE2: 2033-06-01 | EF2: 2033-07-01 | EG2: 2033-08-01 | EH2: 2033-09-01 | EI2: =EI9 -> 2033-10-01 | EJ2: 2033-11-01 | EK2: 2033-12-01 | EL2: 2034-01-01 | EM2: 2034-02-01 | EN2: 2034-03-01 | EO2: 2034-04-01 | EP2: 2034-05-01 | EQ2: 2034-06-01 | ER2: 2034-07-01 | ES2: 2034-08-01 | ET2: 2034-09-01 | EU2: 2034-10-01 | EV2: 2034-11-01 | EW2: 2034-12-01 | EX2: 2035-01-01 | EY2: 2035-02-01 | EZ2: 2035-03-01 | FA2: 2035-04-01 | FB2: 2035-05-01 | FC2: 2035-06-01 | FD2: 2035-07-01 | FE2: 2035-08-01 | FF2: 2035-09-01 | FG2: 2035-10-01 | FH2: 2035-11-01 | FI2: 2035-12-01 | FJ2: 2036-01-01 | FK2: 2036-02-01 | FL2: 2036-03-01 | FM2: 2036-04-01 | FN2: 2036-05-01 | FO2: 2036-06-01 | FP2: 2036-07-01 | FQ2: 2036-08-01 | FR2: 2036-09-01 | FS2: 2036-10-01 | FT2: 2036-11-01 | FU2: 2036-12-01 | FV2: 2037-01-01 | FW2: 2037-02-01 | FX2: 2037-03-01 | FY2: 2037-04-01 | FZ2: 2037-05-01 | GA2: 2037-06-01 | GB2: 2037-07-01 | GC2: 2037-08-01 | GD2: 2037-09-01 | GE2: 2037-10-01 | GF2: 2037-11-01 | GG2: 2037-12-01 | GH2: 2038-01-01 | GI2: 2038-02-01 | GJ2: 2038-03-01 | GK2: 2038-04-01 | GL2: 2038-05-01 | GM2: 2038-06-01 | GN2: 2038-07-01 | GO2: 2038-08-01 | GP2: 2038-09-01 | GQ2: 2038-10-01 | GR2: 2038-11-01 | GS2: 2038-12-01 | GT2: 2039-01-01 | GU2: =GU9 -> 2039-02-01 | GV2: 2039-03-01 | GW2: 2039-04-01 | GX2: 2039-05-01 | GY2: 2039-06-01 | GZ2: 2039-07-01 | HA2: 2039-08-01 | HB2: 2039-09-01 | HC2: 2039-10-01 | HD2: 2039-11-01 | HE2: 2039-12-01 | HF2: 2040-01-01 | HG2: 2040-02-01 | HH2: 2040-03-01 | HI2: 2040-04-01 | HJ2: 2040-05-01 | HK2: 2040-06-01 | HL2: 2040-07-01 | HM2: 2040-08-01 | HN2: 2040-09-01 | HO2: 2040-10-01 | HP2: 2040-11-01 | HQ2: 2040-12-01 | HR2: 2041-01-01 | HS2: 2041-02-01 | HT2: 2041-03-01 | HU2: 2041-04-01 | HV2: 2041-05-01 | HW2: 2041-06-01 | HX2: 2041-07-01 | HY2: 2041-08-01 | HZ2: 2041-09-01 | IA2: 2041-10-01 | IB2: 2041-11-01 | IC2: 2041-12-01 | ID2: 2042-01-01 | IE2: 2042-02-01 | IF2: 2042-03-01 | IG2: 2042-04-01 | IH2: 2042-05-01 | II2: 2042-06-01 | IJ2: 2042-07-01 | IK2: 2042-08-01 | IL2: 2042-09-01 | IM2: 2042-10-01 | IN2: 2042-11-01 | IO2: 2042-12-01 | IP2: 2043-01-01 | IQ2: 2043-02-01 | IR2: 2043-03-01 | IS2: 2043-04-01 | IT2: 2043-05-01 | IU2: 2043-06-01 | IV2: 2043-07-01 | IW2: 2043-08-01 | IX2: 2043-09-01 | IY2: 2043-10-01 | IZ2: 2043-11-01 | JA2: 2043-12-01 | JB2: 2044-01-01 | JC2: 2044-02-01 | JD2: 2044-03-01 | JE2: 2044-04-01 | JF2: 2044-05-01 | JG2: =JG9 -> 2044-06-01 | JH2: 2044-07-01 | JI2: 2044-08-01 | JJ2: 2044-09-01 | JK2: 2044-10-01 | JL2: 2044-11-01 | JM2: 2044-12-01 | JN2: 2045-01-01 | JO2: 2045-02-01 | JP2: 2045-03-01 | JQ2: 2045-04-01 | JR2: 2045-05-01 | JS2: 2045-06-01 | JT2: 2045-07-01 | JU2: 2045-08-01 | JV2: 2045-09-01 | JW2: 2045-10-01 | JX2: 2045-11-01 | JY2: 2045-12-01 | JZ2: 2046-01-01 | KA2: 2046-02-01 | KB2: 2046-03-01 | KC2: 2046-04-01 | KD2: 2046-05-01 | KE2: 2046-06-01 | KF2: 2046-07-01 | KG2: 2046-08-01 | KH2: 2046-09-01 | KI2: 2046-10-01 | KJ2: 2046-11-01 | KK2: 2046-12-01 | KL2: 2047-01-01 | KM2: 2047-02-01 | KN2: 2047-03-01 | KO2: 2047-04-01 | KP2: 2047-05-01 | KQ2: 2047-06-01 | KR2: 2047-07-01 | KS2: 2047-08-01 | KT2: 2047-09-01 | KU2: 2047-10-01 | KV2: 2047-11-01 | KW2: 2047-12-01 | KX2: 2048-01-01 | KY2: 2048-02-01 | KZ2: 2048-03-01 | LA2: 2048-04-01 | LB2: 2048-05-01 | LC2: 2048-06-01 | LD2: 2048-07-01 | LE2: 2048-08-01 | LF2: 2048-09-01 | LG2: 2048-10-01 | LH2: 2048-11-01 | LI2: 2048-12-01 | LJ2: 2049-01-01 | LK2: 2049-02-01 | LL2: 2049-03-01 | LM2: 2049-04-01 | LN2: 2049-05-01 | LO2: 2049-06-01 | LP2: 2049-07-01 | LQ2: 2049-08-01 | LR2: 2049-09-01 | LS2: =LS9 -> 2049-10-01 | LT2: 2049-11-01 | LU2: 2049-12-01 | LV2: 2050-01-01 | LW2: 2050-02-01 | LX2: 2050-03-01 | LY2: 2050-04-01 | LZ2: 2050-05-01 | MA2: 2050-06-01 | MB2: 2050-07-01 | MC2: 2050-08-01 | MD2: 2050-09-01 | ME2: 2050-10-01 | MF2: 2050-11-01 | MG2: 2050-12-01 | MH2: 2051-01-01 | MI2: 2051-02-01 | MJ2: 2051-03-01 | MK2: 2051-04-01 | ML2: 2051-05-01 | MM2: 2051-06-01 | MN2: 2051-07-01 | MO2: 2051-08-01 | MP2: 2051-09-01 | MQ2: 2051-10-01 | MR2: 2051-11-01 | MS2: 2051-12-01 | MT2: 2052-01-01 | MU2: 2052-02-01 | MV2: 2052-03-01 | MW2: 2052-04-01 | MX2: 2052-05-01 | MY2: 2052-06-01 | MZ2: 2052-07-01 | NA2: 2052-08-01 | NB2: 2052-09-01 | NC2: 2052-10-01 | ND2: 2052-11-01 | NE2: 2052-12-01 | NF2: 2053-01-01 | NG2: 2053-02-01 | NH2: 2053-03-01 | NI2: 2053-04-01 | NJ2: 2053-05-01 | NK2: 2053-06-01 | NL2: 2053-07-01 | NM2: 2053-08-01 | NN2: 2053-09-01 | NO2: 2053-10-01 | NP2: 2053-11-01 | NQ2: 2053-12-01 | NR2: 2054-01-01 | NS2: 2054-02-01 | NT2: 2054-03-01 | NU2: 2054-04-01 | NV2: 2054-05-01 | NW2: 2054-06-01 | NX2: 2054-07-01 | NY2: 2054-08-01 | NZ2: 2054-09-01 | OA2: 2054-10-01 | OB2: 2054-11-01 | OC2: 2054-12-01 | OD2: 2055-01-01 | OE2: =OE9 -> 2055-02-01 | OF2: 2055-03-01 | OG2: 2055-04-01 | OH2: 2055-05-01 | OI2: 2055-06-01 | OJ2: 2055-07-01 | OK2: 2055-08-01 | OL2: 2055-09-01 | OM2: 2055-10-01 | ON2: 2055-11-01 | OO2: 2055-12-01 | OP2: 2056-01-01 | OQ2: 2056-02-01 | OR2: 2056-03-01 | OS2: 2056-04-01 | OT2: 2056-05-01 | OU2: 2056-06-01 | OV2: 2056-07-01 | OW2: 2056-08-01 | OX2: 2056-09-01 | OY2: 2056-10-01 | OZ2: 2056-11-01 | PA2: 2056-12-01 | PB2: 2057-01-01 | PC2: 2057-02-01 | PD2: 2057-03-01 | PE2: 2057-04-01 | PF2: 2057-05-01 | PG2: 2057-06-01 | PH2: 2057-07-01 | PI2: 2057-08-01 | PJ2: 2057-09-01 | PK2: 2057-10-01 | PL2: 2057-11-01 | PM2: 2057-12-01 | PN2: 2058-01-01 | PO2: 2058-02-01 | PP2: 2058-03-01 | PQ2: 2058-04-01 | PR2: 2058-05-01 | PS2: 2058-06-01 | PT2: 2058-07-01 | PU2: 2058-08-01 | PV2: 2058-09-01 | PW2: 2058-10-01 | PX2: 2058-11-01 | PY2: 2058-12-01 | PZ2: 2059-01-01 | QA2: 2059-02-01 | QB2: 2059-03-01 | QC2: 2059-04-01 | QD2: 2059-05-01 | QE2: 2059-06-01 | QF2: 2059-07-01 | QG2: 2059-08-01 | QH2: 2059-09-01 | QI2: 2059-10-01 | QJ2: 2059-11-01 | QK2: 2059-12-01 | QL2: 2060-01-01 | QM2: 2060-02-01 | QN2: 2060-03-01 | QO2: 2060-04-01 | QP2: 2060-05-01 | QQ2: =QQ9 -> 2060-06-01 | QR2: 2060-07-01 | QS2: 2060-08-01 | QT2: 2060-09-01 | QU2: 2060-10-01 | QV2: 2060-11-01 | QW2: 2060-12-01 | QX2: 2061-01-01 | QY2: 2061-02-01 | QZ2: 2061-03-01 | RA2: 2061-04-01 | RB2: 2061-05-01 | RC2: 2061-06-01 | RD2: 2061-07-01 | RE2: 2061-08-01 | RF2: 2061-09-01 | RG2: 2061-10-01 | RH2: 2061-11-01 | RI2: 2061-12-01 | RJ2: 2062-01-01 | RK2: 2062-02-01 | RL2: 2062-03-01 | RM2: 2062-04-01 | RN2: 2062-05-01 | RO2: 2062-06-01 | RP2: 2062-07-01 | RQ2: 2062-08-01 | RR2: 2062-09-01 | RS2: 2062-10-01 | RT2: 2062-11-01 | RU2: 2062-12-01 | RV2: 2063-01-01 | RW2: 2063-02-01 | RX2: 2063-03-01 | RY2: 2063-04-01 | RZ2: 2063-05-01 | SA2: 2063-06-01 | SB2: 2063-07-01 | SC2: 2063-08-01 | SD2: 2063-09-01 | SE2: 2063-10-01 | SF2: 2063-11-01 | SG2: 2063-12-01 | SH2: 2064-01-01 | SI2: 2064-02-01 | SJ2: 2064-03-01 | SK2: 2064-04-01 | SL2: 2064-05-01 | SM2: 2064-06-01 | SN2: 2064-07-01 | SO2: 2064-08-01
E3: Model period end date - monthly - header | J3: =J10 -> 2023-01-31 | K3: =K10 -> 2023-02-28 | L3: 2023-03-31 | M3: 2023-04-30 | N3: 2023-05-31 | O3: 2023-06-30 | P3: 2023-07-31 | Q3: 2023-08-31 | R3: 2023-09-30 | S3: 2023-10-31 | T3: 2023-11-30 | U3: 2023-12-31 | V3: 2024-01-31 | W3: 2024-02-29 | X3: 2024-03-31 | Y3: 2024-04-30 | Z3: 2024-05-31 | AA3: 2024-06-30 | AB3: 2024-07-31 | AC3: 2024-08-31 | AD3: 2024-09-30 | AE3: 2024-10-31 | AF3: 2024-11-30 | AG3: 2024-12-31 | AH3: 2025-01-31 | AI3: 2025-02-28 | AJ3: 2025-03-31 | AK3: 2025-04-30 | AL3: 2025-05-31 | AM3: 2025-06-30 | AN3: 2025-07-31 | AO3: 2025-08-31 | AP3: 2025-09-30 | AQ3: 2025-10-31 | AR3: 2025-11-30 | AS3: 2025-12-31 | AT3: 2026-01-31 | AU3: 2026-02-28 | AV3: 2026-03-31 | AW3: 2026-04-30 | AX3: 2026-05-31 | AY3: 2026-06-30 | AZ3: 2026-07-31 | BA3: 2026-08-31 | BB3: 2026-09-30 | BC3: 2026-10-31 | BD3: 2026-11-30 | BE3: 2026-12-31 | BF3: 2027-01-31 | BG3: 2027-02-28 | BH3: 2027-03-31 | BI3: 2027-04-30 | BJ3: 2027-05-31 | BK3: 2027-06-30 | BL3: 2027-07-31 | BM3: 2027-08-31 | BN3: 2027-09-30 | BO3: 2027-10-31 | BP3: 2027-11-30 | BQ3: 2027-12-31 | BR3: 2028-01-31 | BS3: 2028-02-29 | BT3: 2028-03-31 | BU3: 2028-04-30 | BV3: 2028-05-31 | BW3: =BW10 -> 2028-06-30 | BX3: 2028-07-31 | BY3: 2028-08-31 | BZ3: 2028-09-30 | CA3: 2028-10-31 | CB3: 2028-11-30 | CC3: 2028-12-31 | CD3: 2029-01-31 | CE3: 2029-02-28 | CF3: 2029-03-31 | CG3: 2029-04-30 | CH3: 2029-05-31 | CI3: 2029-06-30 | CJ3: 2029-07-31 | CK3: 2029-08-31 | CL3: 2029-09-30 | CM3: 2029-10-31 | CN3: 2029-11-30 | CO3: 2029-12-31 | CP3: 2030-01-31 | CQ3: 2030-02-28 | CR3: 2030-03-31 | CS3: 2030-04-30 | CT3: 2030-05-31 | CU3: 2030-06-30 | CV3: 2030-07-31 | CW3: 2030-08-31 | CX3: 2030-09-30 | CY3: 2030-10-31 | CZ3: 2030-11-30 | DA3: 2030-12-31 | DB3: 2031-01-31 | DC3: 2031-02-28 | DD3: 2031-03-31 | DE3: 2031-04-30 | DF3: 2031-05-31 | DG3: 2031-06-30 | DH3: 2031-07-31 | DI3: 2031-08-31 | DJ3: 2031-09-30 | DK3: 2031-10-31 | DL3: 2031-11-30 | DM3: 2031-12-31 | DN3: 2032-01-31 | DO3: 2032-02-29 | DP3: 2032-03-31 | DQ3: 2032-04-30 | DR3: 2032-05-31 | DS3: 2032-06-30 | DT3: 2032-07-31 | DU3: 2032-08-31 | DV3: 2032-09-30 | DW3: 2032-10-31 | DX3: 2032-11-30 | DY3: 2032-12-31 | DZ3: 2033-01-31 | EA3: 2033-02-28 | EB3: 2033-03-31 | EC3: 2033-04-30 | ED3: 2033-05-31 | EE3: 2033-06-30 | EF3: 2033-07-31 | EG3: 2033-08-31 | EH3: 2033-09-30 | EI3: =EI10 -> 2033-10-31 | EJ3: 2033-11-30 | EK3: 2033-12-31 | EL3: 2034-01-31 | EM3: 2034-02-28 | EN3: 2034-03-31 | EO3: 2034-04-30 | EP3: 2034-05-31 | EQ3: 2034-06-30 | ER3: 2034-07-31 | ES3: 2034-08-31 | ET3: 2034-09-30 | EU3: 2034-10-31 | EV3: 2034-11-30 | EW3: 2034-12-31 | EX3: 2035-01-31 | EY3: 2035-02-28 | EZ3: 2035-03-31 | FA3: 2035-04-30 | FB3: 2035-05-31 | FC3: 2035-06-30 | FD3: 2035-07-31 | FE3: 2035-08-31 | FF3: 2035-09-30 | FG3: 2035-10-31 | FH3: 2035-11-30 | FI3: 2035-12-31 | FJ3: 2036-01-31 | FK3: 2036-02-29 | FL3: 2036-03-31 | FM3: 2036-04-30 | FN3: 2036-05-31 | FO3: 2036-06-30 | FP3: 2036-07-31 | FQ3: 2036-08-31 | FR3: 2036-09-30 | FS3: 2036-10-31 | FT3: 2036-11-30 | FU3: 2036-12-31 | FV3: 2037-01-31 | FW3: 2037-02-28 | FX3: 2037-03-31 | FY3: 2037-04-30 | FZ3: 2037-05-31 | GA3: 2037-06-30 | GB3: 2037-07-31 | GC3: 2037-08-31 | GD3: 2037-09-30 | GE3: 2037-10-31 | GF3: 2037-11-30 | GG3: 2037-12-31 | GH3: 2038-01-31 | GI3: 2038-02-28 | GJ3: 2038-03-31 | GK3: 2038-04-30 | GL3: 2038-05-31 | GM3: 2038-06-30 | GN3: 2038-07-31 | GO3: 2038-08-31 | GP3: 2038-09-30 | GQ3: 2038-10-31 | GR3: 2038-11-30 | GS3: 2038-12-31 | GT3: 2039-01-31 | GU3: =GU10 -> 2039-02-28 | GV3: 2039-03-31 | GW3: 2039-04-30 | GX3: 2039-05-31 | GY3: 2039-06-30 | GZ3: 2039-07-31 | HA3: 2039-08-31 | HB3: 2039-09-30 | HC3: 2039-10-31 | HD3: 2039-11-30 | HE3: 2039-12-31 | HF3: 2040-01-31 | HG3: 2040-02-29 | HH3: 2040-03-31 | HI3: 2040-04-30 | HJ3: 2040-05-31 | HK3: 2040-06-30 | HL3: 2040-07-31 | HM3: 2040-08-31 | HN3: 2040-09-30 | HO3: 2040-10-31 | HP3: 2040-11-30 | HQ3: 2040-12-31 | HR3: 2041-01-31 | HS3: 2041-02-28 | HT3: 2041-03-31 | HU3: 2041-04-30 | HV3: 2041-05-31 | HW3: 2041-06-30 | HX3: 2041-07-31 | HY3: 2041-08-31 | HZ3: 2041-09-30 | IA3: 2041-10-31 | IB3: 2041-11-30 | IC3: 2041-12-31 | ID3: 2042-01-31 | IE3: 2042-02-28 | IF3: 2042-03-31 | IG3: 2042-04-30 | IH3: 2042-05-31 | II3: 2042-06-30 | IJ3: 2042-07-31 | IK3: 2042-08-31 | IL3: 2042-09-30 | IM3: 2042-10-31 | IN3: 2042-11-30 | IO3: 2042-12-31 | IP3: 2043-01-31 | IQ3: 2043-02-28 | IR3: 2043-03-31 | IS3: 2043-04-30 | IT3: 2043-05-31 | IU3: 2043-06-30 | IV3: 2043-07-31 | IW3: 2043-08-31 | IX3: 2043-09-30 | IY3: 2043-10-31 | IZ3: 2043-11-30 | JA3: 2043-12-31 | JB3: 2044-01-31 | JC3: 2044-02-29 | JD3: 2044-03-31 | JE3: 2044-04-30 | JF3: 2044-05-31 | JG3: =JG10 -> 2044-06-30 | JH3: 2044-07-31 | JI3: 2044-08-31 | JJ3: 2044-09-30 | JK3: 2044-10-31 | JL3: 2044-11-30 | JM3: 2044-12-31 | JN3: 2045-01-31 | JO3: 2045-02-28 | JP3: 2045-03-31 | JQ3: 2045-04-30 | JR3: 2045-05-31 | JS3: 2045-06-30 | JT3: 2045-07-31 | JU3: 2045-08-31 | JV3: 2045-09-30 | JW3: 2045-10-31 | JX3: 2045-11-30 | JY3: 2045-12-31 | JZ3: 2046-01-31 | KA3: 2046-02-28 | KB3: 2046-03-31 | KC3: 2046-04-30 | KD3: 2046-05-31 | KE3: 2046-06-30 | KF3: 2046-07-31 | KG3: 2046-08-31 | KH3: 2046-09-30 | KI3: 2046-10-31 | KJ3: 2046-11-30 | KK3: 2046-12-31 | KL3: 2047-01-31 | KM3: 2047-02-28 | KN3: 2047-03-31 | KO3: 2047-04-30 | KP3: 2047-05-31 | KQ3: 2047-06-30 | KR3: 2047-07-31 | KS3: 2047-08-31 | KT3: 2047-09-30 | KU3: 2047-10-31 | KV3: 2047-11-30 | KW3: 2047-12-31 | KX3: 2048-01-31 | KY3: 2048-02-29 | KZ3: 2048-03-31 | LA3: 2048-04-30 | LB3: 2048-05-31 | LC3: 2048-06-30 | LD3: 2048-07-31 | LE3: 2048-08-31 | LF3: 2048-09-30 | LG3: 2048-10-31 | LH3: 2048-11-30 | LI3: 2048-12-31 | LJ3: 2049-01-31 | LK3: 2049-02-28 | LL3: 2049-03-31 | LM3: 2049-04-30 | LN3: 2049-05-31 | LO3: 2049-06-30 | LP3: 2049-07-31 | LQ3: 2049-08-31 | LR3: 2049-09-30 | LS3: =LS10 -> 2049-10-31 | LT3: 2049-11-30 | LU3: 2049-12-31 | LV3: 2050-01-31 | LW3: 2050-02-28 | LX3: 2050-03-31 | LY3: 2050-04-30 | LZ3: 2050-05-31 | MA3: 2050-06-30 | MB3: 2050-07-31 | MC3: 2050-08-31 | MD3: 2050-09-30 | ME3: 2050-10-31 | MF3: 2050-11-30 | MG3: 2050-12-31 | MH3: 2051-01-31 | MI3: 2051-02-28 | MJ3: 2051-03-31 | MK3: 2051-04-30 | ML3: 2051-05-31 | MM3: 2051-06-30 | MN3: 2051-07-31 | MO3: 2051-08-31 | MP3: 2051-09-30 | MQ3: 2051-10-31 | MR3: 2051-11-30 | MS3: 2051-12-31 | MT3: 2052-01-31 | MU3: 2052-02-29 | MV3: 2052-03-31 | MW3: 2052-04-30 | MX3: 2052-05-31 | MY3: 2052-06-30 | MZ3: 2052-07-31 | NA3: 2052-08-31 | NB3: 2052-09-30 | NC3: 2052-10-31 | ND3: 2052-11-30 | NE3: 2052-12-31 | NF3: 2053-01-31 | NG3: 2053-02-28 | NH3: 2053-03-31 | NI3: 2053-04-30 | NJ3: 2053-05-31 | NK3: 2053-06-30 | NL3: 2053-07-31 | NM3: 2053-08-31 | NN3: 2053-09-30 | NO3: 2053-10-31 | NP3: 2053-11-30 | NQ3: 2053-12-31 | NR3: 2054-01-31 | NS3: 2054-02-28 | NT3: 2054-03-31 | NU3: 2054-04-30 | NV3: 2054-05-31 | NW3: 2054-06-30 | NX3: 2054-07-31 | NY3: 2054-08-31 | NZ3: 2054-09-30 | OA3: 2054-10-31 | OB3: 2054-11-30 | OC3: 2054-12-31 | OD3: 2055-01-31 | OE3: =OE10 -> 2055-02-28 | OF3: 2055-03-31 | OG3: 2055-04-30 | OH3: 2055-05-31 | OI3: 2055-06-30 | OJ3: 2055-07-31 | OK3: 2055-08-31 | OL3: 2055-09-30 | OM3: 2055-10-31 | ON3: 2055-11-30 | OO3: 2055-12-31 | OP3: 2056-01-31 | OQ3: 2056-02-29 | OR3: 2056-03-31 | OS3: 2056-04-30 | OT3: 2056-05-31 | OU3: 2056-06-30 | OV3: 2056-07-31 | OW3: 2056-08-31 | OX3: 2056-09-30 | OY3: 2056-10-31 | OZ3: 2056-11-30 | PA3: 2056-12-31 | PB3: 2057-01-31 | PC3: 2057-02-28 | PD3: 2057-03-31 | PE3: 2057-04-30 | PF3: 2057-05-31 | PG3: 2057-06-30 | PH3: 2057-07-31 | PI3: 2057-08-31 | PJ3: 2057-09-30 | PK3: 2057-10-31 | PL3: 2057-11-30 | PM3: 2057-12-31 | PN3: 2058-01-31 | PO3: 2058-02-28 | PP3: 2058-03-31 | PQ3: 2058-04-30 | PR3: 2058-05-31 | PS3: 2058-06-30 | PT3: 2058-07-31 | PU3: 2058-08-31 | PV3: 2058-09-30 | PW3: 2058-10-31 | PX3: 2058-11-30 | PY3: 2058-12-31 | PZ3: 2059-01-31 | QA3: 2059-02-28 | QB3: 2059-03-31 | QC3: 2059-04-30 | QD3: 2059-05-31 | QE3: 2059-06-30 | QF3: 2059-07-31 | QG3: 2059-08-31 | QH3: 2059-09-30 | QI3: 2059-10-31 | QJ3: 2059-11-30 | QK3: 2059-12-31 | QL3: 2060-01-31 | QM3: 2060-02-29 | QN3: 2060-03-31 | QO3: 2060-04-30 | QP3: 2060-05-31 | QQ3: =QQ10 -> 2060-06-30 | QR3: 2060-07-31 | QS3: 2060-08-31 | QT3: 2060-09-30 | QU3: 2060-10-31 | QV3: 2060-11-30 | QW3: 2060-12-31 | QX3: 2061-01-31 | QY3: 2061-02-28 | QZ3: 2061-03-31 | RA3: 2061-04-30 | RB3: 2061-05-31 | RC3: 2061-06-30 | RD3: 2061-07-31 | RE3: 2061-08-31 | RF3: 2061-09-30 | RG3: 2061-10-31 | RH3: 2061-11-30 | RI3: 2061-12-31 | RJ3: 2062-01-31 | RK3: 2062-02-28 | RL3: 2062-03-31 | RM3: 2062-04-30 | RN3: 2062-05-31 | RO3: 2062-06-30 | RP3: 2062-07-31 | RQ3: 2062-08-31 | RR3: 2062-09-30 | RS3: 2062-10-31 | RT3: 2062-11-30 | RU3: 2062-12-31 | RV3: 2063-01-31 | RW3: 2063-02-28 | RX3: 2063-03-31 | RY3: 2063-04-30 | RZ3: 2063-05-31 | SA3: 2063-06-30 | SB3: 2063-07-31 | SC3: 2063-08-31 | SD3: 2063-09-30 | SE3: 2063-10-31 | SF3: 2063-11-30 | SG3: 2063-12-31 | SH3: 2064-01-31 | SI3: 2064-02-29 | SJ3: 2064-03-31 | SK3: 2064-04-30 | SL3: 2064-05-31 | SM3: 2064-06-30 | SN3: 2064-07-31 | SO3: 2064-08-31
E4: Timeline label | J4: =J31 -> FC/Const. | K4: =K31 -> Const | L4: Const | M4: Const | N4: Const | O4: Const | P4: Const | Q4: Const | R4: Const | S4: Const | T4: Const | U4: Const | V4: Const | W4: Const | X4: Const | Y4: Const | Z4: Const | AA4: Const | AB4: Const | AC4: Const | AD4: Const | AE4: Const | AF4: Const | AG4: Const | AH4: Const | AI4: Const | AJ4: Const | AK4: Const | AL4: Const | AM4: Const | AN4: Const | AO4: Const | AP4: Const | AQ4: Const | AR4: Const | AS4: Const | AT4: Const | AU4: Const | AV4: Const | AW4: Const | AX4: Const | AY4: Const | AZ4: Const | BA4: Const | BB4: Const | BC4: Const | BD4: Const | BE4: Const | BF4: Const | BG4: Const | BH4: Const | BI4: Const | BJ4: Const | BK4: Const | BL4: Const | BM4: Const | BN4: Const | BO4: Const | BP4: Const | BQ4: Const | BR4: Const | BS4: Const | BT4: Const | BU4: Const | BV4: Const | BW4: =BW31 -> Const | BX4: Const | BY4: Const | BZ4: Const | CA4: Const | CB4: Const | CC4: Const | CD4: Const | CE4: Const | CF4: Const | CG4: Const | CH4: Const | CI4: Const | CJ4: Const | CK4: Const | CL4: Const | CM4: Const | CN4: Const | CO4: Const | CP4: Const | CQ4: Const | CR4: Const | CS4: Const | CT4: Const | CU4: Const | CV4: Const | CW4: Const | CX4: Const | CY4: Const | CZ4: Const | DA4: Const | DB4: Const | DC4: Const | DD4: Const | DE4: Const | DF4: Const | DG4: Const | DH4: Const | DI4: Const | DJ4: Const | DK4: Const | DL4: Const | DM4: Const | DN4: Const | DO4: Const | DP4: Const | DQ4: Const | DR4: Const | DS4: Const | DT4: Const | DU4: Const | DV4: Const | DW4: Const | DX4: Const | DY4: Const | DZ4: Const | EA4: Const | EB4: Const | EC4: Const | ED4: Const | EE4: Const | EF4: Const | EG4: Const | EH4: Const | EI4: =EI31 -> Const | EJ4: Const | EK4: Const | EL4: Const | EM4: Const | EN4: Const | EO4: Const | EP4: Const | EQ4: Const | ER4: Const | ES4: Const | ET4: Const | EU4: Const | EV4: Const | EW4: Const | EX4: Const | EY4: Const | EZ4: Const | FA4: Const | FB4: Const | FC4: Const | FD4: Const | FE4: Const | FF4: Const | FG4: Const | FH4: Const | FI4: Const | FJ4: Const | FK4: Const | FL4: Const | FM4: Const | FN4: Const | FO4: Const | FP4: Const | FQ4: Const | FR4: Const | FS4: Const | FT4: Const | FU4: Const | FV4: Const | FW4: Const | FX4: Const | FY4: Const | FZ4: Const | GA4: Const | GB4: Const | GC4: Const | GD4: Const | GE4: Const | GF4: Const | GG4: Const | GH4: Const | GI4: Const | GJ4: Const | GK4: Const | GL4: Const | GM4: Const | GN4: Const | GO4: Const | GP4: Const | GQ4: Const | GR4: Const | GS4: Const | GT4: Const | GU4: =GU31 -> Const | GV4: Const | GW4: Const | GX4: Const | GY4: Const | GZ4: Const | HA4: Const | HB4: Const | HC4: Const | HD4: Const | HE4: Const | HF4: Const | HG4: Const | HH4: Const | HI4: Const | HJ4: Const | HK4: Const | HL4: Const | HM4: Const | HN4: Const | HO4: Const | HP4: Const | HQ4: Const | HR4: Const | HS4: Const | HT4: Const | HU4: Const | HV4: Const | HW4: Const | HX4: Const | HY4: Const | HZ4: Const | IA4: Const | IB4: Const | IC4: Const | ID4: Const | IE4: Const | IF4: Const | IG4: Const | IH4: Const | II4: Const | IJ4: Const | IK4: Const | IL4: Const | IM4: Const | IN4: Const | IO4: Const | IP4: Const | IQ4: Const | IR4: Const | IS4: Const | IT4: Const | IU4: Const | IV4: Const | IW4: Const | IX4: Const | IY4: Const | IZ4: Const | JA4: Const | JB4: Const | JC4: Const | JD4: Const | JE4: Const | JF4: Const | JG4: =JG31 -> Const | JH4: Const | JI4: Const | JJ4: Const | JK4: Const | JL4: Const | JM4: Const | JN4: Const | JO4: Const | JP4: Const | JQ4: Const | JR4: Const | JS4: Const | JT4: Const | JU4: Const | JV4: Const | JW4: Const | JX4: Const | JY4: Const | JZ4: Const | KA4: Const | KB4: Const | KC4: Const | KD4: Const | KE4: Const | KF4: Const | KG4: Const | KH4: Const | KI4: Const | KJ4: Const | KK4: Const | KL4: Const | KM4: Const | KN4: Const | KO4: Const | KP4: Const | KQ4: Const | KR4: Const | KS4: Const | KT4: Const | KU4: Const | KV4: Const | KW4: Const | KX4: Const | KY4: Const | KZ4: Const | LA4: Const | LB4: Const | LC4: Const | LD4: Const | LE4: Const | LF4: Const | LG4: Const | LH4: Const | LI4: Const | LJ4: Const | LK4: Const | LL4: Const | LM4: Const | LN4: Const | LO4: Const | LP4: Const | LQ4: Const | LR4: Const | LS4: =LS31 -> Const | LT4: Const | LU4: Const | LV4: Const | LW4: Const | LX4: Const | LY4: Const | LZ4: Const | MA4: Const | MB4: Const | MC4: Const | MD4: Const | ME4: Const | MF4: Const | MG4: Const | MH4: Const | MI4: Const | MJ4: Const | MK4: Const | ML4: Const | MM4: Const | MN4: Const | MO4: Const | MP4: Const | MQ4: Const | MR4: Const | MS4: Const | MT4: Const | MU4: Const | MV4: Const | MW4: Const | MX4: Const | MY4: Const | MZ4: Const | NA4: Const | NB4: Const | NC4: Const | ND4: Const | NE4: Const | NF4: Const | NG4: Const | NH4: Const | NI4: Const | NJ4: Const | NK4: Const | NL4: Const | NM4: Const | NN4: Const | NO4: Const | NP4: Const | NQ4: Const | NR4: Const | NS4: Const | NT4: Const | NU4: Const | NV4: Const | NW4: Const | NX4: Const | NY4: Const | NZ4: Const | OA4: Const | OB4: Const | OC4: Const | OD4: Const | OE4: =OE31 -> Const | OF4: Const | OG4: Const | OH4: Const | OI4: Const | OJ4: Const | OK4: Const | OL4: Const | OM4: Const | ON4: Const | OO4: Const | OP4: Const | OQ4: Const | OR4: Const | OS4: Const | OT4: Const | OU4: Const | OV4: Const | OW4: Const | OX4: Const | OY4: Const | OZ4: Const | PA4: Const | PB4: Const | PC4: Const | PD4: Const | PE4: Const | PF4: Const | PG4: Const | PH4: Const | PI4: Const | PJ4: Const | PK4: Const | PL4: Const | PM4: Const | PN4: Const | PO4: Const | PP4: Const | PQ4: Const | PR4: Const | PS4: Const | PT4: Const | PU4: Const | PV4: Const | PW4: Const | PX4: Const | PY4: Const | PZ4: Const | QA4: Const | QB4: Const | QC4: Const | QD4: Const | QE4: Const | QF4: Const | QG4: Const | QH4: Const | QI4: Const | QJ4: Const | QK4: Const | QL4: Const | QM4: Const | QN4: Const | QO4: Const | QP4: Const | QQ4: =QQ31 -> Const | QR4: Const | QS4: Const | QT4: Const | QU4: Const | QV4: Const | QW4: Const | QX4: Const | QY4: Const | QZ4: Const | RA4: Const | RB4: Const | RC4: Const | RD4: Const | RE4: Const | RF4: Const | RG4: Const | RH4: Const | RI4: Const | RJ4: Const | RK4: Const | RL4: Const | RM4: Const | RN4: Const | RO4: Const | RP4: Const | RQ4: Const | RR4: Const | RS4: Const | RT4: Const | RU4: Const | RV4: Const | RW4: Const | RX4: Const | RY4: Const | RZ4: Const | SA4: Const | SB4: Const | SC4: Const | SD4: Const | SE4: Const | SF4: Const | SG4: Const | SH4: Const | SI4: Const | SJ4: Const | SK4: Const | SL4: Const | SM4: Const | SN4: Const | SO4: Const
E5: =Checks!$E$12 -> S-Curve (Lookup) Error Repayment Flag Test Error Circular Check Error | F5: Constant | G5: Unit | H5: Total
E7: Model Counter | J7: =I7+1 -> 1 | K7: =J7+1 -> 2 | L7: 3 | M7: 4 | N7: 5 | O7: 6 | P7: 7 | Q7: 8 | R7: 9 | S7: 10 | T7: 11 | U7: 12 | V7: 13 | W7: 14 | X7: 15 | Y7: 16 | Z7: 17 | AA7: 18 | AB7: 19 | AC7: 20 | AD7: 21 | AE7: 22 | AF7: 23 | AG7: 24 | AH7: 25 | AI7: 26 | AJ7: 27 | AK7: 28 | AL7: 29 | AM7: 30 | AN7: 31 | AO7: 32 | AP7: 33 | AQ7: 34 | AR7: 35 | AS7: 36 | AT7: 37 | AU7: 38 | AV7: 39 | AW7: 40 | AX7: 41 | AY7: 42 | AZ7: 43 | BA7: 44 | BB7: 45 | BC7: 46 | BD7: 47 | BE7: 48 | BF7: 49 | BG7: 50 | BH7: 51 | BI7: 52 | BJ7: 53 | BK7: 54 | BL7: 55 | BM7: 56 | BN7: 57 | BO7: 58 | BP7: 59 | BQ7: 60 | BR7: 61 | BS7: 62 | BT7: 63 | BU7: 64 | BV7: 65 | BW7: =BV7+1 -> 66 | BX7: 67 | BY7: 68 | BZ7: 69 | CA7: 70 | CB7: 71 | CC7: 72 | CD7: 73 | CE7: 74 | CF7: 75 | CG7: 76 | CH7: 77 | CI7: 78 | CJ7: 79 | CK7: 80 | CL7: 81 | CM7: 82 | CN7: 83 | CO7: 84 | CP7: 85 | CQ7: 86 | CR7: 87 | CS7: 88 | CT7: 89 | CU7: 90 | CV7: 91 | CW7: 92 | CX7: 93 | CY7: 94 | CZ7: 95 | DA7: 96 | DB7: 97 | DC7: 98 | DD7: 99 | DE7: 100 | DF7: 101 | DG7: 102 | DH7: 103 | DI7: 104 | DJ7: 105 | DK7: 106 | DL7: 107 | DM7: 108 | DN7: 109 | DO7: 110 | DP7: 111 | DQ7: 112 | DR7: 113 | DS7: 114 | DT7: 115 | DU7: 116 | DV7: 117 | DW7: 118 | DX7: 119 | DY7: 120 | DZ7: 121 | EA7: 122 | EB7: 123 | EC7: 124 | ED7: 125 | EE7: 126 | EF7: 127 | EG7: 128 | EH7: 129 | EI7: =EH7+1 -> 130 | EJ7: 131 | EK7: 132 | EL7: 133 | EM7: 134 | EN7: 135 | EO7: 136 | EP7: 137 | EQ7: 138 | ER7: 139 | ES7: 140 | ET7: 141 | EU7: 142 | EV7: 143 | EW7: 144 | EX7: 145 | EY7: 146 | EZ7: 147 | FA7: 148 | FB7: 149 | FC7: 150 | FD7: 151 | FE7: 152 | FF7: 153 | FG7: 154 | FH7: 155 | FI7: 156 | FJ7: 157 | FK7: 158 | FL7: 159 | FM7: 160 | FN7: 161 | FO7: 162 | FP7: 163 | FQ7: 164 | FR7: 165 | FS7: 166 | FT7: 167 | FU7: 168 | FV7: 169 | FW7: 170 | FX7: 171 | FY7: 172 | FZ7: 173 | GA7: 174 | GB7: 175 | GC7: 176 | GD7: 177 | GE7: 178 | GF7: 179 | GG7: 180 | GH7: 181 | GI7: 182 | GJ7: 183 | GK7: 184 | GL7: 185 | GM7: 186 | GN7: 187 | GO7: 188 | GP7: 189 | GQ7: 190 | GR7: 191 | GS7: 192 | GT7: 193 | GU7: =GT7+1 -> 194 | GV7: 195 | GW7: 196 | GX7: 197 | GY7: 198 | GZ7: 199 | HA7: 200 | HB7: 201 | HC7: 202 | HD7: 203 | HE7: 204 | HF7: 205 | HG7: 206 | HH7: 207 | HI7: 208 | HJ7: 209 | HK7: 210 | HL7: 211 | HM7: 212 | HN7: 213 | HO7: 214 | HP7: 215 | HQ7: 216 | HR7: 217 | HS7: 218 | HT7: 219 | HU7: 220 | HV7: 221 | HW7: 222 | HX7: 223 | HY7: 224 | HZ7: 225 | IA7: 226 | IB7: 227 | IC7: 228 | ID7: 229 | IE7: 230 | IF7: 231 | IG7: 232 | IH7: 233 | II7: 234 | IJ7: 235 | IK7: 236 | IL7: 237 | IM7: 238 | IN7: 239 | IO7: 240 | IP7: 241 | IQ7: 242 | IR7: 243 | IS7: 244 | IT7: 245 | IU7: 246 | IV7: 247 | IW7: 248 | IX7: 249 | IY7: 250 | IZ7: 251 | JA7: 252 | JB7: 253 | JC7: 254 | JD7: 255 | JE7: 256 | JF7: 257 | JG7: =JF7+1 -> 258 | JH7: 259 | JI7: 260 | JJ7: 261 | JK7: 262 | JL7: 263 | JM7: 264 | JN7: 265 | JO7: 266 | JP7: 267 | JQ7: 268 | JR7: 269 | JS7: 270 | JT7: 271 | JU7: 272 | JV7: 273 | JW7: 274 | JX7: 275 | JY7: 276 | JZ7: 277 | KA7: 278 | KB7: 279 | KC7: 280 | KD7: 281 | KE7: 282 | KF7: 283 | KG7: 284 | KH7: 285 | KI7: 286 | KJ7: 287 | KK7: 288 | KL7: 289 | KM7: 290 | KN7: 291 | KO7: 292 | KP7: 293 | KQ7: 294 | KR7: 295 | KS7: 296 | KT7: 297 | KU7: 298 | KV7: 299 | KW7: 300 | KX7: 301 | KY7: 302 | KZ7: 303 | LA7: 304 | LB7: 305 | LC7: 306 | LD7: 307 | LE7: 308 | LF7: 309 | LG7: 310 | LH7: 311 | LI7: 312 | LJ7: 313 | LK7: 314 | LL7: 315 | LM7: 316 | LN7: 317 | LO7: 318 | LP7: 319 | LQ7: 320 | LR7: 321 | LS7: =LR7+1 -> 322 | LT7: 323 | LU7: 324 | LV7: 325 | LW7: 326 | LX7: 327 | LY7: 328 | LZ7: 329 | MA7: 330 | MB7: 331 | MC7: 332 | MD7: 333 | ME7: 334 | MF7: 335 | MG7: 336 | MH7: 337 | MI7: 338 | MJ7: 339 | MK7: 340 | ML7: 341 | MM7: 342 | MN7: 343 | MO7: 344 | MP7: 345 | MQ7: 346 | MR7: 347 | MS7: 348 | MT7: 349 | MU7: 350 | MV7: 351 | MW7: 352 | MX7: 353 | MY7: 354 | MZ7: 355 | NA7: 356 | NB7: 357 | NC7: 358 | ND7: 359 | NE7: 360 | NF7: 361 | NG7: 362 | NH7: 363 | NI7: 364 | NJ7: 365 | NK7: 366 | NL7: 367 | NM7: 368 | NN7: 369 | NO7: 370 | NP7: 371 | NQ7: 372 | NR7: 373 | NS7: 374 | NT7: 375 | NU7: 376 | NV7: 377 | NW7: 378 | NX7: 379 | NY7: 380 | NZ7: 381 | OA7: 382 | OB7: 383 | OC7: 384 | OD7: 385 | OE7: =OD7+1 -> 386 | OF7: 387 | OG7: 388 | OH7: 389 | OI7: 390 | OJ7: 391 | OK7: 392 | OL7: 393 | OM7: 394 | ON7: 395 | OO7: 396 | OP7: 397 | OQ7: 398 | OR7: 399 | OS7: 400 | OT7: 401 | OU7: 402 | OV7: 403 | OW7: 404 | OX7: 405 | OY7: 406 | OZ7: 407 | PA7: 408 | PB7: 409 | PC7: 410 | PD7: 411 | PE7: 412 | PF7: 413 | PG7: 414 | PH7: 415 | PI7: 416 | PJ7: 417 | PK7: 418 | PL7: 419 | PM7: 420 | PN7: 421 | PO7: 422 | PP7: 423 | PQ7: 424 | PR7: 425 | PS7: 426 | PT7: 427 | PU7: 428 | PV7: 429 | PW7: 430 | PX7: 431 | PY7: 432 | PZ7: 433 | QA7: 434 | QB7: 435 | QC7: 436 | QD7: 437 | QE7: 438 | QF7: 439 | QG7: 440 | QH7: 441 | QI7: 442 | QJ7: 443 | QK7: 444 | QL7: 445 | QM7: 446 | QN7: 447 | QO7: 448 | QP7: 449 | QQ7: =QP7+1 -> 450 | QR7: 451 | QS7: 452 | QT7: 453 | QU7: 454 | QV7: 455 | QW7: 456 | QX7: 457 | QY7: 458 | QZ7: 459 | RA7: 460 | RB7: 461 | RC7: 462 | RD7: 463 | RE7: 464 | RF7: 465 | RG7: 466 | RH7: 467 | RI7: 468 | RJ7: 469 | RK7: 470 | RL7: 471 | RM7: 472 | RN7: 473 | RO7: 474 | RP7: 475 | RQ7: 476 | RR7: 477 | RS7: 478 | RT7: 479 | RU7: 480 | RV7: 481 | RW7: 482 | RX7: 483 | RY7: 484 | RZ7: 485 | SA7: 486 | SB7: 487 | SC7: 488 | SD7: 489 | SE7: 490 | SF7: 491 | SG7: 492 | SH7: 493 | SI7: 494 | SJ7: 495 | SK7: 496 | SL7: 497 | SM7: 498 | SN7: 499 | SO7: 500
E8: Model Start Date | F8: =InputC!F9 -> 2023-01-01
E9: Start of Month | J9: =IF(J7=1,$F$8,EDATE(I9,1)) -> 2023-01-01 | K9: =IF(K7=1,$F$8,EDATE(J9,1)) -> 2023-02-01 | L9: 2023-03-01 | M9: 2023-04-01 | N9: 2023-05-01 | O9: 2023-06-01 | P9: 2023-07-01 | Q9: 2023-08-01 | R9: 2023-09-01 | S9: 2023-10-01 | T9: 2023-11-01 | U9: 2023-12-01 | V9: 2024-01-01 | W9: 2024-02-01 | X9: 2024-03-01 | Y9: 2024-04-01 | Z9: 2024-05-01 | AA9: 2024-06-01 | AB9: 2024-07-01 | AC9: 2024-08-01 | AD9: 2024-09-01 | AE9: 2024-10-01 | AF9: 2024-11-01 | AG9: 2024-12-01 | AH9: 2025-01-01 | AI9: 2025-02-01 | AJ9: 2025-03-01 | AK9: 2025-04-01 | AL9: 2025-05-01 | AM9: 2025-06-01 | AN9: 2025-07-01 | AO9: 2025-08-01 | AP9: 2025-09-01 | AQ9: 2025-10-01 | AR9: 2025-11-01 | AS9: 2025-12-01 | AT9: 2026-01-01 | AU9: 2026-02-01 | AV9: 2026-03-01 | AW9: 2026-04-01 | AX9: 2026-05-01 | AY9: 2026-06-01 | AZ9: 2026-07-01 | BA9: 2026-08-01 | BB9: 2026-09-01 | BC9: 2026-10-01 | BD9: 2026-11-01 | BE9: 2026-12-01 | BF9: 2027-01-01 | BG9: 2027-02-01 | BH9: 2027-03-01 | BI9: 2027-04-01 | BJ9: 2027-05-01 | BK9: 2027-06-01 | BL9: 2027-07-01 | BM9: 2027-08-01 | BN9: 2027-09-01 | BO9: 2027-10-01 | BP9: 2027-11-01 | BQ9: 2027-12-01 | BR9: 2028-01-01 | BS9: 2028-02-01 | BT9: 2028-03-01 | BU9: 2028-04-01 | BV9: 2028-05-01 | BW9: =IF(BW7=1,$F$8,EDATE(BV9,1)) -> 2028-06-01 | BX9: 2028-07-01 | BY9: 2028-08-01 | BZ9: 2028-09-01 | CA9: 2028-10-01 | CB9: 2028-11-01 | CC9: 2028-12-01 | CD9: 2029-01-01 | CE9: 2029-02-01 | CF9: 2029-03-01 | CG9: 2029-04-01 | CH9: 2029-05-01 | CI9: 2029-06-01 | CJ9: 2029-07-01 | CK9: 2029-08-01 | CL9: 2029-09-01 | CM9: 2029-10-01 | CN9: 2029-11-01 | CO9: 2029-12-01 | CP9: 2030-01-01 | CQ9: 2030-02-01 | CR9: 2030-03-01 | CS9: 2030-04-01 | CT9: 2030-05-01 | CU9: 2030-06-01 | CV9: 2030-07-01 | CW9: 2030-08-01 | CX9: 2030-09-01 | CY9: 2030-10-01 | CZ9: 2030-11-01 | DA9: 2030-12-01 | DB9: 2031-01-01 | DC9: 2031-02-01 | DD9: 2031-03-01 | DE9: 2031-04-01 | DF9: 2031-05-01 | DG9: 2031-06-01 | DH9: 2031-07-01 | DI9: 2031-08-01 | DJ9: 2031-09-01 | DK9: 2031-10-01 | DL9: 2031-11-01 | DM9: 2031-12-01 | DN9: 2032-01-01 | DO9: 2032-02-01 | DP9: 2032-03-01 | DQ9: 2032-04-01 | DR9: 2032-05-01 | DS9: 2032-06-01 | DT9: 2032-07-01 | DU9: 2032-08-01 | DV9: 2032-09-01 | DW9: 2032-10-01 | DX9: 2032-11-01 | DY9: 2032-12-01 | DZ9: 2033-01-01 | EA9: 2033-02-01 | EB9: 2033-03-01 | EC9: 2033-04-01 | ED9: 2033-05-01 | EE9: 2033-06-01 | EF9: 2033-07-01 | EG9: 2033-08-01 | EH9: 2033-09-01 | EI9: =IF(EI7=1,$F$8,EDATE(EH9,1)) -> 2033-10-01 | EJ9: 2033-11-01 | EK9: 2033-12-01 | EL9: 2034-01-01 | EM9: 2034-02-01 | EN9: 2034-03-01 | EO9: 2034-04-01 | EP9: 2034-05-01 | EQ9: 2034-06-01 | ER9: 2034-07-01 | ES9: 2034-08-01 | ET9: 2034-09-01 | EU9: 2034-10-01 | EV9: 2034-11-01 | EW9: 2034-12-01 | EX9: 2035-01-01 | EY9: 2035-02-01 | EZ9: 2035-03-01 | FA9: 2035-04-01 | FB9: 2035-05-01 | FC9: 2035-06-01 | FD9: 2035-07-01 | FE9: 2035-08-01 | FF9: 2035-09-01 | FG9: 2035-10-01 | FH9: 2035-11-01 | FI9: 2035-12-01 | FJ9: 2036-01-01 | FK9: 2036-02-01 | FL9: 2036-03-01 | FM9: 2036-04-01 | FN9: 2036-05-01 | FO9: 2036-06-01 | FP9: 2036-07-01 | FQ9: 2036-08-01 | FR9: 2036-09-01 | FS9: 2036-10-01 | FT9: 2036-11-01 | FU9: 2036-12-01 | FV9: 2037-01-01 | FW9: 2037-02-01 | FX9: 2037-03-01 | FY9: 2037-04-01 | FZ9: 2037-05-01 | GA9: 2037-06-01 | GB9: 2037-07-01 | GC9: 2037-08-01 | GD9: 2037-09-01 | GE9: 2037-10-01 | GF9: 2037-11-01 | GG9: 2037-12-01 | GH9: 2038-01-01 | GI9: 2038-02-01 | GJ9: 2038-03-01 | GK9: 2038-04-01 | GL9: 2038-05-01 | GM9: 2038-06-01 | GN9: 2038-07-01 | GO9: 2038-08-01 | GP9: 2038-09-01 | GQ9: 2038-10-01 | GR9: 2038-11-01 | GS9: 2038-12-01 | GT9: 2039-01-01 | GU9: =IF(GU7=1,$F$8,EDATE(GT9,1)) -> 2039-02-01 | GV9: 2039-03-01 | GW9: 2039-04-01 | GX9: 2039-05-01 | GY9: 2039-06-01 | GZ9: 2039-07-01 | HA9: 2039-08-01 | HB9: 2039-09-01 | HC9: 2039-10-01 | HD9: 2039-11-01 | HE9: 2039-12-01 | HF9: 2040-01-01 | HG9: 2040-02-01 | HH9: 2040-03-01 | HI9: 2040-04-01 | HJ9: 2040-05-01 | HK9: 2040-06-01 | HL9: 2040-07-01 | HM9: 2040-08-01 | HN9: 2040-09-01 | HO9: 2040-10-01 | HP9: 2040-11-01 | HQ9: 2040-12-01 | HR9: 2041-01-01 | HS9: 2041-02-01 | HT9: 2041-03-01 | HU9: 2041-04-01 | HV9: 2041-05-01 | HW9: 2041-06-01 | HX9: 2041-07-01 | HY9: 2041-08-01 | HZ9: 2041-09-01 | IA9: 2041-10-01 | IB9: 2041-11-01 | IC9: 2041-12-01 | ID9: 2042-01-01 | IE9: 2042-02-01 | IF9: 2042-03-01 | IG9: 2042-04-01 | IH9: 2042-05-01 | II9: 2042-06-01 | IJ9: 2042-07-01 | IK9: 2042-08-01 | IL9: 2042-09-01 | IM9: 2042-10-01 | IN9: 2042-11-01 | IO9: 2042-12-01 | IP9: 2043-01-01 | IQ9: 2043-02-01 | IR9: 2043-03-01 | IS9: 2043-04-01 | IT9: 2043-05-01 | IU9: 2043-06-01 | IV9: 2043-07-01 | IW9: 2043-08-01 | IX9: 2043-09-01 | IY9: 2043-10-01 | IZ9: 2043-11-01 | JA9: 2043-12-01 | JB9: 2044-01-01 | JC9: 2044-02-01 | JD9: 2044-03-01 | JE9: 2044-04-01 | JF9: 2044-05-01 | JG9: =IF(JG7=1,$F$8,EDATE(JF9,1)) -> 2044-06-01 | JH9: 2044-07-01 | JI9: 2044-08-01 | JJ9: 2044-09-01 | JK9: 2044-10-01 | JL9: 2044-11-01 | JM9: 2044-12-01 | JN9: 2045-01-01 | JO9: 2045-02-01 | JP9: 2045-03-01 | JQ9: 2045-04-01 | JR9: 2045-05-01 | JS9: 2045-06-01 | JT9: 2045-07-01 | JU9: 2045-08-01 | JV9: 2045-09-01 | JW9: 2045-10-01 | JX9: 2045-11-01 | JY9: 2045-12-01 | JZ9: 2046-01-01 | KA9: 2046-02-01 | KB9: 2046-03-01 | KC9: 2046-04-01 | KD9: 2046-05-01 | KE9: 2046-06-01 | KF9: 2046-07-01 | KG9: 2046-08-01 | KH9: 2046-09-01 | KI9: 2046-10-01 | KJ9: 2046-11-01 | KK9: 2046-12-01 | KL9: 2047-01-01 | KM9: 2047-02-01 | KN9: 2047-03-01 | KO9: 2047-04-01 | KP9: 2047-05-01 | KQ9: 2047-06-01 | KR9: 2047-07-01 | KS9: 2047-08-01 | KT9: 2047-09-01 | KU9: 2047-10-01 | KV9: 2047-11-01 | KW9: 2047-12-01 | KX9: 2048-01-01 | KY9: 2048-02-01 | KZ9: 2048-03-01 | LA9: 2048-04-01 | LB9: 2048-05-01 | LC9: 2048-06-01 | LD9: 2048-07-01 | LE9: 2048-08-01 | LF9: 2048-09-01 | LG9: 2048-10-01 | LH9: 2048-11-01 | LI9: 2048-12-01 | LJ9: 2049-01-01 | LK9: 2049-02-01 | LL9: 2049-03-01 | LM9: 2049-04-01 | LN9: 2049-05-01 | LO9: 2049-06-01 | LP9: 2049-07-01 | LQ9: 2049-08-01 | LR9: 2049-09-01 | LS9: =IF(LS7=1,$F$8,EDATE(LR9,1)) -> 2049-10-01 | LT9: 2049-11-01 | LU9: 2049-12-01 | LV9: 2050-01-01 | LW9: 2050-02-01 | LX9: 2050-03-01 | LY9: 2050-04-01 | LZ9: 2050-05-01 | MA9: 2050-06-01 | MB9: 2050-07-01 | MC9: 2050-08-01 | MD9: 2050-09-01 | ME9: 2050-10-01 | MF9: 2050-11-01 | MG9: 2050-12-01 | MH9: 2051-01-01 | MI9: 2051-02-01 | MJ9: 2051-03-01 | MK9: 2051-04-01 | ML9: 2051-05-01 | MM9: 2051-06-01 | MN9: 2051-07-01 | MO9: 2051-08-01 | MP9: 2051-09-01 | MQ9: 2051-10-01 | MR9: 2051-11-01 | MS9: 2051-12-01 | MT9: 2052-01-01 | MU9: 2052-02-01 | MV9: 2052-03-01 | MW9: 2052-04-01 | MX9: 2052-05-01 | MY9: 2052-06-01 | MZ9: 2052-07-01 | NA9: 2052-08-01 | NB9: 2052-09-01 | NC9: 2052-10-01 | ND9: 2052-11-01 | NE9: 2052-12-01 | NF9: 2053-01-01 | NG9: 2053-02-01 | NH9: 2053-03-01 | NI9: 2053-04-01 | NJ9: 2053-05-01 | NK9: 2053-06-01 | NL9: 2053-07-01 | NM9: 2053-08-01 | NN9: 2053-09-01 | NO9: 2053-10-01 | NP9: 2053-11-01 | NQ9: 2053-12-01 | NR9: 2054-01-01 | NS9: 2054-02-01 | NT9: 2054-03-01 | NU9: 2054-04-01 | NV9: 2054-05-01 | NW9: 2054-06-01 | NX9: 2054-07-01 | NY9: 2054-08-01 | NZ9: 2054-09-01 | OA9: 2054-10-01 | OB9: 2054-11-01 | OC9: 2054-12-01 | OD9: 2055-01-01 | OE9: =IF(OE7=1,$F$8,EDATE(OD9,1)) -> 2055-02-01 | OF9: 2055-03-01 | OG9: 2055-04-01 | OH9: 2055-05-01 | OI9: 2055-06-01 | OJ9: 2055-07-01 | OK9: 2055-08-01 | OL9: 2055-09-01 | OM9: 2055-10-01 | ON9: 2055-11-01 | OO9: 2055-12-01 | OP9: 2056-01-01 | OQ9: 2056-02-01 | OR9: 2056-03-01 | OS9: 2056-04-01 | OT9: 2056-05-01 | OU9: 2056-06-01 | OV9: 2056-07-01 | OW9: 2056-08-01 | OX9: 2056-09-01 | OY9: 2056-10-01 | OZ9: 2056-11-01 | PA9: 2056-12-01 | PB9: 2057-01-01 | PC9: 2057-02-01 | PD9: 2057-03-01 | PE9: 2057-04-01 | PF9: 2057-05-01 | PG9: 2057-06-01 | PH9: 2057-07-01 | PI9: 2057-08-01 | PJ9: 2057-09-01 | PK9: 2057-10-01 | PL9: 2057-11-01 | PM9: 2057-12-01 | PN9: 2058-01-01 | PO9: 2058-02-01 | PP9: 2058-03-01 | PQ9: 2058-04-01 | PR9: 2058-05-01 | PS9: 2058-06-01 | PT9: 2058-07-01 | PU9: 2058-08-01 | PV9: 2058-09-01 | PW9: 2058-10-01 | PX9: 2058-11-01 | PY9: 2058-12-01 | PZ9: 2059-01-01 | QA9: 2059-02-01 | QB9: 2059-03-01 | QC9: 2059-04-01 | QD9: 2059-05-01 | QE9: 2059-06-01 | QF9: 2059-07-01 | QG9: 2059-08-01 | QH9: 2059-09-01 | QI9: 2059-10-01 | QJ9: 2059-11-01 | QK9: 2059-12-01 | QL9: 2060-01-01 | QM9: 2060-02-01 | QN9: 2060-03-01 | QO9: 2060-04-01 | QP9: 2060-05-01 | QQ9: =IF(QQ7=1,$F$8,EDATE(QP9,1)) -> 2060-06-01 | QR9: 2060-07-01 | QS9: 2060-08-01 | QT9: 2060-09-01 | QU9: 2060-10-01 | QV9: 2060-11-01 | QW9: 2060-12-01 | QX9: 2061-01-01 | QY9: 2061-02-01 | QZ9: 2061-03-01 | RA9: 2061-04-01 | RB9: 2061-05-01 | RC9: 2061-06-01 | RD9: 2061-07-01 | RE9: 2061-08-01 | RF9: 2061-09-01 | RG9: 2061-10-01 | RH9: 2061-11-01 | RI9: 2061-12-01 | RJ9: 2062-01-01 | RK9: 2062-02-01 | RL9: 2062-03-01 | RM9: 2062-04-01 | RN9: 2062-05-01 | RO9: 2062-06-01 | RP9: 2062-07-01 | RQ9: 2062-08-01 | RR9: 2062-09-01 | RS9: 2062-10-01 | RT9: 2062-11-01 | RU9: 2062-12-01 | RV9: 2063-01-01 | RW9: 2063-02-01 | RX9: 2063-03-01 | RY9: 2063-04-01 | RZ9: 2063-05-01 | SA9: 2063-06-01 | SB9: 2063-07-01 | SC9: 2063-08-01 | SD9: 2063-09-01 | SE9: 2063-10-01 | SF9: 2063-11-01 | SG9: 2063-12-01 | SH9: 2064-01-01 | SI9: 2064-02-01 | SJ9: 2064-03-01 | SK9: 2064-04-01 | SL9: 2064-05-01 | SM9: 2064-06-01 | SN9: 2064-07-01 | SO9: 2064-08-01
E10: End of Month | J10: =EOMONTH(J9,0) -> 2023-01-31 | K10: =EOMONTH(K9,0) -> 2023-02-28 | L10: 2023-03-31 | M10: 2023-04-30 | N10: 2023-05-31 | O10: 2023-06-30 | P10: 2023-07-31 | Q10: 2023-08-31 | R10: 2023-09-30 | S10: 2023-10-31 | T10: 2023-11-30 | U10: 2023-12-31 | V10: 2024-01-31 | W10: 2024-02-29 | X10: 2024-03-31 | Y10: 2024-04-30 | Z10: 2024-05-31 | AA10: 2024-06-30 | AB10: 2024-07-31 | AC10: 2024-08-31 | AD10: 2024-09-30 | AE10: 2024-10-31 | AF10: 2024-11-30 | AG10: 2024-12-31 | AH10: 2025-01-31 | AI10: 2025-02-28 | AJ10: 2025-03-31 | AK10: 2025-04-30 | AL10: 2025-05-31 | AM10: 2025-06-30 | AN10: 2025-07-31 | AO10: 2025-08-31 | AP10: 2025-09-30 | AQ10: 2025-10-31 | AR10: 2025-11-30 | AS10: 2025-12-31 | AT10: 2026-01-31 | AU10: 2026-02-28 | AV10: 2026-03-31 | AW10: 2026-04-30 | AX10: 2026-05-31 | AY10: 2026-06-30 | AZ10: 2026-07-31 | BA10: 2026-08-31 | BB10: 2026-09-30 | BC10: 2026-10-31 | BD10: 2026-11-30 | BE10: 2026-12-31 | BF10: 2027-01-31 | BG10: 2027-02-28 | BH10: 2027-03-31 | BI10: 2027-04-30 | BJ10: 2027-05-31 | BK10: 2027-06-30 | BL10: 2027-07-31 | BM10: 2027-08-31 | BN10: 2027-09-30 | BO10: 2027-10-31 | BP10: 2027-11-30 | BQ10: 2027-12-31 | BR10: 2028-01-31 | BS10: 2028-02-29 | BT10: 2028-03-31 | BU10: 2028-04-30 | BV10: 2028-05-31 | BW10: =EOMONTH(BW9,0) -> 2028-06-30 | BX10: 2028-07-31 | BY10: 2028-08-31 | BZ10: 2028-09-30 | CA10: 2028-10-31 | CB10: 2028-11-30 | CC10: 2028-12-31 | CD10: 2029-01-31 | CE10: 2029-02-28 | CF10: 2029-03-31 | CG10: 2029-04-30 | CH10: 2029-05-31 | CI10: 2029-06-30 | CJ10: 2029-07-31 | CK10: 2029-08-31 | CL10: 2029-09-30 | CM10: 2029-10-31 | CN10: 2029-11-30 | CO10: 2029-12-31 | CP10: 2030-01-31 | CQ10: 2030-02-28 | CR10: 2030-03-31 | CS10: 2030-04-30 | CT10: 2030-05-31 | CU10: 2030-06-30 | CV10: 2030-07-31 | CW10: 2030-08-31 | CX10: 2030-09-30 | CY10: 2030-10-31 | CZ10: 2030-11-30 | DA10: 2030-12-31 | DB10: 2031-01-31 | DC10: 2031-02-28 | DD10: 2031-03-31 | DE10: 2031-04-30 | DF10: 2031-05-31 | DG10: 2031-06-30 | DH10: 2031-07-31 | DI10: 2031-08-31 | DJ10: 2031-09-30 | DK10: 2031-10-31 | DL10: 2031-11-30 | DM10: 2031-12-31 | DN10: 2032-01-31 | DO10: 2032-02-29 | DP10: 2032-03-31 | DQ10: 2032-04-30 | DR10: 2032-05-31 | DS10: 2032-06-30 | DT10: 2032-07-31 | DU10: 2032-08-31 | DV10: 2032-09-30 | DW10: 2032-10-31 | DX10: 2032-11-30 | DY10: 2032-12-31 | DZ10: 2033-01-31 | EA10: 2033-02-28 | EB10: 2033-03-31 | EC10: 2033-04-30 | ED10: 2033-05-31 | EE10: 2033-06-30 | EF10: 2033-07-31 | EG10: 2033-08-31 | EH10: 2033-09-30 | EI10: =EOMONTH(EI9,0) -> 2033-10-31 | EJ10: 2033-11-30 | EK10: 2033-12-31 | EL10: 2034-01-31 | EM10: 2034-02-28 | EN10: 2034-03-31 | EO10: 2034-04-30 | EP10: 2034-05-31 | EQ10: 2034-06-30 | ER10: 2034-07-31 | ES10: 2034-08-31 | ET10: 2034-09-30 | EU10: 2034-10-31 | EV10: 2034-11-30 | EW10: 2034-12-31 | EX10: 2035-01-31 | EY10: 2035-02-28 | EZ10: 2035-03-31 | FA10: 2035-04-30 | FB10: 2035-05-31 | FC10: 2035-06-30 | FD10: 2035-07-31 | FE10: 2035-08-31 | FF10: 2035-09-30 | FG10: 2035-10-31 | FH10: 2035-11-30 | FI10: 2035-12-31 | FJ10: 2036-01-31 | FK10: 2036-02-29 | FL10: 2036-03-31 | FM10: 2036-04-30 | FN10: 2036-05-31 | FO10: 2036-06-30 | FP10: 2036-07-31 | FQ10: 2036-08-31 | FR10: 2036-09-30 | FS10: 2036-10-31 | FT10: 2036-11-30 | FU10: 2036-12-31 | FV10: 2037-01-31 | FW10: 2037-02-28 | FX10: 2037-03-31 | FY10: 2037-04-30 | FZ10: 2037-05-31 | GA10: 2037-06-30 | GB10: 2037-07-31 | GC10: 2037-08-31 | GD10: 2037-09-30 | GE10: 2037-10-31 | GF10: 2037-11-30 | GG10: 2037-12-31 | GH10: 2038-01-31 | GI10: 2038-02-28 | GJ10: 2038-03-31 | GK10: 2038-04-30 | GL10: 2038-05-31 | GM10: 2038-06-30 | GN10: 2038-07-31 | GO10: 2038-08-31 | GP10: 2038-09-30 | GQ10: 2038-10-31 | GR10: 2038-11-30 | GS10: 2038-12-31 | GT10: 2039-01-31 | GU10: =EOMONTH(GU9,0) -> 2039-02-28 | GV10: 2039-03-31 | GW10: 2039-04-30 | GX10: 2039-05-31 | GY10: 2039-06-30 | GZ10: 2039-07-31 | HA10: 2039-08-31 | HB10: 2039-09-30 | HC10: 2039-10-31 | HD10: 2039-11-30 | HE10: 2039-12-31 | HF10: 2040-01-31 | HG10: 2040-02-29 | HH10: 2040-03-31 | HI10: 2040-04-30 | HJ10: 2040-05-31 | HK10: 2040-06-30 | HL10: 2040-07-31 | HM10: 2040-08-31 | HN10: 2040-09-30 | HO10: 2040-10-31 | HP10: 2040-11-30 | HQ10: 2040-12-31 | HR10: 2041-01-31 | HS10: 2041-02-28 | HT10: 2041-03-31 | HU10: 2041-04-30 | HV10: 2041-05-31 | HW10: 2041-06-30 | HX10: 2041-07-31 | HY10: 2041-08-31 | HZ10: 2041-09-30 | IA10: 2041-10-31 | IB10: 2041-11-30 | IC10: 2041-12-31 | ID10: 2042-01-31 | IE10: 2042-02-28 | IF10: 2042-03-31 | IG10: 2042-04-30 | IH10: 2042-05-31 | II10: 2042-06-30 | IJ10: 2042-07-31 | IK10: 2042-08-31 | IL10: 2042-09-30 | IM10: 2042-10-31 | IN10: 2042-11-30 | IO10: 2042-12-31 | IP10: 2043-01-31 | IQ10: 2043-02-28 | IR10: 2043-03-31 | IS10: 2043-04-30 | IT10: 2043-05-31 | IU10: 2043-06-30 | IV10: 2043-07-31 | IW10: 2043-08-31 | IX10: 2043-09-30 | IY10: 2043-10-31 | IZ10: 2043-11-30 | JA10: 2043-12-31 | JB10: 2044-01-31 | JC10: 2044-02-29 | JD10: 2044-03-31 | JE10: 2044-04-30 | JF10: 2044-05-31 | JG10: =EOMONTH(JG9,0) -> 2044-06-30 | JH10: 2044-07-31 | JI10: 2044-08-31 | JJ10: 2044-09-30 | JK10: 2044-10-31 | JL10: 2044-11-30 | JM10: 2044-12-31 | JN10: 2045-01-31 | JO10: 2045-02-28 | JP10: 2045-03-31 | JQ10: 2045-04-30 | JR10: 2045-05-31 | JS10: 2045-06-30 | JT10: 2045-07-31 | JU10: 2045-08-31 | JV10: 2045-09-30 | JW10: 2045-10-31 | JX10: 2045-11-30 | JY10: 2045-12-31 | JZ10: 2046-01-31 | KA10: 2046-02-28 | KB10: 2046-03-31 | KC10: 2046-04-30 | KD10: 2046-05-31 | KE10: 2046-06-30 | KF10: 2046-07-31 | KG10: 2046-08-31 | KH10: 2046-09-30 | KI10: 2046-10-31 | KJ10: 2046-11-30 | KK10: 2046-12-31 | KL10: 2047-01-31 | KM10: 2047-02-28 | KN10: 2047-03-31 | KO10: 2047-04-30 | KP10: 2047-05-31 | KQ10: 2047-06-30 | KR10: 2047-07-31 | KS10: 2047-08-31 | KT10: 2047-09-30 | KU10: 2047-10-31 | KV10: 2047-11-30 | KW10: 2047-12-31 | KX10: 2048-01-31 | KY10: 2048-02-29 | KZ10: 2048-03-31 | LA10: 2048-04-30 | LB10: 2048-05-31 | LC10: 2048-06-30 | LD10: 2048-07-31 | LE10: 2048-08-31 | LF10: 2048-09-30 | LG10: 2048-10-31 | LH10: 2048-11-30 | LI10: 2048-12-31 | LJ10: 2049-01-31 | LK10: 2049-02-28 | LL10: 2049-03-31 | LM10: 2049-04-30 | LN10: 2049-05-31 | LO10: 2049-06-30 | LP10: 2049-07-31 | LQ10: 2049-08-31 | LR10: 2049-09-30 | LS10: =EOMONTH(LS9,0) -> 2049-10-31 | LT10: 2049-11-30 | LU10: 2049-12-31 | LV10: 2050-01-31 | LW10: 2050-02-28 | LX10: 2050-03-31 | LY10: 2050-04-30 | LZ10: 2050-05-31 | MA10: 2050-06-30 | MB10: 2050-07-31 | MC10: 2050-08-31 | MD10: 2050-09-30 | ME10: 2050-10-31 | MF10: 2050-11-30 | MG10: 2050-12-31 | MH10: 2051-01-31 | MI10: 2051-02-28 | MJ10: 2051-03-31 | MK10: 2051-04-30 | ML10: 2051-05-31 | MM10: 2051-06-30 | MN10: 2051-07-31 | MO10: 2051-08-31 | MP10: 2051-09-30 | MQ10: 2051-10-31 | MR10: 2051-11-30 | MS10: 2051-12-31 | MT10: 2052-01-31 | MU10: 2052-02-29 | MV10: 2052-03-31 | MW10: 2052-04-30 | MX10: 2052-05-31 | MY10: 2052-06-30 | MZ10: 2052-07-31 | NA10: 2052-08-31 | NB10: 2052-09-30 | NC10: 2052-10-31 | ND10: 2052-11-30 | NE10: 2052-12-31 | NF10: 2053-01-31 | NG10: 2053-02-28 | NH10: 2053-03-31 | NI10: 2053-04-30 | NJ10: 2053-05-31 | NK10: 2053-06-30 | NL10: 2053-07-31 | NM10: 2053-08-31 | NN10: 2053-09-30 | NO10: 2053-10-31 | NP10: 2053-11-30 | NQ10: 2053-12-31 | NR10: 2054-01-31 | NS10: 2054-02-28 | NT10: 2054-03-31 | NU10: 2054-04-30 | NV10: 2054-05-31 | NW10: 2054-06-30 | NX10: 2054-07-31 | NY10: 2054-08-31 | NZ10: 2054-09-30 | OA10: 2054-10-31 | OB10: 2054-11-30 | OC10: 2054-12-31 | OD10: 2055-01-31 | OE10: =EOMONTH(OE9,0) -> 2055-02-28 | OF10: 2055-03-31 | OG10: 2055-04-30 | OH10: 2055-05-31 | OI10: 2055-06-30 | OJ10: 2055-07-31 | OK10: 2055-08-31 | OL10: 2055-09-30 | OM10: 2055-10-31 | ON10: 2055-11-30 | OO10: 2055-12-31 | OP10: 2056-01-31 | OQ10: 2056-02-29 | OR10: 2056-03-31 | OS10: 2056-04-30 | OT10: 2056-05-31 | OU10: 2056-06-30 | OV10: 2056-07-31 | OW10: 2056-08-31 | OX10: 2056-09-30 | OY10: 2056-10-31 | OZ10: 2056-11-30 | PA10: 2056-12-31 | PB10: 2057-01-31 | PC10: 2057-02-28 | PD10: 2057-03-31 | PE10: 2057-04-30 | PF10: 2057-05-31 | PG10: 2057-06-30 | PH10: 2057-07-31 | PI10: 2057-08-31 | PJ10: 2057-09-30 | PK10: 2057-10-31 | PL10: 2057-11-30 | PM10: 2057-12-31 | PN10: 2058-01-31 | PO10: 2058-02-28 | PP10: 2058-03-31 | PQ10: 2058-04-30 | PR10: 2058-05-31 | PS10: 2058-06-30 | PT10: 2058-07-31 | PU10: 2058-08-31 | PV10: 2058-09-30 | PW10: 2058-10-31 | PX10: 2058-11-30 | PY10: 2058-12-31 | PZ10: 2059-01-31 | QA10: 2059-02-28 | QB10: 2059-03-31 | QC10: 2059-04-30 | QD10: 2059-05-31 | QE10: 2059-06-30 | QF10: 2059-07-31 | QG10: 2059-08-31 | QH10: 2059-09-30 | QI10: 2059-10-31 | QJ10: 2059-11-30 | QK10: 2059-12-31 | QL10: 2060-01-31 | QM10: 2060-02-29 | QN10: 2060-03-31 | QO10: 2060-04-30 | QP10: 2060-05-31 | QQ10: =EOMONTH(QQ9,0) -> 2060-06-30 | QR10: 2060-07-31 | QS10: 2060-08-31 | QT10: 2060-09-30 | QU10: 2060-10-31 | QV10: 2060-11-30 | QW10: 2060-12-31 | QX10: 2061-01-31 | QY10: 2061-02-28 | QZ10: 2061-03-31 | RA10: 2061-04-30 | RB10: 2061-05-31 | RC10: 2061-06-30 | RD10: 2061-07-31 | RE10: 2061-08-31 | RF10: 2061-09-30 | RG10: 2061-10-31 | RH10: 2061-11-30 | RI10: 2061-12-31 | RJ10: 2062-01-31 | RK10: 2062-02-28 | RL10: 2062-03-31 | RM10: 2062-04-30 | RN10: 2062-05-31 | RO10: 2062-06-30 | RP10: 2062-07-31 | RQ10: 2062-08-31 | RR10: 2062-09-30 | RS10: 2062-10-31 | RT10: 2062-11-30 | RU10: 2062-12-31 | RV10: 2063-01-31 | RW10: 2063-02-28 | RX10: 2063-03-31 | RY10: 2063-04-30 | RZ10: 2063-05-31 | SA10: 2063-06-30 | SB10: 2063-07-31 | SC10: 2063-08-31 | SD10: 2063-09-30 | SE10: 2063-10-31 | SF10: 2063-11-30 | SG10: 2063-12-31 | SH10: 2064-01-31 | SI10: 2064-02-29 | SJ10: 2064-03-31 | SK10: 2064-04-30 | SL10: 2064-05-31 | SM10: 2064-06-30 | SN10: 2064-07-31 | SO10: 2064-08-31
E12: Financial Close Date | F12: =InputC!F9 -> 2023-01-01 | G12: Date
E13: Financial Close Flag | G13: Flag | H13: =SUM(J13:SO13) -> 1 | J13: =(J9=$F12)*1 -> 1 | K13: 0 | L13: 0 | M13: 0 | N13: 0 | O13: 0 | P13: 0 | Q13: 0 | R13: 0 | S13: 0 | T13: 0 | U13: 0 | V13: 0 | W13: 0 | X13: 0 | Y13: 0 | Z13: 0 | AA13: 0 | AB13: 0 | AC13: 0 | AD13: 0 | AE13: 0 | AF13: 0 | AG13: 0 | AH13: 0 | AI13: 0 | AJ13: 0 | AK13: 0 | AL13: 0 | AM13: 0 | AN13: 0 | AO13: 0 | AP13: 0 | AQ13: 0 | AR13: 0 | AS13: 0 | AT13: 0 | AU13: 0 | AV13: 0 | AW13: 0 | AX13: 0 | AY13: 0 | AZ13: 0 | BA13: 0 | BB13: 0 | BC13: 0 | BD13: 0 | BE13: 0 | BF13: 0 | BG13: 0 | BH13: 0 | BI13: 0 | BJ13: 0 | BK13: 0 | BL13: 0 | BM13: 0 | BN13: 0 | BO13: 0 | BP13: 0 | BQ13: 0 | BR13: 0 | BS13: 0 | BT13: 0 | BU13: 0 | BV13: =(BV9=$F12)*1 -> 0 | BW13: 0 | BX13: 0 | BY13: 0 | BZ13: 0 | CA13: 0 | CB13: 0 | CC13: 0 | CD13: 0 | CE13: 0 | CF13: 0 | CG13: 0 | CH13: 0 | CI13: 0 | CJ13: 0 | CK13: 0 | CL13: 0 | CM13: 0 | CN13: 0 | CO13: 0 | CP13: 0 | CQ13: 0 | CR13: 0 | CS13: 0 | CT13: 0 | CU13: 0 | CV13: 0 | CW13: 0 | CX13: 0 | CY13: 0 | CZ13: 0 | DA13: 0 | DB13: 0 | DC13: 0 | DD13: 0 | DE13: 0 | DF13: 0 | DG13: 0 | DH13: 0 | DI13: 0 | DJ13: 0 | DK13: 0 | DL13: 0 | DM13: 0 | DN13: 0 | DO13: 0 | DP13: 0 | DQ13: 0 | DR13: 0 | DS13: 0 | DT13: 0 | DU13: 0 | DV13: 0 | DW13: 0 | DX13: 0 | DY13: 0 | DZ13: 0 | EA13: 0 | EB13: 0 | EC13: 0 | ED13: 0 | EE13: 0 | EF13: 0 | EG13: 0 | EH13: =(EH9=$F12)*1 -> 0 | EI13: 0 | EJ13: 0 | EK13: 0 | EL13: 0 | EM13: 0 | EN13: 0 | EO13: 0 | EP13: 0 | EQ13: 0 | ER13: 0 | ES13: 0 | ET13: 0 | EU13: 0 | EV13: 0 | EW13: 0 | EX13: 0 | EY13: 0 | EZ13: 0 | FA13: 0 | FB13: 0 | FC13: 0 | FD13: 0 | FE13: 0 | FF13: 0 | FG13: 0 | FH13: 0 | FI13: 0 | FJ13: 0 | FK13: 0 | FL13: 0 | FM13: 0 | FN13: 0 | FO13: 0 | FP13: 0 | FQ13: 0 | FR13: 0 | FS13: 0 | FT13: 0 | FU13: 0 | FV13: 0 | FW13: 0 | FX13: 0 | FY13: 0 | FZ13: 0 | GA13: 0 | GB13: 0 | GC13: 0 | GD13: 0 | GE13: 0 | GF13: 0 | GG13: 0 | GH13: 0 | GI13: 0 | GJ13: 0 | GK13: 0 | GL13: 0 | GM13: 0 | GN13: 0 | GO13: 0 | GP13: 0 | GQ13: 0 | GR13: 0 | GS13: 0 | GT13: =(GT9=$F12)*1 -> 0 | GU13: 0 | GV13: 0 | GW13: 0 | GX13: 0 | GY13: 0 | GZ13: 0 | HA13: 0 | HB13: 0 | HC13: 0 | HD13: 0 | HE13: 0 | HF13: 0 | HG13: 0 | HH13: 0 | HI13: 0 | HJ13: 0 | HK13: 0 | HL13: 0 | HM13: 0 | HN13: 0 | HO13: 0 | HP13: 0 | HQ13: 0 | HR13: 0 | HS13: 0 | HT13: 0 | HU13: 0 | HV13: 0 | HW13: 0 | HX13: 0 | HY13: 0 | HZ13: 0 | IA13: 0 | IB13: 0 | IC13: 0 | ID13: 0 | IE13: 0 | IF13: 0 | IG13: 0 | IH13: 0 | II13: 0 | IJ13: 0 | IK13: 0 | IL13: 0 | IM13: 0 | IN13: 0 | IO13: 0 | IP13: 0 | IQ13: 0 | IR13: 0 | IS13: 0 | IT13: 0 | IU13: 0 | IV13: 0 | IW13: 0 | IX13: 0 | IY13: 0 | IZ13: 0 | JA13: 0 | JB13: 0 | JC13: 0 | JD13: 0 | JE13: 0 | JF13: =(JF9=$F12)*1 -> 0 | JG13: 0 | JH13: 0 | JI13: 0 | JJ13: 0 | JK13: 0 | JL13: 0 | JM13: 0 | JN13: 0 | JO13: 0 | JP13: 0 | JQ13: 0 | JR13: 0 | JS13: 0 | JT13: 0 | JU13: 0 | JV13: 0 | JW13: 0 | JX13: 0 | JY13: 0 | JZ13: 0 | KA13: 0 | KB13: 0 | KC13: 0 | KD13: 0 | KE13: 0 | KF13: 0 | KG13: 0 | KH13: 0 | KI13: 0 | KJ13: 0 | KK13: 0 | KL13: 0 | KM13: 0 | KN13: 0 | KO13: 0 | KP13: 0 | KQ13: 0 | KR13: 0 | KS13: 0 | KT13: 0 | KU13: 0 | KV13: 0 | KW13: 0 | KX13: 0 | KY13: 0 | KZ13: 0 | LA13: 0 | LB13: 0 | LC13: 0 | LD13: 0 | LE13: 0 | LF13: 0 | LG13: 0 | LH13: 0 | LI13: 0 | LJ13: 0 | LK13: 0 | LL13: 0 | LM13: 0 | LN13: 0 | LO13: 0 | LP13: 0 | LQ13: 0 | LR13: =(LR9=$F12)*1 -> 0 | LS13: 0 | LT13: 0 | LU13: 0 | LV13: 0 | LW13: 0 | LX13: 0 | LY13: 0 | LZ13: 0 | MA13: 0 | MB13: 0 | MC13: 0 | MD13: 0 | ME13: 0 | MF13: 0 | MG13: 0 | MH13: 0 | MI13: 0 | MJ13: 0 | MK13: 0 | ML13: 0 | MM13: 0 | MN13: 0 | MO13: 0 | MP13: 0 | MQ13: 0 | MR13: 0 | MS13: 0 | MT13: 0 | MU13: 0 | MV13: 0 | MW13: 0 | MX13: 0 | MY13: 0 | MZ13: 0 | NA13: 0 | NB13: 0 | NC13: 0 | ND13: 0 | NE13: 0 | NF13: 0 | NG13: 0 | NH13: 0 | NI13: 0 | NJ13: 0 | NK13: 0 | NL13: 0 | NM13: 0 | NN13: 0 | NO13: 0 | NP13: 0 | NQ13: 0 | NR13: 0 | NS13: 0 | NT13: 0 | NU13: 0 | NV13: 0 | NW13: 0 | NX13: 0 | NY13: 0 | NZ13: 0 | OA13: 0 | OB13: 0 | OC13: 0 | OD13: =(OD9=$F12)*1 -> 0 | OE13: 0 | OF13: 0 | OG13: 0 | OH13: 0 | OI13: 0 | OJ13: 0 | OK13: 0 | OL13: 0 | OM13: 0 | ON13: 0 | OO13: 0 | OP13: 0 | OQ13: 0 | OR13: 0 | OS13: 0 | OT13: 0 | OU13: 0 | OV13: 0 | OW13: 0 | OX13: 0 | OY13: 0 | OZ13: 0 | PA13: 0 | PB13: 0 | PC13: 0 | PD13: 0 | PE13: 0 | PF13: 0 | PG13: 0 | PH13: 0 | PI13: 0 | PJ13: 0 | PK13: 0 | PL13: 0 | PM13: 0 | PN13: 0 | PO13: 0 | PP13: 0 | PQ13: 0 | PR13: 0 | PS13: 0 | PT13: 0 | PU13: 0 | PV13: 0 | PW13: 0 | PX13: 0 | PY13: 0 | PZ13: 0 | QA13: 0 | QB13: 0 | QC13: 0 | QD13: 0 | QE13: 0 | QF13: 0 | QG13: 0 | QH13: 0 | QI13: 0 | QJ13: 0 | QK13: 0 | QL13: 0 | QM13: 0 | QN13: 0 | QO13: 0 | QP13: =(QP9=$F12)*1 -> 0 | QQ13: 0 | QR13: 0 | QS13: 0 | QT13: 0 | QU13: 0 | QV13: 0 | QW13: 0 | QX13: 0 | QY13: 0 | QZ13: 0 | RA13: 0 | RB13: 0 | RC13: 0 | RD13: 0 | RE13: 0 | RF13: 0 | RG13: 0 | RH13: 0 | RI13: 0 | RJ13: 0 | RK13: 0 | RL13: 0 | RM13: 0 | RN13: 0 | RO13: 0 | RP13: 0 | RQ13: 0 | RR13: 0 | RS13: 0 | RT13: 0 | RU13: 0 | RV13: 0 | RW13: 0 | RX13: 0 | RY13: 0 | RZ13: 0 | SA13: 0 | SB13: 0 | SC13: 0 | SD13: 0 | SE13: 0 | SF13: 0 | SG13: 0 | SH13: 0 | SI13: 0 | SJ13: 0 | SK13: 0 | SL13: 0 | SM13: 0 | SN13: 0 | SO13: 0
E14: Financial Close Counter | G14: Code | J14: =IF(J13,1,0) -> 1 | K14: =IF(K13,1,0) -> 0 | L14: 0 | M14: 0 | N14: 0 | O14: 0 | P14: 0 | Q14: 0 | R14: 0 | S14: 0 | T14: 0 | U14: 0 | V14: 0 | W14: 0 | X14: 0 | Y14: 0 | Z14: 0 | AA14: 0 | AB14: 0 | AC14: 0 | AD14: 0 | AE14: 0 | AF14: 0 | AG14: 0 | AH14: 0 | AI14: 0 | AJ14: 0 | AK14: 0 | AL14: 0 | AM14: 0 | AN14: 0 | AO14: 0 | AP14: 0 | AQ14: 0 | AR14: 0 | AS14: 0 | AT14: 0 | AU14: 0 | AV14: 0 | AW14: 0 | AX14: 0 | AY14: 0 | AZ14: 0 | BA14: 0 | BB14: 0 | BC14: 0 | BD14: 0 | BE14: 0 | BF14: 0 | BG14: 0 | BH14: 0 | BI14: 0 | BJ14: 0 | BK14: 0 | BL14: 0 | BM14: 0 | BN14: 0 | BO14: 0 | BP14: 0 | BQ14: 0 | BR14: 0 | BS14: 0 | BT14: 0 | BU14: 0 | BV14: 0 | BW14: =IF(BW13,1,0) -> 0 | BX14: 0 | BY14: 0 | BZ14: 0 | CA14: 0 | CB14: 0 | CC14: 0 | CD14: 0 | CE14: 0 | CF14: 0 | CG14: 0 | CH14: 0 | CI14: 0 | CJ14: 0 | CK14: 0 | CL14: 0 | CM14: 0 | CN14: 0 | CO14: 0 | CP14: 0 | CQ14: 0 | CR14: 0 | CS14: 0 | CT14: 0 | CU14: 0 | CV14: 0 | CW14: 0 | CX14: 0 | CY14: 0 | CZ14: 0 | DA14: 0 | DB14: 0 | DC14: 0 | DD14: 0 | DE14: 0 | DF14: 0 | DG14: 0 | DH14: 0 | DI14: 0 | DJ14: 0 | DK14: 0 | DL14: 0 | DM14: 0 | DN14: 0 | DO14: 0 | DP14: 0 | DQ14: 0 | DR14: 0 | DS14: 0 | DT14: 0 | DU14: 0 | DV14: 0 | DW14: 0 | DX14: 0 | DY14: 0 | DZ14: 0 | EA14: 0 | EB14: 0 | EC14: 0 | ED14: 0 | EE14: 0 | EF14: 0 | EG14: 0 | EH14: 0 | EI14: =IF(EI13,1,0) -> 0 | EJ14: 0 | EK14: 0 | EL14: 0 | EM14: 0 | EN14: 0 | EO14: 0 | EP14: 0 | EQ14: 0 | ER14: 0 | ES14: 0 | ET14: 0 | EU14: 0 | EV14: 0 | EW14: 0 | EX14: 0 | EY14: 0 | EZ14: 0 | FA14: 0 | FB14: 0 | FC14: 0 | FD14: 0 | FE14: 0 | FF14: 0 | FG14: 0 | FH14: 0 | FI14: 0 | FJ14: 0 | FK14: 0 | FL14: 0 | FM14: 0 | FN14: 0 | FO14: 0 | FP14: 0 | FQ14: 0 | FR14: 0 | FS14: 0 | FT14: 0 | FU14: 0 | FV14: 0 | FW14: 0 | FX14: 0 | FY14: 0 | FZ14: 0 | GA14: 0 | GB14: 0 | GC14: 0 | GD14: 0 | GE14: 0 | GF14: 0 | GG14: 0 | GH14: 0 | GI14: 0 | GJ14: 0 | GK14: 0 | GL14: 0 | GM14: 0 | GN14: 0 | GO14: 0 | GP14: 0 | GQ14: 0 | GR14: 0 | GS14: 0 | GT14: 0 | GU14: =IF(GU13,1,0) -> 0 | GV14: 0 | GW14: 0 | GX14: 0 | GY14: 0 | GZ14: 0 | HA14: 0 | HB14: 0 | HC14: 0 | HD14: 0 | HE14: 0 | HF14: 0 | HG14: 0 | HH14: 0 | HI14: 0 | HJ14: 0 | HK14: 0 | HL14: 0 | HM14: 0 | HN14: 0 | HO14: 0 | HP14: 0 | HQ14: 0 | HR14: 0 | HS14: 0 | HT14: 0 | HU14: 0 | HV14: 0 | HW14: 0 | HX14: 0 | HY14: 0 | HZ14: 0 | IA14: 0 | IB14: 0 | IC14: 0 | ID14: 0 | IE14: 0 | IF14: 0 | IG14: 0 | IH14: 0 | II14: 0 | IJ14: 0 | IK14: 0 | IL14: 0 | IM14: 0 | IN14: 0 | IO14: 0 | IP14: 0 | IQ14: 0 | IR14: 0 | IS14: 0 | IT14: 0 | IU14: 0 | IV14: 0 | IW14: 0 | IX14: 0 | IY14: 0 | IZ14: 0 | JA14: 0 | JB14: 0 | JC14: 0 | JD14: 0 | JE14: 0 | JF14: 0 | JG14: =IF(JG13,1,0) -> 0 | JH14: 0 | JI14: 0 | JJ14: 0 | JK14: 0 | JL14: 0 | JM14: 0 | JN14: 0 | JO14: 0 | JP14: 0 | JQ14: 0 | JR14: 0 | JS14: 0 | JT14: 0 | JU14: 0 | JV14: 0 | JW14: 0 | JX14: 0 | JY14: 0 | JZ14: 0 | KA14: 0 | KB14: 0 | KC14: 0 | KD14: 0 | KE14: 0 | KF14: 0 | KG14: 0 | KH14: 0 | KI14: 0 | KJ14: 0 | KK14: 0 | KL14: 0 | KM14: 0 | KN14: 0 | KO14: 0 | KP14: 0 | KQ14: 0 | KR14: 0 | KS14: 0 | KT14: 0 | KU14: 0 | KV14: 0 | KW14: 0 | KX14: 0 | KY14: 0 | KZ14: 0 | LA14: 0 | LB14: 0 | LC14: 0 | LD14: 0 | LE14: 0 | LF14: 0 | LG14: 0 | LH14: 0 | LI14: 0 | LJ14: 0 | LK14: 0 | LL14: 0 | LM14: 0 | LN14: 0 | LO14: 0 | LP14: 0 | LQ14: 0 | LR14: 0 | LS14: =IF(LS13,1,0) -> 0 | LT14: 0 | LU14: 0 | LV14: 0 | LW14: 0 | LX14: 0 | LY14: 0 | LZ14: 0 | MA14: 0 | MB14: 0 | MC14: 0 | MD14: 0 | ME14: 0 | MF14: 0 | MG14: 0 | MH14: 0 | MI14: 0 | MJ14: 0 | MK14: 0 | ML14: 0 | MM14: 0 | MN14: 0 | MO14: 0 | MP14: 0 | MQ14: 0 | MR14: 0 | MS14: 0 | MT14: 0 | MU14: 0 | MV14: 0 | MW14: 0 | MX14: 0 | MY14: 0 | MZ14: 0 | NA14: 0 | NB14: 0 | NC14: 0 | ND14: 0 | NE14: 0 | NF14: 0 | NG14: 0 | NH14: 0 | NI14: 0 | NJ14: 0 | NK14: 0 | NL14: 0 | NM14: 0 | NN14: 0 | NO14: 0 | NP14: 0 | NQ14: 0 | NR14: 0 | NS14: 0 | NT14: 0 | NU14: 0 | NV14: 0 | NW14: 0 | NX14: 0 | NY14: 0 | NZ14: 0 | OA14: 0 | OB14: 0 | OC14: 0 | OD14: 0 | OE14: =IF(OE13,1,0) -> 0 | OF14: 0 | OG14: 0 | OH14: 0 | OI14: 0 | OJ14: 0 | OK14: 0 | OL14: 0 | OM14: 0 | ON14: 0 | OO14: 0 | OP14: 0 | OQ14: 0 | OR14: 0 | OS14: 0 | OT14: 0 | OU14: 0 | OV14: 0 | OW14: 0 | OX14: 0 | OY14: 0 | OZ14: 0 | PA14: 0 | PB14: 0 | PC14: 0 | PD14: 0 | PE14: 0 | PF14: 0 | PG14: 0 | PH14: 0 | PI14: 0 | PJ14: 0 | PK14: 0 | PL14: 0 | PM14: 0 | PN14: 0 | PO14: 0 | PP14: 0 | PQ14: 0 | PR14: 0 | PS14: 0 | PT14: 0 | PU14: 0 | PV14: 0 | PW14: 0 | PX14: 0 | PY14: 0 | PZ14: 0 | QA14: 0 | QB14: 0 | QC14: 0 | QD14: 0 | QE14: 0 | QF14: 0 | QG14: 0 | QH14: 0 | QI14: 0 | QJ14: 0 | QK14: 0 | QL14: 0 | QM14: 0 | QN14: 0 | QO14: 0 | QP14: 0 | QQ14: =IF(QQ13,1,0) -> 0 | QR14: 0 | QS14: 0 | QT14: 0 | QU14: 0 | QV14: 0 | QW14: 0 | QX14: 0 | QY14: 0 | QZ14: 0 | RA14: 0 | RB14: 0 | RC14: 0 | RD14: 0 | RE14: 0 | RF14: 0 | RG14: 0 | RH14: 0 | RI14: 0 | RJ14: 0 | RK14: 0 | RL14: 0 | RM14: 0 | RN14: 0 | RO14: 0 | RP14: 0 | RQ14: 0 | RR14: 0 | RS14: 0 | RT14: 0 | RU14: 0 | RV14: 0 | RW14: 0 | RX14: 0 | RY14: 0 | RZ14: 0 | SA14: 0 | SB14: 0 | SC14: 0 | SD14: 0 | SE14: 0 | SF14: 0 | SG14: 0 | SH14: 0 | SI14: 0 | SJ14: 0 | SK14: 0 | SL14: 0 | SM14: 0 | SN14: 0 | SO14: 0
E16: Construction Period Start | F16: =InputC!F10 -> 2023-01-01 | G16: Date
E17: Construction Period End (BOM) | F17: =InputC!F12 -> 2024-12-01 | G17: Date
E18: Construction Period Flag (AND) | G18: Flag | H18: =SUM(J18:SO18) -> 0
E19: Construction Phase Counter | G19: Code | J19: =IF(AND(J18,NOT(J13)),2,0) -> 0 | K19: =IF(AND(K18,NOT(K13)),2,0) -> 2 | L19: 2 | M19: 2 | N19: 2 | O19: 2 | P19: 2 | Q19: 2 | R19: 2 | S19: 2 | T19: 2 | U19: 2 | V19: 2 | W19: 2 | X19: 2 | Y19: 2 | Z19: 2 | AA19: 2 | AB19: 2 | AC19: 2 | AD19: 2 | AE19: 2 | AF19: 2 | AG19: 2 | AH19: 2 | AI19: 2 | AJ19: 2 | AK19: 2 | AL19: 2 | AM19: 2 | AN19: 2 | AO19: 2 | AP19: 2 | AQ19: 2 | AR19: 2 | AS19: 2 | AT19: 2 | AU19: 2 | AV19: 2 | AW19: 2 | AX19: 2 | AY19: 2 | AZ19: 2 | BA19: 2 | BB19: 2 | BC19: 2 | BD19: 2 | BE19: 2 | BF19: 2 | BG19: 2 | BH19: 2 | BI19: 2 | BJ19: 2 | BK19: 2 | BL19: 2 | BM19: 2 | BN19: 2 | BO19: 2 | BP19: 2 | BQ19: 2 | BR19: 2 | BS19: 2 | BT19: 2 | BU19: 2 | BV19: 2 | BW19: =IF(AND(BW18,NOT(BW13)),2,0) -> 2 | BX19: 2 | BY19: 2 | BZ19: 2 | CA19: 2 | CB19: 2 | CC19: 2 | CD19: 2 | CE19: 2 | CF19: 2 | CG19: 2 | CH19: 2 | CI19: 2 | CJ19: 2 | CK19: 2 | CL19: 2 | CM19: 2 | CN19: 2 | CO19: 2 | CP19: 2 | CQ19: 2 | CR19: 2 | CS19: 2 | CT19: 2 | CU19: 2 | CV19: 2 | CW19: 2 | CX19: 2 | CY19: 2 | CZ19: 2 | DA19: 2 | DB19: 2 | DC19: 2 | DD19: 2 | DE19: 2 | DF19: 2 | DG19: 2 | DH19: 2 | DI19: 2 | DJ19: 2 | DK19: 2 | DL19: 2 | DM19: 2 | DN19: 2 | DO19: 2 | DP19: 2 | DQ19: 2 | DR19: 2 | DS19: 2 | DT19: 2 | DU19: 2 | DV19: 2 | DW19: 2 | DX19: 2 | DY19: 2 | DZ19: 2 | EA19: 2 | EB19: 2 | EC19: 2 | ED19: 2 | EE19: 2 | EF19: 2 | EG19: 2 | EH19: 2 | EI19: =IF(AND(EI18,NOT(EI13)),2,0) -> 2 | EJ19: 2 | EK19: 2 | EL19: 2 | EM19: 2 | EN19: 2 | EO19: 2 | EP19: 2 | EQ19: 2 | ER19: 2 | ES19: 2 | ET19: 2 | EU19: 2 | EV19: 2 | EW19: 2 | EX19: 2 | EY19: 2 | EZ19: 2 | FA19: 2 | FB19: 2 | FC19: 2 | FD19: 2 | FE19: 2 | FF19: 2 | FG19: 2 | FH19: 2 | FI19: 2 | FJ19: 2 | FK19: 2 | FL19: 2 | FM19: 2 | FN19: 2 | FO19: 2 | FP19: 2 | FQ19: 2 | FR19: 2 | FS19: 2 | FT19: 2 | FU19: 2 | FV19: 2 | FW19: 2 | FX19: 2 | FY19: 2 | FZ19: 2 | GA19: 2 | GB19: 2 | GC19: 2 | GD19: 2 | GE19: 2 | GF19: 2 | GG19: 2 | GH19: 2 | GI19: 2 | GJ19: 2 | GK19: 2 | GL19: 2 | GM19: 2 | GN19: 2 | GO19: 2 | GP19: 2 | GQ19: 2 | GR19: 2 | GS19: 2 | GT19: 2 | GU19: =IF(AND(GU18,NOT(GU13)),2,0) -> 2 | GV19: 2 | GW19: 2 | GX19: 2 | GY19: 2 | GZ19: 2 | HA19: 2 | HB19: 2 | HC19: 2 | HD19: 2 | HE19: 2 | HF19: 2 | HG19: 2 | HH19: 2 | HI19: 2 | HJ19: 2 | HK19: 2 | HL19: 2 | HM19: 2 | HN19: 2 | HO19: 2 | HP19: 2 | HQ19: 2 | HR19: 2 | HS19: 2 | HT19: 2 | HU19: 2 | HV19: 2 | HW19: 2 | HX19: 2 | HY19: 2 | HZ19: 2 | IA19: 2 | IB19: 2 | IC19: 2 | ID19: 2 | IE19: 2 | IF19: 2 | IG19: 2 | IH19: 2 | II19: 2 | IJ19: 2 | IK19: 2 | IL19: 2 | IM19: 2 | IN19: 2 | IO19: 2 | IP19: 2 | IQ19: 2 | IR19: 2 | IS19: 2 | IT19: 2 | IU19: 2 | IV19: 2 | IW19: 2 | IX19: 2 | IY19: 2 | IZ19: 2 | JA19: 2 | JB19: 2 | JC19: 2 | JD19: 2 | JE19: 2 | JF19: 2 | JG19: =IF(AND(JG18,NOT(JG13)),2,0) -> 2 | JH19: 2 | JI19: 2 | JJ19: 2 | JK19: 2 | JL19: 2 | JM19: 2 | JN19: 2 | JO19: 2 | JP19: 2 | JQ19: 2 | JR19: 2 | JS19: 2 | JT19: 2 | JU19: 2 | JV19: 2 | JW19: 2 | JX19: 2 | JY19: 2 | JZ19: 2 | KA19: 2 | KB19: 2 | KC19: 2 | KD19: 2 | KE19: 2 | KF19: 2 | KG19: 2 | KH19: 2 | KI19: 2 | KJ19: 2 | KK19: 2 | KL19: 2 | KM19: 2 | KN19: 2 | KO19: 2 | KP19: 2 | KQ19: 2 | KR19: 2 | KS19: 2 | KT19: 2 | KU19: 2 | KV19: 2 | KW19: 2 | KX19: 2 | KY19: 2 | KZ19: 2 | LA19: 2 | LB19: 2 | LC19: 2 | LD19: 2 | LE19: 2 | LF19: 2 | LG19: 2 | LH19: 2 | LI19: 2 | LJ19: 2 | LK19: 2 | LL19: 2 | LM19: 2 | LN19: 2 | LO19: 2 | LP19: 2 | LQ19: 2 | LR19: 2 | LS19: =IF(AND(LS18,NOT(LS13)),2,0) -> 2 | LT19: 2 | LU19: 2 | LV19: 2 | LW19: 2 | LX19: 2 | LY19: 2 | LZ19: 2 | MA19: 2 | MB19: 2 | MC19: 2 | MD19: 2 | ME19: 2 | MF19: 2 | MG19: 2 | MH19: 2 | MI19: 2 | MJ19: 2 | MK19: 2 | ML19: 2 | MM19: 2 | MN19: 2 | MO19: 2 | MP19: 2 | MQ19: 2 | MR19: 2 | MS19: 2 | MT19: 2 | MU19: 2 | MV19: 2 | MW19: 2 | MX19: 2 | MY19: 2 | MZ19: 2 | NA19: 2 | NB19: 2 | NC19: 2 | ND19: 2 | NE19: 2 | NF19: 2 | NG19: 2 | NH19: 2 | NI19: 2 | NJ19: 2 | NK19: 2 | NL19: 2 | NM19: 2 | NN19: 2 | NO19: 2 | NP19: 2 | NQ19: 2 | NR19: 2 | NS19: 2 | NT19: 2 | NU19: 2 | NV19: 2 | NW19: 2 | NX19: 2 | NY19: 2 | NZ19: 2 | OA19: 2 | OB19: 2 | OC19: 2 | OD19: 2 | OE19: =IF(AND(OE18,NOT(OE13)),2,0) -> 2 | OF19: 2 | OG19: 2 | OH19: 2 | OI19: 2 | OJ19: 2 | OK19: 2 | OL19: 2 | OM19: 2 | ON19: 2 | OO19: 2 | OP19: 2 | OQ19: 2 | OR19: 2 | OS19: 2 | OT19: 2 | OU19: 2 | OV19: 2 | OW19: 2 | OX19: 2 | OY19: 2 | OZ19: 2 | PA19: 2 | PB19: 2 | PC19: 2 | PD19: 2 | PE19: 2 | PF19: 2 | PG19: 2 | PH19: 2 | PI19: 2 | PJ19: 2 | PK19: 2 | PL19: 2 | PM19: 2 | PN19: 2 | PO19: 2 | PP19: 2 | PQ19: 2 | PR19: 2 | PS19: 2 | PT19: 2 | PU19: 2 | PV19: 2 | PW19: 2 | PX19: 2 | PY19: 2 | PZ19: 2 | QA19: 2 | QB19: 2 | QC19: 2 | QD19: 2 | QE19: 2 | QF19: 2 | QG19: 2 | QH19: 2 | QI19: 2 | QJ19: 2 | QK19: 2 | QL19: 2 | QM19: 2 | QN19: 2 | QO19: 2 | QP19: 2 | QQ19: =IF(AND(QQ18,NOT(QQ13)),2,0) -> 2 | QR19: 2 | QS19: 2 | QT19: 2 | QU19: 2 | QV19: 2 | QW19: 2 | QX19: 2 | QY19: 2 | QZ19: 2 | RA19: 2 | RB19: 2 | RC19: 2 | RD19: 2 | RE19: 2 | RF19: 2 | RG19: 2 | RH19: 2 | RI19: 2 | RJ19: 2 | RK19: 2 | RL19: 2 | RM19: 2 | RN19: 2 | RO19: 2 | RP19: 2 | RQ19: 2 | RR19: 2 | RS19: 2 | RT19: 2 | RU19: 2 | RV19: 2 | RW19: 2 | RX19: 2 | RY19: 2 | RZ19: 2 | SA19: 2 | SB19: 2 | SC19: 2 | SD19: 2 | SE19: 2 | SF19: 2 | SG19: 2 | SH19: 2 | SI19: 2 | SJ19: 2 | SK19: 2 | SL19: 2 | SM19: 2 | SN19: 2 | SO19: 2
E21: Operation Start Date | F21: =InputC!F13 -> 2025-01-01 | G21: Date
E22: Operation End Date | F22: =InputC!F16 -> 2024-12-01 | G22: Date
E23: Operation Flag | G23: Flag | H23: =SUM(J23:SO23) -> 0 | J23: =AND(J9>=$F21,J9<=$F$22)*1 -> 0 | K23: 0 | L23: 0 | M23: 0 | N23: 0 | O23: 0 | P23: 0 | Q23: 0 | R23: 0 | S23: 0 | T23: 0 | U23: 0 | V23: 0 | W23: 0 | X23: 0 | Y23: 0 | Z23: 0 | AA23: 0 | AB23: 0 | AC23: 0 | AD23: 0 | AE23: 0 | AF23: 0 | AG23: 0 | AH23: 0 | AI23: 0 | AJ23: 0 | AK23: 0 | AL23: 0 | AM23: 0 | AN23: 0 | AO23: 0 | AP23: 0 | AQ23: 0 | AR23: 0 | AS23: 0 | AT23: 0 | AU23: 0 | AV23: 0 | AW23: 0 | AX23: 0 | AY23: 0 | AZ23: 0 | BA23: 0 | BB23: 0 | BC23: 0 | BD23: 0 | BE23: 0 | BF23: 0 | BG23: 0 | BH23: 0 | BI23: 0 | BJ23: 0 | BK23: 0 | BL23: 0 | BM23: 0 | BN23: 0 | BO23: 0 | BP23: 0 | BQ23: 0 | BR23: 0 | BS23: 0 | BT23: 0 | BU23: 0 | BV23: =AND(BV9>=$F21,BV9<=$F$22)*1 -> 0 | BW23: 0 | BX23: 0 | BY23: 0 | BZ23: 0 | CA23: 0 | CB23: 0 | CC23: 0 | CD23: 0 | CE23: 0 | CF23: 0 | CG23: 0 | CH23: 0 | CI23: 0 | CJ23: 0 | CK23: 0 | CL23: 0 | CM23: 0 | CN23: 0 | CO23: 0 | CP23: 0 | CQ23: 0 | CR23: 0 | CS23: 0 | CT23: 0 | CU23: 0 | CV23: 0 | CW23: 0 | CX23: 0 | CY23: 0 | CZ23: 0 | DA23: 0 | DB23: 0 | DC23: 0 | DD23: 0 | DE23: 0 | DF23: 0 | DG23: 0 | DH23: 0 | DI23: 0 | DJ23: 0 | DK23: 0 | DL23: 0 | DM23: 0 | DN23: 0 | DO23: 0 | DP23: 0 | DQ23: 0 | DR23: 0 | DS23: 0 | DT23: 0 | DU23: 0 | DV23: 0 | DW23: 0 | DX23: 0 | DY23: 0 | DZ23: 0 | EA23: 0 | EB23: 0 | EC23: 0 | ED23: 0 | EE23: 0 | EF23: 0 | EG23: 0 | EH23: =AND(EH9>=$F21,EH9<=$F$22)*1 -> 0 | EI23: 0 | EJ23: 0 | EK23: 0 | EL23: 0 | EM23: 0 | EN23: 0 | EO23: 0 | EP23: 0 | EQ23: 0 | ER23: 0 | ES23: 0 | ET23: 0 | EU23: 0 | EV23: 0 | EW23: 0 | EX23: 0 | EY23: 0 | EZ23: 0 | FA23: 0 | FB23: 0 | FC23: 0 | FD23: 0 | FE23: 0 | FF23: 0 | FG23: 0 | FH23: 0 | FI23: 0 | FJ23: 0 | FK23: 0 | FL23: 0 | FM23: 0 | FN23: 0 | FO23: 0 | FP23: 0 | FQ23: 0 | FR23: 0 | FS23: 0 | FT23: 0 | FU23: 0 | FV23: 0 | FW23: 0 | FX23: 0 | FY23: 0 | FZ23: 0 | GA23: 0 | GB23: 0 | GC23: 0 | GD23: 0 | GE23: 0 | GF23: 0 | GG23: 0 | GH23: 0 | GI23: 0 | GJ23: 0 | GK23: 0 | GL23: 0 | GM23: 0 | GN23: 0 | GO23: 0 | GP23: 0 | GQ23: 0 | GR23: 0 | GS23: 0 | GT23: =AND(GT9>=$F21,GT9<=$F$22)*1 -> 0 | GU23: 0 | GV23: 0 | GW23: 0 | GX23: 0 | GY23: 0 | GZ23: 0 | HA23: 0 | HB23: 0 | HC23: 0 | HD23: 0 | HE23: 0 | HF23: 0 | HG23: 0 | HH23: 0 | HI23: 0 | HJ23: 0 | HK23: 0 | HL23: 0 | HM23: 0 | HN23: 0 | HO23: 0 | HP23: 0 | HQ23: 0 | HR23: 0 | HS23: 0 | HT23: 0 | HU23: 0 | HV23: 0 | HW23: 0 | HX23: 0 | HY23: 0 | HZ23: 0 | IA23: 0 | IB23: 0 | IC23: 0 | ID23: 0 | IE23: 0 | IF23: 0 | IG23: 0 | IH23: 0 | II23: 0 | IJ23: 0 | IK23: 0 | IL23: 0 | IM23: 0 | IN23: 0 | IO23: 0 | IP23: 0 | IQ23: 0 | IR23: 0 | IS23: 0 | IT23: 0 | IU23: 0 | IV23: 0 | IW23: 0 | IX23: 0 | IY23: 0 | IZ23: 0 | JA23: 0 | JB23: 0 | JC23: 0 | JD23: 0 | JE23: 0 | JF23: =AND(JF9>=$F21,JF9<=$F$22)*1 -> 0 | JG23: 0 | JH23: 0 | JI23: 0 | JJ23: 0 | JK23: 0 | JL23: 0 | JM23: 0 | JN23: 0 | JO23: 0 | JP23: 0 | JQ23: 0 | JR23: 0 | JS23: 0 | JT23: 0 | JU23: 0 | JV23: 0 | JW23: 0 | JX23: 0 | JY23: 0 | JZ23: 0 | KA23: 0 | KB23: 0 | KC23: 0 | KD23: 0 | KE23: 0 | KF23: 0 | KG23: 0 | KH23: 0 | KI23: 0 | KJ23: 0 | KK23: 0 | KL23: 0 | KM23: 0 | KN23: 0 | KO23: 0 | KP23: 0 | KQ23: 0 | KR23: 0 | KS23: 0 | KT23: 0 | KU23: 0 | KV23: 0 | KW23: 0 | KX23: 0 | KY23: 0 | KZ23: 0 | LA23: 0 | LB23: 0 | LC23: 0 | LD23: 0 | LE23: 0 | LF23: 0 | LG23: 0 | LH23: 0 | LI23: 0 | LJ23: 0 | LK23: 0 | LL23: 0 | LM23: 0 | LN23: 0 | LO23: 0 | LP23: 0 | LQ23: 0 | LR23: =AND(LR9>=$F21,LR9<=$F$22)*1 -> 0 | LS23: 0 | LT23: 0 | LU23: 0 | LV23: 0 | LW23: 0 | LX23: 0 | LY23: 0 | LZ23: 0 | MA23: 0 | MB23: 0 | MC23: 0 | MD23: 0 | ME23: 0 | MF23: 0 | MG23: 0 | MH23: 0 | MI23: 0 | MJ23: 0 | MK23: 0 | ML23: 0 | MM23: 0 | MN23: 0 | MO23: 0 | MP23: 0 | MQ23: 0 | MR23: 0 | MS23: 0 | MT23: 0 | MU23: 0 | MV23: 0 | MW23: 0 | MX23: 0 | MY23: 0 | MZ23: 0 | NA23: 0 | NB23: 0 | NC23: 0 | ND23: 0 | NE23: 0 | NF23: 0 | NG23: 0 | NH23: 0 | NI23: 0 | NJ23: 0 | NK23: 0 | NL23: 0 | NM23: 0 | NN23: 0 | NO23: 0 | NP23: 0 | NQ23: 0 | NR23: 0 | NS23: 0 | NT23: 0 | NU23: 0 | NV23: 0 | NW23: 0 | NX23: 0 | NY23: 0 | NZ23: 0 | OA23: 0 | OB23: 0 | OC23: 0 | OD23: =AND(OD9>=$F21,OD9<=$F$22)*1 -> 0 | OE23: 0 | OF23: 0 | OG23: 0 | OH23: 0 | OI23: 0 | OJ23: 0 | OK23: 0 | OL23: 0 | OM23: 0 | ON23: 0 | OO23: 0 | OP23: 0 | OQ23: 0 | OR23: 0 | OS23: 0 | OT23: 0 | OU23: 0 | OV23: 0 | OW23: 0 | OX23: 0 | OY23: 0 | OZ23: 0 | PA23: 0 | PB23: 0 | PC23: 0 | PD23: 0 | PE23: 0 | PF23: 0 | PG23: 0 | PH23: 0 | PI23: 0 | PJ23: 0 | PK23: 0 | PL23: 0 | PM23: 0 | PN23: 0 | PO23: 0 | PP23: 0 | PQ23: 0 | PR23: 0 | PS23: 0 | PT23: 0 | PU23: 0 | PV23: 0 | PW23: 0 | PX23: 0 | PY23: 0 | PZ23: 0 | QA23: 0 | QB23: 0 | QC23: 0 | QD23: 0 | QE23: 0 | QF23: 0 | QG23: 0 | QH23: 0 | QI23: 0 | QJ23: 0 | QK23: 0 | QL23: 0 | QM23: 0 | QN23: 0 | QO23: 0 | QP23: =AND(QP9>=$F21,QP9<=$F$22)*1 -> 0 | QQ23: 0 | QR23: 0 | QS23: 0 | QT23: 0 | QU23: 0 | QV23: 0 | QW23: 0 | QX23: 0 | QY23: 0 | QZ23: 0 | RA23: 0 | RB23: 0 | RC23: 0 | RD23: 0 | RE23: 0 | RF23: 0 | RG23: 0 | RH23: 0 | RI23: 0 | RJ23: 0 | RK23: 0 | RL23: 0 | RM23: 0 | RN23: 0 | RO23: 0 | RP23: 0 | RQ23: 0 | RR23: 0 | RS23: 0 | RT23: 0 | RU23: 0 | RV23: 0 | RW23: 0 | RX23: 0 | RY23: 0 | RZ23: 0 | SA23: 0 | SB23: 0 | SC23: 0 | SD23: 0 | SE23: 0 | SF23: 0 | SG23: 0 | SH23: 0 | SI23: 0 | SJ23: 0 | SK23: 0 | SL23: 0 | SM23: 0 | SN23: 0 | SO23: 0
E24: Operation Phase Counter | G24: Code | J24: =IF(J23,3,0) -> 0 | K24: =IF(K23,3,0) -> 0 | L24: 0 | M24: 0 | N24: 0 | O24: 0 | P24: 0 | Q24: 0 | R24: 0 | S24: 0 | T24: 0 | U24: 0 | V24: 0 | W24: 0 | X24: 0 | Y24: 0 | Z24: 0 | AA24: 0 | AB24: 0 | AC24: 0 | AD24: 0 | AE24: 0 | AF24: 0 | AG24: 0 | AH24: 0 | AI24: 0 | AJ24: 0 | AK24: 0 | AL24: 0 | AM24: 0 | AN24: 0 | AO24: 0 | AP24: 0 | AQ24: 0 | AR24: 0 | AS24: 0 | AT24: 0 | AU24: 0 | AV24: 0 | AW24: 0 | AX24: 0 | AY24: 0 | AZ24: 0 | BA24: 0 | BB24: 0 | BC24: 0 | BD24: 0 | BE24: 0 | BF24: 0 | BG24: 0 | BH24: 0 | BI24: 0 | BJ24: 0 | BK24: 0 | BL24: 0 | BM24: 0 | BN24: 0 | BO24: 0 | BP24: 0 | BQ24: 0 | BR24: 0 | BS24: 0 | BT24: 0 | BU24: 0 | BV24: 0 | BW24: =IF(BW23,3,0) -> 0 | BX24: 0 | BY24: 0 | BZ24: 0 | CA24: 0 | CB24: 0 | CC24: 0 | CD24: 0 | CE24: 0 | CF24: 0 | CG24: 0 | CH24: 0 | CI24: 0 | CJ24: 0 | CK24: 0 | CL24: 0 | CM24: 0 | CN24: 0 | CO24: 0 | CP24: 0 | CQ24: 0 | CR24: 0 | CS24: 0 | CT24: 0 | CU24: 0 | CV24: 0 | CW24: 0 | CX24: 0 | CY24: 0 | CZ24: 0 | DA24: 0 | DB24: 0 | DC24: 0 | DD24: 0 | DE24: 0 | DF24: 0 | DG24: 0 | DH24: 0 | DI24: 0 | DJ24: 0 | DK24: 0 | DL24: 0 | DM24: 0 | DN24: 0 | DO24: 0 | DP24: 0 | DQ24: 0 | DR24: 0 | DS24: 0 | DT24: 0 | DU24: 0 | DV24: 0 | DW24: 0 | DX24: 0 | DY24: 0 | DZ24: 0 | EA24: 0 | EB24: 0 | EC24: 0 | ED24: 0 | EE24: 0 | EF24: 0 | EG24: 0 | EH24: 0 | EI24: =IF(EI23,3,0) -> 0 | EJ24: 0 | EK24: 0 | EL24: 0 | EM24: 0 | EN24: 0 | EO24: 0 | EP24: 0 | EQ24: 0 | ER24: 0 | ES24: 0 | ET24: 0 | EU24: 0 | EV24: 0 | EW24: 0 | EX24: 0 | EY24: 0 | EZ24: 0 | FA24: 0 | FB24: 0 | FC24: 0 | FD24: 0 | FE24: 0 | FF24: 0 | FG24: 0 | FH24: 0 | FI24: 0 | FJ24: 0 | FK24: 0 | FL24: 0 | FM24: 0 | FN24: 0 | FO24: 0 | FP24: 0 | FQ24: 0 | FR24: 0 | FS24: 0 | FT24: 0 | FU24: 0 | FV24: 0 | FW24: 0 | FX24: 0 | FY24: 0 | FZ24: 0 | GA24: 0 | GB24: 0 | GC24: 0 | GD24: 0 | GE24: 0 | GF24: 0 | GG24: 0 | GH24: 0 | GI24: 0 | GJ24: 0 | GK24: 0 | GL24: 0 | GM24: 0 | GN24: 0 | GO24: 0 | GP24: 0 | GQ24: 0 | GR24: 0 | GS24: 0 | GT24: 0 | GU24: =IF(GU23,3,0) -> 0 | GV24: 0 | GW24: 0 | GX24: 0 | GY24: 0 | GZ24: 0 | HA24: 0 | HB24: 0 | HC24: 0 | HD24: 0 | HE24: 0 | HF24: 0 | HG24: 0 | HH24: 0 | HI24: 0 | HJ24: 0 | HK24: 0 | HL24: 0 | HM24: 0 | HN24: 0 | HO24: 0 | HP24: 0 | HQ24: 0 | HR24: 0 | HS24: 0 | HT24: 0 | HU24: 0 | HV24: 0 | HW24: 0 | HX24: 0 | HY24: 0 | HZ24: 0 | IA24: 0 | IB24: 0 | IC24: 0 | ID24: 0 | IE24: 0 | IF24: 0 | IG24: 0 | IH24: 0 | II24: 0 | IJ24: 0 | IK24: 0 | IL24: 0 | IM24: 0 | IN24: 0 | IO24: 0 | IP24: 0 | IQ24: 0 | IR24: 0 | IS24: 0 | IT24: 0 | IU24: 0 | IV24: 0 | IW24: 0 | IX24: 0 | IY24: 0 | IZ24: 0 | JA24: 0 | JB24: 0 | JC24: 0 | JD24: 0 | JE24: 0 | JF24: 0 | JG24: =IF(JG23,3,0) -> 0 | JH24: 0 | JI24: 0 | JJ24: 0 | JK24: 0 | JL24: 0 | JM24: 0 | JN24: 0 | JO24: 0 | JP24: 0 | JQ24: 0 | JR24: 0 | JS24: 0 | JT24: 0 | JU24: 0 | JV24: 0 | JW24: 0 | JX24: 0 | JY24: 0 | JZ24: 0 | KA24: 0 | KB24: 0 | KC24: 0 | KD24: 0 | KE24: 0 | KF24: 0 | KG24: 0 | KH24: 0 | KI24: 0 | KJ24: 0 | KK24: 0 | KL24: 0 | KM24: 0 | KN24: 0 | KO24: 0 | KP24: 0 | KQ24: 0 | KR24: 0 | KS24: 0 | KT24: 0 | KU24: 0 | KV24: 0 | KW24: 0 | KX24: 0 | KY24: 0 | KZ24: 0 | LA24: 0 | LB24: 0 | LC24: 0 | LD24: 0 | LE24: 0 | LF24: 0 | LG24: 0 | LH24: 0 | LI24: 0 | LJ24: 0 | LK24: 0 | LL24: 0 | LM24: 0 | LN24: 0 | LO24: 0 | LP24: 0 | LQ24: 0 | LR24: 0 | LS24: =IF(LS23,3,0) -> 0 | LT24: 0 | LU24: 0 | LV24: 0 | LW24: 0 | LX24: 0 | LY24: 0 | LZ24: 0 | MA24: 0 | MB24: 0 | MC24: 0 | MD24: 0 | ME24: 0 | MF24: 0 | MG24: 0 | MH24: 0 | MI24: 0 | MJ24: 0 | MK24: 0 | ML24: 0 | MM24: 0 | MN24: 0 | MO24: 0 | MP24: 0 | MQ24: 0 | MR24: 0 | MS24: 0 | MT24: 0 | MU24: 0 | MV24: 0 | MW24: 0 | MX24: 0 | MY24: 0 | MZ24: 0 | NA24: 0 | NB24: 0 | NC24: 0 | ND24: 0 | NE24: 0 | NF24: 0 | NG24: 0 | NH24: 0 | NI24: 0 | NJ24: 0 | NK24: 0 | NL24: 0 | NM24: 0 | NN24: 0 | NO24: 0 | NP24: 0 | NQ24: 0 | NR24: 0 | NS24: 0 | NT24: 0 | NU24: 0 | NV24: 0 | NW24: 0 | NX24: 0 | NY24: 0 | NZ24: 0 | OA24: 0 | OB24: 0 | OC24: 0 | OD24: 0 | OE24: =IF(OE23,3,0) -> 0 | OF24: 0 | OG24: 0 | OH24: 0 | OI24: 0 | OJ24: 0 | OK24: 0 | OL24: 0 | OM24: 0 | ON24: 0 | OO24: 0 | OP24: 0 | OQ24: 0 | OR24: 0 | OS24: 0 | OT24: 0 | OU24: 0 | OV24: 0 | OW24: 0 | OX24: 0 | OY24: 0 | OZ24: 0 | PA24: 0 | PB24: 0 | PC24: 0 | PD24: 0 | PE24: 0 | PF24: 0 | PG24: 0 | PH24: 0 | PI24: 0 | PJ24: 0 | PK24: 0 | PL24: 0 | PM24: 0 | PN24: 0 | PO24: 0 | PP24: 0 | PQ24: 0 | PR24: 0 | PS24: 0 | PT24: 0 | PU24: 0 | PV24: 0 | PW24: 0 | PX24: 0 | PY24: 0 | PZ24: 0 | QA24: 0 | QB24: 0 | QC24: 0 | QD24: 0 | QE24: 0 | QF24: 0 | QG24: 0 | QH24: 0 | QI24: 0 | QJ24: 0 | QK24: 0 | QL24: 0 | QM24: 0 | QN24: 0 | QO24: 0 | QP24: 0 | QQ24: =IF(QQ23,3,0) -> 0 | QR24: 0 | QS24: 0 | QT24: 0 | QU24: 0 | QV24: 0 | QW24: 0 | QX24: 0 | QY24: 0 | QZ24: 0 | RA24: 0 | RB24: 0 | RC24: 0 | RD24: 0 | RE24: 0 | RF24: 0 | RG24: 0 | RH24: 0 | RI24: 0 | RJ24: 0 | RK24: 0 | RL24: 0 | RM24: 0 | RN24: 0 | RO24: 0 | RP24: 0 | RQ24: 0 | RR24: 0 | RS24: 0 | RT24: 0 | RU24: 0 | RV24: 0 | RW24: 0 | RX24: 0 | RY24: 0 | RZ24: 0 | SA24: 0 | SB24: 0 | SC24: 0 | SD24: 0 | SE24: 0 | SF24: 0 | SG24: 0 | SH24: 0 | SI24: 0 | SJ24: 0 | SK24: 0 | SL24: 0 | SM24: 0 | SN24: 0 | SO24: 0
E26: First model phase - monthly | F26: Dev | G26: label
E27: Second model phase - monthly | F27: FC/Const. | G27: label
E28: Third model phase - monthly | F28: Const | G28: label
E29: Fourth model phase - monthly | F29: Ops | G29: label
E30: Timeline Code | J30: =J14+J19+J24 -> 1 | K30: 2 | L30: 2 | M30: 2 | N30: 2 | O30: 2 | P30: 2 | Q30: 2 | R30: 2 | S30: 2 | T30: 2 | U30: 2 | V30: 2 | W30: 2 | X30: 2 | Y30: 2 | Z30: 2 | AA30: 2 | AB30: 2 | AC30: 2 | AD30: 2 | AE30: 2 | AF30: 2 | AG30: 2 | AH30: 2 | AI30: 2 | AJ30: 2 | AK30: 2 | AL30: 2 | AM30: 2 | AN30: 2 | AO30: 2 | AP30: 2 | AQ30: 2 | AR30: 2 | AS30: 2 | AT30: 2 | AU30: 2 | AV30: 2 | AW30: 2 | AX30: 2 | AY30: 2 | AZ30: 2 | BA30: 2 | BB30: 2 | BC30: 2 | BD30: 2 | BE30: 2 | BF30: 2 | BG30: 2 | BH30: 2 | BI30: 2 | BJ30: 2 | BK30: 2 | BL30: 2 | BM30: 2 | BN30: 2 | BO30: 2 | BP30: 2 | BQ30: 2 | BR30: 2 | BS30: 2 | BT30: 2 | BU30: 2 | BV30: =BV14+BV19+BV24 -> 2 | BW30: 2 | BX30: 2 | BY30: 2 | BZ30: 2 | CA30: 2 | CB30: 2 | CC30: 2 | CD30: 2 | CE30: 2 | CF30: 2 | CG30: 2 | CH30: 2 | CI30: 2 | CJ30: 2 | CK30: 2 | CL30: 2 | CM30: 2 | CN30: 2 | CO30: 2 | CP30: 2 | CQ30: 2 | CR30: 2 | CS30: 2 | CT30: 2 | CU30: 2 | CV30: 2 | CW30: 2 | CX30: 2 | CY30: 2 | CZ30: 2 | DA30: 2 | DB30: 2 | DC30: 2 | DD30: 2 | DE30: 2 | DF30: 2 | DG30: 2 | DH30: 2 | DI30: 2 | DJ30: 2 | DK30: 2 | DL30: 2 | DM30: 2 | DN30: 2 | DO30: 2 | DP30: 2 | DQ30: 2 | DR30: 2 | DS30: 2 | DT30: 2 | DU30: 2 | DV30: 2 | DW30: 2 | DX30: 2 | DY30: 2 | DZ30: 2 | EA30: 2 | EB30: 2 | EC30: 2 | ED30: 2 | EE30: 2 | EF30: 2 | EG30: 2 | EH30: =EH14+EH19+EH24 -> 2 | EI30: 2 | EJ30: 2 | EK30: 2 | EL30: 2 | EM30: 2 | EN30: 2 | EO30: 2 | EP30: 2 | EQ30: 2 | ER30: 2 | ES30: 2 | ET30: 2 | EU30: 2 | EV30: 2 | EW30: 2 | EX30: 2 | EY30: 2 | EZ30: 2 | FA30: 2 | FB30: 2 | FC30: 2 | FD30: 2 | FE30: 2 | FF30: 2 | FG30: 2 | FH30: 2 | FI30: 2 | FJ30: 2 | FK30: 2 | FL30: 2 | FM30: 2 | FN30: 2 | FO30: 2 | FP30: 2 | FQ30: 2 | FR30: 2 | FS30: 2 | FT30: 2 | FU30: 2 | FV30: 2 | FW30: 2 | FX30: 2 | FY30: 2 | FZ30: 2 | GA30: 2 | GB30: 2 | GC30: 2 | GD30: 2 | GE30: 2 | GF30: 2 | GG30: 2 | GH30: 2 | GI30: 2 | GJ30: 2 | GK30: 2 | GL30: 2 | GM30: 2 | GN30: 2 | GO30: 2 | GP30: 2 | GQ30: 2 | GR30: 2 | GS30: 2 | GT30: =GT14+GT19+GT24 -> 2 | GU30: 2 | GV30: 2 | GW30: 2 | GX30: 2 | GY30: 2 | GZ30: 2 | HA30: 2 | HB30: 2 | HC30: 2 | HD30: 2 | HE30: 2 | HF30: 2 | HG30: 2 | HH30: 2 | HI30: 2 | HJ30: 2 | HK30: 2 | HL30: 2 | HM30: 2 | HN30: 2 | HO30: 2 | HP30: 2 | HQ30: 2 | HR30: 2 | HS30: 2 | HT30: 2 | HU30: 2 | HV30: 2 | HW30: 2 | HX30: 2 | HY30: 2 | HZ30: 2 | IA30: 2 | IB30: 2 | IC30: 2 | ID30: 2 | IE30: 2 | IF30: 2 | IG30: 2 | IH30: 2 | II30: 2 | IJ30: 2 | IK30: 2 | IL30: 2 | IM30: 2 | IN30: 2 | IO30: 2 | IP30: 2 | IQ30: 2 | IR30: 2 | IS30: 2 | IT30: 2 | IU30: 2 | IV30: 2 | IW30: 2 | IX30: 2 | IY30: 2 | IZ30: 2 | JA30: 2 | JB30: 2 | JC30: 2 | JD30: 2 | JE30: 2 | JF30: =JF14+JF19+JF24 -> 2 | JG30: 2 | JH30: 2 | JI30: 2 | JJ30: 2 | JK30: 2 | JL30: 2 | JM30: 2 | JN30: 2 | JO30: 2 | JP30: 2 | JQ30: 2 | JR30: 2 | JS30: 2 | JT30: 2 | JU30: 2 | JV30: 2 | JW30: 2 | JX30: 2 | JY30: 2 | JZ30: 2 | KA30: 2 | KB30: 2 | KC30: 2 | KD30: 2 | KE30: 2 | KF30: 2 | KG30: 2 | KH30: 2 | KI30: 2 | KJ30: 2 | KK30: 2 | KL30: 2 | KM30: 2 | KN30: 2 | KO30: 2 | KP30: 2 | KQ30: 2 | KR30: 2 | KS30: 2 | KT30: 2 | KU30: 2 | KV30: 2 | KW30: 2 | KX30: 2 | KY30: 2 | KZ30: 2 | LA30: 2 | LB30: 2 | LC30: 2 | LD30: 2 | LE30: 2 | LF30: 2 | LG30: 2 | LH30: 2 | LI30: 2 | LJ30: 2 | LK30: 2 | LL30: 2 | LM30: 2 | LN30: 2 | LO30: 2 | LP30: 2 | LQ30: 2 | LR30: =LR14+LR19+LR24 -> 2 | LS30: 2 | LT30: 2 | LU30: 2 | LV30: 2 | LW30: 2 | LX30: 2 | LY30: 2 | LZ30: 2 | MA30: 2 | MB30: 2 | MC30: 2 | MD30: 2 | ME30: 2 | MF30: 2 | MG30: 2 | MH30: 2 | MI30: 2 | MJ30: 2 | MK30: 2 | ML30: 2 | MM30: 2 | MN30: 2 | MO30: 2 | MP30: 2 | MQ30: 2 | MR30: 2 | MS30: 2 | MT30: 2 | MU30: 2 | MV30: 2 | MW30: 2 | MX30: 2 | MY30: 2 | MZ30: 2 | NA30: 2 | NB30: 2 | NC30: 2 | ND30: 2 | NE30: 2 | NF30: 2 | NG30: 2 | NH30: 2 | NI30: 2 | NJ30: 2 | NK30: 2 | NL30: 2 | NM30: 2 | NN30: 2 | NO30: 2 | NP30: 2 | NQ30: 2 | NR30: 2 | NS30: 2 | NT30: 2 | NU30: 2 | NV30: 2 | NW30: 2 | NX30: 2 | NY30: 2 | NZ30: 2 | OA30: 2 | OB30: 2 | OC30: 2 | OD30: =OD14+OD19+OD24 -> 2 | OE30: 2 | OF30: 2 | OG30: 2 | OH30: 2 | OI30: 2 | OJ30: 2 | OK30: 2 | OL30: 2 | OM30: 2 | ON30: 2 | OO30: 2 | OP30: 2 | OQ30: 2 | OR30: 2 | OS30: 2 | OT30: 2 | OU30: 2 | OV30: 2 | OW30: 2 | OX30: 2 | OY30: 2 | OZ30: 2 | PA30: 2 | PB30: 2 | PC30: 2 | PD30: 2 | PE30: 2 | PF30: 2 | PG30: 2 | PH30: 2 | PI30: 2 | PJ30: 2 | PK30: 2 | PL30: 2 | PM30: 2 | PN30: 2 | PO30: 2 | PP30: 2 | PQ30: 2 | PR30: 2 | PS30: 2 | PT30: 2 | PU30: 2 | PV30: 2 | PW30: 2 | PX30: 2 | PY30: 2 | PZ30: 2 | QA30: 2 | QB30: 2 | QC30: 2 | QD30: 2 | QE30: 2 | QF30: 2 | QG30: 2 | QH30: 2 | QI30: 2 | QJ30: 2 | QK30: 2 | QL30: 2 | QM30: 2 | QN30: 2 | QO30: 2 | QP30: =QP14+QP19+QP24 -> 2 | QQ30: 2 | QR30: 2 | QS30: 2 | QT30: 2 | QU30: 2 | QV30: 2 | QW30: 2 | QX30: 2 | QY30: 2 | QZ30: 2 | RA30: 2 | RB30: 2 | RC30: 2 | RD30: 2 | RE30: 2 | RF30: 2 | RG30: 2 | RH30: 2 | RI30: 2 | RJ30: 2 | RK30: 2 | RL30: 2 | RM30: 2 | RN30: 2 | RO30: 2 | RP30: 2 | RQ30: 2 | RR30: 2 | RS30: 2 | RT30: 2 | RU30: 2 | RV30: 2 | RW30: 2 | RX30: 2 | RY30: 2 | RZ30: 2 | SA30: 2 | SB30: 2 | SC30: 2 | SD30: 2 | SE30: 2 | SF30: 2 | SG30: 2 | SH30: 2 | SI30: 2 | SJ30: 2 | SK30: 2 | SL30: 2 | SM30: 2 | SN30: 2 | SO30: 2
E31: Timeline Label | J31: =INDEX($F$27:$F$29,J30) -> FC/Const. | K31: =INDEX($F$27:$F$29,K30) -> Const | L31: =INDEX($F$27:$F$29,L30) -> Const | M31: =INDEX($F$27:$F$29,M30) -> Const | N31: =INDEX($F$27:$F$29,N30) -> Const | O31: =INDEX($F$27:$F$29,O30) -> Const | P31: =INDEX($F$27:$F$29,P30) -> Const | Q31: =INDEX($F$27:$F$29,Q30) -> Const | R31: =INDEX($F$27:$F$29,R30) -> Const | S31: =INDEX($F$27:$F$29,S30) -> Const | T31: =INDEX($F$27:$F$29,T30) -> Const | U31: =INDEX($F$27:$F$29,U30) -> Const | V31: =INDEX($F$27:$F$29,V30) -> Const | W31: =INDEX($F$27:$F$29,W30) -> Const | X31: =INDEX($F$27:$F$29,X30) -> Const | Y31: =INDEX($F$27:$F$29,Y30) -> Const | Z31: =INDEX($F$27:$F$29,Z30) -> Const | AA31: =INDEX($F$27:$F$29,AA30) -> Const | AB31: =INDEX($F$27:$F$29,AB30) -> Const | AC31: =INDEX($F$27:$F$29,AC30) -> Const | AD31: =INDEX($F$27:$F$29,AD30) -> Const | AE31: =INDEX($F$27:$F$29,AE30) -> Const | AF31: =INDEX($F$27:$F$29,AF30) -> Const | AG31: =INDEX($F$27:$F$29,AG30) -> Const | AH31: =INDEX($F$27:$F$29,AH30) -> Const | AI31: =INDEX($F$27:$F$29,AI30) -> Const | AJ31: =INDEX($F$27:$F$29,AJ30) -> Const | AK31: =INDEX($F$27:$F$29,AK30) -> Const | AL31: =INDEX($F$27:$F$29,AL30) -> Const | AM31: =INDEX($F$27:$F$29,AM30) -> Const | AN31: =INDEX($F$27:$F$29,AN30) -> Const | AO31: =INDEX($F$27:$F$29,AO30) -> Const | AP31: =INDEX($F$27:$F$29,AP30) -> Const | AQ31: =INDEX($F$27:$F$29,AQ30) -> Const | AR31: =INDEX($F$27:$F$29,AR30) -> Const | AS31: =INDEX($F$27:$F$29,AS30) -> Const | AT31: =INDEX($F$27:$F$29,AT30) -> Const | AU31: =INDEX($F$27:$F$29,AU30) -> Const | AV31: =INDEX($F$27:$F$29,AV30) -> Const | AW31: =INDEX($F$27:$F$29,AW30) -> Const | AX31: =INDEX($F$27:$F$29,AX30) -> Const | AY31: =INDEX($F$27:$F$29,AY30) -> Const | AZ31: =INDEX($F$27:$F$29,AZ30) -> Const | BA31: =INDEX($F$27:$F$29,BA30) -> Const | BB31: =INDEX($F$27:$F$29,BB30) -> Const | BC31: =INDEX($F$27:$F$29,BC30) -> Const | BD31: =INDEX($F$27:$F$29,BD30) -> Const | BE31: =INDEX($F$27:$F$29,BE30) -> Const | BF31: =INDEX($F$27:$F$29,BF30) -> Const | BG31: =INDEX($F$27:$F$29,BG30) -> Const | BH31: =INDEX($F$27:$F$29,BH30) -> Const | BI31: =INDEX($F$27:$F$29,BI30) -> Const | BJ31: =INDEX($F$27:$F$29,BJ30) -> Const | BK31: =INDEX($F$27:$F$29,BK30) -> Const | BL31: =INDEX($F$27:$F$29,BL30) -> Const | BM31: =INDEX($F$27:$F$29,BM30) -> Const | BN31: =INDEX($F$27:$F$29,BN30) -> Const | BO31: =INDEX($F$27:$F$29,BO30) -> Const | BP31: =INDEX($F$27:$F$29,BP30) -> Const | BQ31: =INDEX($F$27:$F$29,BQ30) -> Const | BR31: =INDEX($F$27:$F$29,BR30) -> Const | BS31: =INDEX($F$27:$F$29,BS30) -> Const | BT31: =INDEX($F$27:$F$29,BT30) -> Const | BU31: =INDEX($F$27:$F$29,BU30) -> Const | BV31: =INDEX($F$27:$F$29,BV30) -> Const | BW31: =INDEX($F$27:$F$29,BW30) -> Const | BX31: =INDEX($F$27:$F$29,BX30) -> Const | BY31: =INDEX($F$27:$F$29,BY30) -> Const | BZ31: =INDEX($F$27:$F$29,BZ30) -> Const | CA31: =INDEX($F$27:$F$29,CA30) -> Const | CB31: =INDEX($F$27:$F$29,CB30) -> Const | CC31: =INDEX($F$27:$F$29,CC30) -> Const | CD31: =INDEX($F$27:$F$29,CD30) -> Const | CE31: =INDEX($F$27:$F$29,CE30) -> Const | CF31: =INDEX($F$27:$F$29,CF30) -> Const | CG31: =INDEX($F$27:$F$29,CG30) -> Const | CH31: =INDEX($F$27:$F$29,CH30) -> Const | CI31: =INDEX($F$27:$F$29,CI30) -> Const | CJ31: =INDEX($F$27:$F$29,CJ30) -> Const | CK31: =INDEX($F$27:$F$29,CK30) -> Const | CL31: =INDEX($F$27:$F$29,CL30) -> Const | CM31: =INDEX($F$27:$F$29,CM30) -> Const | CN31: =INDEX($F$27:$F$29,CN30) -> Const | CO31: =INDEX($F$27:$F$29,CO30) -> Const | CP31: =INDEX($F$27:$F$29,CP30) -> Const | CQ31: =INDEX($F$27:$F$29,CQ30) -> Const | CR31: =INDEX($F$27:$F$29,CR30) -> Const | CS31: =INDEX($F$27:$F$29,CS30) -> Const | CT31: =INDEX($F$27:$F$29,CT30) -> Const | CU31: =INDEX($F$27:$F$29,CU30) -> Const | CV31: =INDEX($F$27:$F$29,CV30) -> Const | CW31: =INDEX($F$27:$F$29,CW30) -> Const | CX31: =INDEX($F$27:$F$29,CX30) -> Const | CY31: =INDEX($F$27:$F$29,CY30) -> Const | CZ31: =INDEX($F$27:$F$29,CZ30) -> Const | DA31: =INDEX($F$27:$F$29,DA30) -> Const | DB31: =INDEX($F$27:$F$29,DB30) -> Const | DC31: =INDEX($F$27:$F$29,DC30) -> Const | DD31: =INDEX($F$27:$F$29,DD30) -> Const | DE31: =INDEX($F$27:$F$29,DE30) -> Const | DF31: =INDEX($F$27:$F$29,DF30) -> Const | DG31: =INDEX($F$27:$F$29,DG30) -> Const | DH31: =INDEX($F$27:$F$29,DH30) -> Const | DI31: =INDEX($F$27:$F$29,DI30) -> Const | DJ31: =INDEX($F$27:$F$29,DJ30) -> Const | DK31: =INDEX($F$27:$F$29,DK30) -> Const | DL31: =INDEX($F$27:$F$29,DL30) -> Const | DM31: =INDEX($F$27:$F$29,DM30) -> Const | DN31: =INDEX($F$27:$F$29,DN30) -> Const | DO31: =INDEX($F$27:$F$29,DO30) -> Const | DP31: =INDEX($F$27:$F$29,DP30) -> Const | DQ31: =INDEX($F$27:$F$29,DQ30) -> Const | DR31: =INDEX($F$27:$F$29,DR30) -> Const | DS31: =INDEX($F$27:$F$29,DS30) -> Const | DT31: =INDEX($F$27:$F$29,DT30) -> Const | DU31: =INDEX($F$27:$F$29,DU30) -> Const | DV31: =INDEX($F$27:$F$29,DV30) -> Const | DW31: =INDEX($F$27:$F$29,DW30) -> Const | DX31: =INDEX($F$27:$F$29,DX30) -> Const | DY31: =INDEX($F$27:$F$29,DY30) -> Const | DZ31: =INDEX($F$27:$F$29,DZ30) -> Const | EA31: =INDEX($F$27:$F$29,EA30) -> Const | EB31: =INDEX($F$27:$F$29,EB30) -> Const | EC31: =INDEX($F$27:$F$29,EC30) -> Const | ED31: =INDEX($F$27:$F$29,ED30) -> Const | EE31: =INDEX($F$27:$F$29,EE30) -> Const | EF31: =INDEX($F$27:$F$29,EF30) -> Const | EG31: =INDEX($F$27:$F$29,EG30) -> Const | EH31: =INDEX($F$27:$F$29,EH30) -> Const | EI31: =INDEX($F$27:$F$29,EI30) -> Const | EJ31: =INDEX($F$27:$F$29,EJ30) -> Const | EK31: =INDEX($F$27:$F$29,EK30) -> Const | EL31: =INDEX($F$27:$F$29,EL30) -> Const | EM31: =INDEX($F$27:$F$29,EM30) -> Const | EN31: =INDEX($F$27:$F$29,EN30) -> Const | EO31: =INDEX($F$27:$F$29,EO30) -> Const | EP31: =INDEX($F$27:$F$29,EP30) -> Const | EQ31: =INDEX($F$27:$F$29,EQ30) -> Const | ER31: =INDEX($F$27:$F$29,ER30) -> Const | ES31: =INDEX($F$27:$F$29,ES30) -> Const | ET31: =INDEX($F$27:$F$29,ET30) -> Const | EU31: =INDEX($F$27:$F$29,EU30) -> Const | EV31: =INDEX($F$27:$F$29,EV30) -> Const | EW31: =INDEX($F$27:$F$29,EW30) -> Const | EX31: =INDEX($F$27:$F$29,EX30) -> Const | EY31: =INDEX($F$27:$F$29,EY30) -> Const | EZ31: =INDEX($F$27:$F$29,EZ30) -> Const | FA31: =INDEX($F$27:$F$29,FA30) -> Const | FB31: =INDEX($F$27:$F$29,FB30) -> Const | FC31: =INDEX($F$27:$F$29,FC30) -> Const | FD31: =INDEX($F$27:$F$29,FD30) -> Const | FE31: =INDEX($F$27:$F$29,FE30) -> Const | FF31: =INDEX($F$27:$F$29,FF30) -> Const | FG31: =INDEX($F$27:$F$29,FG30) -> Const | FH31: =INDEX($F$27:$F$29,FH30) -> Const | FI31: =INDEX($F$27:$F$29,FI30) -> Const | FJ31: =INDEX($F$27:$F$29,FJ30) -> Const | FK31: =INDEX($F$27:$F$29,FK30) -> Const | FL31: =INDEX($F$27:$F$29,FL30) -> Const | FM31: =INDEX($F$27:$F$29,FM30) -> Const | FN31: =INDEX($F$27:$F$29,FN30) -> Const | FO31: =INDEX($F$27:$F$29,FO30) -> Const | FP31: =INDEX($F$27:$F$29,FP30) -> Const | FQ31: =INDEX($F$27:$F$29,FQ30) -> Const | FR31: =INDEX($F$27:$F$29,FR30) -> Const | FS31: =INDEX($F$27:$F$29,FS30) -> Const | FT31: =INDEX($F$27:$F$29,FT30) -> Const | FU31: =INDEX($F$27:$F$29,FU30) -> Const | FV31: =INDEX($F$27:$F$29,FV30) -> Const | FW31: =INDEX($F$27:$F$29,FW30) -> Const | FX31: =INDEX($F$27:$F$29,FX30) -> Const | FY31: =INDEX($F$27:$F$29,FY30) -> Const | FZ31: =INDEX($F$27:$F$29,FZ30) -> Const | GA31: =INDEX($F$27:$F$29,GA30) -> Const | GB31: =INDEX($F$27:$F$29,GB30) -> Const | GC31: =INDEX($F$27:$F$29,GC30) -> Const | GD31: =INDEX($F$27:$F$29,GD30) -> Const | GE31: =INDEX($F$27:$F$29,GE30) -> Const | GF31: =INDEX($F$27:$F$29,GF30) -> Const | GG31: =INDEX($F$27:$F$29,GG30) -> Const | GH31: =INDEX($F$27:$F$29,GH30) -> Const | GI31: =INDEX($F$27:$F$29,GI30) -> Const | GJ31: =INDEX($F$27:$F$29,GJ30) -> Const | GK31: =INDEX($F$27:$F$29,GK30) -> Const | GL31: =INDEX($F$27:$F$29,GL30) -> Const | GM31: =INDEX($F$27:$F$29,GM30) -> Const | GN31: =INDEX($F$27:$F$29,GN30) -> Const | GO31: =INDEX($F$27:$F$29,GO30) -> Const | GP31: =INDEX($F$27:$F$29,GP30) -> Const | GQ31: =INDEX($F$27:$F$29,GQ30) -> Const | GR31: =INDEX($F$27:$F$29,GR30) -> Const | GS31: =INDEX($F$27:$F$29,GS30) -> Const | GT31: =INDEX($F$27:$F$29,GT30) -> Const | GU31: =INDEX($F$27:$F$29,GU30) -> Const | GV31: =INDEX($F$27:$F$29,GV30) -> Const | GW31: =INDEX($F$27:$F$29,GW30) -> Const | GX31: =INDEX($F$27:$F$29,GX30) -> Const | GY31: =INDEX($F$27:$F$29,GY30) -> Const | GZ31: =INDEX($F$27:$F$29,GZ30) -> Const | HA31: =INDEX($F$27:$F$29,HA30) -> Const | HB31: =INDEX($F$27:$F$29,HB30) -> Const | HC31: =INDEX($F$27:$F$29,HC30) -> Const | HD31: =INDEX($F$27:$F$29,HD30) -> Const | HE31: =INDEX($F$27:$F$29,HE30) -> Const | HF31: =INDEX($F$27:$F$29,HF30) -> Const | HG31: =INDEX($F$27:$F$29,HG30) -> Const | HH31: =INDEX($F$27:$F$29,HH30) -> Const | HI31: =INDEX($F$27:$F$29,HI30) -> Const | HJ31: =INDEX($F$27:$F$29,HJ30) -> Const | HK31: =INDEX($F$27:$F$29,HK30) -> Const | HL31: =INDEX($F$27:$F$29,HL30) -> Const | HM31: =INDEX($F$27:$F$29,HM30) -> Const | HN31: =INDEX($F$27:$F$29,HN30) -> Const | HO31: =INDEX($F$27:$F$29,HO30) -> Const | HP31: =INDEX($F$27:$F$29,HP30) -> Const | HQ31: =INDEX($F$27:$F$29,HQ30) -> Const | HR31: =INDEX($F$27:$F$29,HR30) -> Const | HS31: =INDEX($F$27:$F$29,HS30) -> Const | HT31: =INDEX($F$27:$F$29,HT30) -> Const | HU31: =INDEX($F$27:$F$29,HU30) -> Const | HV31: =INDEX($F$27:$F$29,HV30) -> Const | HW31: =INDEX($F$27:$F$29,HW30) -> Const | HX31: =INDEX($F$27:$F$29,HX30) -> Const | HY31: =INDEX($F$27:$F$29,HY30) -> Const | HZ31: =INDEX($F$27:$F$29,HZ30) -> Const | IA31: =INDEX($F$27:$F$29,IA30) -> Const | IB31: =INDEX($F$27:$F$29,IB30) -> Const | IC31: =INDEX($F$27:$F$29,IC30) -> Const | ID31: =INDEX($F$27:$F$29,ID30) -> Const | IE31: =INDEX($F$27:$F$29,IE30) -> Const | IF31: =INDEX($F$27:$F$29,IF30) -> Const | IG31: =INDEX($F$27:$F$29,IG30) -> Const | IH31: =INDEX($F$27:$F$29,IH30) -> Const | II31: =INDEX($F$27:$F$29,II30) -> Const | IJ31: =INDEX($F$27:$F$29,IJ30) -> Const | IK31: =INDEX($F$27:$F$29,IK30) -> Const | IL31: =INDEX($F$27:$F$29,IL30) -> Const | IM31: =INDEX($F$27:$F$29,IM30) -> Const | IN31: =INDEX($F$27:$F$29,IN30) -> Const | IO31: =INDEX($F$27:$F$29,IO30) -> Const | IP31: =INDEX($F$27:$F$29,IP30) -> Const | IQ31: =INDEX($F$27:$F$29,IQ30) -> Const | IR31: =INDEX($F$27:$F$29,IR30) -> Const | IS31: =INDEX($F$27:$F$29,IS30) -> Const | IT31: =INDEX($F$27:$F$29,IT30) -> Const | IU31: =INDEX($F$27:$F$29,IU30) -> Const | IV31: =INDEX($F$27:$F$29,IV30) -> Const | IW31: =INDEX($F$27:$F$29,IW30) -> Const | IX31: =INDEX($F$27:$F$29,IX30) -> Const | IY31: =INDEX($F$27:$F$29,IY30) -> Const | IZ31: =INDEX($F$27:$F$29,IZ30) -> Const | JA31: =INDEX($F$27:$F$29,JA30) -> Const | JB31: =INDEX($F$27:$F$29,JB30) -> Const | JC31: =INDEX($F$27:$F$29,JC30) -> Const | JD31: =INDEX($F$27:$F$29,JD30) -> Const | JE31: =INDEX($F$27:$F$29,JE30) -> Const | JF31: =INDEX($F$27:$F$29,JF30) -> Const | JG31: =INDEX($F$27:$F$29,JG30) -> Const | JH31: =INDEX($F$27:$F$29,JH30) -> Const | JI31: =INDEX($F$27:$F$29,JI30) -> Const | JJ31: =INDEX($F$27:$F$29,JJ30) -> Const | JK31: =INDEX($F$27:$F$29,JK30) -> Const | JL31: =INDEX($F$27:$F$29,JL30) -> Const | JM31: =INDEX($F$27:$F$29,JM30) -> Const | JN31: =INDEX($F$27:$F$29,JN30) -> Const | JO31: =INDEX($F$27:$F$29,JO30) -> Const | JP31: =INDEX($F$27:$F$29,JP30) -> Const | JQ31: =INDEX($F$27:$F$29,JQ30) -> Const | JR31: =INDEX($F$27:$F$29,JR30) -> Const | JS31: =INDEX($F$27:$F$29,JS30) -> Const | JT31: =INDEX($F$27:$F$29,JT30) -> Const | JU31: =INDEX($F$27:$F$29,JU30) -> Const | JV31: =INDEX($F$27:$F$29,JV30) -> Const | JW31: =INDEX($F$27:$F$29,JW30) -> Const | JX31: =INDEX($F$27:$F$29,JX30) -> Const | JY31: =INDEX($F$27:$F$29,JY30) -> Const | JZ31: =INDEX($F$27:$F$29,JZ30) -> Const | KA31: =INDEX($F$27:$F$29,KA30) -> Const | KB31: =INDEX($F$27:$F$29,KB30) -> Const | KC31: =INDEX($F$27:$F$29,KC30) -> Const | KD31: =INDEX($F$27:$F$29,KD30) -> Const | KE31: =INDEX($F$27:$F$29,KE30) -> Const | KF31: =INDEX($F$27:$F$29,KF30) -> Const | KG31: =INDEX($F$27:$F$29,KG30) -> Const | KH31: =INDEX($F$27:$F$29,KH30) -> Const | KI31: =INDEX($F$27:$F$29,KI30) -> Const | KJ31: =INDEX($F$27:$F$29,KJ30) -> Const | KK31: =INDEX($F$27:$F$29,KK30) -> Const | KL31: =INDEX($F$27:$F$29,KL30) -> Const | KM31: =INDEX($F$27:$F$29,KM30) -> Const | KN31: =INDEX($F$27:$F$29,KN30) -> Const | KO31: =INDEX($F$27:$F$29,KO30) -> Const | KP31: =INDEX($F$27:$F$29,KP30) -> Const | KQ31: =INDEX($F$27:$F$29,KQ30) -> Const | KR31: =INDEX($F$27:$F$29,KR30) -> Const | KS31: =INDEX($F$27:$F$29,KS30) -> Const | KT31: =INDEX($F$27:$F$29,KT30) -> Const | KU31: =INDEX($F$27:$F$29,KU30) -> Const | KV31: =INDEX($F$27:$F$29,KV30) -> Const | KW31: =INDEX($F$27:$F$29,KW30) -> Const | KX31: =INDEX($F$27:$F$29,KX30) -> Const | KY31: =INDEX($F$27:$F$29,KY30) -> Const | KZ31: =INDEX($F$27:$F$29,KZ30) -> Const | LA31: =INDEX($F$27:$F$29,LA30) -> Const | LB31: =INDEX($F$27:$F$29,LB30) -> Const | LC31: =INDEX($F$27:$F$29,LC30) -> Const | LD31: =INDEX($F$27:$F$29,LD30) -> Const | LE31: =INDEX($F$27:$F$29,LE30) -> Const | LF31: =INDEX($F$27:$F$29,LF30) -> Const | LG31: =INDEX($F$27:$F$29,LG30) -> Const | LH31: =INDEX($F$27:$F$29,LH30) -> Const | LI31: =INDEX($F$27:$F$29,LI30) -> Const | LJ31: =INDEX($F$27:$F$29,LJ30) -> Const | LK31: =INDEX($F$27:$F$29,LK30) -> Const | LL31: =INDEX($F$27:$F$29,LL30) -> Const | LM31: =INDEX($F$27:$F$29,LM30) -> Const | LN31: =INDEX($F$27:$F$29,LN30) -> Const | LO31: =INDEX($F$27:$F$29,LO30) -> Const | LP31: =INDEX($F$27:$F$29,LP30) -> Const | LQ31: =INDEX($F$27:$F$29,LQ30) -> Const | LR31: =INDEX($F$27:$F$29,LR30) -> Const | LS31: =INDEX($F$27:$F$29,LS30) -> Const | LT31: =INDEX($F$27:$F$29,LT30) -> Const | LU31: =INDEX($F$27:$F$29,LU30) -> Const | LV31: =INDEX($F$27:$F$29,LV30) -> Const | LW31: =INDEX($F$27:$F$29,LW30) -> Const | LX31: =INDEX($F$27:$F$29,LX30) -> Const | LY31: =INDEX($F$27:$F$29,LY30) -> Const | LZ31: =INDEX($F$27:$F$29,LZ30) -> Const | MA31: =INDEX($F$27:$F$29,MA30) -> Const | MB31: =INDEX($F$27:$F$29,MB30) -> Const | MC31: =INDEX($F$27:$F$29,MC30) -> Const | MD31: =INDEX($F$27:$F$29,MD30) -> Const | ME31: =INDEX($F$27:$F$29,ME30) -> Const | MF31: =INDEX($F$27:$F$29,MF30) -> Const | MG31: =INDEX($F$27:$F$29,MG30) -> Const | MH31: =INDEX($F$27:$F$29,MH30) -> Const | MI31: =INDEX($F$27:$F$29,MI30) -> Const | MJ31: =INDEX($F$27:$F$29,MJ30) -> Const | MK31: =INDEX($F$27:$F$29,MK30) -> Const | ML31: =INDEX($F$27:$F$29,ML30) -> Const | MM31: =INDEX($F$27:$F$29,MM30) -> Const | MN31: =INDEX($F$27:$F$29,MN30) -> Const | MO31: =INDEX($F$27:$F$29,MO30) -> Const | MP31: =INDEX($F$27:$F$29,MP30) -> Const | MQ31: =INDEX($F$27:$F$29,MQ30) -> Const | MR31: =INDEX($F$27:$F$29,MR30) -> Const | MS31: =INDEX($F$27:$F$29,MS30) -> Const | MT31: =INDEX($F$27:$F$29,MT30) -> Const | MU31: =INDEX($F$27:$F$29,MU30) -> Const | MV31: =INDEX($F$27:$F$29,MV30) -> Const | MW31: =INDEX($F$27:$F$29,MW30) -> Const | MX31: =INDEX($F$27:$F$29,MX30) -> Const | MY31: =INDEX($F$27:$F$29,MY30) -> Const | MZ31: =INDEX($F$27:$F$29,MZ30) -> Const | NA31: =INDEX($F$27:$F$29,NA30) -> Const | NB31: =INDEX($F$27:$F$29,NB30) -> Const | NC31: =INDEX($F$27:$F$29,NC30) -> Const | ND31: =INDEX($F$27:$F$29,ND30) -> Const | NE31: =INDEX($F$27:$F$29,NE30) -> Const | NF31: =INDEX($F$27:$F$29,NF30) -> Const | NG31: =INDEX($F$27:$F$29,NG30) -> Const | NH31: =INDEX($F$27:$F$29,NH30) -> Const | NI31: =INDEX($F$27:$F$29,NI30) -> Const | NJ31: =INDEX($F$27:$F$29,NJ30) -> Const | NK31: =INDEX($F$27:$F$29,NK30) -> Const | NL31: =INDEX($F$27:$F$29,NL30) -> Const | NM31: =INDEX($F$27:$F$29,NM30) -> Const | NN31: =INDEX($F$27:$F$29,NN30) -> Const | NO31: =INDEX($F$27:$F$29,NO30) -> Const | NP31: =INDEX($F$27:$F$29,NP30) -> Const | NQ31: =INDEX($F$27:$F$29,NQ30) -> Const | NR31: =INDEX($F$27:$F$29,NR30) -> Const | NS31: =INDEX($F$27:$F$29,NS30) -> Const | NT31: =INDEX($F$27:$F$29,NT30) -> Const | NU31: =INDEX($F$27:$F$29,NU30) -> Const | NV31: =INDEX($F$27:$F$29,NV30) -> Const | NW31: =INDEX($F$27:$F$29,NW30) -> Const | NX31: =INDEX($F$27:$F$29,NX30) -> Const | NY31: =INDEX($F$27:$F$29,NY30) -> Const | NZ31: =INDEX($F$27:$F$29,NZ30) -> Const | OA31: =INDEX($F$27:$F$29,OA30) -> Const | OB31: =INDEX($F$27:$F$29,OB30) -> Const | OC31: =INDEX($F$27:$F$29,OC30) -> Const | OD31: =INDEX($F$27:$F$29,OD30) -> Const | OE31: =INDEX($F$27:$F$29,OE30) -> Const | OF31: =INDEX($F$27:$F$29,OF30) -> Const | OG31: =INDEX($F$27:$F$29,OG30) -> Const | OH31: =INDEX($F$27:$F$29,OH30) -> Const | OI31: =INDEX($F$27:$F$29,OI30) -> Const | OJ31: =INDEX($F$27:$F$29,OJ30) -> Const | OK31: =INDEX($F$27:$F$29,OK30) -> Const | OL31: =INDEX($F$27:$F$29,OL30) -> Const | OM31: =INDEX($F$27:$F$29,OM30) -> Const | ON31: =INDEX($F$27:$F$29,ON30) -> Const | OO31: =INDEX($F$27:$F$29,OO30) -> Const | OP31: =INDEX($F$27:$F$29,OP30) -> Const | OQ31: =INDEX($F$27:$F$29,OQ30) -> Const | OR31: =INDEX($F$27:$F$29,OR30) -> Const | OS31: =INDEX($F$27:$F$29,OS30) -> Const | OT31: =INDEX($F$27:$F$29,OT30) -> Const | OU31: =INDEX($F$27:$F$29,OU30) -> Const | OV31: =INDEX($F$27:$F$29,OV30) -> Const | OW31: =INDEX($F$27:$F$29,OW30) -> Const | OX31: =INDEX($F$27:$F$29,OX30) -> Const | OY31: =INDEX($F$27:$F$29,OY30) -> Const | OZ31: =INDEX($F$27:$F$29,OZ30) -> Const | PA31: =INDEX($F$27:$F$29,PA30) -> Const | PB31: =INDEX($F$27:$F$29,PB30) -> Const | PC31: =INDEX($F$27:$F$29,PC30) -> Const | PD31: =INDEX($F$27:$F$29,PD30) -> Const | PE31: =INDEX($F$27:$F$29,PE30) -> Const | PF31: =INDEX($F$27:$F$29,PF30) -> Const | PG31: =INDEX($F$27:$F$29,PG30) -> Const | PH31: =INDEX($F$27:$F$29,PH30) -> Const | PI31: =INDEX($F$27:$F$29,PI30) -> Const | PJ31: =INDEX($F$27:$F$29,PJ30) -> Const | PK31: =INDEX($F$27:$F$29,PK30) -> Const | PL31: =INDEX($F$27:$F$29,PL30) -> Const | PM31: =INDEX($F$27:$F$29,PM30) -> Const | PN31: =INDEX($F$27:$F$29,PN30) -> Const | PO31: =INDEX($F$27:$F$29,PO30) -> Const | PP31: =INDEX($F$27:$F$29,PP30) -> Const | PQ31: =INDEX($F$27:$F$29,PQ30) -> Const | PR31: =INDEX($F$27:$F$29,PR30) -> Const | PS31: =INDEX($F$27:$F$29,PS30) -> Const | PT31: =INDEX($F$27:$F$29,PT30) -> Const | PU31: =INDEX($F$27:$F$29,PU30) -> Const | PV31: =INDEX($F$27:$F$29,PV30) -> Const | PW31: =INDEX($F$27:$F$29,PW30) -> Const | PX31: =INDEX($F$27:$F$29,PX30) -> Const | PY31: =INDEX($F$27:$F$29,PY30) -> Const | PZ31: =INDEX($F$27:$F$29,PZ30) -> Const | QA31: =INDEX($F$27:$F$29,QA30) -> Const | QB31: =INDEX($F$27:$F$29,QB30) -> Const | QC31: =INDEX($F$27:$F$29,QC30) -> Const | QD31: =INDEX($F$27:$F$29,QD30) -> Const | QE31: =INDEX($F$27:$F$29,QE30) -> Const | QF31: =INDEX($F$27:$F$29,QF30) -> Const | QG31: =INDEX($F$27:$F$29,QG30) -> Const | QH31: =INDEX($F$27:$F$29,QH30) -> Const | QI31: =INDEX($F$27:$F$29,QI30) -> Const | QJ31: =INDEX($F$27:$F$29,QJ30) -> Const | QK31: =INDEX($F$27:$F$29,QK30) -> Const | QL31: =INDEX($F$27:$F$29,QL30) -> Const | QM31: =INDEX($F$27:$F$29,QM30) -> Const | QN31: =INDEX($F$27:$F$29,QN30) -> Const | QO31: =INDEX($F$27:$F$29,QO30) -> Const | QP31: =INDEX($F$27:$F$29,QP30) -> Const | QQ31: =INDEX($F$27:$F$29,QQ30) -> Const | QR31: =INDEX($F$27:$F$29,QR30) -> Const | QS31: =INDEX($F$27:$F$29,QS30) -> Const | QT31: =INDEX($F$27:$F$29,QT30) -> Const | QU31: =INDEX($F$27:$F$29,QU30) -> Const | QV31: =INDEX($F$27:$F$29,QV30) -> Const | QW31: =INDEX($F$27:$F$29,QW30) -> Const | QX31: =INDEX($F$27:$F$29,QX30) -> Const | QY31: =INDEX($F$27:$F$29,QY30) -> Const | QZ31: =INDEX($F$27:$F$29,QZ30) -> Const | RA31: =INDEX($F$27:$F$29,RA30) -> Const | RB31: =INDEX($F$27:$F$29,RB30) -> Const | RC31: =INDEX($F$27:$F$29,RC30) -> Const | RD31: =INDEX($F$27:$F$29,RD30) -> Const | RE31: =INDEX($F$27:$F$29,RE30) -> Const | RF31: =INDEX($F$27:$F$29,RF30) -> Const | RG31: =INDEX($F$27:$F$29,RG30) -> Const | RH31: =INDEX($F$27:$F$29,RH30) -> Const | RI31: =INDEX($F$27:$F$29,RI30) -> Const | RJ31: =INDEX($F$27:$F$29,RJ30) -> Const | RK31: =INDEX($F$27:$F$29,RK30) -> Const | RL31: =INDEX($F$27:$F$29,RL30) -> Const | RM31: =INDEX($F$27:$F$29,RM30) -> Const | RN31: =INDEX($F$27:$F$29,RN30) -> Const | RO31: =INDEX($F$27:$F$29,RO30) -> Const | RP31: =INDEX($F$27:$F$29,RP30) -> Const | RQ31: =INDEX($F$27:$F$29,RQ30) -> Const | RR31: =INDEX($F$27:$F$29,RR30) -> Const | RS31: =INDEX($F$27:$F$29,RS30) -> Const | RT31: =INDEX($F$27:$F$29,RT30) -> Const | RU31: =INDEX($F$27:$F$29,RU30) -> Const | RV31: =INDEX($F$27:$F$29,RV30) -> Const | RW31: =INDEX($F$27:$F$29,RW30) -> Const | RX31: =INDEX($F$27:$F$29,RX30) -> Const | RY31: =INDEX($F$27:$F$29,RY30) -> Const | RZ31: =INDEX($F$27:$F$29,RZ30) -> Const | SA31: =INDEX($F$27:$F$29,SA30) -> Const | SB31: =INDEX($F$27:$F$29,SB30) -> Const | SC31: =INDEX($F$27:$F$29,SC30) -> Const | SD31: =INDEX($F$27:$F$29,SD30) -> Const | SE31: =INDEX($F$27:$F$29,SE30) -> Const | SF31: =INDEX($F$27:$F$29,SF30) -> Const | SG31: =INDEX($F$27:$F$29,SG30) -> Const | SH31: =INDEX($F$27:$F$29,SH30) -> Const | SI31: =INDEX($F$27:$F$29,SI30) -> Const | SJ31: =INDEX($F$27:$F$29,SJ30) -> Const | SK31: =INDEX($F$27:$F$29,SK30) -> Const | SL31: =INDEX($F$27:$F$29,SL30) -> Const | SM31: =INDEX($F$27:$F$29,SM30) -> Const | SN31: =INDEX($F$27:$F$29,SN30) -> Const | SO31: =INDEX($F$27:$F$29,SO30) -> Const
E33: Month Number | G33: Number | J33: =MONTH(J2) -> 1 | K33: 2 | L33: 3 | M33: 4 | N33: 5 | O33: 6 | P33: 7 | Q33: 8 | R33: 9 | S33: 10 | T33: 11 | U33: 12 | V33: 1 | W33: 2 | X33: 3 | Y33: 4 | Z33: 5 | AA33: 6 | AB33: 7 | AC33: 8 | AD33: 9 | AE33: 10 | AF33: 11 | AG33: 12 | AH33: 1 | AI33: 2 | AJ33: 3 | AK33: 4 | AL33: 5 | AM33: 6 | AN33: 7 | AO33: 8 | AP33: 9 | AQ33: 10 | AR33: 11 | AS33: 12 | AT33: 1 | AU33: 2 | AV33: 3 | AW33: 4 | AX33: 5 | AY33: 6 | AZ33: 7 | BA33: 8 | BB33: 9 | BC33: 10 | BD33: 11 | BE33: 12 | BF33: 1 | BG33: 2 | BH33: 3 | BI33: 4 | BJ33: 5 | BK33: 6 | BL33: 7 | BM33: 8 | BN33: 9 | BO33: 10 | BP33: 11 | BQ33: 12 | BR33: 1 | BS33: 2 | BT33: 3 | BU33: 4 | BV33: =MONTH(BV2) -> 5 | BW33: 6 | BX33: 7 | BY33: 8 | BZ33: 9 | CA33: 10 | CB33: 11 | CC33: 12 | CD33: 1 | CE33: 2 | CF33: 3 | CG33: 4 | CH33: 5 | CI33: 6 | CJ33: 7 | CK33: 8 | CL33: 9 | CM33: 10 | CN33: 11 | CO33: 12 | CP33: 1 | CQ33: 2 | CR33: 3 | CS33: 4 | CT33: 5 | CU33: 6 | CV33: 7 | CW33: 8 | CX33: 9 | CY33: 10 | CZ33: 11 | DA33: 12 | DB33: 1 | DC33: 2 | DD33: 3 | DE33: 4 | DF33: 5 | DG33: 6 | DH33: 7 | DI33: 8 | DJ33: 9 | DK33: 10 | DL33: 11 | DM33: 12 | DN33: 1 | DO33: 2 | DP33: 3 | DQ33: 4 | DR33: 5 | DS33: 6 | DT33: 7 | DU33: 8 | DV33: 9 | DW33: 10 | DX33: 11 | DY33: 12 | DZ33: 1 | EA33: 2 | EB33: 3 | EC33: 4 | ED33: 5 | EE33: 6 | EF33: 7 | EG33: 8 | EH33: =MONTH(EH2) -> 9 | EI33: 10 | EJ33: 11 | EK33: 12 | EL33: 1 | EM33: 2 | EN33: 3 | EO33: 4 | EP33: 5 | EQ33: 6 | ER33: 7 | ES33: 8 | ET33: 9 | EU33: 10 | EV33: 11 | EW33: 12 | EX33: 1 | EY33: 2 | EZ33: 3 | FA33: 4 | FB33: 5 | FC33: 6 | FD33: 7 | FE33: 8 | FF33: 9 | FG33: 10 | FH33: 11 | FI33: 12 | FJ33: 1 | FK33: 2 | FL33: 3 | FM33: 4 | FN33: 5 | FO33: 6 | FP33: 7 | FQ33: 8 | FR33: 9 | FS33: 10 | FT33: 11 | FU33: 12 | FV33: 1 | FW33: 2 | FX33: 3 | FY33: 4 | FZ33: 5 | GA33: 6 | GB33: 7 | GC33: 8 | GD33: 9 | GE33: 10 | GF33: 11 | GG33: 12 | GH33: 1 | GI33: 2 | GJ33: 3 | GK33: 4 | GL33: 5 | GM33: 6 | GN33: 7 | GO33: 8 | GP33: 9 | GQ33: 10 | GR33: 11 | GS33: 12 | GT33: =MONTH(GT2) -> 1 | GU33: 2 | GV33: 3 | GW33: 4 | GX33: 5 | GY33: 6 | GZ33: 7 | HA33: 8 | HB33: 9 | HC33: 10 | HD33: 11 | HE33: 12 | HF33: 1 | HG33: 2 | HH33: 3 | HI33: 4 | HJ33: 5 | HK33: 6 | HL33: 7 | HM33: 8 | HN33: 9 | HO33: 10 | HP33: 11 | HQ33: 12 | HR33: 1 | HS33: 2 | HT33: 3 | HU33: 4 | HV33: 5 | HW33: 6 | HX33: 7 | HY33: 8 | HZ33: 9 | IA33: 10 | IB33: 11 | IC33: 12 | ID33: 1 | IE33: 2 | IF33: 3 | IG33: 4 | IH33: 5 | II33: 6 | IJ33: 7 | IK33: 8 | IL33: 9 | IM33: 10 | IN33: 11 | IO33: 12 | IP33: 1 | IQ33: 2 | IR33: 3 | IS33: 4 | IT33: 5 | IU33: 6 | IV33: 7 | IW33: 8 | IX33: 9 | IY33: 10 | IZ33: 11 | JA33: 12 | JB33: 1 | JC33: 2 | JD33: 3 | JE33: 4 | JF33: =MONTH(JF2) -> 5 | JG33: 6 | JH33: 7 | JI33: 8 | JJ33: 9 | JK33: 10 | JL33: 11 | JM33: 12 | JN33: 1 | JO33: 2 | JP33: 3 | JQ33: 4 | JR33: 5 | JS33: 6 | JT33: 7 | JU33: 8 | JV33: 9 | JW33: 10 | JX33: 11 | JY33: 12 | JZ33: 1 | KA33: 2 | KB33: 3 | KC33: 4 | KD33: 5 | KE33: 6 | KF33: 7 | KG33: 8 | KH33: 9 | KI33: 10 | KJ33: 11 | KK33: 12 | KL33: 1 | KM33: 2 | KN33: 3 | KO33: 4 | KP33: 5 | KQ33: 6 | KR33: 7 | KS33: 8 | KT33: 9 | KU33: 10 | KV33: 11 | KW33: 12 | KX33: 1 | KY33: 2 | KZ33: 3 | LA33: 4 | LB33: 5 | LC33: 6 | LD33: 7 | LE33: 8 | LF33: 9 | LG33: 10 | LH33: 11 | LI33: 12 | LJ33: 1 | LK33: 2 | LL33: 3 | LM33: 4 | LN33: 5 | LO33: 6 | LP33: 7 | LQ33: 8 | LR33: =MONTH(LR2) -> 9 | LS33: 10 | LT33: 11 | LU33: 12 | LV33: 1 | LW33: 2 | LX33: 3 | LY33: 4 | LZ33: 5 | MA33: 6 | MB33: 7 | MC33: 8 | MD33: 9 | ME33: 10 | MF33: 11 | MG33: 12 | MH33: 1 | MI33: 2 | MJ33: 3 | MK33: 4 | ML33: 5 | MM33: 6 | MN33: 7 | MO33: 8 | MP33: 9 | MQ33: 10 | MR33: 11 | MS33: 12 | MT33: 1 | MU33: 2 | MV33: 3 | MW33: 4 | MX33: 5 | MY33: 6 | MZ33: 7 | NA33: 8 | NB33: 9 | NC33: 10 | ND33: 11 | NE33: 12 | NF33: 1 | NG33: 2 | NH33: 3 | NI33: 4 | NJ33: 5 | NK33: 6 | NL33: 7 | NM33: 8 | NN33: 9 | NO33: 10 | NP33: 11 | NQ33: 12 | NR33: 1 | NS33: 2 | NT33: 3 | NU33: 4 | NV33: 5 | NW33: 6 | NX33: 7 | NY33: 8 | NZ33: 9 | OA33: 10 | OB33: 11 | OC33: 12 | OD33: 1 | OE33: 2
E35: PPA Period | F35: =InputC!F34 -> 30 | G35: Years
E36: PPA Period | F36: =F35*Months -> 360 | G36: Months
E37: Operation Period Month Counter | J37: =I37+J23 -> 0 | K37: =J37+K23 -> 0 | L37: 0 | M37: 0 | N37: 0 | O37: 0 | P37: 0 | Q37: 0 | R37: 0 | S37: 0 | T37: 0 | U37: 0 | V37: 0 | W37: 0 | X37: 0 | Y37: 0 | Z37: 0 | AA37: 0 | AB37: 0 | AC37: 0 | AD37: 0 | AE37: 0 | AF37: 0 | AG37: 0 | AH37: 0 | AI37: 0 | AJ37: 0 | AK37: 0 | AL37: 0 | AM37: 0 | AN37: 0 | AO37: 0 | AP37: 0 | AQ37: 0 | AR37: 0 | AS37: 0 | AT37: 0 | AU37: 0 | AV37: 0 | AW37: 0 | AX37: 0 | AY37: 0 | AZ37: 0 | BA37: 0 | BB37: 0 | BC37: 0 | BD37: 0 | BE37: 0 | BF37: 0 | BG37: 0 | BH37: 0 | BI37: 0 | BJ37: 0 | BK37: 0 | BL37: 0 | BM37: 0 | BN37: 0 | BO37: 0 | BP37: 0 | BQ37: 0 | BR37: 0 | BS37: 0 | BT37: 0 | BU37: 0 | BV37: 0 | BW37: =BV37+BW23 -> 0 | BX37: 0 | BY37: 0 | BZ37: 0 | CA37: 0 | CB37: 0 | CC37: 0 | CD37: 0 | CE37: 0 | CF37: 0 | CG37: 0 | CH37: 0 | CI37: 0 | CJ37: 0 | CK37: 0 | CL37: 0 | CM37: 0 | CN37: 0 | CO37: 0 | CP37: 0 | CQ37: 0 | CR37: 0 | CS37: 0 | CT37: 0 | CU37: 0 | CV37: 0 | CW37: 0 | CX37: 0 | CY37: 0 | CZ37: 0 | DA37: 0 | DB37: 0 | DC37: 0 | DD37: 0 | DE37: 0 | DF37: 0 | DG37: 0 | DH37: 0 | DI37: 0 | DJ37: 0 | DK37: 0 | DL37: 0 | DM37: 0 | DN37: 0 | DO37: 0 | DP37: 0 | DQ37: 0 | DR37: 0 | DS37: 0 | DT37: 0 | DU37: 0 | DV37: 0 | DW37: 0 | DX37: 0 | DY37: 0 | DZ37: 0 | EA37: 0 | EB37: 0 | EC37: 0 | ED37: 0 | EE37: 0 | EF37: 0 | EG37: 0 | EH37: 0 | EI37: =EH37+EI23 -> 0 | EJ37: 0 | EK37: 0 | EL37: 0 | EM37: 0 | EN37: 0 | EO37: 0 | EP37: 0 | EQ37: 0 | ER37: 0 | ES37: 0 | ET37: 0 | EU37: 0 | EV37: 0 | EW37: 0 | EX37: 0 | EY37: 0 | EZ37: 0 | FA37: 0 | FB37: 0 | FC37: 0 | FD37: 0 | FE37: 0 | FF37: 0 | FG37: 0 | FH37: 0 | FI37: 0 | FJ37: 0 | FK37: 0 | FL37: 0 | FM37: 0 | FN37: 0 | FO37: 0 | FP37: 0 | FQ37: 0 | FR37: 0 | FS37: 0 | FT37: 0 | FU37: 0 | FV37: 0 | FW37: 0 | FX37: 0 | FY37: 0 | FZ37: 0 | GA37: 0 | GB37: 0 | GC37: 0 | GD37: 0 | GE37: 0 | GF37: 0 | GG37: 0 | GH37: 0 | GI37: 0 | GJ37: 0 | GK37: 0 | GL37: 0 | GM37: 0 | GN37: 0 | GO37: 0 | GP37: 0 | GQ37: 0 | GR37: 0 | GS37: 0 | GT37: 0 | GU37: =GT37+GU23 -> 0 | GV37: 0 | GW37: 0 | GX37: 0 | GY37: 0 | GZ37: 0 | HA37: 0 | HB37: 0 | HC37: 0 | HD37: 0 | HE37: 0 | HF37: 0 | HG37: 0 | HH37: 0 | HI37: 0 | HJ37: 0 | HK37: 0 | HL37: 0 | HM37: 0 | HN37: 0 | HO37: 0 | HP37: 0 | HQ37: 0 | HR37: 0 | HS37: 0 | HT37: 0 | HU37: 0 | HV37: 0 | HW37: 0 | HX37: 0 | HY37: 0 | HZ37: 0 | IA37: 0 | IB37: 0 | IC37: 0 | ID37: 0 | IE37: 0 | IF37: 0 | IG37: 0 | IH37: 0 | II37: 0 | IJ37: 0 | IK37: 0 | IL37: 0 | IM37: 0 | IN37: 0 | IO37: 0 | IP37: 0 | IQ37: 0 | IR37: 0 | IS37: 0 | IT37: 0 | IU37: 0 | IV37: 0 | IW37: 0 | IX37: 0 | IY37: 0 | IZ37: 0 | JA37: 0 | JB37: 0 | JC37: 0 | JD37: 0 | JE37: 0 | JF37: 0 | JG37: =JF37+JG23 -> 0 | JH37: 0 | JI37: 0 | JJ37: 0 | JK37: 0 | JL37: 0 | JM37: 0 | JN37: 0 | JO37: 0 | JP37: 0 | JQ37: 0 | JR37: 0 | JS37: 0 | JT37: 0 | JU37: 0 | JV37: 0 | JW37: 0 | JX37: 0 | JY37: 0 | JZ37: 0 | KA37: 0 | KB37: 0 | KC37: 0 | KD37: 0 | KE37: 0 | KF37: 0 | KG37: 0 | KH37: 0 | KI37: 0 | KJ37: 0 | KK37: 0 | KL37: 0 | KM37: 0 | KN37: 0 | KO37: 0 | KP37: 0 | KQ37: 0 | KR37: 0 | KS37: 0 | KT37: 0 | KU37: 0 | KV37: 0 | KW37: 0 | KX37: 0 | KY37: 0 | KZ37: 0 | LA37: 0 | LB37: 0 | LC37: 0 | LD37: 0 | LE37: 0 | LF37: 0 | LG37: 0 | LH37: 0 | LI37: 0 | LJ37: 0 | LK37: 0 | LL37: 0 | LM37: 0 | LN37: 0 | LO37: 0 | LP37: 0 | LQ37: 0 | LR37: 0 | LS37: =LR37+LS23 -> 0 | LT37: 0 | LU37: 0 | LV37: 0 | LW37: 0 | LX37: 0 | LY37: 0 | LZ37: 0 | MA37: 0 | MB37: 0 | MC37: 0 | MD37: 0 | ME37: 0 | MF37: 0 | MG37: 0 | MH37: 0 | MI37: 0 | MJ37: 0 | MK37: 0 | ML37: 0 | MM37: 0 | MN37: 0 | MO37: 0 | MP37: 0 | MQ37: 0 | MR37: 0 | MS37: 0 | MT37: 0 | MU37: 0 | MV37: 0 | MW37: 0 | MX37: 0 | MY37: 0 | MZ37: 0 | NA37: 0 | NB37: 0 | NC37: 0 | ND37: 0 | NE37: 0 | NF37: 0 | NG37: 0 | NH37: 0 | NI37: 0 | NJ37: 0 | NK37: 0 | NL37: 0 | NM37: 0 | NN37: 0 | NO37: 0 | NP37: 0 | NQ37: 0 | NR37: 0 | NS37: 0 | NT37: 0 | NU37: 0 | NV37: 0 | NW37: 0 | NX37: 0 | NY37: 0 | NZ37: 0 | OA37: 0 | OB37: 0 | OC37: 0 | OD37: 0 | OE37: =OD37+OE23 -> 0 | OF37: 0 | OG37: 0 | OH37: 0 | OI37: 0 | OJ37: 0 | OK37: 0 | OL37: 0 | OM37: 0 | ON37: 0 | OO37: 0 | OP37: 0 | OQ37: 0 | OR37: 0 | OS37: 0 | OT37: 0 | OU37: 0 | OV37: 0 | OW37: 0 | OX37: 0 | OY37: 0 | OZ37: 0 | PA37: 0 | PB37: 0 | PC37: 0 | PD37: 0 | PE37: 0 | PF37: 0 | PG37: 0 | PH37: 0 | PI37: 0 | PJ37: 0 | PK37: 0 | PL37: 0 | PM37: 0 | PN37: 0 | PO37: 0 | PP37: 0 | PQ37: 0 | PR37: 0 | PS37: 0 | PT37: 0 | PU37: 0 | PV37: 0 | PW37: 0 | PX37: 0 | PY37: 0 | PZ37: 0 | QA37: 0 | QB37: 0 | QC37: 0 | QD37: 0 | QE37: 0 | QF37: 0 | QG37: 0 | QH37: 0 | QI37: 0 | QJ37: 0 | QK37: 0 | QL37: 0 | QM37: 0 | QN37: 0 | QO37: 0 | QP37: 0 | QQ37: =QP37+QQ23 -> 0 | QR37: 0 | QS37: 0 | QT37: 0 | QU37: 0 | QV37: 0 | QW37: 0 | QX37: 0 | QY37: 0 | QZ37: 0 | RA37: 0 | RB37: 0 | RC37: 0 | RD37: 0 | RE37: 0 | RF37: 0 | RG37: 0 | RH37: 0 | RI37: 0 | RJ37: 0 | RK37: 0 | RL37: 0 | RM37: 0 | RN37: 0 | RO37: 0 | RP37: 0 | RQ37: 0 | RR37: 0 | RS37: 0 | RT37: 0 | RU37: 0 | RV37: 0 | RW37: 0 | RX37: 0 | RY37: 0 | RZ37: 0 | SA37: 0 | SB37: 0 | SC37: 0 | SD37: 0 | SE37: 0 | SF37: 0 | SG37: 0 | SH37: 0 | SI37: 0 | SJ37: 0 | SK37: 0 | SL37: 0 | SM37: 0 | SN37: 0 | SO37: 0
E38: PPA Period Flag | G38: Flag | J38: =AND(J37<=$F$36,J37>0)*1 -> 0 | K38: =AND(K37<=$F$36,K37>0)*1 -> 0 | L38: 0 | M38: 0 | N38: 0 | O38: 0 | P38: 0 | Q38: 0 | R38: 0 | S38: 0 | T38: 0 | U38: 0 | V38: 0 | W38: 0 | X38: 0 | Y38: 0 | Z38: 0 | AA38: 0 | AB38: 0 | AC38: 0 | AD38: 0 | AE38: 0 | AF38: 0 | AG38: 0 | AH38: 0 | AI38: 0 | AJ38: 0 | AK38: 0 | AL38: 0 | AM38: 0 | AN38: 0 | AO38: 0 | AP38: 0 | AQ38: 0 | AR38: 0 | AS38: 0 | AT38: 0 | AU38: 0 | AV38: 0 | AW38: 0 | AX38: 0 | AY38: 0 | AZ38: 0 | BA38: 0 | BB38: 0 | BC38: 0 | BD38: 0 | BE38: 0 | BF38: 0 | BG38: 0 | BH38: 0 | BI38: 0 | BJ38: 0 | BK38: 0 | BL38: 0 | BM38: 0 | BN38: 0 | BO38: 0 | BP38: 0 | BQ38: 0 | BR38: 0 | BS38: 0 | BT38: 0 | BU38: 0 | BV38: 0 | BW38: =AND(BW37<=$F$36,BW37>0)*1 -> 0 | BX38: 0 | BY38: 0 | BZ38: 0 | CA38: 0 | CB38: 0 | CC38: 0 | CD38: 0 | CE38: 0 | CF38: 0 | CG38: 0 | CH38: 0 | CI38: 0 | CJ38: 0 | CK38: 0 | CL38: 0 | CM38: 0 | CN38: 0 | CO38: 0 | CP38: 0 | CQ38: 0 | CR38: 0 | CS38: 0 | CT38: 0 | CU38: 0 | CV38: 0 | CW38: 0 | CX38: 0 | CY38: 0 | CZ38: 0 | DA38: 0 | DB38: 0 | DC38: 0 | DD38: 0 | DE38: 0 | DF38: 0 | DG38: 0 | DH38: 0 | DI38: 0 | DJ38: 0 | DK38: 0 | DL38: 0 | DM38: 0 | DN38: 0 | DO38: 0 | DP38: 0 | DQ38: 0 | DR38: 0 | DS38: 0 | DT38: 0 | DU38: 0 | DV38: 0 | DW38: 0 | DX38: 0 | DY38: 0 | DZ38: 0 | EA38: 0 | EB38: 0 | EC38: 0 | ED38: 0 | EE38: 0 | EF38: 0 | EG38: 0 | EH38: 0 | EI38: =AND(EI37<=$F$36,EI37>0)*1 -> 0 | EJ38: 0 | EK38: 0 | EL38: 0 | EM38: 0 | EN38: 0 | EO38: 0 | EP38: 0 | EQ38: 0 | ER38: 0 | ES38: 0 | ET38: 0 | EU38: 0 | EV38: 0 | EW38: 0 | EX38: 0 | EY38: 0 | EZ38: 0 | FA38: 0 | FB38: 0 | FC38: 0 | FD38: 0 | FE38: 0 | FF38: 0 | FG38: 0 | FH38: 0 | FI38: 0 | FJ38: 0 | FK38: 0 | FL38: 0 | FM38: 0 | FN38: 0 | FO38: 0 | FP38: 0 | FQ38: 0 | FR38: 0 | FS38: 0 | FT38: 0 | FU38: 0 | FV38: 0 | FW38: 0 | FX38: 0 | FY38: 0 | FZ38: 0 | GA38: 0 | GB38: 0 | GC38: 0 | GD38: 0 | GE38: 0 | GF38: 0 | GG38: 0 | GH38: 0 | GI38: 0 | GJ38: 0 | GK38: 0 | GL38: 0 | GM38: 0 | GN38: 0 | GO38: 0 | GP38: 0 | GQ38: 0 | GR38: 0 | GS38: 0 | GT38: 0 | GU38: =AND(GU37<=$F$36,GU37>0)*1 -> 0 | GV38: 0 | GW38: 0 | GX38: 0 | GY38: 0 | GZ38: 0 | HA38: 0 | HB38: 0 | HC38: 0 | HD38: 0 | HE38: 0 | HF38: 0 | HG38: 0 | HH38: 0 | HI38: 0 | HJ38: 0 | HK38: 0 | HL38: 0 | HM38: 0 | HN38: 0 | HO38: 0 | HP38: 0 | HQ38: 0 | HR38: 0 | HS38: 0 | HT38: 0 | HU38: 0 | HV38: 0 | HW38: 0 | HX38: 0 | HY38: 0 | HZ38: 0 | IA38: 0 | IB38: 0 | IC38: 0 | ID38: 0 | IE38: 0 | IF38: 0 | IG38: 0 | IH38: 0 | II38: 0 | IJ38: 0 | IK38: 0 | IL38: 0 | IM38: 0 | IN38: 0 | IO38: 0 | IP38: 0 | IQ38: 0 | IR38: 0 | IS38: 0 | IT38: 0 | IU38: 0 | IV38: 0 | IW38: 0 | IX38: 0 | IY38: 0 | IZ38: 0 | JA38: 0 | JB38: 0 | JC38: 0 | JD38: 0 | JE38: 0 | JF38: 0 | JG38: =AND(JG37<=$F$36,JG37>0)*1 -> 0 | JH38: 0 | JI38: 0 | JJ38: 0 | JK38: 0 | JL38: 0 | JM38: 0 | JN38: 0 | JO38: 0 | JP38: 0 | JQ38: 0 | JR38: 0 | JS38: 0 | JT38: 0 | JU38: 0 | JV38: 0 | JW38: 0 | JX38: 0 | JY38: 0 | JZ38: 0 | KA38: 0 | KB38: 0 | KC38: 0 | KD38: 0 | KE38: 0 | KF38: 0 | KG38: 0 | KH38: 0 | KI38: 0 | KJ38: 0 | KK38: 0 | KL38: 0 | KM38: 0 | KN38: 0 | KO38: 0 | KP38: 0 | KQ38: 0 | KR38: 0 | KS38: 0 | KT38: 0 | KU38: 0 | KV38: 0 | KW38: 0 | KX38: 0 | KY38: 0 | KZ38: 0 | LA38: 0 | LB38: 0 | LC38: 0 | LD38: 0 | LE38: 0 | LF38: 0 | LG38: 0 | LH38: 0 | LI38: 0 | LJ38: 0 | LK38: 0 | LL38: 0 | LM38: 0 | LN38: 0 | LO38: 0 | LP38: 0 | LQ38: 0 | LR38: 0 | LS38: =AND(LS37<=$F$36,LS37>0)*1 -> 0 | LT38: 0 | LU38: 0 | LV38: 0 | LW38: 0 | LX38: 0 | LY38: 0 | LZ38: 0 | MA38: 0 | MB38: 0 | MC38: 0 | MD38: 0 | ME38: 0 | MF38: 0 | MG38: 0 | MH38: 0 | MI38: 0 | MJ38: 0 | MK38: 0 | ML38: 0 | MM38: 0 | MN38: 0 | MO38: 0 | MP38: 0 | MQ38: 0 | MR38: 0 | MS38: 0 | MT38: 0 | MU38: 0 | MV38: 0 | MW38: 0 | MX38: 0 | MY38: 0 | MZ38: 0 | NA38: 0 | NB38: 0 | NC38: 0 | ND38: 0 | NE38: 0 | NF38: 0 | NG38: 0 | NH38: 0 | NI38: 0 | NJ38: 0 | NK38: 0 | NL38: 0 | NM38: 0 | NN38: 0 | NO38: 0 | NP38: 0 | NQ38: 0 | NR38: 0 | NS38: 0 | NT38: 0 | NU38: 0 | NV38: 0 | NW38: 0 | NX38: 0 | NY38: 0 | NZ38: 0 | OA38: 0 | OB38: 0 | OC38: 0 | OD38: 0 | OE38: =AND(OE37<=$F$36,OE37>0)*1 -> 0 | OF38: 0 | OG38: 0 | OH38: 0 | OI38: 0 | OJ38: 0 | OK38: 0 | OL38: 0 | OM38: 0 | ON38: 0 | OO38: 0 | OP38: 0 | OQ38: 0 | OR38: 0 | OS38: 0 | OT38: 0 | OU38: 0 | OV38: 0 | OW38: 0 | OX38: 0 | OY38: 0 | OZ38: 0 | PA38: 0 | PB38: 0 | PC38: 0 | PD38: 0 | PE38: 0 | PF38: 0 | PG38: 0 | PH38: 0 | PI38: 0 | PJ38: 0 | PK38: 0 | PL38: 0 | PM38: 0 | PN38: 0 | PO38: 0 | PP38: 0 | PQ38: 0 | PR38: 0 | PS38: 0 | PT38: 0 | PU38: 0 | PV38: 0 | PW38: 0 | PX38: 0 | PY38: 0 | PZ38: 0 | QA38: 0 | QB38: 0 | QC38: 0 | QD38: 0 | QE38: 0 | QF38: 0 | QG38: 0 | QH38: 0 | QI38: 0 | QJ38: 0 | QK38: 0 | QL38: 0 | QM38: 0 | QN38: 0 | QO38: 0 | QP38: 0 | QQ38: =AND(QQ37<=$F$36,QQ37>0)*1 -> 0 | QR38: 0 | QS38: 0 | QT38: 0 | QU38: 0 | QV38: 0 | QW38: 0 | QX38: 0 | QY38: 0 | QZ38: 0 | RA38: 0 | RB38: 0 | RC38: 0 | RD38: 0 | RE38: 0 | RF38: 0 | RG38: 0 | RH38: 0 | RI38: 0 | RJ38: 0 | RK38: 0 | RL38: 0 | RM38: 0 | RN38: 0 | RO38: 0 | RP38: 0 | RQ38: 0 | RR38: 0 | RS38: 0 | RT38: 0 | RU38: 0 | RV38: 0 | RW38: 0 | RX38: 0 | RY38: 0 | RZ38: 0 | SA38: 0 | SB38: 0 | SC38: 0 | SD38: 0 | SE38: 0 | SF38: 0 | SG38: 0 | SH38: 0 | SI38: 0 | SJ38: 0 | SK38: 0 | SL38: 0 | SM38: 0 | SN38: 0 | SO38: 0
E40: Days in Period | J40: =J3-J2+1 -> 31 | K40: 28 | L40: 31 | M40: 30 | N40: 31 | O40: 30 | P40: 31 | Q40: 31 | R40: 30 | S40: 31 | T40: 30 | U40: 31 | V40: 31 | W40: 29 | X40: 31 | Y40: 30 | Z40: 31 | AA40: 30 | AB40: 31 | AC40: 31 | AD40: 30 | AE40: 31 | AF40: 30 | AG40: 31 | AH40: 31 | AI40: 28 | AJ40: 31 | AK40: 30 | AL40: 31 | AM40: 30 | AN40: 31 | AO40: 31 | AP40: 30 | AQ40: 31 | AR40: 30 | AS40: 31 | AT40: 31 | AU40: 28 | AV40: 31 | AW40: 30 | AX40: 31 | AY40: 30 | AZ40: 31 | BA40: 31 | BB40: 30 | BC40: 31 | BD40: 30 | BE40: 31 | BF40: 31 | BG40: 28 | BH40: 31 | BI40: 30 | BJ40: 31 | BK40: 30 | BL40: 31 | BM40: 31 | BN40: 30 | BO40: 31 | BP40: 30 | BQ40: 31 | BR40: 31 | BS40: 29 | BT40: 31 | BU40: 30 | BV40: =BV3-BV2+1 -> 31 | BW40: 30 | BX40: 31 | BY40: 31 | BZ40: 30 | CA40: 31 | CB40: 30 | CC40: 31 | CD40: 31 | CE40: 28 | CF40: 31 | CG40: 30 | CH40: 31 | CI40: 30 | CJ40: 31 | CK40: 31 | CL40: 30 | CM40: 31 | CN40: 30 | CO40: 31 | CP40: 31 | CQ40: 28 | CR40: 31 | CS40: 30 | CT40: 31 | CU40: 30 | CV40: 31 | CW40: 31 | CX40: 30 | CY40: 31 | CZ40: 30 | DA40: 31 | DB40: 31 | DC40: 28 | DD40: 31 | DE40: 30 | DF40: 31 | DG40: 30 | DH40: 31 | DI40: 31 | DJ40: 30 | DK40: 31 | DL40: 30 | DM40: 31 | DN40: 31 | DO40: 29 | DP40: 31 | DQ40: 30 | DR40: 31 | DS40: 30 | DT40: 31 | DU40: 31 | DV40: 30 | DW40: 31 | DX40: 30 | DY40: 31 | DZ40: 31 | EA40: 28 | EB40: 31 | EC40: 30 | ED40: 31 | EE40: 30 | EF40: 31 | EG40: 31 | EH40: =EH3-EH2+1 -> 30 | EI40: 31 | EJ40: 30 | EK40: 31 | EL40: 31 | EM40: 28 | EN40: 31 | EO40: 30 | EP40: 31 | EQ40: 30 | ER40: 31 | ES40: 31 | ET40: 30 | EU40: 31 | EV40: 30 | EW40: 31 | EX40: 31 | EY40: 28 | EZ40: 31 | FA40: 30 | FB40: 31 | FC40: 30 | FD40: 31 | FE40: 31 | FF40: 30 | FG40: 31 | FH40: 30 | FI40: 31 | FJ40: 31 | FK40: 29 | FL40: 31 | FM40: 30 | FN40: 31 | FO40: 30 | FP40: 31 | FQ40: 31 | FR40: 30 | FS40: 31 | FT40: 30 | FU40: 31 | FV40: 31 | FW40: 28 | FX40: 31 | FY40: 30 | FZ40: 31 | GA40: 30 | GB40: 31 | GC40: 31 | GD40: 30 | GE40: 31 | GF40: 30 | GG40: 31 | GH40: 31 | GI40: 28 | GJ40: 31 | GK40: 30 | GL40: 31 | GM40: 30 | GN40: 31 | GO40: 31 | GP40: 30 | GQ40: 31 | GR40: 30 | GS40: 31 | GT40: =GT3-GT2+1 -> 31 | GU40: 28 | GV40: 31 | GW40: 30 | GX40: 31 | GY40: 30 | GZ40: 31 | HA40: 31 | HB40: 30 | HC40: 31 | HD40: 30 | HE40: 31 | HF40: 31 | HG40: 29 | HH40: 31 | HI40: 30 | HJ40: 31 | HK40: 30 | HL40: 31 | HM40: 31 | HN40: 30 | HO40: 31 | HP40: 30 | HQ40: 31 | HR40: 31 | HS40: 28 | HT40: 31 | HU40: 30 | HV40: 31 | HW40: 30 | HX40: 31 | HY40: 31 | HZ40: 30 | IA40: 31 | IB40: 30 | IC40: 31 | ID40: 31 | IE40: 28 | IF40: 31 | IG40: 30 | IH40: 31 | II40: 30 | IJ40: 31 | IK40: 31 | IL40: 30 | IM40: 31 | IN40: 30 | IO40: 31 | IP40: 31 | IQ40: 28 | IR40: 31 | IS40: 30 | IT40: 31 | IU40: 30 | IV40: 31 | IW40: 31 | IX40: 30 | IY40: 31 | IZ40: 30 | JA40: 31 | JB40: 31 | JC40: 29 | JD40: 31 | JE40: 30 | JF40: =JF3-JF2+1 -> 31 | JG40: 30 | JH40: 31 | JI40: 31 | JJ40: 30 | JK40: 31 | JL40: 30 | JM40: 31 | JN40: 31 | JO40: 28 | JP40: 31 | JQ40: 30 | JR40: 31 | JS40: 30 | JT40: 31 | JU40: 31 | JV40: 30 | JW40: 31 | JX40: 30 | JY40: 31 | JZ40: 31 | KA40: 28 | KB40: 31 | KC40: 30 | KD40: 31 | KE40: 30 | KF40: 31 | KG40: 31 | KH40: 30 | KI40: 31 | KJ40: 30 | KK40: 31 | KL40: 31 | KM40: 28 | KN40: 31 | KO40: 30 | KP40: 31 | KQ40: 30 | KR40: 31 | KS40: 31 | KT40: 30 | KU40: 31 | KV40: 30 | KW40: 31 | KX40: 31 | KY40: 29 | KZ40: 31 | LA40: 30 | LB40: 31 | LC40: 30 | LD40: 31 | LE40: 31 | LF40: 30 | LG40: 31 | LH40: 30 | LI40: 31 | LJ40: 31 | LK40: 28 | LL40: 31 | LM40: 30 | LN40: 31 | LO40: 30 | LP40: 31 | LQ40: 31 | LR40: =LR3-LR2+1 -> 30 | LS40: 31 | LT40: 30 | LU40: 31 | LV40: 31 | LW40: 28 | LX40: 31 | LY40: 30 | LZ40: 31 | MA40: 30 | MB40: 31 | MC40: 31 | MD40: 30 | ME40: 31 | MF40: 30 | MG40: 31 | MH40: 31 | MI40: 28 | MJ40: 31 | MK40: 30 | ML40: 31 | MM40: 30 | MN40: 31 | MO40: 31 | MP40: 30 | MQ40: 31 | MR40: 30 | MS40: 31 | MT40: 31 | MU40: 29 | MV40: 31 | MW40: 30 | MX40: 31 | MY40: 30 | MZ40: 31 | NA40: 31 | NB40: 30 | NC40: 31 | ND40: 30 | NE40: 31 | NF40: 31 | NG40: 28 | NH40: 31 | NI40: 30 | NJ40: 31 | NK40: 30 | NL40: 31 | NM40: 31 | NN40: 30 | NO40: 31 | NP40: 30 | NQ40: 31 | NR40: 31 | NS40: 28 | NT40: 31 | NU40: 30 | NV40: 31 | NW40: 30 | NX40: 31 | NY40: 31 | NZ40: 30 | OA40: 31 | OB40: 30 | OC40: 31 | OD40: =OD3-OD2+1 -> 31 | OE40: 28 | OF40: 31 | OG40: 30 | OH40: 31 | OI40: 30 | OJ40: 31 | OK40: 31 | OL40: 30 | OM40: 31 | ON40: 30 | OO40: 31 | OP40: 31 | OQ40: 29 | OR40: 31 | OS40: 30 | OT40: 31 | OU40: 30 | OV40: 31 | OW40: 31 | OX40: 30 | OY40: 31 | OZ40: 30 | PA40: 31 | PB40: 31 | PC40: 28 | PD40: 31 | PE40: 30 | PF40: 31 | PG40: 30 | PH40: 31 | PI40: 31 | PJ40: 30 | PK40: 31 | PL40: 30 | PM40: 31 | PN40: 31 | PO40: 28 | PP40: 31 | PQ40: 30 | PR40: 31 | PS40: 30 | PT40: 31 | PU40: 31 | PV40: 30 | PW40: 31 | PX40: 30 | PY40: 31 | PZ40: 31 | QA40: 28 | QB40: 31 | QC40: 30 | QD40: 31 | QE40: 30 | QF40: 31 | QG40: 31 | QH40: 30 | QI40: 31 | QJ40: 30 | QK40: 31 | QL40: 31 | QM40: 29 | QN40: 31 | QO40: 30 | QP40: =QP3-QP2+1 -> 31 | QQ40: 30 | QR40: 31 | QS40: 31 | QT40: 30 | QU40: 31 | QV40: 30 | QW40: 31 | QX40: 31 | QY40: 28 | QZ40: 31 | RA40: 30 | RB40: 31 | RC40: 30 | RD40: 31 | RE40: 31 | RF40: 30 | RG40: 31 | RH40: 30 | RI40: 31 | RJ40: 31 | RK40: 28 | RL40: 31 | RM40: 30 | RN40: 31 | RO40: 30 | RP40: 31 | RQ40: 31 | RR40: 30 | RS40: 31 | RT40: 30 | RU40: 31 | RV40: 31 | RW40: 28 | RX40: 31 | RY40: 30 | RZ40: 31 | SA40: 30 | SB40: 31 | SC40: 31 | SD40: 30 | SE40: 31 | SF40: 30 | SG40: 31 | SH40: 31 | SI40: 29 | SJ40: 31 | SK40: 30 | SL40: 31 | SM40: 30 | SN40: 31 | SO40: 31
E42: Inflation Start for Land Lease | F42: =InputC!F46 -> 2023-01-01
E43: Inflation Period for Land Lease | G43: Flag | J43: =(J2>=$F42)*1 -> 1 | K43: 1 | L43: 1 | M43: 1 | N43: 1 | O43: 1 | P43: 1 | Q43: 1 | R43: 1 | S43: 1 | T43: 1 | U43: 1 | V43: 1 | W43: 1 | X43: 1 | Y43: 1 | Z43: 1 | AA43: 1 | AB43: 1 | AC43: 1 | AD43: 1 | AE43: 1 | AF43: 1 | AG43: 1 | AH43: 1 | AI43: 1 | AJ43: 1 | AK43: 1 | AL43: 1 | AM43: 1 | AN43: 1 | AO43: 1 | AP43: 1 | AQ43: 1 | AR43: 1 | AS43: 1 | AT43: 1 | AU43: 1 | AV43: 1 | AW43: 1 | AX43: 1 | AY43: 1 | AZ43: 1 | BA43: 1 | BB43: 1 | BC43: 1 | BD43: 1 | BE43: 1 | BF43: 1 | BG43: 1 | BH43: 1 | BI43: 1 | BJ43: 1 | BK43: 1 | BL43: 1 | BM43: 1 | BN43: 1 | BO43: 1 | BP43: 1 | BQ43: 1 | BR43: 1 | BS43: 1 | BT43: 1 | BU43: 1 | BV43: =(BV2>=$F42)*1 -> 1 | BW43: 1 | BX43: 1 | BY43: 1 | BZ43: 1 | CA43: 1 | CB43: 1 | CC43: 1 | CD43: 1 | CE43: 1 | CF43: 1 | CG43: 1 | CH43: 1 | CI43: 1 | CJ43: 1 | CK43: 1 | CL43: 1 | CM43: 1 | CN43: 1 | CO43: 1 | CP43: 1 | CQ43: 1 | CR43: 1 | CS43: 1 | CT43: 1 | CU43: 1 | CV43: 1 | CW43: 1 | CX43: 1 | CY43: 1 | CZ43: 1 | DA43: 1 | DB43: 1 | DC43: 1 | DD43: 1 | DE43: 1 | DF43: 1 | DG43: 1 | DH43: 1 | DI43: 1 | DJ43: 1 | DK43: 1 | DL43: 1 | DM43: 1 | DN43: 1 | DO43: 1 | DP43: 1 | DQ43: 1 | DR43: 1 | DS43: 1 | DT43: 1 | DU43: 1 | DV43: 1 | DW43: 1 | DX43: 1 | DY43: 1 | DZ43: 1 | EA43: 1 | EB43: 1 | EC43: 1 | ED43: 1 | EE43: 1 | EF43: 1 | EG43: 1 | EH43: =(EH2>=$F42)*1 -> 1 | EI43: 1 | EJ43: 1 | EK43: 1 | EL43: 1 | EM43: 1 | EN43: 1 | EO43: 1 | EP43: 1 | EQ43: 1 | ER43: 1 | ES43: 1 | ET43: 1 | EU43: 1 | EV43: 1 | EW43: 1 | EX43: 1 | EY43: 1 | EZ43: 1 | FA43: 1 | FB43: 1 | FC43: 1 | FD43: 1 | FE43: 1 | FF43: 1 | FG43: 1 | FH43: 1 | FI43: 1 | FJ43: 1 | FK43: 1 | FL43: 1 | FM43: 1 | FN43: 1 | FO43: 1 | FP43: 1 | FQ43: 1 | FR43: 1 | FS43: 1 | FT43: 1 | FU43: 1 | FV43: 1 | FW43: 1 | FX43: 1 | FY43: 1 | FZ43: 1 | GA43: 1 | GB43: 1 | GC43: 1 | GD43: 1 | GE43: 1 | GF43: 1 | GG43: 1 | GH43: 1 | GI43: 1 | GJ43: 1 | GK43: 1 | GL43: 1 | GM43: 1 | GN43: 1 | GO43: 1 | GP43: 1 | GQ43: 1 | GR43: 1 | GS43: 1 | GT43: =(GT2>=$F42)*1 -> 1 | GU43: 1 | GV43: 1 | GW43: 1 | GX43: 1 | GY43: 1 | GZ43: 1 | HA43: 1 | HB43: 1 | HC43: 1 | HD43: 1 | HE43: 1 | HF43: 1 | HG43: 1 | HH43: 1 | HI43: 1 | HJ43: 1 | HK43: 1 | HL43: 1 | HM43: 1 | HN43: 1 | HO43: 1 | HP43: 1 | HQ43: 1 | HR43: 1 | HS43: 1 | HT43: 1 | HU43: 1 | HV43: 1 | HW43: 1 | HX43: 1 | HY43: 1 | HZ43: 1 | IA43: 1 | IB43: 1 | IC43: 1 | ID43: 1 | IE43: 1 | IF43: 1 | IG43: 1 | IH43: 1 | II43: 1 | IJ43: 1 | IK43: 1 | IL43: 1 | IM43: 1 | IN43: 1 | IO43: 1 | IP43: 1 | IQ43: 1 | IR43: 1 | IS43: 1 | IT43: 1 | IU43: 1 | IV43: 1 | IW43: 1 | IX43: 1 | IY43: 1 | IZ43: 1 | JA43: 1 | JB43: 1 | JC43: 1 | JD43: 1 | JE43: 1 | JF43: =(JF2>=$F42)*1 -> 1 | JG43: 1 | JH43: 1 | JI43: 1 | JJ43: 1 | JK43: 1 | JL43: 1 | JM43: 1 | JN43: 1 | JO43: 1 | JP43: 1 | JQ43: 1 | JR43: 1 | JS43: 1 | JT43: 1 | JU43: 1 | JV43: 1 | JW43: 1 | JX43: 1 | JY43: 1 | JZ43: 1 | KA43: 1 | KB43: 1 | KC43: 1 | KD43: 1 | KE43: 1 | KF43: 1 | KG43: 1 | KH43: 1 | KI43: 1 | KJ43: 1 | KK43: 1 | KL43: 1 | KM43: 1 | KN43: 1 | KO43: 1 | KP43: 1 | KQ43: 1 | KR43: 1 | KS43: 1 | KT43: 1 | KU43: 1 | KV43: 1 | KW43: 1 | KX43: 1 | KY43: 1 | KZ43: 1 | LA43: 1 | LB43: 1 | LC43: 1 | LD43: 1 | LE43: 1 | LF43: 1 | LG43: 1 | LH43: 1 | LI43: 1 | LJ43: 1 | LK43: 1 | LL43: 1 | LM43: 1 | LN43: 1 | LO43: 1 | LP43: 1 | LQ43: 1 | LR43: =(LR2>=$F42)*1 -> 1 | LS43: 1 | LT43: 1 | LU43: 1 | LV43: 1 | LW43: 1 | LX43: 1 | LY43: 1 | LZ43: 1 | MA43: 1 | MB43: 1 | MC43: 1 | MD43: 1 | ME43: 1 | MF43: 1 | MG43: 1 | MH43: 1 | MI43: 1 | MJ43: 1 | MK43: 1 | ML43: 1 | MM43: 1 | MN43: 1 | MO43: 1 | MP43: 1 | MQ43: 1 | MR43: 1 | MS43: 1 | MT43: 1 | MU43: 1 | MV43: 1 | MW43: 1 | MX43: 1 | MY43: 1 | MZ43: 1 | NA43: 1 | NB43: 1 | NC43: 1 | ND43: 1 | NE43: 1 | NF43: 1 | NG43: 1 | NH43: 1 | NI43: 1 | NJ43: 1 | NK43: 1 | NL43: 1 | NM43: 1 | NN43: 1 | NO43: 1 | NP43: 1 | NQ43: 1 | NR43: 1 | NS43: 1 | NT43: 1 | NU43: 1 | NV43: 1 | NW43: 1 | NX43: 1 | NY43: 1 | NZ43: 1 | OA43: 1 | OB43: 1 | OC43: 1 | OD43: =(OD2>=$F42)*1 -> 1 | OE43: 1 | OF43: 1 | OG43: 1 | OH43: 1 | OI43: 1 | OJ43: 1 | OK43: 1 | OL43: 1 | OM43: 1 | ON43: 1 | OO43: 1 | OP43: 1 | OQ43: 1 | OR43: 1 | OS43: 1 | OT43: 1 | OU43: 1 | OV43: 1 | OW43: 1 | OX43: 1 | OY43: 1 | OZ43: 1 | PA43: 1 | PB43: 1 | PC43: 1 | PD43: 1 | PE43: 1 | PF43: 1 | PG43: 1 | PH43: 1 | PI43: 1 | PJ43: 1 | PK43: 1 | PL43: 1 | PM43: 1 | PN43: 1 | PO43: 1 | PP43: 1 | PQ43: 1 | PR43: 1 | PS43: 1 | PT43: 1 | PU43: 1 | PV43: 1 | PW43: 1 | PX43: 1 | PY43: 1 | PZ43: 1 | QA43: 1 | QB43: 1 | QC43: 1 | QD43: 1 | QE43: 1 | QF43: 1 | QG43: 1 | QH43: 1 | QI43: 1 | QJ43: 1 | QK43: 1 | QL43: 1 | QM43: 1 | QN43: 1 | QO43: 1 | QP43: =(QP2>=$F42)*1 -> 1 | QQ43: 1 | QR43: 1 | QS43: 1 | QT43: 1 | QU43: 1 | QV43: 1 | QW43: 1 | QX43: 1 | QY43: 1 | QZ43: 1 | RA43: 1 | RB43: 1 | RC43: 1 | RD43: 1 | RE43: 1 | RF43: 1 | RG43: 1 | RH43: 1 | RI43: 1 | RJ43: 1 | RK43: 1 | RL43: 1 | RM43: 1 | RN43: 1 | RO43: 1 | RP43: 1 | RQ43: 1 | RR43: 1 | RS43: 1 | RT43: 1 | RU43: 1 | RV43: 1 | RW43: 1 | RX43: 1 | RY43: 1 | RZ43: 1 | SA43: 1 | SB43: 1 | SC43: 1 | SD43: 1 | SE43: 1 | SF43: 1 | SG43: 1 | SH43: 1 | SI43: 1 | SJ43: 1 | SK43: 1 | SL43: 1 | SM43: 1 | SN43: 1 | SO43: 1
E45: Inflation Start for O&M | F45: =InputC!F49 -> 2025-01-01
E46: Inflation Period for O&M | G46: Flag | J46: =(J2>=$F45)*1 -> 0 | K46: 0 | L46: 0 | M46: 0 | N46: 0 | O46: 0 | P46: 0 | Q46: 0 | R46: 0 | S46: 0 | T46: 0 | U46: 0 | V46: 0 | W46: 0 | X46: 0 | Y46: 0 | Z46: 0 | AA46: 0 | AB46: 0 | AC46: 0 | AD46: 0 | AE46: 0 | AF46: 0 | AG46: 0 | AH46: 1 | AI46: 1 | AJ46: 1 | AK46: 1 | AL46: 1 | AM46: 1 | AN46: 1 | AO46: 1 | AP46: 1 | AQ46: 1 | AR46: 1 | AS46: 1 | AT46: 1 | AU46: 1 | AV46: 1 | AW46: 1 | AX46: 1 | AY46: 1 | AZ46: 1 | BA46: 1 | BB46: 1 | BC46: 1 | BD46: 1 | BE46: 1 | BF46: 1 | BG46: 1 | BH46: 1 | BI46: 1 | BJ46: 1 | BK46: 1 | BL46: 1 | BM46: 1 | BN46: 1 | BO46: 1 | BP46: 1 | BQ46: 1 | BR46: 1 | BS46: 1 | BT46: 1 | BU46: 1 | BV46: =(BV2>=$F45)*1 -> 1 | BW46: 1 | BX46: 1 | BY46: 1 | BZ46: 1 | CA46: 1 | CB46: 1 | CC46: 1 | CD46: 1 | CE46: 1 | CF46: 1 | CG46: 1 | CH46: 1 | CI46: 1 | CJ46: 1 | CK46: 1 | CL46: 1 | CM46: 1 | CN46: 1 | CO46: 1 | CP46: 1 | CQ46: 1 | CR46: 1 | CS46: 1 | CT46: 1 | CU46: 1 | CV46: 1 | CW46: 1 | CX46: 1 | CY46: 1 | CZ46: 1 | DA46: 1 | DB46: 1 | DC46: 1 | DD46: 1 | DE46: 1 | DF46: 1 | DG46: 1 | DH46: 1 | DI46: 1 | DJ46: 1 | DK46: 1 | DL46: 1 | DM46: 1 | DN46: 1 | DO46: 1 | DP46: 1 | DQ46: 1 | DR46: 1 | DS46: 1 | DT46: 1 | DU46: 1 | DV46: 1 | DW46: 1 | DX46: 1 | DY46: 1 | DZ46: 1 | EA46: 1 | EB46: 1 | EC46: 1 | ED46: 1 | EE46: 1 | EF46: 1 | EG46: 1 | EH46: =(EH2>=$F45)*1 -> 1 | EI46: 1 | EJ46: 1 | EK46: 1 | EL46: 1 | EM46: 1 | EN46: 1 | EO46: 1 | EP46: 1 | EQ46: 1 | ER46: 1 | ES46: 1 | ET46: 1 | EU46: 1 | EV46: 1 | EW46: 1 | EX46: 1 | EY46: 1 | EZ46: 1 | FA46: 1 | FB46: 1 | FC46: 1 | FD46: 1 | FE46: 1 | FF46: 1 | FG46: 1 | FH46: 1 | FI46: 1 | FJ46: 1 | FK46: 1 | FL46: 1 | FM46: 1 | FN46: 1 | FO46: 1 | FP46: 1 | FQ46: 1 | FR46: 1 | FS46: 1 | FT46: 1 | FU46: 1 | FV46: 1 | FW46: 1 | FX46: 1 | FY46: 1 | FZ46: 1 | GA46: 1 | GB46: 1 | GC46: 1 | GD46: 1 | GE46: 1 | GF46: 1 | GG46: 1 | GH46: 1 | GI46: 1 | GJ46: 1 | GK46: 1 | GL46: 1 | GM46: 1 | GN46: 1 | GO46: 1 | GP46: 1 | GQ46: 1 | GR46: 1 | GS46: 1 | GT46: =(GT2>=$F45)*1 -> 1 | GU46: 1 | GV46: 1 | GW46: 1 | GX46: 1 | GY46: 1 | GZ46: 1 | HA46: 1 | HB46: 1 | HC46: 1 | HD46: 1 | HE46: 1 | HF46: 1 | HG46: 1 | HH46: 1 | HI46: 1 | HJ46: 1 | HK46: 1 | HL46: 1 | HM46: 1 | HN46: 1 | HO46: 1 | HP46: 1 | HQ46: 1 | HR46: 1 | HS46: 1 | HT46: 1 | HU46: 1 | HV46: 1 | HW46: 1 | HX46: 1 | HY46: 1 | HZ46: 1 | IA46: 1 | IB46: 1 | IC46: 1 | ID46: 1 | IE46: 1 | IF46: 1 | IG46: 1 | IH46: 1 | II46: 1 | IJ46: 1 | IK46: 1 | IL46: 1 | IM46: 1 | IN46: 1 | IO46: 1 | IP46: 1 | IQ46: 1 | IR46: 1 | IS46: 1 | IT46: 1 | IU46: 1 | IV46: 1 | IW46: 1 | IX46: 1 | IY46: 1 | IZ46: 1 | JA46: 1 | JB46: 1 | JC46: 1 | JD46: 1 | JE46: 1 | JF46: =(JF2>=$F45)*1 -> 1 | JG46: 1 | JH46: 1 | JI46: 1 | JJ46: 1 | JK46: 1 | JL46: 1 | JM46: 1 | JN46: 1 | JO46: 1 | JP46: 1 | JQ46: 1 | JR46: 1 | JS46: 1 | JT46: 1 | JU46: 1 | JV46: 1 | JW46: 1 | JX46: 1 | JY46: 1 | JZ46: 1 | KA46: 1 | KB46: 1 | KC46: 1 | KD46: 1 | KE46: 1 | KF46: 1 | KG46: 1 | KH46: 1 | KI46: 1 | KJ46: 1 | KK46: 1 | KL46: 1 | KM46: 1 | KN46: 1 | KO46: 1 | KP46: 1 | KQ46: 1 | KR46: 1 | KS46: 1 | KT46: 1 | KU46: 1 | KV46: 1 | KW46: 1 | KX46: 1 | KY46: 1 | KZ46: 1 | LA46: 1 | LB46: 1 | LC46: 1 | LD46: 1 | LE46: 1 | LF46: 1 | LG46: 1 | LH46: 1 | LI46: 1 | LJ46: 1 | LK46: 1 | LL46: 1 | LM46: 1 | LN46: 1 | LO46: 1 | LP46: 1 | LQ46: 1 | LR46: =(LR2>=$F45)*1 -> 1 | LS46: 1 | LT46: 1 | LU46: 1 | LV46: 1 | LW46: 1 | LX46: 1 | LY46: 1 | LZ46: 1 | MA46: 1 | MB46: 1 | MC46: 1 | MD46: 1 | ME46: 1 | MF46: 1 | MG46: 1 | MH46: 1 | MI46: 1 | MJ46: 1 | MK46: 1 | ML46: 1 | MM46: 1 | MN46: 1 | MO46: 1 | MP46: 1 | MQ46: 1 | MR46: 1 | MS46: 1 | MT46: 1 | MU46: 1 | MV46: 1 | MW46: 1 | MX46: 1 | MY46: 1 | MZ46: 1 | NA46: 1 | NB46: 1 | NC46: 1 | ND46: 1 | NE46: 1 | NF46: 1 | NG46: 1 | NH46: 1 | NI46: 1 | NJ46: 1 | NK46: 1 | NL46: 1 | NM46: 1 | NN46: 1 | NO46: 1 | NP46: 1 | NQ46: 1 | NR46: 1 | NS46: 1 | NT46: 1 | NU46: 1 | NV46: 1 | NW46: 1 | NX46: 1 | NY46: 1 | NZ46: 1 | OA46: 1 | OB46: 1 | OC46: 1 | OD46: =(OD2>=$F45)*1 -> 1 | OE46: 1 | OF46: 1 | OG46: 1 | OH46: 1 | OI46: 1 | OJ46: 1 | OK46: 1 | OL46: 1 | OM46: 1 | ON46: 1 | OO46: 1 | OP46: 1 | OQ46: 1 | OR46: 1 | OS46: 1 | OT46: 1 | OU46: 1 | OV46: 1 | OW46: 1 | OX46: 1 | OY46: 1 | OZ46: 1 | PA46: 1 | PB46: 1 | PC46: 1 | PD46: 1 | PE46: 1 | PF46: 1 | PG46: 1 | PH46: 1 | PI46: 1 | PJ46: 1 | PK46: 1 | PL46: 1 | PM46: 1 | PN46: 1 | PO46: 1 | PP46: 1 | PQ46: 1 | PR46: 1 | PS46: 1 | PT46: 1 | PU46: 1 | PV46: 1 | PW46: 1 | PX46: 1 | PY46: 1 | PZ46: 1 | QA46: 1 | QB46: 1 | QC46: 1 | QD46: 1 | QE46: 1 | QF46: 1 | QG46: 1 | QH46: 1 | QI46: 1 | QJ46: 1 | QK46: 1 | QL46: 1 | QM46: 1 | QN46: 1 | QO46: 1 | QP46: =(QP2>=$F45)*1 -> 1 | QQ46: 1 | QR46: 1 | QS46: 1 | QT46: 1 | QU46: 1 | QV46: 1 | QW46: 1 | QX46: 1 | QY46: 1 | QZ46: 1 | RA46: 1 | RB46: 1 | RC46: 1 | RD46: 1 | RE46: 1 | RF46: 1 | RG46: 1 | RH46: 1 | RI46: 1 | RJ46: 1 | RK46: 1 | RL46: 1 | RM46: 1 | RN46: 1 | RO46: 1 | RP46: 1 | RQ46: 1 | RR46: 1 | RS46: 1 | RT46: 1 | RU46: 1 | RV46: 1 | RW46: 1 | RX46: 1 | RY46: 1 | RZ46: 1 | SA46: 1 | SB46: 1 | SC46: 1 | SD46: 1 | SE46: 1 | SF46: 1 | SG46: 1 | SH46: 1 | SI46: 1 | SJ46: 1 | SK46: 1 | SL46: 1 | SM46: 1 | SN46: 1 | SO46: 1
E48: Initial Period for O&M | F48: =InputC!F53 -> 5 | G48: Years
E49: Initial Period for O&M | F49: =F48*Months -> 60 | G49: Months
E50: Operation Month Counter | J50: =J37 -> 0 | K50: =K37 -> 0 | L50: 0 | M50: 0 | N50: 0 | O50: 0 | P50: 0 | Q50: 0 | R50: 0 | S50: 0 | T50: 0 | U50: 0 | V50: 0 | W50: 0 | X50: 0 | Y50: 0 | Z50: 0 | AA50: 0 | AB50: 0 | AC50: 0 | AD50: 0 | AE50: 0 | AF50: 0 | AG50: 0 | AH50: 0 | AI50: 0 | AJ50: 0 | AK50: 0 | AL50: 0 | AM50: 0 | AN50: 0 | AO50: 0 | AP50: 0 | AQ50: 0 | AR50: 0 | AS50: 0 | AT50: 0 | AU50: 0 | AV50: 0 | AW50: 0 | AX50: 0 | AY50: 0 | AZ50: 0 | BA50: 0 | BB50: 0 | BC50: 0 | BD50: 0 | BE50: 0 | BF50: 0 | BG50: 0 | BH50: 0 | BI50: 0 | BJ50: 0 | BK50: 0 | BL50: 0 | BM50: 0 | BN50: 0 | BO50: 0 | BP50: 0 | BQ50: 0 | BR50: 0 | BS50: 0 | BT50: 0 | BU50: 0 | BV50: 0 | BW50: =BW37 -> 0 | BX50: 0 | BY50: 0 | BZ50: 0 | CA50: 0 | CB50: 0 | CC50: 0 | CD50: 0 | CE50: 0 | CF50: 0 | CG50: 0 | CH50: 0 | CI50: 0 | CJ50: 0 | CK50: 0 | CL50: 0 | CM50: 0 | CN50: 0 | CO50: 0 | CP50: 0 | CQ50: 0 | CR50: 0 | CS50: 0 | CT50: 0 | CU50: 0 | CV50: 0 | CW50: 0 | CX50: 0 | CY50: 0 | CZ50: 0 | DA50: 0 | DB50: 0 | DC50: 0 | DD50: 0 | DE50: 0 | DF50: 0 | DG50: 0 | DH50: 0 | DI50: 0 | DJ50: 0 | DK50: 0 | DL50: 0 | DM50: 0 | DN50: 0 | DO50: 0 | DP50: 0 | DQ50: 0 | DR50: 0 | DS50: 0 | DT50: 0 | DU50: 0 | DV50: 0 | DW50: 0 | DX50: 0 | DY50: 0 | DZ50: 0 | EA50: 0 | EB50: 0 | EC50: 0 | ED50: 0 | EE50: 0 | EF50: 0 | EG50: 0 | EH50: 0 | EI50: =EI37 -> 0 | EJ50: 0 | EK50: 0 | EL50: 0 | EM50: 0 | EN50: 0 | EO50: 0 | EP50: 0 | EQ50: 0 | ER50: 0 | ES50: 0 | ET50: 0 | EU50: 0 | EV50: 0 | EW50: 0 | EX50: 0 | EY50: 0 | EZ50: 0 | FA50: 0 | FB50: 0 | FC50: 0 | FD50: 0 | FE50: 0 | FF50: 0 | FG50: 0 | FH50: 0 | FI50: 0 | FJ50: 0 | FK50: 0 | FL50: 0 | FM50: 0 | FN50: 0 | FO50: 0 | FP50: 0 | FQ50: 0 | FR50: 0 | FS50: 0 | FT50: 0 | FU50: 0 | FV50: 0 | FW50: 0 | FX50: 0 | FY50: 0 | FZ50: 0 | GA50: 0 | GB50: 0 | GC50: 0 | GD50: 0 | GE50: 0 | GF50: 0 | GG50: 0 | GH50: 0 | GI50: 0 | GJ50: 0 | GK50: 0 | GL50: 0 | GM50: 0 | GN50: 0 | GO50: 0 | GP50: 0 | GQ50: 0 | GR50: 0 | GS50: 0 | GT50: 0 | GU50: =GU37 -> 0 | GV50: 0 | GW50: 0 | GX50: 0 | GY50: 0 | GZ50: 0 | HA50: 0 | HB50: 0 | HC50: 0 | HD50: 0 | HE50: 0 | HF50: 0 | HG50: 0 | HH50: 0 | HI50: 0 | HJ50: 0 | HK50: 0 | HL50: 0 | HM50: 0 | HN50: 0 | HO50: 0 | HP50: 0 | HQ50: 0 | HR50: 0 | HS50: 0 | HT50: 0 | HU50: 0 | HV50: 0 | HW50: 0 | HX50: 0 | HY50: 0 | HZ50: 0 | IA50: 0 | IB50: 0 | IC50: 0 | ID50: 0 | IE50: 0 | IF50: 0 | IG50: 0 | IH50: 0 | II50: 0 | IJ50: 0 | IK50: 0 | IL50: 0 | IM50: 0 | IN50: 0 | IO50: 0 | IP50: 0 | IQ50: 0 | IR50: 0 | IS50: 0 | IT50: 0 | IU50: 0 | IV50: 0 | IW50: 0 | IX50: 0 | IY50: 0 | IZ50: 0 | JA50: 0 | JB50: 0 | JC50: 0 | JD50: 0 | JE50: 0 | JF50: 0 | JG50: =JG37 -> 0 | JH50: 0 | JI50: 0 | JJ50: 0 | JK50: 0 | JL50: 0 | JM50: 0 | JN50: 0 | JO50: 0 | JP50: 0 | JQ50: 0 | JR50: 0 | JS50: 0 | JT50: 0 | JU50: 0 | JV50: 0 | JW50: 0 | JX50: 0 | JY50: 0 | JZ50: 0 | KA50: 0 | KB50: 0 | KC50: 0 | KD50: 0 | KE50: 0 | KF50: 0 | KG50: 0 | KH50: 0 | KI50: 0 | KJ50: 0 | KK50: 0 | KL50: 0 | KM50: 0 | KN50: 0 | KO50: 0 | KP50: 0 | KQ50: 0 | KR50: 0 | KS50: 0 | KT50: 0 | KU50: 0 | KV50: 0 | KW50: 0 | KX50: 0 | KY50: 0 | KZ50: 0 | LA50: 0 | LB50: 0 | LC50: 0 | LD50: 0 | LE50: 0 | LF50: 0 | LG50: 0 | LH50: 0 | LI50: 0 | LJ50: 0 | LK50: 0 | LL50: 0 | LM50: 0 | LN50: 0 | LO50: 0 | LP50: 0 | LQ50: 0 | LR50: 0 | LS50: =LS37 -> 0 | LT50: 0 | LU50: 0 | LV50: 0 | LW50: 0 | LX50: 0 | LY50: 0 | LZ50: 0 | MA50: 0 | MB50: 0 | MC50: 0 | MD50: 0 | ME50: 0 | MF50: 0 | MG50: 0 | MH50: 0 | MI50: 0 | MJ50: 0 | MK50: 0 | ML50: 0 | MM50: 0 | MN50: 0 | MO50: 0 | MP50: 0 | MQ50: 0 | MR50: 0 | MS50: 0 | MT50: 0 | MU50: 0 | MV50: 0 | MW50: 0 | MX50: 0 | MY50: 0 | MZ50: 0 | NA50: 0 | NB50: 0 | NC50: 0 | ND50: 0 | NE50: 0 | NF50: 0 | NG50: 0 | NH50: 0 | NI50: 0 | NJ50: 0 | NK50: 0 | NL50: 0 | NM50: 0 | NN50: 0 | NO50: 0 | NP50: 0 | NQ50: 0 | NR50: 0 | NS50: 0 | NT50: 0 | NU50: 0 | NV50: 0 | NW50: 0 | NX50: 0 | NY50: 0 | NZ50: 0 | OA50: 0 | OB50: 0 | OC50: 0 | OD50: 0 | OE50: =OE37 -> 0 | OF50: 0 | OG50: 0 | OH50: 0 | OI50: 0 | OJ50: 0 | OK50: 0 | OL50: 0 | OM50: 0 | ON50: 0 | OO50: 0 | OP50: 0 | OQ50: 0 | OR50: 0 | OS50: 0 | OT50: 0 | OU50: 0 | OV50: 0 | OW50: 0 | OX50: 0 | OY50: 0 | OZ50: 0 | PA50: 0 | PB50: 0 | PC50: 0 | PD50: 0 | PE50: 0 | PF50: 0 | PG50: 0 | PH50: 0 | PI50: 0 | PJ50: 0 | PK50: 0 | PL50: 0 | PM50: 0 | PN50: 0 | PO50: 0 | PP50: 0 | PQ50: 0 | PR50: 0 | PS50: 0 | PT50: 0 | PU50: 0 | PV50: 0 | PW50: 0 | PX50: 0 | PY50: 0 | PZ50: 0 | QA50: 0 | QB50: 0 | QC50: 0 | QD50: 0 | QE50: 0 | QF50: 0 | QG50: 0 | QH50: 0 | QI50: 0 | QJ50: 0 | QK50: 0 | QL50: 0 | QM50: 0 | QN50: 0 | QO50: 0 | QP50: 0 | QQ50: =QQ37 -> 0 | QR50: 0 | QS50: 0 | QT50: 0 | QU50: 0 | QV50: 0 | QW50: 0 | QX50: 0 | QY50: 0 | QZ50: 0 | RA50: 0 | RB50: 0 | RC50: 0 | RD50: 0 | RE50: 0 | RF50: 0 | RG50: 0 | RH50: 0 | RI50: 0 | RJ50: 0 | RK50: 0 | RL50: 0 | RM50: 0 | RN50: 0 | RO50: 0 | RP50: 0 | RQ50: 0 | RR50: 0 | RS50: 0 | RT50: 0 | RU50: 0 | RV50: 0 | RW50: 0 | RX50: 0 | RY50: 0 | RZ50: 0 | SA50: 0 | SB50: 0 | SC50: 0 | SD50: 0 | SE50: 0 | SF50: 0 | SG50: 0 | SH50: 0 | SI50: 0 | SJ50: 0 | SK50: 0 | SL50: 0 | SM50: 0 | SN50: 0 | SO50: 0
E51: Initial Period Flag for O&M | J51: =AND(J50>0,J50<=$F$49)*1 -> 0 | K51: =AND(K50>0,K50<=$F$49)*1 -> 0 | L51: 0 | M51: 0 | N51: 0 | O51: 0 | P51: 0 | Q51: 0 | R51: 0 | S51: 0 | T51: 0 | U51: 0 | V51: 0 | W51: 0 | X51: 0 | Y51: 0 | Z51: 0 | AA51: 0 | AB51: 0 | AC51: 0 | AD51: 0 | AE51: 0 | AF51: 0 | AG51: 0 | AH51: 0 | AI51: 0 | AJ51: 0 | AK51: 0 | AL51: 0 | AM51: 0 | AN51: 0 | AO51: 0 | AP51: 0 | AQ51: 0 | AR51: 0 | AS51: 0 | AT51: 0 | AU51: 0 | AV51: 0 | AW51: 0 | AX51: 0 | AY51: 0 | AZ51: 0 | BA51: 0 | BB51: 0 | BC51: 0 | BD51: 0 | BE51: 0 | BF51: 0 | BG51: 0 | BH51: 0 | BI51: 0 | BJ51: 0 | BK51: 0 | BL51: 0 | BM51: 0 | BN51: 0 | BO51: 0 | BP51: 0 | BQ51: 0 | BR51: 0 | BS51: 0 | BT51: 0 | BU51: 0 | BV51: 0 | BW51: =AND(BW50>0,BW50<=$F$49)*1 -> 0 | BX51: 0 | BY51: 0 | BZ51: 0 | CA51: 0 | CB51: 0 | CC51: 0 | CD51: 0 | CE51: 0 | CF51: 0 | CG51: 0 | CH51: 0 | CI51: 0 | CJ51: 0 | CK51: 0 | CL51: 0 | CM51: 0 | CN51: 0 | CO51: 0 | CP51: 0 | CQ51: 0 | CR51: 0 | CS51: 0 | CT51: 0 | CU51: 0 | CV51: 0 | CW51: 0 | CX51: 0 | CY51: 0 | CZ51: 0 | DA51: 0 | DB51: 0 | DC51: 0 | DD51: 0 | DE51: 0 | DF51: 0 | DG51: 0 | DH51: 0 | DI51: 0 | DJ51: 0 | DK51: 0 | DL51: 0 | DM51: 0 | DN51: 0 | DO51: 0 | DP51: 0 | DQ51: 0 | DR51: 0 | DS51: 0 | DT51: 0 | DU51: 0 | DV51: 0 | DW51: 0 | DX51: 0 | DY51: 0 | DZ51: 0 | EA51: 0 | EB51: 0 | EC51: 0 | ED51: 0 | EE51: 0 | EF51: 0 | EG51: 0 | EH51: 0 | EI51: =AND(EI50>0,EI50<=$F$49)*1 -> 0 | EJ51: 0 | EK51: 0 | EL51: 0 | EM51: 0 | EN51: 0 | EO51: 0 | EP51: 0 | EQ51: 0 | ER51: 0 | ES51: 0 | ET51: 0 | EU51: 0 | EV51: 0 | EW51: 0 | EX51: 0 | EY51: 0 | EZ51: 0 | FA51: 0 | FB51: 0 | FC51: 0 | FD51: 0 | FE51: 0 | FF51: 0 | FG51: 0 | FH51: 0 | FI51: 0 | FJ51: 0 | FK51: 0 | FL51: 0 | FM51: 0 | FN51: 0 | FO51: 0 | FP51: 0 | FQ51: 0 | FR51: 0 | FS51: 0 | FT51: 0 | FU51: 0 | FV51: 0 | FW51: 0 | FX51: 0 | FY51: 0 | FZ51: 0 | GA51: 0 | GB51: 0 | GC51: 0 | GD51: 0 | GE51: 0 | GF51: 0 | GG51: 0 | GH51: 0 | GI51: 0 | GJ51: 0 | GK51: 0 | GL51: 0 | GM51: 0 | GN51: 0 | GO51: 0 | GP51: 0 | GQ51: 0 | GR51: 0 | GS51: 0 | GT51: 0 | GU51: =AND(GU50>0,GU50<=$F$49)*1 -> 0 | GV51: 0 | GW51: 0 | GX51: 0 | GY51: 0 | GZ51: 0 | HA51: 0 | HB51: 0 | HC51: 0 | HD51: 0 | HE51: 0 | HF51: 0 | HG51: 0 | HH51: 0 | HI51: 0 | HJ51: 0 | HK51: 0 | HL51: 0 | HM51: 0 | HN51: 0 | HO51: 0 | HP51: 0 | HQ51: 0 | HR51: 0 | HS51: 0 | HT51: 0 | HU51: 0 | HV51: 0 | HW51: 0 | HX51: 0 | HY51: 0 | HZ51: 0 | IA51: 0 | IB51: 0 | IC51: 0 | ID51: 0 | IE51: 0 | IF51: 0 | IG51: 0 | IH51: 0 | II51: 0 | IJ51: 0 | IK51: 0 | IL51: 0 | IM51: 0 | IN51: 0 | IO51: 0 | IP51: 0 | IQ51: 0 | IR51: 0 | IS51: 0 | IT51: 0 | IU51: 0 | IV51: 0 | IW51: 0 | IX51: 0 | IY51: 0 | IZ51: 0 | JA51: 0 | JB51: 0 | JC51: 0 | JD51: 0 | JE51: 0 | JF51: 0 | JG51: =AND(JG50>0,JG50<=$F$49)*1 -> 0 | JH51: 0 | JI51: 0 | JJ51: 0 | JK51: 0 | JL51: 0 | JM51: 0 | JN51: 0 | JO51: 0 | JP51: 0 | JQ51: 0 | JR51: 0 | JS51: 0 | JT51: 0 | JU51: 0 | JV51: 0 | JW51: 0 | JX51: 0 | JY51: 0 | JZ51: 0 | KA51: 0 | KB51: 0 | KC51: 0 | KD51: 0 | KE51: 0 | KF51: 0 | KG51: 0 | KH51: 0 | KI51: 0 | KJ51: 0 | KK51: 0 | KL51: 0 | KM51: 0 | KN51: 0 | KO51: 0 | KP51: 0 | KQ51: 0 | KR51: 0 | KS51: 0 | KT51: 0 | KU51: 0 | KV51: 0 | KW51: 0 | KX51: 0 | KY51: 0 | KZ51: 0 | LA51: 0 | LB51: 0 | LC51: 0 | LD51: 0 | LE51: 0 | LF51: 0 | LG51: 0 | LH51: 0 | LI51: 0 | LJ51: 0 | LK51: 0 | LL51: 0 | LM51: 0 | LN51: 0 | LO51: 0 | LP51: 0 | LQ51: 0 | LR51: 0 | LS51: =AND(LS50>0,LS50<=$F$49)*1 -> 0 | LT51: 0 | LU51: 0 | LV51: 0 | LW51: 0 | LX51: 0 | LY51: 0 | LZ51: 0 | MA51: 0 | MB51: 0 | MC51: 0 | MD51: 0 | ME51: 0 | MF51: 0 | MG51: 0 | MH51: 0 | MI51: 0 | MJ51: 0 | MK51: 0 | ML51: 0 | MM51: 0 | MN51: 0 | MO51: 0 | MP51: 0 | MQ51: 0 | MR51: 0 | MS51: 0 | MT51: 0 | MU51: 0 | MV51: 0 | MW51: 0 | MX51: 0 | MY51: 0 | MZ51: 0 | NA51: 0 | NB51: 0 | NC51: 0 | ND51: 0 | NE51: 0 | NF51: 0 | NG51: 0 | NH51: 0 | NI51: 0 | NJ51: 0 | NK51: 0 | NL51: 0 | NM51: 0 | NN51: 0 | NO51: 0 | NP51: 0 | NQ51: 0 | NR51: 0 | NS51: 0 | NT51: 0 | NU51: 0 | NV51: 0 | NW51: 0 | NX51: 0 | NY51: 0 | NZ51: 0 | OA51: 0 | OB51: 0 | OC51: 0 | OD51: 0 | OE51: =AND(OE50>0,OE50<=$F$49)*1 -> 0 | OF51: 0 | OG51: 0 | OH51: 0 | OI51: 0 | OJ51: 0 | OK51: 0 | OL51: 0 | OM51: 0 | ON51: 0 | OO51: 0 | OP51: 0 | OQ51: 0 | OR51: 0 | OS51: 0 | OT51: 0 | OU51: 0 | OV51: 0 | OW51: 0 | OX51: 0 | OY51: 0 | OZ51: 0 | PA51: 0 | PB51: 0 | PC51: 0 | PD51: 0 | PE51: 0 | PF51: 0 | PG51: 0 | PH51: 0 | PI51: 0 | PJ51: 0 | PK51: 0 | PL51: 0 | PM51: 0 | PN51: 0 | PO51: 0 | PP51: 0 | PQ51: 0 | PR51: 0 | PS51: 0 | PT51: 0 | PU51: 0 | PV51: 0 | PW51: 0 | PX51: 0 | PY51: 0 | PZ51: 0 | QA51: 0 | QB51: 0 | QC51: 0 | QD51: 0 | QE51: 0 | QF51: 0 | QG51: 0 | QH51: 0 | QI51: 0 | QJ51: 0 | QK51: 0 | QL51: 0 | QM51: 0 | QN51: 0 | QO51: 0 | QP51: 0 | QQ51: =AND(QQ50>0,QQ50<=$F$49)*1 -> 0 | QR51: 0 | QS51: 0 | QT51: 0 | QU51: 0 | QV51: 0 | QW51: 0 | QX51: 0 | QY51: 0 | QZ51: 0 | RA51: 0 | RB51: 0 | RC51: 0 | RD51: 0 | RE51: 0 | RF51: 0 | RG51: 0 | RH51: 0 | RI51: 0 | RJ51: 0 | RK51: 0 | RL51: 0 | RM51: 0 | RN51: 0 | RO51: 0 | RP51: 0 | RQ51: 0 | RR51: 0 | RS51: 0 | RT51: 0 | RU51: 0 | RV51: 0 | RW51: 0 | RX51: 0 | RY51: 0 | RZ51: 0 | SA51: 0 | SB51: 0 | SC51: 0 | SD51: 0 | SE51: 0 | SF51: 0 | SG51: 0 | SH51: 0 | SI51: 0 | SJ51: 0 | SK51: 0 | SL51: 0 | SM51: 0 | SN51: 0 | SO51: 0
E52: Post Initial Period Flag for O&M | J52: =(J50>$F49)*J23 -> 0 | K52: =(K50>$F49)*K23 -> 0 | L52: 0 | M52: 0 | N52: 0 | O52: 0 | P52: 0 | Q52: 0 | R52: 0 | S52: 0 | T52: 0 | U52: 0 | V52: 0 | W52: 0 | X52: 0 | Y52: 0 | Z52: 0 | AA52: 0 | AB52: 0 | AC52: 0 | AD52: 0 | AE52: 0 | AF52: 0 | AG52: 0 | AH52: 0 | AI52: 0 | AJ52: 0 | AK52: 0 | AL52: 0 | AM52: 0 | AN52: 0 | AO52: 0 | AP52: 0 | AQ52: 0 | AR52: 0 | AS52: 0 | AT52: 0 | AU52: 0 | AV52: 0 | AW52: 0 | AX52: 0 | AY52: 0 | AZ52: 0 | BA52: 0 | BB52: 0 | BC52: 0 | BD52: 0 | BE52: 0 | BF52: 0 | BG52: 0 | BH52: 0 | BI52: 0 | BJ52: 0 | BK52: 0 | BL52: 0 | BM52: 0 | BN52: 0 | BO52: 0 | BP52: 0 | BQ52: 0 | BR52: 0 | BS52: 0 | BT52: 0 | BU52: 0 | BV52: 0 | BW52: =(BW50>$F49)*BW23 -> 0 | BX52: 0 | BY52: 0 | BZ52: 0 | CA52: 0 | CB52: 0 | CC52: 0 | CD52: 0 | CE52: 0 | CF52: 0 | CG52: 0 | CH52: 0 | CI52: 0 | CJ52: 0 | CK52: 0 | CL52: 0 | CM52: 0 | CN52: 0 | CO52: 0 | CP52: 0 | CQ52: 0 | CR52: 0 | CS52: 0 | CT52: 0 | CU52: 0 | CV52: 0 | CW52: 0 | CX52: 0 | CY52: 0 | CZ52: 0 | DA52: 0 | DB52: 0 | DC52: 0 | DD52: 0 | DE52: 0 | DF52: 0 | DG52: 0 | DH52: 0 | DI52: 0 | DJ52: 0 | DK52: 0 | DL52: 0 | DM52: 0 | DN52: 0 | DO52: 0 | DP52: 0 | DQ52: 0 | DR52: 0 | DS52: 0 | DT52: 0 | DU52: 0 | DV52: 0 | DW52: 0 | DX52: 0 | DY52: 0 | DZ52: 0 | EA52: 0 | EB52: 0 | EC52: 0 | ED52: 0 | EE52: 0 | EF52: 0 | EG52: 0 | EH52: 0 | EI52: =(EI50>$F49)*EI23 -> 0 | EJ52: 0 | EK52: 0 | EL52: 0 | EM52: 0 | EN52: 0 | EO52: 0 | EP52: 0 | EQ52: 0 | ER52: 0 | ES52: 0 | ET52: 0 | EU52: 0 | EV52: 0 | EW52: 0 | EX52: 0 | EY52: 0 | EZ52: 0 | FA52: 0 | FB52: 0 | FC52: 0 | FD52: 0 | FE52: 0 | FF52: 0 | FG52: 0 | FH52: 0 | FI52: 0 | FJ52: 0 | FK52: 0 | FL52: 0 | FM52: 0 | FN52: 0 | FO52: 0 | FP52: 0 | FQ52: 0 | FR52: 0 | FS52: 0 | FT52: 0 | FU52: 0 | FV52: 0 | FW52: 0 | FX52: 0 | FY52: 0 | FZ52: 0 | GA52: 0 | GB52: 0 | GC52: 0 | GD52: 0 | GE52: 0 | GF52: 0 | GG52: 0 | GH52: 0 | GI52: 0 | GJ52: 0 | GK52: 0 | GL52: 0 | GM52: 0 | GN52: 0 | GO52: 0 | GP52: 0 | GQ52: 0 | GR52: 0 | GS52: 0 | GT52: 0 | GU52: =(GU50>$F49)*GU23 -> 0 | GV52: 0 | GW52: 0 | GX52: 0 | GY52: 0 | GZ52: 0 | HA52: 0 | HB52: 0 | HC52: 0 | HD52: 0 | HE52: 0 | HF52: 0 | HG52: 0 | HH52: 0 | HI52: 0 | HJ52: 0 | HK52: 0 | HL52: 0 | HM52: 0 | HN52: 0 | HO52: 0 | HP52: 0 | HQ52: 0 | HR52: 0 | HS52: 0 | HT52: 0 | HU52: 0 | HV52: 0 | HW52: 0 | HX52: 0 | HY52: 0 | HZ52: 0 | IA52: 0 | IB52: 0 | IC52: 0 | ID52: 0 | IE52: 0 | IF52: 0 | IG52: 0 | IH52: 0 | II52: 0 | IJ52: 0 | IK52: 0 | IL52: 0 | IM52: 0 | IN52: 0 | IO52: 0 | IP52: 0 | IQ52: 0 | IR52: 0 | IS52: 0 | IT52: 0 | IU52: 0 | IV52: 0 | IW52: 0 | IX52: 0 | IY52: 0 | IZ52: 0 | JA52: 0 | JB52: 0 | JC52: 0 | JD52: 0 | JE52: 0 | JF52: 0 | JG52: =(JG50>$F49)*JG23 -> 0 | JH52: 0 | JI52: 0 | JJ52: 0 | JK52: 0 | JL52: 0 | JM52: 0 | JN52: 0 | JO52: 0 | JP52: 0 | JQ52: 0 | JR52: 0 | JS52: 0 | JT52: 0 | JU52: 0 | JV52: 0 | JW52: 0 | JX52: 0 | JY52: 0 | JZ52: 0 | KA52: 0 | KB52: 0 | KC52: 0 | KD52: 0 | KE52: 0 | KF52: 0 | KG52: 0 | KH52: 0 | KI52: 0 | KJ52: 0 | KK52: 0 | KL52: 0 | KM52: 0 | KN52: 0 | KO52: 0 | KP52: 0 | KQ52: 0 | KR52: 0 | KS52: 0 | KT52: 0 | KU52: 0 | KV52: 0 | KW52: 0 | KX52: 0 | KY52: 0 | KZ52: 0 | LA52: 0 | LB52: 0 | LC52: 0 | LD52: 0 | LE52: 0 | LF52: 0 | LG52: 0 | LH52: 0 | LI52: 0 | LJ52: 0 | LK52: 0 | LL52: 0 | LM52: 0 | LN52: 0 | LO52: 0 | LP52: 0 | LQ52: 0 | LR52: 0 | LS52: =(LS50>$F49)*LS23 -> 0 | LT52: 0 | LU52: 0 | LV52: 0 | LW52: 0 | LX52: 0 | LY52: 0 | LZ52: 0 | MA52: 0 | MB52: 0 | MC52: 0 | MD52: 0 | ME52: 0 | MF52: 0 | MG52: 0 | MH52: 0 | MI52: 0 | MJ52: 0 | MK52: 0 | ML52: 0 | MM52: 0 | MN52: 0 | MO52: 0 | MP52: 0 | MQ52: 0 | MR52: 0 | MS52: 0 | MT52: 0 | MU52: 0 | MV52: 0 | MW52: 0 | MX52: 0 | MY52: 0 | MZ52: 0 | NA52: 0 | NB52: 0 | NC52: 0 | ND52: 0 | NE52: 0 | NF52: 0 | NG52: 0 | NH52: 0 | NI52: 0 | NJ52: 0 | NK52: 0 | NL52: 0 | NM52: 0 | NN52: 0 | NO52: 0 | NP52: 0 | NQ52: 0 | NR52: 0 | NS52: 0 | NT52: 0 | NU52: 0 | NV52: 0 | NW52: 0 | NX52: 0 | NY52: 0 | NZ52: 0 | OA52: 0 | OB52: 0 | OC52: 0 | OD52: 0 | OE52: =(OE50>$F49)*OE23 -> 0 | OF52: 0 | OG52: 0 | OH52: 0 | OI52: 0 | OJ52: 0 | OK52: 0 | OL52: 0 | OM52: 0 | ON52: 0 | OO52: 0 | OP52: 0 | OQ52: 0 | OR52: 0 | OS52: 0 | OT52: 0 | OU52: 0 | OV52: 0 | OW52: 0 | OX52: 0 | OY52: 0 | OZ52: 0 | PA52: 0 | PB52: 0 | PC52: 0 | PD52: 0 | PE52: 0 | PF52: 0 | PG52: 0 | PH52: 0 | PI52: 0 | PJ52: 0 | PK52: 0 | PL52: 0 | PM52: 0 | PN52: 0 | PO52: 0 | PP52: 0 | PQ52: 0 | PR52: 0 | PS52: 0 | PT52: 0 | PU52: 0 | PV52: 0 | PW52: 0 | PX52: 0 | PY52: 0 | PZ52: 0 | QA52: 0 | QB52: 0 | QC52: 0 | QD52: 0 | QE52: 0 | QF52: 0 | QG52: 0 | QH52: 0 | QI52: 0 | QJ52: 0 | QK52: 0 | QL52: 0 | QM52: 0 | QN52: 0 | QO52: 0 | QP52: 0 | QQ52: =(QQ50>$F49)*QQ23 -> 0 | QR52: 0 | QS52: 0 | QT52: 0 | QU52: 0 | QV52: 0 | QW52: 0 | QX52: 0 | QY52: 0 | QZ52: 0 | RA52: 0 | RB52: 0 | RC52: 0 | RD52: 0 | RE52: 0 | RF52: 0 | RG52: 0 | RH52: 0 | RI52: 0 | RJ52: 0 | RK52: 0 | RL52: 0 | RM52: 0 | RN52: 0 | RO52: 0 | RP52: 0 | RQ52: 0 | RR52: 0 | RS52: 0 | RT52: 0 | RU52: 0 | RV52: 0 | RW52: 0 | RX52: 0 | RY52: 0 | RZ52: 0 | SA52: 0 | SB52: 0 | SC52: 0 | SD52: 0 | SE52: 0 | SF52: 0 | SG52: 0 | SH52: 0 | SI52: 0 | SJ52: 0 | SK52: 0 | SL52: 0 | SM52: 0 | SN52: 0 | SO52: 0
E54: Developer Bonus Flag | F54: =InputC!F65 -> 2023-01-01 | J54: =(J2=$F54)*1 -> 1 | K54: 0 | L54: 0 | M54: 0 | N54: 0 | O54: 0 | P54: 0 | Q54: 0 | R54: 0 | S54: 0 | T54: 0 | U54: 0 | V54: 0 | W54: 0 | X54: 0 | Y54: 0 | Z54: 0 | AA54: 0 | AB54: 0 | AC54: 0 | AD54: 0 | AE54: 0 | AF54: 0 | AG54: 0 | AH54: 0 | AI54: 0 | AJ54: 0 | AK54: 0 | AL54: 0 | AM54: 0 | AN54: 0 | AO54: 0 | AP54: 0 | AQ54: 0 | AR54: 0 | AS54: 0 | AT54: 0 | AU54: 0 | AV54: 0 | AW54: 0 | AX54: 0 | AY54: 0 | AZ54: 0 | BA54: 0 | BB54: 0 | BC54: 0 | BD54: 0 | BE54: 0 | BF54: 0 | BG54: 0 | BH54: 0 | BI54: 0 | BJ54: 0 | BK54: 0 | BL54: 0 | BM54: 0 | BN54: 0 | BO54: 0 | BP54: 0 | BQ54: 0 | BR54: 0 | BS54: 0 | BT54: 0 | BU54: 0 | BV54: =(BV2=$F54)*1 -> 0 | BW54: 0 | BX54: 0 | BY54: 0 | BZ54: 0 | CA54: 0 | CB54: 0 | CC54: 0 | CD54: 0 | CE54: 0 | CF54: 0 | CG54: 0 | CH54: 0 | CI54: 0 | CJ54: 0 | CK54: 0 | CL54: 0 | CM54: 0 | CN54: 0 | CO54: 0 | CP54: 0 | CQ54: 0 | CR54: 0 | CS54: 0 | CT54: 0 | CU54: 0 | CV54: 0 | CW54: 0 | CX54: 0 | CY54: 0 | CZ54: 0 | DA54: 0 | DB54: 0 | DC54: 0 | DD54: 0 | DE54: 0 | DF54: 0 | DG54: 0 | DH54: 0 | DI54: 0 | DJ54: 0 | DK54: 0 | DL54: 0 | DM54: 0 | DN54: 0 | DO54: 0 | DP54: 0 | DQ54: 0 | DR54: 0 | DS54: 0 | DT54: 0 | DU54: 0 | DV54: 0 | DW54: 0 | DX54: 0 | DY54: 0 | DZ54: 0 | EA54: 0 | EB54: 0 | EC54: 0 | ED54: 0 | EE54: 0 | EF54: 0 | EG54: 0 | EH54: =(EH2=$F54)*1 -> 0 | EI54: 0 | EJ54: 0 | EK54: 0 | EL54: 0 | EM54: 0 | EN54: 0 | EO54: 0 | EP54: 0 | EQ54: 0 | ER54: 0 | ES54: 0 | ET54: 0 | EU54: 0 | EV54: 0 | EW54: 0 | EX54: 0 | EY54: 0 | EZ54: 0 | FA54: 0 | FB54: 0 | FC54: 0 | FD54: 0 | FE54: 0 | FF54: 0 | FG54: 0 | FH54: 0 | FI54: 0 | FJ54: 0 | FK54: 0 | FL54: 0 | FM54: 0 | FN54: 0 | FO54: 0 | FP54: 0 | FQ54: 0 | FR54: 0 | FS54: 0 | FT54: 0 | FU54: 0 | FV54: 0 | FW54: 0 | FX54: 0 | FY54: 0 | FZ54: 0 | GA54: 0 | GB54: 0 | GC54: 0 | GD54: 0 | GE54: 0 | GF54: 0 | GG54: 0 | GH54: 0 | GI54: 0 | GJ54: 0 | GK54: 0 | GL54: 0 | GM54: 0 | GN54: 0 | GO54: 0 | GP54: 0 | GQ54: 0 | GR54: 0 | GS54: 0 | GT54: =(GT2=$F54)*1 -> 0 | GU54: 0 | GV54: 0 | GW54: 0 | GX54: 0 | GY54: 0 | GZ54: 0 | HA54: 0 | HB54: 0 | HC54: 0 | HD54: 0 | HE54: 0 | HF54: 0 | HG54: 0 | HH54: 0 | HI54: 0 | HJ54: 0 | HK54: 0 | HL54: 0 | HM54: 0 | HN54: 0 | HO54: 0 | HP54: 0 | HQ54: 0 | HR54: 0 | HS54: 0 | HT54: 0 | HU54: 0 | HV54: 0 | HW54: 0 | HX54: 0 | HY54: 0 | HZ54: 0 | IA54: 0 | IB54: 0 | IC54: 0 | ID54: 0 | IE54: 0 | IF54: 0 | IG54: 0 | IH54: 0 | II54: 0 | IJ54: 0 | IK54: 0 | IL54: 0 | IM54: 0 | IN54: 0 | IO54: 0 | IP54: 0 | IQ54: 0 | IR54: 0 | IS54: 0 | IT54: 0 | IU54: 0 | IV54: 0 | IW54: 0 | IX54: 0 | IY54: 0 | IZ54: 0 | JA54: 0 | JB54: 0 | JC54: 0 | JD54: 0 | JE54: 0 | JF54: =(JF2=$F54)*1 -> 0 | JG54: 0 | JH54: 0 | JI54: 0 | JJ54: 0 | JK54: 0 | JL54: 0 | JM54: 0 | JN54: 0 | JO54: 0 | JP54: 0 | JQ54: 0 | JR54: 0 | JS54: 0 | JT54: 0 | JU54: 0 | JV54: 0 | JW54: 0 | JX54: 0 | JY54: 0 | JZ54: 0 | KA54: 0 | KB54: 0 | KC54: 0 | KD54: 0 | KE54: 0 | KF54: 0 | KG54: 0 | KH54: 0 | KI54: 0 | KJ54: 0 | KK54: 0 | KL54: 0 | KM54: 0 | KN54: 0 | KO54: 0 | KP54: 0 | KQ54: 0 | KR54: 0 | KS54: 0 | KT54: 0 | KU54: 0 | KV54: 0 | KW54: 0 | KX54: 0 | KY54: 0 | KZ54: 0 | LA54: 0 | LB54: 0 | LC54: 0 | LD54: 0 | LE54: 0 | LF54: 0 | LG54: 0 | LH54: 0 | LI54: 0 | LJ54: 0 | LK54: 0 | LL54: 0 | LM54: 0 | LN54: 0 | LO54: 0 | LP54: 0 | LQ54: 0 | LR54: =(LR2=$F54)*1 -> 0 | LS54: 0 | LT54: 0 | LU54: 0 | LV54: 0 | LW54: 0 | LX54: 0 | LY54: 0 | LZ54: 0 | MA54: 0 | MB54: 0 | MC54: 0 | MD54: 0 | ME54: 0 | MF54: 0 | MG54: 0 | MH54: 0 | MI54: 0 | MJ54: 0 | MK54: 0 | ML54: 0 | MM54: 0 | MN54: 0 | MO54: 0 | MP54: 0 | MQ54: 0 | MR54: 0 | MS54: 0 | MT54: 0 | MU54: 0 | MV54: 0 | MW54: 0 | MX54: 0 | MY54: 0 | MZ54: 0 | NA54: 0 | NB54: 0 | NC54: 0 | ND54: 0 | NE54: 0 | NF54: 0 | NG54: 0 | NH54: 0 | NI54: 0 | NJ54: 0 | NK54: 0 | NL54: 0 | NM54: 0 | NN54: 0 | NO54: 0 | NP54: 0 | NQ54: 0 | NR54: 0 | NS54: 0 | NT54: 0 | NU54: 0 | NV54: 0 | NW54: 0 | NX54: 0 | NY54: 0 | NZ54: 0 | OA54: 0 | OB54: 0 | OC54: 0 | OD54: =(OD2=$F54)*1 -> 0 | OE54: 0 | OF54: 0 | OG54: 0 | OH54: 0 | OI54: 0 | OJ54: 0 | OK54: 0 | OL54: 0 | OM54: 0 | ON54: 0 | OO54: 0 | OP54: 0 | OQ54: 0 | OR54: 0 | OS54: 0 | OT54: 0 | OU54: 0 | OV54: 0 | OW54: 0 | OX54: 0 | OY54: 0 | OZ54: 0 | PA54: 0 | PB54: 0 | PC54: 0 | PD54: 0 | PE54: 0 | PF54: 0 | PG54: 0 | PH54: 0 | PI54: 0 | PJ54: 0 | PK54: 0 | PL54: 0 | PM54: 0 | PN54: 0 | PO54: 0 | PP54: 0 | PQ54: 0 | PR54: 0 | PS54: 0 | PT54: 0 | PU54: 0 | PV54: 0 | PW54: 0 | PX54: 0 | PY54: 0 | PZ54: 0 | QA54: 0 | QB54: 0 | QC54: 0 | QD54: 0 | QE54: 0 | QF54: 0 | QG54: 0 | QH54: 0 | QI54: 0 | QJ54: 0 | QK54: 0 | QL54: 0 | QM54: 0 | QN54: 0 | QO54: 0 | QP54: =(QP2=$F54)*1 -> 0 | QQ54: 0 | QR54: 0 | QS54: 0 | QT54: 0 | QU54: 0 | QV54: 0 | QW54: 0 | QX54: 0 | QY54: 0 | QZ54: 0 | RA54: 0 | RB54: 0 | RC54: 0 | RD54: 0 | RE54: 0 | RF54: 0 | RG54: 0 | RH54: 0 | RI54: 0 | RJ54: 0 | RK54: 0 | RL54: 0 | RM54: 0 | RN54: 0 | RO54: 0 | RP54: 0 | RQ54: 0 | RR54: 0 | RS54: 0 | RT54: 0 | RU54: 0 | RV54: 0 | RW54: 0 | RX54: 0 | RY54: 0 | RZ54: 0 | SA54: 0 | SB54: 0 | SC54: 0 | SD54: 0 | SE54: 0 | SF54: 0 | SG54: 0 | SH54: 0 | SI54: 0 | SJ54: 0 | SK54: 0 | SL54: 0 | SM54: 0 | SN54: 0 | SO54: 0
E57: Model Counter | J57: =J7 -> 1 | K57: 2 | L57: 3 | M57: 4 | N57: 5 | O57: 6 | P57: 7 | Q57: 8 | R57: 9 | S57: 10 | T57: 11 | U57: 12 | V57: 13 | W57: 14 | X57: 15 | Y57: 16 | Z57: 17 | AA57: 18 | AB57: 19 | AC57: 20 | AD57: 21 | AE57: 22 | AF57: 23 | AG57: 24 | AH57: 25 | AI57: 26 | AJ57: 27 | AK57: 28 | AL57: 29 | AM57: 30 | AN57: 31 | AO57: 32 | AP57: 33 | AQ57: 34 | AR57: 35 | AS57: 36 | AT57: 37 | AU57: 38 | AV57: 39 | AW57: 40 | AX57: 41 | AY57: 42 | AZ57: 43 | BA57: 44 | BB57: 45 | BC57: 46 | BD57: 47 | BE57: 48 | BF57: 49 | BG57: 50 | BH57: 51 | BI57: 52 | BJ57: 53 | BK57: 54 | BL57: 55 | BM57: 56 | BN57: 57 | BO57: 58 | BP57: 59 | BQ57: 60 | BR57: 61 | BS57: 62 | BT57: 63 | BU57: 64 | BV57: =BV7 -> 65 | BW57: 66 | BX57: 67 | BY57: 68 | BZ57: 69 | CA57: 70 | CB57: 71 | CC57: 72 | CD57: 73 | CE57: 74 | CF57: 75 | CG57: 76 | CH57: 77 | CI57: 78 | CJ57: 79 | CK57: 80 | CL57: 81 | CM57: 82 | CN57: 83 | CO57: 84 | CP57: 85 | CQ57: 86 | CR57: 87 | CS57: 88 | CT57: 89 | CU57: 90 | CV57: 91 | CW57: 92 | CX57: 93 | CY57: 94 | CZ57: 95 | DA57: 96 | DB57: 97 | DC57: 98 | DD57: 99 | DE57: 100 | DF57: 101 | DG57: 102 | DH57: 103 | DI57: 104 | DJ57: 105 | DK57: 106 | DL57: 107 | DM57: 108 | DN57: 109 | DO57: 110 | DP57: 111 | DQ57: 112 | DR57: 113 | DS57: 114 | DT57: 115 | DU57: 116 | DV57: 117 | DW57: 118 | DX57: 119 | DY57: 120 | DZ57: 121 | EA57: 122 | EB57: 123 | EC57: 124 | ED57: 125 | EE57: 126 | EF57: 127 | EG57: 128 | EH57: =EH7 -> 129 | EI57: 130 | EJ57: 131 | EK57: 132 | EL57: 133 | EM57: 134 | EN57: 135 | EO57: 136 | EP57: 137 | EQ57: 138 | ER57: 139 | ES57: 140 | ET57: 141 | EU57: 142 | EV57: 143 | EW57: 144 | EX57: 145 | EY57: 146 | EZ57: 147 | FA57: 148 | FB57: 149 | FC57: 150 | FD57: 151 | FE57: 152 | FF57: 153 | FG57: 154 | FH57: 155 | FI57: 156 | FJ57: 157 | FK57: 158 | FL57: 159 | FM57: 160 | FN57: 161 | FO57: 162 | FP57: 163 | FQ57: 164 | FR57: 165 | FS57: 166 | FT57: 167 | FU57: 168 | FV57: 169 | FW57: 170 | FX57: 171 | FY57: 172 | FZ57: 173 | GA57: 174 | GB57: 175 | GC57: 176 | GD57: 177 | GE57: 178 | GF57: 179 | GG57: 180 | GH57: 181 | GI57: 182 | GJ57: 183 | GK57: 184 | GL57: 185 | GM57: 186 | GN57: 187 | GO57: 188 | GP57: 189 | GQ57: 190 | GR57: 191 | GS57: 192 | GT57: =GT7 -> 193 | GU57: 194 | GV57: 195 | GW57: 196 | GX57: 197 | GY57: 198 | GZ57: 199 | HA57: 200 | HB57: 201 | HC57: 202 | HD57: 203 | HE57: 204 | HF57: 205 | HG57: 206 | HH57: 207 | HI57: 208 | HJ57: 209 | HK57: 210 | HL57: 211 | HM57: 212 | HN57: 213 | HO57: 214 | HP57: 215 | HQ57: 216 | HR57: 217 | HS57: 218 | HT57: 219 | HU57: 220 | HV57: 221 | HW57: 222 | HX57: 223 | HY57: 224 | HZ57: 225 | IA57: 226 | IB57: 227 | IC57: 228 | ID57: 229 | IE57: 230 | IF57: 231 | IG57: 232 | IH57: 233 | II57: 234 | IJ57: 235 | IK57: 236 | IL57: 237 | IM57: 238 | IN57: 239 | IO57: 240 | IP57: 241 | IQ57: 242 | IR57: 243 | IS57: 244 | IT57: 245 | IU57: 246 | IV57: 247 | IW57: 248 | IX57: 249 | IY57: 250 | IZ57: 251 | JA57: 252 | JB57: 253 | JC57: 254 | JD57: 255 | JE57: 256 | JF57: =JF7 -> 257 | JG57: 258 | JH57: 259 | JI57: 260 | JJ57: 261 | JK57: 262 | JL57: 263 | JM57: 264 | JN57: 265 | JO57: 266 | JP57: 267 | JQ57: 268 | JR57: 269 | JS57: 270 | JT57: 271 | JU57: 272 | JV57: 273 | JW57: 274 | JX57: 275 | JY57: 276 | JZ57: 277 | KA57: 278 | KB57: 279 | KC57: 280 | KD57: 281 | KE57: 282 | KF57: 283 | KG57: 284 | KH57: 285 | KI57: 286 | KJ57: 287 | KK57: 288 | KL57: 289 | KM57: 290 | KN57: 291 | KO57: 292 | KP57: 293 | KQ57: 294 | KR57: 295 | KS57: 296 | KT57: 297 | KU57: 298 | KV57: 299 | KW57: 300 | KX57: 301 | KY57: 302 | KZ57: 303 | LA57: 304 | LB57: 305 | LC57: 306 | LD57: 307 | LE57: 308 | LF57: 309 | LG57: 310 | LH57: 311 | LI57: 312 | LJ57: 313 | LK57: 314 | LL57: 315 | LM57: 316 | LN57: 317 | LO57: 318 | LP57: 319 | LQ57: 320 | LR57: =LR7 -> 321 | LS57: 322 | LT57: 323 | LU57: 324 | LV57: 325 | LW57: 326 | LX57: 327 | LY57: 328 | LZ57: 329 | MA57: 330 | MB57: 331 | MC57: 332 | MD57: 333 | ME57: 334 | MF57: 335 | MG57: 336 | MH57: 337 | MI57: 338 | MJ57: 339 | MK57: 340 | ML57: 341 | MM57: 342 | MN57: 343 | MO57: 344 | MP57: 345 | MQ57: 346 | MR57: 347 | MS57: 348 | MT57: 349 | MU57: 350 | MV57: 351 | MW57: 352 | MX57: 353 | MY57: 354 | MZ57: 355 | NA57: 356 | NB57: 357 | NC57: 358 | ND57: 359 | NE57: 360 | NF57: 361 | NG57: 362 | NH57: 363 | NI57: 364 | NJ57: 365 | NK57: 366 | NL57: 367 | NM57: 368 | NN57: 369 | NO57: 370 | NP57: 371 | NQ57: 372 | NR57: 373 | NS57: 374 | NT57: 375 | NU57: 376 | NV57: 377 | NW57: 378 | NX57: 379 | NY57: 380 | NZ57: 381 | OA57: 382 | OB57: 383 | OC57: 384 | OD57: =OD7 -> 385 | OE57: 386 | OF57: 387 | OG57: 388 | OH57: 389 | OI57: 390 | OJ57: 391 | OK57: 392 | OL57: 393 | OM57: 394 | ON57: 395 | OO57: 396 | OP57: 397 | OQ57: 398 | OR57: 399 | OS57: 400 | OT57: 401 | OU57: 402 | OV57: 403 | OW57: 404 | OX57: 405 | OY57: 406 | OZ57: 407 | PA57: 408 | PB57: 409 | PC57: 410 | PD57: 411 | PE57: 412 | PF57: 413 | PG57: 414 | PH57: 415 | PI57: 416 | PJ57: 417 | PK57: 418 | PL57: 419 | PM57: 420 | PN57: 421 | PO57: 422 | PP57: 423 | PQ57: 424 | PR57: 425 | PS57: 426 | PT57: 427 | PU57: 428 | PV57: 429 | PW57: 430 | PX57: 431 | PY57: 432 | PZ57: 433 | QA57: 434 | QB57: 435 | QC57: 436 | QD57: 437 | QE57: 438 | QF57: 439 | QG57: 440 | QH57: 441 | QI57: 442 | QJ57: 443 | QK57: 444 | QL57: 445 | QM57: 446 | QN57: 447 | QO57: 448 | QP57: =QP7 -> 449 | QQ57: 450 | QR57: 451 | QS57: 452 | QT57: 453 | QU57: 454 | QV57: 455 | QW57: 456 | QX57: 457 | QY57: 458 | QZ57: 459 | RA57: 460 | RB57: 461 | RC57: 462 | RD57: 463 | RE57: 464 | RF57: 465 | RG57: 466 | RH57: 467 | RI57: 468 | RJ57: 469 | RK57: 470 | RL57: 471 | RM57: 472 | RN57: 473 | RO57: 474 | RP57: 475 | RQ57: 476 | RR57: 477 | RS57: 478 | RT57: 479 | RU57: 480 | RV57: 481 | RW57: 482 | RX57: 483 | RY57: 484 | RZ57: 485 | SA57: 486 | SB57: 487 | SC57: 488 | SD57: 489 | SE57: 490 | SF57: 491 | SG57: 492 | SH57: 493 | SI57: 494 | SJ57: 495 | SK57: 496 | SL57: 497 | SM57: 498 | SN57: 499 | SO57: 500
E58: =InputC!E11 -> Construction Period | F58: =InputC!F11 -> 24 | G58: =InputC!G11 -> Month
E59: Pre-COD Flag | G59: Flag | J59: =(J57<=$F$58)*1 -> 1 | K59: =(K57<=$F$58)*1 -> 1 | L59: 1 | M59: 1 | N59: 1 | O59: 1 | P59: 1 | Q59: 1 | R59: 1 | S59: 1 | T59: 1 | U59: 1 | V59: 1 | W59: 1 | X59: 1 | Y59: 1 | Z59: 1 | AA59: 1 | AB59: 1 | AC59: 1 | AD59: 1 | AE59: 1 | AF59: 1 | AG59: 1 | AH59: 0 | AI59: 0 | AJ59: 0 | AK59: 0 | AL59: 0 | AM59: 0 | AN59: 0 | AO59: 0 | AP59: 0 | AQ59: 0 | AR59: 0 | AS59: 0 | AT59: 0 | AU59: 0 | AV59: 0 | AW59: 0 | AX59: 0 | AY59: 0 | AZ59: 0 | BA59: 0 | BB59: 0 | BC59: 0 | BD59: 0 | BE59: 0 | BF59: 0 | BG59: 0 | BH59: 0 | BI59: 0 | BJ59: 0 | BK59: 0 | BL59: 0 | BM59: 0 | BN59: 0 | BO59: 0 | BP59: 0 | BQ59: 0 | BR59: 0 | BS59: 0 | BT59: 0 | BU59: 0 | BV59: 0 | BW59: =(BW57<=$F$58)*1 -> 0 | BX59: 0 | BY59: 0 | BZ59: 0 | CA59: 0 | CB59: 0 | CC59: 0 | CD59: 0 | CE59: 0 | CF59: 0 | CG59: 0 | CH59: 0 | CI59: 0 | CJ59: 0 | CK59: 0 | CL59: 0 | CM59: 0 | CN59: 0 | CO59: 0 | CP59: 0 | CQ59: 0 | CR59: 0 | CS59: 0 | CT59: 0 | CU59: 0 | CV59: 0 | CW59: 0 | CX59: 0 | CY59: 0 | CZ59: 0 | DA59: 0 | DB59: 0 | DC59: 0 | DD59: 0 | DE59: 0 | DF59: 0 | DG59: 0 | DH59: 0 | DI59: 0 | DJ59: 0 | DK59: 0 | DL59: 0 | DM59: 0 | DN59: 0 | DO59: 0 | DP59: 0 | DQ59: 0 | DR59: 0 | DS59: 0 | DT59: 0 | DU59: 0 | DV59: 0 | DW59: 0 | DX59: 0 | DY59: 0 | DZ59: 0 | EA59: 0 | EB59: 0 | EC59: 0 | ED59: 0 | EE59: 0 | EF59: 0 | EG59: 0 | EH59: 0 | EI59: =(EI57<=$F$58)*1 -> 0 | EJ59: 0 | EK59: 0 | EL59: 0 | EM59: 0 | EN59: 0 | EO59: 0 | EP59: 0 | EQ59: 0 | ER59: 0 | ES59: 0 | ET59: 0 | EU59: 0 | EV59: 0 | EW59: 0 | EX59: 0 | EY59: 0 | EZ59: 0 | FA59: 0 | FB59: 0 | FC59: 0 | FD59: 0 | FE59: 0 | FF59: 0 | FG59: 0 | FH59: 0 | FI59: 0 | FJ59: 0 | FK59: 0 | FL59: 0 | FM59: 0 | FN59: 0 | FO59: 0 | FP59: 0 | FQ59: 0 | FR59: 0 | FS59: 0 | FT59: 0 | FU59: 0 | FV59: 0 | FW59: 0 | FX59: 0 | FY59: 0 | FZ59: 0 | GA59: 0 | GB59: 0 | GC59: 0 | GD59: 0 | GE59: 0 | GF59: 0 | GG59: 0 | GH59: 0 | GI59: 0 | GJ59: 0 | GK59: 0 | GL59: 0 | GM59: 0 | GN59: 0 | GO59: 0 | GP59: 0 | GQ59: 0 | GR59: 0 | GS59: 0 | GT59: 0 | GU59: =(GU57<=$F$58)*1 -> 0 | GV59: 0 | GW59: 0 | GX59: 0 | GY59: 0 | GZ59: 0 | HA59: 0 | HB59: 0 | HC59: 0 | HD59: 0 | HE59: 0 | HF59: 0 | HG59: 0 | HH59: 0 | HI59: 0 | HJ59: 0 | HK59: 0 | HL59: 0 | HM59: 0 | HN59: 0 | HO59: 0 | HP59: 0 | HQ59: 0 | HR59: 0 | HS59: 0 | HT59: 0 | HU59: 0 | HV59: 0 | HW59: 0 | HX59: 0 | HY59: 0 | HZ59: 0 | IA59: 0 | IB59: 0 | IC59: 0 | ID59: 0 | IE59: 0 | IF59: 0 | IG59: 0 | IH59: 0 | II59: 0 | IJ59: 0 | IK59: 0 | IL59: 0 | IM59: 0 | IN59: 0 | IO59: 0 | IP59: 0 | IQ59: 0 | IR59: 0 | IS59: 0 | IT59: 0 | IU59: 0 | IV59: 0 | IW59: 0 | IX59: 0 | IY59: 0 | IZ59: 0 | JA59: 0 | JB59: 0 | JC59: 0 | JD59: 0 | JE59: 0 | JF59: 0 | JG59: =(JG57<=$F$58)*1 -> 0 | JH59: 0 | JI59: 0 | JJ59: 0 | JK59: 0 | JL59: 0 | JM59: 0 | JN59: 0 | JO59: 0 | JP59: 0 | JQ59: 0 | JR59: 0 | JS59: 0 | JT59: 0 | JU59: 0 | JV59: 0 | JW59: 0 | JX59: 0 | JY59: 0 | JZ59: 0 | KA59: 0 | KB59: 0 | KC59: 0 | KD59: 0 | KE59: 0 | KF59: 0 | KG59: 0 | KH59: 0 | KI59: 0 | KJ59: 0 | KK59: 0 | KL59: 0 | KM59: 0 | KN59: 0 | KO59: 0 | KP59: 0 | KQ59: 0 | KR59: 0 | KS59: 0 | KT59: 0 | KU59: 0 | KV59: 0 | KW59: 0 | KX59: 0 | KY59: 0 | KZ59: 0 | LA59: 0 | LB59: 0 | LC59: 0 | LD59: 0 | LE59: 0 | LF59: 0 | LG59: 0 | LH59: 0 | LI59: 0 | LJ59: 0 | LK59: 0 | LL59: 0 | LM59: 0 | LN59: 0 | LO59: 0 | LP59: 0 | LQ59: 0 | LR59: 0 | LS59: =(LS57<=$F$58)*1 -> 0 | LT59: 0 | LU59: 0 | LV59: 0 | LW59: 0 | LX59: 0 | LY59: 0 | LZ59: 0 | MA59: 0 | MB59: 0 | MC59: 0 | MD59: 0 | ME59: 0 | MF59: 0 | MG59: 0 | MH59: 0 | MI59: 0 | MJ59: 0 | MK59: 0 | ML59: 0 | MM59: 0 | MN59: 0 | MO59: 0 | MP59: 0 | MQ59: 0 | MR59: 0 | MS59: 0 | MT59: 0 | MU59: 0 | MV59: 0 | MW59: 0 | MX59: 0 | MY59: 0 | MZ59: 0 | NA59: 0 | NB59: 0 | NC59: 0 | ND59: 0 | NE59: 0 | NF59: 0 | NG59: 0 | NH59: 0 | NI59: 0 | NJ59: 0 | NK59: 0 | NL59: 0 | NM59: 0 | NN59: 0 | NO59: 0 | NP59: 0 | NQ59: 0 | NR59: 0 | NS59: 0 | NT59: 0 | NU59: 0 | NV59: 0 | NW59: 0 | NX59: 0 | NY59: 0 | NZ59: 0 | OA59: 0 | OB59: 0 | OC59: 0 | OD59: 0 | OE59: =(OE57<=$F$58)*1 -> 0 | OF59: 0 | OG59: 0 | OH59: 0 | OI59: 0 | OJ59: 0 | OK59: 0 | OL59: 0 | OM59: 0 | ON59: 0 | OO59: 0 | OP59: 0 | OQ59: 0 | OR59: 0 | OS59: 0 | OT59: 0 | OU59: 0 | OV59: 0 | OW59: 0 | OX59: 0 | OY59: 0 | OZ59: 0 | PA59: 0 | PB59: 0 | PC59: 0 | PD59: 0 | PE59: 0 | PF59: 0 | PG59: 0 | PH59: 0 | PI59: 0 | PJ59: 0 | PK59: 0 | PL59: 0 | PM59: 0 | PN59: 0 | PO59: 0 | PP59: 0 | PQ59: 0 | PR59: 0 | PS59: 0 | PT59: 0 | PU59: 0 | PV59: 0 | PW59: 0 | PX59: 0 | PY59: 0 | PZ59: 0 | QA59: 0 | QB59: 0 | QC59: 0 | QD59: 0 | QE59: 0 | QF59: 0 | QG59: 0 | QH59: 0 | QI59: 0 | QJ59: 0 | QK59: 0 | QL59: 0 | QM59: 0 | QN59: 0 | QO59: 0 | QP59: 0 | QQ59: =(QQ57<=$F$58)*1 -> 0 | QR59: 0 | QS59: 0 | QT59: 0 | QU59: 0 | QV59: 0 | QW59: 0 | QX59: 0 | QY59: 0 | QZ59: 0 | RA59: 0 | RB59: 0 | RC59: 0 | RD59: 0 | RE59: 0 | RF59: 0 | RG59: 0 | RH59: 0 | RI59: 0 | RJ59: 0 | RK59: 0 | RL59: 0 | RM59: 0 | RN59: 0 | RO59: 0 | RP59: 0 | RQ59: 0 | RR59: 0 | RS59: 0 | RT59: 0 | RU59: 0 | RV59: 0 | RW59: 0 | RX59: 0 | RY59: 0 | RZ59: 0 | SA59: 0 | SB59: 0 | SC59: 0 | SD59: 0 | SE59: 0 | SF59: 0 | SG59: 0 | SH59: 0 | SI59: 0 | SJ59: 0 | SK59: 0 | SL59: 0 | SM59: 0 | SN59: 0 | SO59: 0
E60: =InputC!E18 -> Months in Period for Semi-Annual | F60: =InputC!F18 -> 6 | G60: =InputC!G18 -> Months
E61: =InputC!E19 -> Months in Period pre-COD | F61: =InputC!F19 -> 1 | G61: =InputC!G19 -> Months
E63: Counter after COD | J63: =I63+NOT(J59) -> 0 | K63: =J63+NOT(K59) -> 0 | L63: 0 | M63: 0 | N63: 0 | O63: 0 | P63: 0 | Q63: 0 | R63: 0 | S63: 0 | T63: 0 | U63: 0 | V63: 0 | W63: 0 | X63: 0 | Y63: 0 | Z63: 0 | AA63: 0 | AB63: 0 | AC63: 0 | AD63: 0 | AE63: 0 | AF63: 0 | AG63: 0 | AH63: 1 | AI63: 2 | AJ63: 3 | AK63: 4 | AL63: 5 | AM63: 6 | AN63: 7 | AO63: 8 | AP63: 9 | AQ63: 10 | AR63: 11 | AS63: 12 | AT63: 13 | AU63: 14 | AV63: 15 | AW63: 16 | AX63: 17 | AY63: 18 | AZ63: 19 | BA63: 20 | BB63: 21 | BC63: 22 | BD63: 23 | BE63: 24 | BF63: 25 | BG63: 26 | BH63: 27 | BI63: 28 | BJ63: 29 | BK63: 30 | BL63: 31 | BM63: 32 | BN63: 33 | BO63: 34 | BP63: 35 | BQ63: 36 | BR63: 37 | BS63: 38 | BT63: 39 | BU63: 40 | BV63: 41 | BW63: =BV63+NOT(BW59) -> 42 | BX63: 43 | BY63: 44 | BZ63: 45 | CA63: 46 | CB63: 47 | CC63: 48 | CD63: 49 | CE63: 50 | CF63: 51 | CG63: 52 | CH63: 53 | CI63: 54 | CJ63: 55 | CK63: 56 | CL63: 57 | CM63: 58 | CN63: 59 | CO63: 60 | CP63: 61 | CQ63: 62 | CR63: 63 | CS63: 64 | CT63: 65 | CU63: 66 | CV63: 67 | CW63: 68 | CX63: 69 | CY63: 70 | CZ63: 71 | DA63: 72 | DB63: 73 | DC63: 74 | DD63: 75 | DE63: 76 | DF63: 77 | DG63: 78 | DH63: 79 | DI63: 80 | DJ63: 81 | DK63: 82 | DL63: 83 | DM63: 84 | DN63: 85 | DO63: 86 | DP63: 87 | DQ63: 88 | DR63: 89 | DS63: 90 | DT63: 91 | DU63: 92 | DV63: 93 | DW63: 94 | DX63: 95 | DY63: 96 | DZ63: 97 | EA63: 98 | EB63: 99 | EC63: 100 | ED63: 101 | EE63: 102 | EF63: 103 | EG63: 104 | EH63: 105 | EI63: =EH63+NOT(EI59) -> 106 | EJ63: 107 | EK63: 108 | EL63: 109 | EM63: 110 | EN63: 111 | EO63: 112 | EP63: 113 | EQ63: 114 | ER63: 115 | ES63: 116 | ET63: 117 | EU63: 118 | EV63: 119 | EW63: 120 | EX63: 121 | EY63: 122 | EZ63: 123 | FA63: 124 | FB63: 125 | FC63: 126 | FD63: 127 | FE63: 128 | FF63: 129 | FG63: 130 | FH63: 131 | FI63: 132 | FJ63: 133 | FK63: 134 | FL63: 135 | FM63: 136 | FN63: 137 | FO63: 138 | FP63: 139 | FQ63: 140 | FR63: 141 | FS63: 142 | FT63: 143 | FU63: 144 | FV63: 145 | FW63: 146 | FX63: 147 | FY63: 148 | FZ63: 149 | GA63: 150 | GB63: 151 | GC63: 152 | GD63: 153 | GE63: 154 | GF63: 155 | GG63: 156 | GH63: 157 | GI63: 158 | GJ63: 159 | GK63: 160 | GL63: 161 | GM63: 162 | GN63: 163 | GO63: 164 | GP63: 165 | GQ63: 166 | GR63: 167 | GS63: 168 | GT63: 169 | GU63: =GT63+NOT(GU59) -> 170 | GV63: 171 | GW63: 172 | GX63: 173 | GY63: 174 | GZ63: 175 | HA63: 176 | HB63: 177 | HC63: 178 | HD63: 179 | HE63: 180 | HF63: 181 | HG63: 182 | HH63: 183 | HI63: 184 | HJ63: 185 | HK63: 186 | HL63: 187 | HM63: 188 | HN63: 189 | HO63: 190 | HP63: 191 | HQ63: 192 | HR63: 193 | HS63: 194 | HT63: 195 | HU63: 196 | HV63: 197 | HW63: 198 | HX63: 199 | HY63: 200 | HZ63: 201 | IA63: 202 | IB63: 203 | IC63: 204 | ID63: 205 | IE63: 206 | IF63: 207 | IG63: 208 | IH63: 209 | II63: 210 | IJ63: 211 | IK63: 212 | IL63: 213 | IM63: 214 | IN63: 215 | IO63: 216 | IP63: 217 | IQ63: 218 | IR63: 219 | IS63: 220 | IT63: 221 | IU63: 222 | IV63: 223 | IW63: 224 | IX63: 225 | IY63: 226 | IZ63: 227 | JA63: 228 | JB63: 229 | JC63: 230 | JD63: 231 | JE63: 232 | JF63: 233 | JG63: =JF63+NOT(JG59) -> 234 | JH63: 235 | JI63: 236 | JJ63: 237 | JK63: 238 | JL63: 239 | JM63: 240 | JN63: 241 | JO63: 242 | JP63: 243 | JQ63: 244 | JR63: 245 | JS63: 246 | JT63: 247 | JU63: 248 | JV63: 249 | JW63: 250 | JX63: 251 | JY63: 252 | JZ63: 253 | KA63: 254 | KB63: 255 | KC63: 256 | KD63: 257 | KE63: 258 | KF63: 259 | KG63: 260 | KH63: 261 | KI63: 262 | KJ63: 263 | KK63: 264 | KL63: 265 | KM63: 266 | KN63: 267 | KO63: 268 | KP63: 269 | KQ63: 270 | KR63: 271 | KS63: 272 | KT63: 273 | KU63: 274 | KV63: 275 | KW63: 276 | KX63: 277 | KY63: 278 | KZ63: 279 | LA63: 280 | LB63: 281 | LC63: 282 | LD63: 283 | LE63: 284 | LF63: 285 | LG63: 286 | LH63: 287 | LI63: 288 | LJ63: 289 | LK63: 290 | LL63: 291 | LM63: 292 | LN63: 293 | LO63: 294 | LP63: 295 | LQ63: 296 | LR63: 297 | LS63: =LR63+NOT(LS59) -> 298 | LT63: 299 | LU63: 300 | LV63: 301 | LW63: 302 | LX63: 303 | LY63: 304 | LZ63: 305 | MA63: 306 | MB63: 307 | MC63: 308 | MD63: 309 | ME63: 310 | MF63: 311 | MG63: 312 | MH63: 313 | MI63: 314 | MJ63: 315 | MK63: 316 | ML63: 317 | MM63: 318 | MN63: 319 | MO63: 320 | MP63: 321 | MQ63: 322 | MR63: 323 | MS63: 324 | MT63: 325 | MU63: 326 | MV63: 327 | MW63: 328 | MX63: 329 | MY63: 330 | MZ63: 331 | NA63: 332 | NB63: 333 | NC63: 334 | ND63: 335 | NE63: 336 | NF63: 337 | NG63: 338 | NH63: 339 | NI63: 340 | NJ63: 341 | NK63: 342 | NL63: 343 | NM63: 344 | NN63: 345 | NO63: 346 | NP63: 347 | NQ63: 348 | NR63: 349 | NS63: 350 | NT63: 351 | NU63: 352 | NV63: 353 | NW63: 354 | NX63: 355 | NY63: 356 | NZ63: 357 | OA63: 358 | OB63: 359 | OC63: 360 | OD63: 361 | OE63: =OD63+NOT(OE59) -> 362 | OF63: 363 | OG63: 364 | OH63: 365 | OI63: 366 | OJ63: 367 | OK63: 368 | OL63: 369 | OM63: 370 | ON63: 371 | OO63: 372 | OP63: 373 | OQ63: 374 | OR63: 375 | OS63: 376 | OT63: 377 | OU63: 378 | OV63: 379 | OW63: 380 | OX63: 381 | OY63: 382 | OZ63: 383 | PA63: 384 | PB63: 385 | PC63: 386 | PD63: 387 | PE63: 388 | PF63: 389 | PG63: 390 | PH63: 391 | PI63: 392 | PJ63: 393 | PK63: 394 | PL63: 395 | PM63: 396 | PN63: 397 | PO63: 398 | PP63: 399 | PQ63: 400 | PR63: 401 | PS63: 402 | PT63: 403 | PU63: 404 | PV63: 405 | PW63: 406 | PX63: 407 | PY63: 408 | PZ63: 409 | QA63: 410 | QB63: 411 | QC63: 412 | QD63: 413 | QE63: 414 | QF63: 415 | QG63: 416 | QH63: 417 | QI63: 418 | QJ63: 419 | QK63: 420 | QL63: 421 | QM63: 422 | QN63: 423 | QO63: 424 | QP63: 425 | QQ63: =QP63+NOT(QQ59) -> 426 | QR63: 427 | QS63: 428 | QT63: 429 | QU63: 430 | QV63: 431 | QW63: 432 | QX63: 433 | QY63: 434 | QZ63: 435 | RA63: 436 | RB63: 437 | RC63: 438 | RD63: 439 | RE63: 440 | RF63: 441 | RG63: 442 | RH63: 443 | RI63: 444 | RJ63: 445 | RK63: 446 | RL63: 447 | RM63: 448 | RN63: 449 | RO63: 450 | RP63: 451 | RQ63: 452 | RR63: 453 | RS63: 454 | RT63: 455 | RU63: 456 | RV63: 457 | RW63: 458 | RX63: 459 | RY63: 460 | RZ63: 461 | SA63: 462 | SB63: 463 | SC63: 464 | SD63: 465 | SE63: 466 | SF63: 467 | SG63: 468 | SH63: 469 | SI63: 470 | SJ63: 471 | SK63: 472 | SL63: 473 | SM63: 474 | SN63: 475 | SO63: 476
E64: Start of Semi-Annual Period | J64: =AND(MOD(J63,$F$60)=0,NOT(J59))*1 -> 0 | K64: =AND(MOD(K63,$F$60)=0,NOT(K59))*1 -> 0 | L64: 0 | M64: 0 | N64: 0 | O64: 0 | P64: 0 | Q64: 0 | R64: 0 | S64: 0 | T64: 0 | U64: 0 | V64: 0 | W64: 0 | X64: 0 | Y64: 0 | Z64: 0 | AA64: 0 | AB64: 0 | AC64: 0 | AD64: 0 | AE64: 0 | AF64: 0 | AG64: 0 | AH64: 0 | AI64: 0 | AJ64: 0 | AK64: 0 | AL64: 0 | AM64: 1 | AN64: 0 | AO64: 0 | AP64: 0 | AQ64: 0 | AR64: 0 | AS64: 1 | AT64: 0 | AU64: 0 | AV64: 0 | AW64: 0 | AX64: 0 | AY64: 1 | AZ64: 0 | BA64: 0 | BB64: 0 | BC64: 0 | BD64: 0 | BE64: 1 | BF64: 0 | BG64: 0 | BH64: 0 | BI64: 0 | BJ64: 0 | BK64: 1 | BL64: 0 | BM64: 0 | BN64: 0 | BO64: 0 | BP64: 0 | BQ64: 1 | BR64: 0 | BS64: 0 | BT64: 0 | BU64: 0 | BV64: 0 | BW64: =AND(MOD(BW63,$F$60)=0,NOT(BW59))*1 -> 1 | BX64: 0 | BY64: 0 | BZ64: 0 | CA64: 0 | CB64: 0 | CC64: 1 | CD64: 0 | CE64: 0 | CF64: 0 | CG64: 0 | CH64: 0 | CI64: 1 | CJ64: 0 | CK64: 0 | CL64: 0 | CM64: 0 | CN64: 0 | CO64: 1 | CP64: 0 | CQ64: 0 | CR64: 0 | CS64: 0 | CT64: 0 | CU64: 1 | CV64: 0 | CW64: 0 | CX64: 0 | CY64: 0 | CZ64: 0 | DA64: 1 | DB64: 0 | DC64: 0 | DD64: 0 | DE64: 0 | DF64: 0 | DG64: 1 | DH64: 0 | DI64: 0 | DJ64: 0 | DK64: 0 | DL64: 0 | DM64: 1 | DN64: 0 | DO64: 0 | DP64: 0 | DQ64: 0 | DR64: 0 | DS64: 1 | DT64: 0 | DU64: 0 | DV64: 0 | DW64: 0 | DX64: 0 | DY64: 1 | DZ64: 0 | EA64: 0 | EB64: 0 | EC64: 0 | ED64: 0 | EE64: 1 | EF64: 0 | EG64: 0 | EH64: 0 | EI64: =AND(MOD(EI63,$F$60)=0,NOT(EI59))*1 -> 0 | EJ64: 0 | EK64: 1 | EL64: 0 | EM64: 0 | EN64: 0 | EO64: 0 | EP64: 0 | EQ64: 1 | ER64: 0 | ES64: 0 | ET64: 0 | EU64: 0 | EV64: 0 | EW64: 1 | EX64: 0 | EY64: 0 | EZ64: 0 | FA64: 0 | FB64: 0 | FC64: 1 | FD64: 0 | FE64: 0 | FF64: 0 | FG64: 0 | FH64: 0 | FI64: 1 | FJ64: 0 | FK64: 0 | FL64: 0 | FM64: 0 | FN64: 0 | FO64: 1 | FP64: 0 | FQ64: 0 | FR64: 0 | FS64: 0 | FT64: 0 | FU64: 1 | FV64: 0 | FW64: 0 | FX64: 0 | FY64: 0 | FZ64: 0 | GA64: 1 | GB64: 0 | GC64: 0 | GD64: 0 | GE64: 0 | GF64: 0 | GG64: 1 | GH64: 0 | GI64: 0 | GJ64: 0 | GK64: 0 | GL64: 0 | GM64: 1 | GN64: 0 | GO64: 0 | GP64: 0 | GQ64: 0 | GR64: 0 | GS64: 1 | GT64: 0 | GU64: =AND(MOD(GU63,$F$60)=0,NOT(GU59))*1 -> 0 | GV64: 0 | GW64: 0 | GX64: 0 | GY64: 1 | GZ64: 0 | HA64: 0 | HB64: 0 | HC64: 0 | HD64: 0 | HE64: 1 | HF64: 0 | HG64: 0 | HH64: 0 | HI64: 0 | HJ64: 0 | HK64: 1 | HL64: 0 | HM64: 0 | HN64: 0 | HO64: 0 | HP64: 0 | HQ64: 1 | HR64: 0 | HS64: 0 | HT64: 0 | HU64: 0 | HV64: 0 | HW64: 1 | HX64: 0 | HY64: 0 | HZ64: 0 | IA64: 0 | IB64: 0 | IC64: 1 | ID64: 0 | IE64: 0 | IF64: 0 | IG64: 0 | IH64: 0 | II64: 1 | IJ64: 0 | IK64: 0 | IL64: 0 | IM64: 0 | IN64: 0 | IO64: 1 | IP64: 0 | IQ64: 0 | IR64: 0 | IS64: 0 | IT64: 0 | IU64: 1 | IV64: 0 | IW64: 0 | IX64: 0 | IY64: 0 | IZ64: 0 | JA64: 1 | JB64: 0 | JC64: 0 | JD64: 0 | JE64: 0 | JF64: 0 | JG64: =AND(MOD(JG63,$F$60)=0,NOT(JG59))*1 -> 1 | JH64: 0 | JI64: 0 | JJ64: 0 | JK64: 0 | JL64: 0 | JM64: 1 | JN64: 0 | JO64: 0 | JP64: 0 | JQ64: 0 | JR64: 0 | JS64: 1 | JT64: 0 | JU64: 0 | JV64: 0 | JW64: 0 | JX64: 0 | JY64: 1 | JZ64: 0 | KA64: 0 | KB64: 0 | KC64: 0 | KD64: 0 | KE64: 1 | KF64: 0 | KG64: 0 | KH64: 0 | KI64: 0 | KJ64: 0 | KK64: 1 | KL64: 0 | KM64: 0 | KN64: 0 | KO64: 0 | KP64: 0 | KQ64: 1 | KR64: 0 | KS64: 0 | KT64: 0 | KU64: 0 | KV64: 0 | KW64: 1 | KX64: 0 | KY64: 0 | KZ64: 0 | LA64: 0 | LB64: 0 | LC64: 1 | LD64: 0 | LE64: 0 | LF64: 0 | LG64: 0 | LH64: 0 | LI64: 1 | LJ64: 0 | LK64: 0 | LL64: 0 | LM64: 0 | LN64: 0 | LO64: 1 | LP64: 0 | LQ64: 0 | LR64: 0 | LS64: =AND(MOD(LS63,$F$60)=0,NOT(LS59))*1 -> 0 | LT64: 0 | LU64: 1 | LV64: 0 | LW64: 0 | LX64: 0 | LY64: 0 | LZ64: 0 | MA64: 1 | MB64: 0 | MC64: 0 | MD64: 0 | ME64: 0 | MF64: 0 | MG64: 1 | MH64: 0 | MI64: 0 | MJ64: 0 | MK64: 0 | ML64: 0 | MM64: 1 | MN64: 0 | MO64: 0 | MP64: 0 | MQ64: 0 | MR64: 0 | MS64: 1 | MT64: 0 | MU64: 0 | MV64: 0 | MW64: 0 | MX64: 0 | MY64: 1 | MZ64: 0 | NA64: 0 | NB64: 0 | NC64: 0 | ND64: 0 | NE64: 1 | NF64: 0 | NG64: 0 | NH64: 0 | NI64: 0 | NJ64: 0 | NK64: 1 | NL64: 0 | NM64: 0 | NN64: 0 | NO64: 0 | NP64: 0 | NQ64: 1 | NR64: 0 | NS64: 0 | NT64: 0 | NU64: 0 | NV64: 0 | NW64: 1 | NX64: 0 | NY64: 0 | NZ64: 0 | OA64: 0 | OB64: 0 | OC64: 1 | OD64: 0 | OE64: =AND(MOD(OE63,$F$60)=0,NOT(OE59))*1 -> 0 | OF64: 0 | OG64: 0 | OH64: 0 | OI64: 1 | OJ64: 0 | OK64: 0 | OL64: 0 | OM64: 0 | ON64: 0 | OO64: 1 | OP64: 0 | OQ64: 0 | OR64: 0 | OS64: 0 | OT64: 0 | OU64: 1 | OV64: 0 | OW64: 0 | OX64: 0 | OY64: 0 | OZ64: 0 | PA64: 1 | PB64: 0 | PC64: 0 | PD64: 0 | PE64: 0 | PF64: 0 | PG64: 1 | PH64: 0 | PI64: 0 | PJ64: 0 | PK64: 0 | PL64: 0 | PM64: 1 | PN64: 0 | PO64: 0 | PP64: 0 | PQ64: 0 | PR64: 0 | PS64: 1 | PT64: 0 | PU64: 0 | PV64: 0 | PW64: 0 | PX64: 0 | PY64: 1 | PZ64: 0 | QA64: 0 | QB64: 0 | QC64: 0 | QD64: 0 | QE64: 1 | QF64: 0 | QG64: 0 | QH64: 0 | QI64: 0 | QJ64: 0 | QK64: 1 | QL64: 0 | QM64: 0 | QN64: 0 | QO64: 0 | QP64: 0 | QQ64: =AND(MOD(QQ63,$F$60)=0,NOT(QQ59))*1 -> 1 | QR64: 0 | QS64: 0 | QT64: 0 | QU64: 0 | QV64: 0 | QW64: 1 | QX64: 0 | QY64: 0 | QZ64: 0 | RA64: 0 | RB64: 0 | RC64: 1 | RD64: 0 | RE64: 0 | RF64: 0 | RG64: 0 | RH64: 0 | RI64: 1 | RJ64: 0 | RK64: 0 | RL64: 0 | RM64: 0 | RN64: 0 | RO64: 1 | RP64: 0 | RQ64: 0 | RR64: 0 | RS64: 0 | RT64: 0 | RU64: 1 | RV64: 0 | RW64: 0 | RX64: 0 | RY64: 0 | RZ64: 0 | SA64: 1 | SB64: 0 | SC64: 0 | SD64: 0 | SE64: 0 | SF64: 0 | SG64: 1 | SH64: 0 | SI64: 0 | SJ64: 0 | SK64: 0 | SL64: 0 | SM64: 1 | SN64: 0 | SO64: 0
E65: COD -1 Flag | F65: =EDATE(InputC!F13,-1) -> 2024-12-01 | J65: =(J2=$F$65)*1 -> 0 | K65: 0 | L65: 0 | M65: 0 | N65: 0 | O65: 0 | P65: 0 | Q65: 0 | R65: 0 | S65: 0 | T65: 0 | U65: 0 | V65: 0 | W65: 0 | X65: 0 | Y65: 0 | Z65: 0 | AA65: 0 | AB65: 0 | AC65: 0 | AD65: 0 | AE65: 0 | AF65: 0 | AG65: 1 | AH65: 0 | AI65: 0 | AJ65: 0 | AK65: 0 | AL65: 0 | AM65: 0 | AN65: 0 | AO65: 0 | AP65: 0 | AQ65: 0 | AR65: 0 | AS65: 0 | AT65: 0 | AU65: 0 | AV65: 0 | AW65: 0 | AX65: 0 | AY65: 0 | AZ65: 0 | BA65: 0 | BB65: 0 | BC65: 0 | BD65: 0 | BE65: 0 | BF65: 0 | BG65: 0 | BH65: 0 | BI65: 0 | BJ65: 0 | BK65: 0 | BL65: 0 | BM65: 0 | BN65: 0 | BO65: 0 | BP65: 0 | BQ65: 0 | BR65: 0 | BS65: 0 | BT65: 0 | BU65: 0 | BV65: =(BV2=$F$65)*1 -> 0 | BW65: 0 | BX65: 0 | BY65: 0 | BZ65: 0 | CA65: 0 | CB65: 0 | CC65: 0 | CD65: 0 | CE65: 0 | CF65: 0 | CG65: 0 | CH65: 0 | CI65: 0 | CJ65: 0 | CK65: 0 | CL65: 0 | CM65: 0 | CN65: 0 | CO65: 0 | CP65: 0 | CQ65: 0 | CR65: 0 | CS65: 0 | CT65: 0 | CU65: 0 | CV65: 0 | CW65: 0 | CX65: 0 | CY65: 0 | CZ65: 0 | DA65: 0 | DB65: 0 | DC65: 0 | DD65: 0 | DE65: 0 | DF65: 0 | DG65: 0 | DH65: 0 | DI65: 0 | DJ65: 0 | DK65: 0 | DL65: 0 | DM65: 0 | DN65: 0 | DO65: 0 | DP65: 0 | DQ65: 0 | DR65: 0 | DS65: 0 | DT65: 0 | DU65: 0 | DV65: 0 | DW65: 0 | DX65: 0 | DY65: 0 | DZ65: 0 | EA65: 0 | EB65: 0 | EC65: 0 | ED65: 0 | EE65: 0 | EF65: 0 | EG65: 0 | EH65: =(EH2=$F$65)*1 -> 0 | EI65: 0 | EJ65: 0 | EK65: 0 | EL65: 0 | EM65: 0 | EN65: 0 | EO65: 0 | EP65: 0 | EQ65: 0 | ER65: 0 | ES65: 0 | ET65: 0 | EU65: 0 | EV65: 0 | EW65: 0 | EX65: 0 | EY65: 0 | EZ65: 0 | FA65: 0 | FB65: 0 | FC65: 0 | FD65: 0 | FE65: 0 | FF65: 0 | FG65: 0 | FH65: 0 | FI65: 0 | FJ65: 0 | FK65: 0 | FL65: 0 | FM65: 0 | FN65: 0 | FO65: 0 | FP65: 0 | FQ65: 0 | FR65: 0 | FS65: 0 | FT65: 0 | FU65: 0 | FV65: 0 | FW65: 0 | FX65: 0 | FY65: 0 | FZ65: 0 | GA65: 0 | GB65: 0 | GC65: 0 | GD65: 0 | GE65: 0 | GF65: 0 | GG65: 0 | GH65: 0 | GI65: 0 | GJ65: 0 | GK65: 0 | GL65: 0 | GM65: 0 | GN65: 0 | GO65: 0 | GP65: 0 | GQ65: 0 | GR65: 0 | GS65: 0 | GT65: =(GT2=$F$65)*1 -> 0 | GU65: 0 | GV65: 0 | GW65: 0 | GX65: 0 | GY65: 0 | GZ65: 0 | HA65: 0 | HB65: 0 | HC65: 0 | HD65: 0 | HE65: 0 | HF65: 0 | HG65: 0 | HH65: 0 | HI65: 0 | HJ65: 0 | HK65: 0 | HL65: 0 | HM65: 0 | HN65: 0 | HO65: 0 | HP65: 0 | HQ65: 0 | HR65: 0 | HS65: 0 | HT65: 0 | HU65: 0 | HV65: 0 | HW65: 0 | HX65: 0 | HY65: 0 | HZ65: 0 | IA65: 0 | IB65: 0 | IC65: 0 | ID65: 0 | IE65: 0 | IF65: 0 | IG65: 0 | IH65: 0 | II65: 0 | IJ65: 0 | IK65: 0 | IL65: 0 | IM65: 0 | IN65: 0 | IO65: 0 | IP65: 0 | IQ65: 0 | IR65: 0 | IS65: 0 | IT65: 0 | IU65: 0 | IV65: 0 | IW65: 0 | IX65: 0 | IY65: 0 | IZ65: 0 | JA65: 0 | JB65: 0 | JC65: 0 | JD65: 0 | JE65: 0 | JF65: =(JF2=$F$65)*1 -> 0 | JG65: 0 | JH65: 0 | JI65: 0 | JJ65: 0 | JK65: 0 | JL65: 0 | JM65: 0 | JN65: 0 | JO65: 0 | JP65: 0 | JQ65: 0 | JR65: 0 | JS65: 0 | JT65: 0 | JU65: 0 | JV65: 0 | JW65: 0 | JX65: 0 | JY65: 0 | JZ65: 0 | KA65: 0 | KB65: 0 | KC65: 0 | KD65: 0 | KE65: 0 | KF65: 0 | KG65: 0 | KH65: 0 | KI65: 0 | KJ65: 0 | KK65: 0 | KL65: 0 | KM65: 0 | KN65: 0 | KO65: 0 | KP65: 0 | KQ65: 0 | KR65: 0 | KS65: 0 | KT65: 0 | KU65: 0 | KV65: 0 | KW65: 0 | KX65: 0 | KY65: 0 | KZ65: 0 | LA65: 0 | LB65: 0 | LC65: 0 | LD65: 0 | LE65: 0 | LF65: 0 | LG65: 0 | LH65: 0 | LI65: 0 | LJ65: 0 | LK65: 0 | LL65: 0 | LM65: 0 | LN65: 0 | LO65: 0 | LP65: 0 | LQ65: 0 | LR65: =(LR2=$F$65)*1 -> 0 | LS65: 0 | LT65: 0 | LU65: 0 | LV65: 0 | LW65: 0 | LX65: 0 | LY65: 0 | LZ65: 0 | MA65: 0 | MB65: 0 | MC65: 0 | MD65: 0 | ME65: 0 | MF65: 0 | MG65: 0 | MH65: 0 | MI65: 0 | MJ65: 0 | MK65: 0 | ML65: 0 | MM65: 0 | MN65: 0 | MO65: 0 | MP65: 0 | MQ65: 0 | MR65: 0 | MS65: 0 | MT65: 0 | MU65: 0 | MV65: 0 | MW65: 0 | MX65: 0 | MY65: 0 | MZ65: 0 | NA65: 0 | NB65: 0 | NC65: 0 | ND65: 0 | NE65: 0 | NF65: 0 | NG65: 0 | NH65: 0 | NI65: 0 | NJ65: 0 | NK65: 0 | NL65: 0 | NM65: 0 | NN65: 0 | NO65: 0 | NP65: 0 | NQ65: 0 | NR65: 0 | NS65: 0 | NT65: 0 | NU65: 0 | NV65: 0 | NW65: 0 | NX65: 0 | NY65: 0 | NZ65: 0 | OA65: 0 | OB65: 0 | OC65: 0 | OD65: =(OD2=$F$65)*1 -> 0 | OE65: 0 | OF65: 0 | OG65: 0 | OH65: 0 | OI65: 0 | OJ65: 0 | OK65: 0 | OL65: 0 | OM65: 0 | ON65: 0 | OO65: 0 | OP65: 0 | OQ65: 0 | OR65: 0 | OS65: 0 | OT65: 0 | OU65: 0 | OV65: 0 | OW65: 0 | OX65: 0 | OY65: 0 | OZ65: 0 | PA65: 0 | PB65: 0 | PC65: 0 | PD65: 0 | PE65: 0 | PF65: 0 | PG65: 0 | PH65: 0 | PI65: 0 | PJ65: 0 | PK65: 0 | PL65: 0 | PM65: 0 | PN65: 0 | PO65: 0 | PP65: 0 | PQ65: 0 | PR65: 0 | PS65: 0 | PT65: 0 | PU65: 0 | PV65: 0 | PW65: 0 | PX65: 0 | PY65: 0 | PZ65: 0 | QA65: 0 | QB65: 0 | QC65: 0 | QD65: 0 | QE65: 0 | QF65: 0 | QG65: 0 | QH65: 0 | QI65: 0 | QJ65: 0 | QK65: 0 | QL65: 0 | QM65: 0 | QN65: 0 | QO65: 0 | QP65: =(QP2=$F$65)*1 -> 0 | QQ65: 0 | QR65: 0 | QS65: 0 | QT65: 0 | QU65: 0 | QV65: 0 | QW65: 0 | QX65: 0 | QY65: 0 | QZ65: 0 | RA65: 0 | RB65: 0 | RC65: 0 | RD65: 0 | RE65: 0 | RF65: 0 | RG65: 0 | RH65: 0 | RI65: 0 | RJ65: 0 | RK65: 0 | RL65: 0 | RM65: 0 | RN65: 0 | RO65: 0 | RP65: 0 | RQ65: 0 | RR65: 0 | RS65: 0 | RT65: 0 | RU65: 0 | RV65: 0 | RW65: 0 | RX65: 0 | RY65: 0 | RZ65: 0 | SA65: 0 | SB65: 0 | SC65: 0 | SD65: 0 | SE65: 0 | SF65: 0 | SG65: 0 | SH65: 0 | SI65: 0 | SJ65: 0 | SK65: 0 | SL65: 0 | SM65: 0 | SN65: 0 | SO65: 0
E66: Adjusted for COD | J66: =J64+J65 -> 0 | K66: =K64+K65 -> 0 | L66: 0 | M66: 0 | N66: 0 | O66: 0 | P66: 0 | Q66: 0 | R66: 0 | S66: 0 | T66: 0 | U66: 0 | V66: 0 | W66: 0 | X66: 0 | Y66: 0 | Z66: 0 | AA66: 0 | AB66: 0 | AC66: 0 | AD66: 0 | AE66: 0 | AF66: 0 | AG66: 1 | AH66: 0 | AI66: 0 | AJ66: 0 | AK66: 0 | AL66: 0 | AM66: 1 | AN66: 0 | AO66: 0 | AP66: 0 | AQ66: 0 | AR66: 0 | AS66: 1 | AT66: 0 | AU66: 0 | AV66: 0 | AW66: 0 | AX66: 0 | AY66: 1 | AZ66: 0 | BA66: 0 | BB66: 0 | BC66: 0 | BD66: 0 | BE66: 1 | BF66: 0 | BG66: 0 | BH66: 0 | BI66: 0 | BJ66: 0 | BK66: 1 | BL66: 0 | BM66: 0 | BN66: 0 | BO66: 0 | BP66: 0 | BQ66: 1 | BR66: 0 | BS66: 0 | BT66: 0 | BU66: 0 | BV66: 0 | BW66: =BW64+BW65 -> 1 | BX66: 0 | BY66: 0 | BZ66: 0 | CA66: 0 | CB66: 0 | CC66: 1 | CD66: 0 | CE66: 0 | CF66: 0 | CG66: 0 | CH66: 0 | CI66: 1 | CJ66: 0 | CK66: 0 | CL66: 0 | CM66: 0 | CN66: 0 | CO66: 1 | CP66: 0 | CQ66: 0 | CR66: 0 | CS66: 0 | CT66: 0 | CU66: 1 | CV66: 0 | CW66: 0 | CX66: 0 | CY66: 0 | CZ66: 0 | DA66: 1 | DB66: 0 | DC66: 0 | DD66: 0 | DE66: 0 | DF66: 0 | DG66: 1 | DH66: 0 | DI66: 0 | DJ66: 0 | DK66: 0 | DL66: 0 | DM66: 1 | DN66: 0 | DO66: 0 | DP66: 0 | DQ66: 0 | DR66: 0 | DS66: 1 | DT66: 0 | DU66: 0 | DV66: 0 | DW66: 0 | DX66: 0 | DY66: 1 | DZ66: 0 | EA66: 0 | EB66: 0 | EC66: 0 | ED66: 0 | EE66: 1 | EF66: 0 | EG66: 0 | EH66: 0 | EI66: =EI64+EI65 -> 0 | EJ66: 0 | EK66: 1 | EL66: 0 | EM66: 0 | EN66: 0 | EO66: 0 | EP66: 0 | EQ66: 1 | ER66: 0 | ES66: 0 | ET66: 0 | EU66: 0 | EV66: 0 | EW66: 1 | EX66: 0 | EY66: 0 | EZ66: 0 | FA66: 0 | FB66: 0 | FC66: 1 | FD66: 0 | FE66: 0 | FF66: 0 | FG66: 0 | FH66: 0 | FI66: 1 | FJ66: 0 | FK66: 0 | FL66: 0 | FM66: 0 | FN66: 0 | FO66: 1 | FP66: 0 | FQ66: 0 | FR66: 0 | FS66: 0 | FT66: 0 | FU66: 1 | FV66: 0 | FW66: 0 | FX66: 0 | FY66: 0 | FZ66: 0 | GA66: 1 | GB66: 0 | GC66: 0 | GD66: 0 | GE66: 0 | GF66: 0 | GG66: 1 | GH66: 0 | GI66: 0 | GJ66: 0 | GK66: 0 | GL66: 0 | GM66: 1 | GN66: 0 | GO66: 0 | GP66: 0 | GQ66: 0 | GR66: 0 | GS66: 1 | GT66: 0 | GU66: =GU64+GU65 -> 0 | GV66: 0 | GW66: 0 | GX66: 0 | GY66: 1 | GZ66: 0 | HA66: 0 | HB66: 0 | HC66: 0 | HD66: 0 | HE66: 1 | HF66: 0 | HG66: 0 | HH66: 0 | HI66: 0 | HJ66: 0 | HK66: 1 | HL66: 0 | HM66: 0 | HN66: 0 | HO66: 0 | HP66: 0 | HQ66: 1 | HR66: 0 | HS66: 0 | HT66: 0 | HU66: 0 | HV66: 0 | HW66: 1 | HX66: 0 | HY66: 0 | HZ66: 0 | IA66: 0 | IB66: 0 | IC66: 1 | ID66: 0 | IE66: 0 | IF66: 0 | IG66: 0 | IH66: 0 | II66: 1 | IJ66: 0 | IK66: 0 | IL66: 0 | IM66: 0 | IN66: 0 | IO66: 1 | IP66: 0 | IQ66: 0 | IR66: 0 | IS66: 0 | IT66: 0 | IU66: 1 | IV66: 0 | IW66: 0 | IX66: 0 | IY66: 0 | IZ66: 0 | JA66: 1 | JB66: 0 | JC66: 0 | JD66: 0 | JE66: 0 | JF66: 0 | JG66: =JG64+JG65 -> 1 | JH66: 0 | JI66: 0 | JJ66: 0 | JK66: 0 | JL66: 0 | JM66: 1 | JN66: 0 | JO66: 0 | JP66: 0 | JQ66: 0 | JR66: 0 | JS66: 1 | JT66: 0 | JU66: 0 | JV66: 0 | JW66: 0 | JX66: 0 | JY66: 1 | JZ66: 0 | KA66: 0 | KB66: 0 | KC66: 0 | KD66: 0 | KE66: 1 | KF66: 0 | KG66: 0 | KH66: 0 | KI66: 0 | KJ66: 0 | KK66: 1 | KL66: 0 | KM66: 0 | KN66: 0 | KO66: 0 | KP66: 0 | KQ66: 1 | KR66: 0 | KS66: 0 | KT66: 0 | KU66: 0 | KV66: 0 | KW66: 1 | KX66: 0 | KY66: 0 | KZ66: 0 | LA66: 0 | LB66: 0 | LC66: 1 | LD66: 0 | LE66: 0 | LF66: 0 | LG66: 0 | LH66: 0 | LI66: 1 | LJ66: 0 | LK66: 0 | LL66: 0 | LM66: 0 | LN66: 0 | LO66: 1 | LP66: 0 | LQ66: 0 | LR66: 0 | LS66: =LS64+LS65 -> 0 | LT66: 0 | LU66: 1 | LV66: 0 | LW66: 0 | LX66: 0 | LY66: 0 | LZ66: 0 | MA66: 1 | MB66: 0 | MC66: 0 | MD66: 0 | ME66: 0 | MF66: 0 | MG66: 1 | MH66: 0 | MI66: 0 | MJ66: 0 | MK66: 0 | ML66: 0 | MM66: 1 | MN66: 0 | MO66: 0 | MP66: 0 | MQ66: 0 | MR66: 0 | MS66: 1 | MT66: 0 | MU66: 0 | MV66: 0 | MW66: 0 | MX66: 0 | MY66: 1 | MZ66: 0 | NA66: 0 | NB66: 0 | NC66: 0 | ND66: 0 | NE66: 1 | NF66: 0 | NG66: 0 | NH66: 0 | NI66: 0 | NJ66: 0 | NK66: 1 | NL66: 0 | NM66: 0 | NN66: 0 | NO66: 0 | NP66: 0 | NQ66: 1 | NR66: 0 | NS66: 0 | NT66: 0 | NU66: 0 | NV66: 0 | NW66: 1 | NX66: 0 | NY66: 0 | NZ66: 0 | OA66: 0 | OB66: 0 | OC66: 1 | OD66: 0 | OE66: =OE64+OE65 -> 0 | OF66: 0 | OG66: 0 | OH66: 0 | OI66: 1 | OJ66: 0 | OK66: 0 | OL66: 0 | OM66: 0 | ON66: 0 | OO66: 1 | OP66: 0 | OQ66: 0 | OR66: 0 | OS66: 0 | OT66: 0 | OU66: 1 | OV66: 0 | OW66: 0 | OX66: 0 | OY66: 0 | OZ66: 0 | PA66: 1 | PB66: 0 | PC66: 0 | PD66: 0 | PE66: 0 | PF66: 0 | PG66: 1 | PH66: 0 | PI66: 0 | PJ66: 0 | PK66: 0 | PL66: 0 | PM66: 1 | PN66: 0 | PO66: 0 | PP66: 0 | PQ66: 0 | PR66: 0 | PS66: 1 | PT66: 0 | PU66: 0 | PV66: 0 | PW66: 0 | PX66: 0 | PY66: 1 | PZ66: 0 | QA66: 0 | QB66: 0 | QC66: 0 | QD66: 0 | QE66: 1 | QF66: 0 | QG66: 0 | QH66: 0 | QI66: 0 | QJ66: 0 | QK66: 1 | QL66: 0 | QM66: 0 | QN66: 0 | QO66: 0 | QP66: 0 | QQ66: =QQ64+QQ65 -> 1 | QR66: 0 | QS66: 0 | QT66: 0 | QU66: 0 | QV66: 0 | QW66: 1 | QX66: 0 | QY66: 0 | QZ66: 0 | RA66: 0 | RB66: 0 | RC66: 1 | RD66: 0 | RE66: 0 | RF66: 0 | RG66: 0 | RH66: 0 | RI66: 1 | RJ66: 0 | RK66: 0 | RL66: 0 | RM66: 0 | RN66: 0 | RO66: 1 | RP66: 0 | RQ66: 0 | RR66: 0 | RS66: 0 | RT66: 0 | RU66: 1 | RV66: 0 | RW66: 0 | RX66: 0 | RY66: 0 | RZ66: 0 | SA66: 1 | SB66: 0 | SC66: 0 | SD66: 0 | SE66: 0 | SF66: 0 | SG66: 1 | SH66: 0 | SI66: 0 | SJ66: 0 | SK66: 0 | SL66: 0 | SM66: 1 | SN66: 0 | SO66: 0
E68: Semi-Counter | J68: =IF(I66,0,I68+1)*NOT(J59) -> 0 | K68: =IF(J66,0,J68+1)*NOT(K59) -> 0 | L68: 0 | M68: 0 | N68: 0 | O68: 0 | P68: 0 | Q68: 0 | R68: 0 | S68: 0 | T68: 0 | U68: 0 | V68: 0 | W68: 0 | X68: 0 | Y68: 0 | Z68: 0 | AA68: 0 | AB68: 0 | AC68: 0 | AD68: 0 | AE68: 0 | AF68: 0 | AG68: 0 | AH68: 0 | AI68: 1 | AJ68: 2 | AK68: 3 | AL68: 4 | AM68: 5 | AN68: 0 | AO68: 1 | AP68: 2 | AQ68: 3 | AR68: 4 | AS68: 5 | AT68: 0 | AU68: 1 | AV68: 2 | AW68: 3 | AX68: 4 | AY68: 5 | AZ68: 0 | BA68: 1 | BB68: 2 | BC68: 3 | BD68: 4 | BE68: 5 | BF68: 0 | BG68: 1 | BH68: 2 | BI68: 3 | BJ68: 4 | BK68: 5 | BL68: 0 | BM68: 1 | BN68: 2 | BO68: 3 | BP68: 4 | BQ68: 5 | BR68: 0 | BS68: 1 | BT68: 2 | BU68: 3 | BV68: 4 | BW68: =IF(BV66,0,BV68+1)*NOT(BW59) -> 5 | BX68: 0 | BY68: 1 | BZ68: 2 | CA68: 3 | CB68: 4 | CC68: 5 | CD68: 0 | CE68: 1 | CF68: 2 | CG68: 3 | CH68: 4 | CI68: 5 | CJ68: 0 | CK68: 1 | CL68: 2 | CM68: 3 | CN68: 4 | CO68: 5 | CP68: 0 | CQ68: 1 | CR68: 2 | CS68: 3 | CT68: 4 | CU68: 5 | CV68: 0 | CW68: 1 | CX68: 2 | CY68: 3 | CZ68: 4 | DA68: 5 | DB68: 0 | DC68: 1 | DD68: 2 | DE68: 3 | DF68: 4 | DG68: 5 | DH68: 0 | DI68: 1 | DJ68: 2 | DK68: 3 | DL68: 4 | DM68: 5 | DN68: 0 | DO68: 1 | DP68: 2 | DQ68: 3 | DR68: 4 | DS68: 5 | DT68: 0 | DU68: 1 | DV68: 2 | DW68: 3 | DX68: 4 | DY68: 5 | DZ68: 0 | EA68: 1 | EB68: 2 | EC68: 3 | ED68: 4 | EE68: 5 | EF68: 0 | EG68: 1 | EH68: 2 | EI68: =IF(EH66,0,EH68+1)*NOT(EI59) -> 3 | EJ68: 4 | EK68: 5 | EL68: 0 | EM68: 1 | EN68: 2 | EO68: 3 | EP68: 4 | EQ68: 5 | ER68: 0 | ES68: 1 | ET68: 2 | EU68: 3 | EV68: 4 | EW68: 5 | EX68: 0 | EY68: 1 | EZ68: 2 | FA68: 3 | FB68: 4 | FC68: 5 | FD68: 0 | FE68: 1 | FF68: 2 | FG68: 3 | FH68: 4 | FI68: 5 | FJ68: 0 | FK68: 1 | FL68: 2 | FM68: 3 | FN68: 4 | FO68: 5 | FP68: 0 | FQ68: 1 | FR68: 2 | FS68: 3 | FT68: 4 | FU68: 5 | FV68: 0 | FW68: 1 | FX68: 2 | FY68: 3 | FZ68: 4 | GA68: 5 | GB68: 0 | GC68: 1 | GD68: 2 | GE68: 3 | GF68: 4 | GG68: 5 | GH68: 0 | GI68: 1 | GJ68: 2 | GK68: 3 | GL68: 4 | GM68: 5 | GN68: 0 | GO68: 1 | GP68: 2 | GQ68: 3 | GR68: 4 | GS68: 5 | GT68: 0 | GU68: =IF(GT66,0,GT68+1)*NOT(GU59) -> 1 | GV68: 2 | GW68: 3 | GX68: 4 | GY68: 5 | GZ68: 0 | HA68: 1 | HB68: 2 | HC68: 3 | HD68: 4 | HE68: 5 | HF68: 0 | HG68: 1 | HH68: 2 | HI68: 3 | HJ68: 4 | HK68: 5 | HL68: 0 | HM68: 1 | HN68: 2 | HO68: 3 | HP68: 4 | HQ68: 5 | HR68: 0 | HS68: 1 | HT68: 2 | HU68: 3 | HV68: 4 | HW68: 5 | HX68: 0 | HY68: 1 | HZ68: 2 | IA68: 3 | IB68: 4 | IC68: 5 | ID68: 0 | IE68: 1 | IF68: 2 | IG68: 3 | IH68: 4 | II68: 5 | IJ68: 0 | IK68: 1 | IL68: 2 | IM68: 3 | IN68: 4 | IO68: 5 | IP68: 0 | IQ68: 1 | IR68: 2 | IS68: 3 | IT68: 4 | IU68: 5 | IV68: 0 | IW68: 1 | IX68: 2 | IY68: 3 | IZ68: 4 | JA68: 5 | JB68: 0 | JC68: 1 | JD68: 2 | JE68: 3 | JF68: 4 | JG68: =IF(JF66,0,JF68+1)*NOT(JG59) -> 5 | JH68: 0 | JI68: 1 | JJ68: 2 | JK68: 3 | JL68: 4 | JM68: 5 | JN68: 0 | JO68: 1 | JP68: 2 | JQ68: 3 | JR68: 4 | JS68: 5 | JT68: 0 | JU68: 1 | JV68: 2 | JW68: 3 | JX68: 4 | JY68: 5 | JZ68: 0 | KA68: 1 | KB68: 2 | KC68: 3 | KD68: 4 | KE68: 5 | KF68: 0 | KG68: 1 | KH68: 2 | KI68: 3 | KJ68: 4 | KK68: 5 | KL68: 0 | KM68: 1 | KN68: 2 | KO68: 3 | KP68: 4 | KQ68: 5 | KR68: 0 | KS68: 1 | KT68: 2 | KU68: 3 | KV68: 4 | KW68: 5 | KX68: 0 | KY68: 1 | KZ68: 2 | LA68: 3 | LB68: 4 | LC68: 5 | LD68: 0 | LE68: 1 | LF68: 2 | LG68: 3 | LH68: 4 | LI68: 5 | LJ68: 0 | LK68: 1 | LL68: 2 | LM68: 3 | LN68: 4 | LO68: 5 | LP68: 0 | LQ68: 1 | LR68: 2 | LS68: =IF(LR66,0,LR68+1)*NOT(LS59) -> 3 | LT68: 4 | LU68: 5 | LV68: 0 | LW68: 1 | LX68: 2 | LY68: 3 | LZ68: 4 | MA68: 5 | MB68: 0 | MC68: 1 | MD68: 2 | ME68: 3 | MF68: 4 | MG68: 5 | MH68: 0 | MI68: 1 | MJ68: 2 | MK68: 3 | ML68: 4 | MM68: 5 | MN68: 0 | MO68: 1 | MP68: 2 | MQ68: 3 | MR68: 4 | MS68: 5 | MT68: 0 | MU68: 1 | MV68: 2 | MW68: 3 | MX68: 4 | MY68: 5 | MZ68: 0 | NA68: 1 | NB68: 2 | NC68: 3 | ND68: 4 | NE68: 5 | NF68: 0 | NG68: 1 | NH68: 2 | NI68: 3 | NJ68: 4 | NK68: 5 | NL68: 0 | NM68: 1 | NN68: 2 | NO68: 3 | NP68: 4 | NQ68: 5 | NR68: 0 | NS68: 1 | NT68: 2 | NU68: 3 | NV68: 4 | NW68: 5 | NX68: 0 | NY68: 1 | NZ68: 2 | OA68: 3 | OB68: 4 | OC68: 5 | OD68: 0 | OE68: =IF(OD66,0,OD68+1)*NOT(OE59) -> 1 | OF68: 2 | OG68: 3 | OH68: 4 | OI68: 5 | OJ68: 0 | OK68: 1 | OL68: 2 | OM68: 3 | ON68: 4 | OO68: 5 | OP68: 0 | OQ68: 1 | OR68: 2 | OS68: 3 | OT68: 4 | OU68: 5 | OV68: 0 | OW68: 1 | OX68: 2 | OY68: 3 | OZ68: 4 | PA68: 5 | PB68: 0 | PC68: 1 | PD68: 2 | PE68: 3 | PF68: 4 | PG68: 5 | PH68: 0 | PI68: 1 | PJ68: 2 | PK68: 3 | PL68: 4 | PM68: 5 | PN68: 0 | PO68: 1 | PP68: 2 | PQ68: 3 | PR68: 4 | PS68: 5 | PT68: 0 | PU68: 1 | PV68: 2 | PW68: 3 | PX68: 4 | PY68: 5 | PZ68: 0 | QA68: 1 | QB68: 2 | QC68: 3 | QD68: 4 | QE68: 5 | QF68: 0 | QG68: 1 | QH68: 2 | QI68: 3 | QJ68: 4 | QK68: 5 | QL68: 0 | QM68: 1 | QN68: 2 | QO68: 3 | QP68: 4 | QQ68: =IF(QP66,0,QP68+1)*NOT(QQ59) -> 5 | QR68: 0 | QS68: 1 | QT68: 2 | QU68: 3 | QV68: 4 | QW68: 5 | QX68: 0 | QY68: 1 | QZ68: 2 | RA68: 3 | RB68: 4 | RC68: 5 | RD68: 0 | RE68: 1 | RF68: 2 | RG68: 3 | RH68: 4 | RI68: 5 | RJ68: 0 | RK68: 1 | RL68: 2 | RM68: 3 | RN68: 4 | RO68: 5 | RP68: 0 | RQ68: 1 | RR68: 2 | RS68: 3 | RT68: 4 | RU68: 5 | RV68: 0 | RW68: 1 | RX68: 2 | RY68: 3 | RZ68: 4 | SA68: 5 | SB68: 0 | SC68: 1 | SD68: 2 | SE68: 3 | SF68: 4 | SG68: 5 | SH68: 0 | SI68: 1 | SJ68: 2 | SK68: 3 | SL68: 4 | SM68: 5 | SN68: 0 | SO68: 1
E69: Semi-Annual Start Date | J69: =IF(J59,J2,OFFSET(J2,0,-J68)) -> 2023-01-01 | K69: 2023-02-01 | L69: 2023-03-01 | M69: 2023-04-01 | N69: 2023-05-01 | O69: 2023-06-01 | P69: 2023-07-01 | Q69: 2023-08-01 | R69: 2023-09-01 | S69: 2023-10-01 | T69: 2023-11-01 | U69: 2023-12-01 | V69: 2024-01-01 | W69: 2024-02-01 | X69: 2024-03-01 | Y69: 2024-04-01 | Z69: 2024-05-01 | AA69: 2024-06-01 | AB69: 2024-07-01 | AC69: 2024-08-01 | AD69: 2024-09-01 | AE69: 2024-10-01 | AF69: 2024-11-01 | AG69: 2024-12-01 | AH69: 2025-01-01 | AI69: 2025-01-01 | AJ69: 2025-01-01 | AK69: 2025-01-01 | AL69: 2025-01-01 | AM69: 2025-01-01 | AN69: 2025-07-01 | AO69: 2025-07-01 | AP69: 2025-07-01 | AQ69: 2025-07-01 | AR69: 2025-07-01 | AS69: 2025-07-01 | AT69: 2026-01-01 | AU69: 2026-01-01 | AV69: 2026-01-01 | AW69: 2026-01-01 | AX69: 2026-01-01 | AY69: 2026-01-01 | AZ69: 2026-07-01 | BA69: 2026-07-01 | BB69: 2026-07-01 | BC69: 2026-07-01 | BD69: 2026-07-01 | BE69: 2026-07-01 | BF69: 2027-01-01 | BG69: 2027-01-01 | BH69: 2027-01-01 | BI69: 2027-01-01 | BJ69: 2027-01-01 | BK69: 2027-01-01 | BL69: 2027-07-01 | BM69: 2027-07-01 | BN69: 2027-07-01 | BO69: 2027-07-01 | BP69: 2027-07-01 | BQ69: 2027-07-01 | BR69: 2028-01-01 | BS69: 2028-01-01 | BT69: 2028-01-01 | BU69: 2028-01-01 | BV69: =IF(BV59,BV2,OFFSET(BV2,0,-BV68)) -> 2028-01-01 | BW69: 2028-01-01 | BX69: 2028-07-01 | BY69: 2028-07-01 | BZ69: 2028-07-01 | CA69: 2028-07-01 | CB69: 2028-07-01 | CC69: 2028-07-01 | CD69: 2029-01-01 | CE69: 2029-01-01 | CF69: 2029-01-01 | CG69: 2029-01-01 | CH69: 2029-01-01 | CI69: 2029-01-01 | CJ69: 2029-07-01 | CK69: 2029-07-01 | CL69: 2029-07-01 | CM69: 2029-07-01 | CN69: 2029-07-01 | CO69: 2029-07-01 | CP69: 2030-01-01 | CQ69: 2030-01-01 | CR69: 2030-01-01 | CS69: 2030-01-01 | CT69: 2030-01-01 | CU69: 2030-01-01 | CV69: 2030-07-01 | CW69: 2030-07-01 | CX69: 2030-07-01 | CY69: 2030-07-01 | CZ69: 2030-07-01 | DA69: 2030-07-01 | DB69: 2031-01-01 | DC69: 2031-01-01 | DD69: 2031-01-01 | DE69: 2031-01-01 | DF69: 2031-01-01 | DG69: 2031-01-01 | DH69: 2031-07-01 | DI69: 2031-07-01 | DJ69: 2031-07-01 | DK69: 2031-07-01 | DL69: 2031-07-01 | DM69: 2031-07-01 | DN69: 2032-01-01 | DO69: 2032-01-01 | DP69: 2032-01-01 | DQ69: 2032-01-01 | DR69: 2032-01-01 | DS69: 2032-01-01 | DT69: 2032-07-01 | DU69: 2032-07-01 | DV69: 2032-07-01 | DW69: 2032-07-01 | DX69: 2032-07-01 | DY69: 2032-07-01 | DZ69: 2033-01-01 | EA69: 2033-01-01 | EB69: 2033-01-01 | EC69: 2033-01-01 | ED69: 2033-01-01 | EE69: 2033-01-01 | EF69: 2033-07-01 | EG69: 2033-07-01 | EH69: =IF(EH59,EH2,OFFSET(EH2,0,-EH68)) -> 2033-07-01 | EI69: 2033-07-01 | EJ69: 2033-07-01 | EK69: 2033-07-01 | EL69: 2034-01-01 | EM69: 2034-01-01 | EN69: 2034-01-01 | EO69: 2034-01-01 | EP69: 2034-01-01 | EQ69: 2034-01-01 | ER69: 2034-07-01 | ES69: 2034-07-01 | ET69: 2034-07-01 | EU69: 2034-07-01 | EV69: 2034-07-01 | EW69: 2034-07-01 | EX69: 2035-01-01 | EY69: 2035-01-01 | EZ69: 2035-01-01 | FA69: 2035-01-01 | FB69: 2035-01-01 | FC69: 2035-01-01 | FD69: 2035-07-01 | FE69: 2035-07-01 | FF69: 2035-07-01 | FG69: 2035-07-01 | FH69: 2035-07-01 | FI69: 2035-07-01 | FJ69: 2036-01-01 | FK69: 2036-01-01 | FL69: 2036-01-01 | FM69: 2036-01-01 | FN69: 2036-01-01 | FO69: 2036-01-01 | FP69: 2036-07-01 | FQ69: 2036-07-01 | FR69: 2036-07-01 | FS69: 2036-07-01 | FT69: 2036-07-01 | FU69: 2036-07-01 | FV69: 2037-01-01 | FW69: 2037-01-01 | FX69: 2037-01-01 | FY69: 2037-01-01 | FZ69: 2037-01-01 | GA69: 2037-01-01 | GB69: 2037-07-01 | GC69: 2037-07-01 | GD69: 2037-07-01 | GE69: 2037-07-01 | GF69: 2037-07-01 | GG69: 2037-07-01 | GH69: 2038-01-01 | GI69: 2038-01-01 | GJ69: 2038-01-01 | GK69: 2038-01-01 | GL69: 2038-01-01 | GM69: 2038-01-01 | GN69: 2038-07-01 | GO69: 2038-07-01 | GP69: 2038-07-01 | GQ69: 2038-07-01 | GR69: 2038-07-01 | GS69: 2038-07-01 | GT69: =IF(GT59,GT2,OFFSET(GT2,0,-GT68)) -> 2039-01-01 | GU69: 2039-01-01 | GV69: 2039-01-01 | GW69: 2039-01-01 | GX69: 2039-01-01 | GY69: 2039-01-01 | GZ69: 2039-07-01 | HA69: 2039-07-01 | HB69: 2039-07-01 | HC69: 2039-07-01 | HD69: 2039-07-01 | HE69: 2039-07-01 | HF69: 2040-01-01 | HG69: 2040-01-01 | HH69: 2040-01-01 | HI69: 2040-01-01 | HJ69: 2040-01-01 | HK69: 2040-01-01 | HL69: 2040-07-01 | HM69: 2040-07-01 | HN69: 2040-07-01 | HO69: 2040-07-01 | HP69: 2040-07-01 | HQ69: 2040-07-01 | HR69: 2041-01-01 | HS69: 2041-01-01 | HT69: 2041-01-01 | HU69: 2041-01-01 | HV69: 2041-01-01 | HW69: 2041-01-01 | HX69: 2041-07-01 | HY69: 2041-07-01 | HZ69: 2041-07-01 | IA69: 2041-07-01 | IB69: 2041-07-01 | IC69: 2041-07-01 | ID69: 2042-01-01 | IE69: 2042-01-01 | IF69: 2042-01-01 | IG69: 2042-01-01 | IH69: 2042-01-01 | II69: 2042-01-01 | IJ69: 2042-07-01 | IK69: 2042-07-01 | IL69: 2042-07-01 | IM69: 2042-07-01 | IN69: 2042-07-01 | IO69: 2042-07-01 | IP69: 2043-01-01 | IQ69: 2043-01-01 | IR69: 2043-01-01 | IS69: 2043-01-01 | IT69: 2043-01-01 | IU69: 2043-01-01 | IV69: 2043-07-01 | IW69: 2043-07-01 | IX69: 2043-07-01 | IY69: 2043-07-01 | IZ69: 2043-07-01 | JA69: 2043-07-01 | JB69: 2044-01-01 | JC69: 2044-01-01 | JD69: 2044-01-01 | JE69: 2044-01-01 | JF69: =IF(JF59,JF2,OFFSET(JF2,0,-JF68)) -> 2044-01-01 | JG69: 2044-01-01 | JH69: 2044-07-01 | JI69: 2044-07-01 | JJ69: 2044-07-01 | JK69: 2044-07-01 | JL69: 2044-07-01 | JM69: 2044-07-01 | JN69: 2045-01-01 | JO69: 2045-01-01 | JP69: 2045-01-01 | JQ69: 2045-01-01 | JR69: 2045-01-01 | JS69: 2045-01-01 | JT69: 2045-07-01 | JU69: 2045-07-01 | JV69: 2045-07-01 | JW69: 2045-07-01 | JX69: 2045-07-01 | JY69: 2045-07-01 | JZ69: 2046-01-01 | KA69: 2046-01-01 | KB69: 2046-01-01 | KC69: 2046-01-01 | KD69: 2046-01-01 | KE69: 2046-01-01 | KF69: 2046-07-01 | KG69: 2046-07-01 | KH69: 2046-07-01 | KI69: 2046-07-01 | KJ69: 2046-07-01 | KK69: 2046-07-01 | KL69: 2047-01-01 | KM69: 2047-01-01 | KN69: 2047-01-01 | KO69: 2047-01-01 | KP69: 2047-01-01 | KQ69: 2047-01-01 | KR69: 2047-07-01 | KS69: 2047-07-01 | KT69: 2047-07-01 | KU69: 2047-07-01 | KV69: 2047-07-01 | KW69: 2047-07-01 | KX69: 2048-01-01 | KY69: 2048-01-01 | KZ69: 2048-01-01 | LA69: 2048-01-01 | LB69: 2048-01-01 | LC69: 2048-01-01 | LD69: 2048-07-01 | LE69: 2048-07-01 | LF69: 2048-07-01 | LG69: 2048-07-01 | LH69: 2048-07-01 | LI69: 2048-07-01 | LJ69: 2049-01-01 | LK69: 2049-01-01 | LL69: 2049-01-01 | LM69: 2049-01-01 | LN69: 2049-01-01 | LO69: 2049-01-01 | LP69: 2049-07-01 | LQ69: 2049-07-01 | LR69: =IF(LR59,LR2,OFFSET(LR2,0,-LR68)) -> 2049-07-01 | LS69: 2049-07-01 | LT69: 2049-07-01 | LU69: 2049-07-01 | LV69: 2050-01-01 | LW69: 2050-01-01 | LX69: 2050-01-01 | LY69: 2050-01-01 | LZ69: 2050-01-01 | MA69: 2050-01-01 | MB69: 2050-07-01 | MC69: 2050-07-01 | MD69: 2050-07-01 | ME69: 2050-07-01 | MF69: 2050-07-01 | MG69: 2050-07-01 | MH69: 2051-01-01 | MI69: 2051-01-01 | MJ69: 2051-01-01 | MK69: 2051-01-01 | ML69: 2051-01-01 | MM69: 2051-01-01 | MN69: 2051-07-01 | MO69: 2051-07-01 | MP69: 2051-07-01 | MQ69: 2051-07-01 | MR69: 2051-07-01 | MS69: 2051-07-01 | MT69: 2052-01-01 | MU69: 2052-01-01 | MV69: 2052-01-01 | MW69: 2052-01-01 | MX69: 2052-01-01 | MY69: 2052-01-01 | MZ69: 2052-07-01 | NA69: 2052-07-01 | NB69: 2052-07-01 | NC69: 2052-07-01 | ND69: 2052-07-01 | NE69: 2052-07-01 | NF69: 2053-01-01 | NG69: 2053-01-01 | NH69: 2053-01-01 | NI69: 2053-01-01 | NJ69: 2053-01-01 | NK69: 2053-01-01 | NL69: 2053-07-01 | NM69: 2053-07-01 | NN69: 2053-07-01 | NO69: 2053-07-01 | NP69: 2053-07-01 | NQ69: 2053-07-01 | NR69: 2054-01-01 | NS69: 2054-01-01 | NT69: 2054-01-01 | NU69: 2054-01-01 | NV69: 2054-01-01 | NW69: 2054-01-01 | NX69: 2054-07-01 | NY69: 2054-07-01 | NZ69: 2054-07-01 | OA69: 2054-07-01 | OB69: 2054-07-01 | OC69: 2054-07-01 | OD69: =IF(OD59,OD2,OFFSET(OD2,0,-OD68)) -> 2055-01-01 | OE69: 2055-01-01 | OF69: 2055-01-01 | OG69: 2055-01-01 | OH69: 2055-01-01 | OI69: 2055-01-01 | OJ69: 2055-07-01 | OK69: 2055-07-01 | OL69: 2055-07-01 | OM69: 2055-07-01 | ON69: 2055-07-01 | OO69: 2055-07-01 | OP69: 2056-01-01 | OQ69: 2056-01-01 | OR69: 2056-01-01 | OS69: 2056-01-01 | OT69: 2056-01-01 | OU69: 2056-01-01 | OV69: 2056-07-01 | OW69: 2056-07-01 | OX69: 2056-07-01 | OY69: 2056-07-01 | OZ69: 2056-07-01 | PA69: 2056-07-01 | PB69: 2057-01-01 | PC69: 2057-01-01 | PD69: 2057-01-01 | PE69: 2057-01-01 | PF69: 2057-01-01 | PG69: 2057-01-01 | PH69: 2057-07-01 | PI69: 2057-07-01 | PJ69: 2057-07-01 | PK69: 2057-07-01 | PL69: 2057-07-01 | PM69: 2057-07-01 | PN69: 2058-01-01 | PO69: 2058-01-01 | PP69: 2058-01-01 | PQ69: 2058-01-01 | PR69: 2058-01-01 | PS69: 2058-01-01 | PT69: 2058-07-01 | PU69: 2058-07-01 | PV69: 2058-07-01 | PW69: 2058-07-01 | PX69: 2058-07-01 | PY69: 2058-07-01 | PZ69: 2059-01-01 | QA69: 2059-01-01 | QB69: 2059-01-01 | QC69: 2059-01-01 | QD69: 2059-01-01 | QE69: 2059-01-01 | QF69: 2059-07-01 | QG69: 2059-07-01 | QH69: 2059-07-01 | QI69: 2059-07-01 | QJ69: 2059-07-01 | QK69: 2059-07-01 | QL69: 2060-01-01 | QM69: 2060-01-01 | QN69: 2060-01-01 | QO69: 2060-01-01 | QP69: =IF(QP59,QP2,OFFSET(QP2,0,-QP68)) -> 2060-01-01 | QQ69: 2060-01-01 | QR69: 2060-07-01 | QS69: 2060-07-01 | QT69: 2060-07-01 | QU69: 2060-07-01 | QV69: 2060-07-01 | QW69: 2060-07-01 | QX69: 2061-01-01 | QY69: 2061-01-01 | QZ69: 2061-01-01 | RA69: 2061-01-01 | RB69: 2061-01-01 | RC69: 2061-01-01 | RD69: 2061-07-01 | RE69: 2061-07-01 | RF69: 2061-07-01 | RG69: 2061-07-01 | RH69: 2061-07-01 | RI69: 2061-07-01 | RJ69: 2062-01-01 | RK69: 2062-01-01 | RL69: 2062-01-01 | RM69: 2062-01-01 | RN69: 2062-01-01 | RO69: 2062-01-01 | RP69: 2062-07-01 | RQ69: 2062-07-01 | RR69: 2062-07-01 | RS69: 2062-07-01 | RT69: 2062-07-01 | RU69: 2062-07-01 | RV69: 2063-01-01 | RW69: 2063-01-01 | RX69: 2063-01-01 | RY69: 2063-01-01 | RZ69: 2063-01-01 | SA69: 2063-01-01 | SB69: 2063-07-01 | SC69: 2063-07-01 | SD69: 2063-07-01 | SE69: 2063-07-01 | SF69: 2063-07-01 | SG69: 2063-07-01 | SH69: 2064-01-01 | SI69: 2064-01-01 | SJ69: 2064-01-01 | SK69: 2064-01-01 | SL69: 2064-01-01 | SM69: 2064-01-01 | SN69: 2064-07-01 | SO69: 2064-07-01

Sheet TimeSA
A1: =MID(CELL("filename"),FIND("]",CELL("filename"),1)+1,250) -> Checks
E2: Model period start date - semi-annual - header | J2: =J17 -> 2023-01-01 | K2: =K17 -> 1900-01-01 | L2: 1900-01-01 | M2: 1900-01-01 | N2: 1900-01-01 | O2: 1900-01-01 | P2: 1900-01-01 | Q2: 1900-01-01 | R2: 1900-01-01 | S2: 1900-01-01 | T2: 1900-01-01 | U2: 1900-01-01 | V2: 1900-01-01 | W2: 1900-01-01 | X2: 1900-01-01 | Y2: 1900-01-01 | Z2: 1900-01-01 | AA2: 1900-01-01 | AB2: 1900-01-01 | AC2: 1900-01-01 | AD2: 1900-01-01 | AE2: 1900-01-01 | AF2: 1900-01-01 | AG2: 1900-01-01 | AH2: 1900-01-01 | AI2: 1900-01-01 | AJ2: 1900-01-01 | AK2: 1900-01-01 | AL2: 1900-01-01 | AM2: 1900-01-01 | AN2: 1900-01-01 | AO2: 1900-01-01 | AP2: 1900-01-01 | AQ2: 1900-01-01 | AR2: 1900-01-01 | AS2: 1900-01-01 | AT2: 1900-01-01 | AU2: 1900-01-01 | AV2: 1900-01-01 | AW2: 1900-01-01 | AX2: 1900-01-01 | AY2: 1900-01-01 | AZ2: 1900-01-01 | BA2: 1900-01-01 | BB2: 1900-01-01 | BC2: 1900-01-01 | BD2: 1900-01-01 | BE2: 1900-01-01 | BF2: 1900-01-01 | BG2: 1900-01-01 | BH2: 1900-01-01 | BI2: 1900-01-01 | BJ2: 1900-01-01 | BK2: 1900-01-01 | BL2: 1900-01-01 | BM2: 1900-01-01 | BN2: 1900-01-01 | BO2: 1900-01-01 | BP2: 1900-01-01 | BQ2: 1900-01-01 | BR2: 1900-01-01 | BS2: 1900-01-01 | BT2: 1900-01-01 | BU2: 1900-01-01 | BV2: 1900-01-01 | BW2: =BW17 -> 1900-01-01 | BX2: 1900-01-01 | BY2: 1900-01-01 | BZ2: 1900-01-01 | CA2: 1900-01-01 | CB2: 1900-01-01 | CC2: 1900-01-01 | CD2: 1900-01-01 | CE2: 1900-01-01 | CF2: 1900-01-01 | CG2: 1900-01-01 | CH2: 1900-01-01 | CI2: 1900-01-01 | CJ2: 1900-01-01 | CK2: 1900-01-01 | CL2: 1900-01-01 | CM2: 1900-01-01 | CN2: 1900-01-01 | CO2: 1900-01-01 | CP2: 1900-01-01 | CQ2: 1900-01-01 | CR2: 1900-01-01 | CS2: 1900-01-01 | CT2: 1900-01-01 | CU2: 1900-01-01 | CV2: 1900-01-01 | CW2: 1900-01-01 | CX2: 1900-01-01 | CY2: 1900-01-01 | CZ2: 1900-01-01 | DA2: 1900-01-01 | DB2: 1900-01-01 | DC2: 1900-01-01 | DD2: 1900-01-01 | DE2: 1900-01-01 | DF2: 1900-01-01 | DG2: 1900-01-01 | DH2: 1900-01-01 | DI2: 1900-01-01 | DJ2: 1900-01-01 | DK2: 1900-01-01 | DL2: 1900-01-01 | DM2: 1900-01-01 | DN2: 1900-01-01 | DO2: 1900-01-01 | DP2: 1900-01-01 | DQ2: 1900-01-01 | DR2: 1900-01-01 | DS2: 1900-01-01 | DT2: 1900-01-01 | DU2: 1900-01-01 | DV2: 1900-01-01 | DW2: 1900-01-01 | DX2: 1900-01-01 | DY2: 1900-01-01 | DZ2: 1900-01-01 | EA2: 1900-01-01 | EB2: 1900-01-01 | EC2: 1900-01-01 | ED2: 1900-01-01 | EE2: 1900-01-01 | EF2: 1900-01-01 | EG2: 1900-01-01 | EH2: 1900-01-01 | EI2: =EI17 -> 1900-01-01 | EJ2: 1900-01-01 | EK2: 1900-01-01 | EL2: 1900-01-01 | EM2: 1900-01-01 | EN2: 1900-01-01 | EO2: 1900-01-01 | EP2: 1900-01-01 | EQ2: 1900-01-01 | ER2: 1900-01-01 | ES2: 1900-01-01 | ET2: 1900-01-01 | EU2: 1900-01-01 | EV2: 1900-01-01 | EW2: 1900-01-01 | EX2: 1900-01-01 | EY2: 1900-01-01 | EZ2: 1900-01-01 | FA2: 1900-01-01 | FB2: 1900-01-01 | FC2: 1900-01-01 | FD2: 1900-01-01 | FE2: 1900-01-01 | FF2: 1900-01-01 | FG2: 1900-01-01 | FH2: 1900-01-01 | FI2: 1900-01-01 | FJ2: 1900-01-01 | FK2: 1900-01-01 | FL2: 1900-01-01 | FM2: 1900-01-01 | FN2: 1900-01-01 | FO2: 1900-01-01 | FP2: 1900-01-01 | FQ2: 1900-01-01 | FR2: 1900-01-01 | FS2: 1900-01-01 | FT2: 1900-01-01 | FU2: 1900-01-01 | FV2: 1900-01-01 | FW2: 1900-01-01 | FX2: 1900-01-01 | FY2: 1900-01-01 | FZ2: 1900-01-01 | GA2: 1900-01-01 | GB2: 1900-01-01 | GC2: 1900-01-01 | GD2: 1900-01-01 | GE2: 1900-01-01 | GF2: 1900-01-01 | GG2: 1900-01-01 | GH2: 1900-01-01 | GI2: 1900-01-01 | GJ2: 1900-01-01 | GK2: 1900-01-01 | GL2: 1900-01-01 | GM2: 1900-01-01 | GN2: 1900-01-01 | GO2: 1900-01-01 | GP2: 1900-01-01 | GQ2: 1900-01-01 | GR2: 1900-01-01 | GS2: 1900-01-01 | GT2: 1900-01-01 | GU2: =GU17 -> 1900-01-01 | GV2: 1900-01-01 | GW2: 1900-01-01 | GX2: 1900-01-01 | GY2: 1900-01-01 | GZ2: 1900-01-01 | HA2: 1900-01-01 | HB2: 1900-01-01 | HC2: 1900-01-01 | HD2: 1900-01-01 | HE2: 1900-01-01 | HF2: 1900-01-01 | HG2: 1900-01-01 | HH2: 1900-01-01 | HI2: 1900-01-01 | HJ2: 1900-01-01 | HK2: 1900-01-01 | HL2: 1900-01-01 | HM2: 1900-01-01 | HN2: 1900-01-01 | HO2: 1900-01-01 | HP2: 1900-01-01 | HQ2: 1900-01-01 | HR2: 1900-01-01 | HS2: 1900-01-01 | HT2: 1900-01-01 | HU2: 1900-01-01 | HV2: 1900-01-01 | HW2: 1900-01-01 | HX2: 1900-01-01 | HY2: 1900-01-01 | HZ2: 1900-01-01 | IA2: 1900-01-01 | IB2: 1900-01-01 | IC2: 1900-01-01 | ID2: 1900-01-01 | IE2: 1900-01-01 | IF2: 1900-01-01 | IG2: 1900-01-01 | IH2: 1900-01-01 | II2: 1900-01-01 | IJ2: 1900-01-01 | IK2: 1900-01-01 | IL2: 1900-01-01 | IM2: 1900-01-01 | IN2: 1900-01-01 | IO2: 1900-01-01 | IP2: 1900-01-01 | IQ2: 1900-01-01 | IR2: 1900-01-01 | IS2: 1900-01-01 | IT2: 1900-01-01 | IU2: 1900-01-01 | IV2: 1900-01-01 | IW2: 1900-01-01 | IX2: 1900-01-01 | IY2: 1900-01-01 | IZ2: 1900-01-01 | JA2: 1900-01-01 | JB2: 1900-01-01 | JC2: 1900-01-01 | JD2: 1900-01-01 | JE2: 1900-01-01 | JF2: 1900-01-01 | JG2: =JG17 -> 1900-01-01 | JH2: 1900-01-01 | JI2: 1900-01-01 | JJ2: 1900-01-01 | JK2: 1900-01-01 | JL2: 1900-01-01 | JM2: 1900-01-01 | JN2: 1900-01-01 | JO2: 1900-01-01 | JP2: 1900-01-01 | JQ2: 1900-01-01 | JR2: 1900-01-01 | JS2: 1900-01-01 | JT2: 1900-01-01 | JU2: 1900-01-01 | JV2: 1900-01-01 | JW2: 1900-01-01 | JX2: 1900-01-01 | JY2: 1900-01-01 | JZ2: 1900-01-01 | KA2: 1900-01-01 | KB2: 1900-01-01 | KC2: 1900-01-01 | KD2: 1900-01-01 | KE2: 1900-01-01 | KF2: 1900-01-01 | KG2: 1900-01-01 | KH2: 1900-01-01 | KI2: 1900-01-01 | KJ2: 1900-01-01 | KK2: 1900-01-01 | KL2: 1900-01-01 | KM2: 1900-01-01 | KN2: 1900-01-01 | KO2: 1900-01-01 | KP2: 1900-01-01 | KQ2: 1900-01-01 | KR2: 1900-01-01 | KS2: 1900-01-01 | KT2: 1900-01-01 | KU2: 1900-01-01 | KV2: 1900-01-01 | KW2: 1900-01-01 | KX2: 1900-01-01 | KY2: 1900-01-01 | KZ2: 1900-01-01 | LA2: 1900-01-01 | LB2: 1900-01-01 | LC2: 1900-01-01 | LD2: 1900-01-01 | LE2: 1900-01-01 | LF2: 1900-01-01 | LG2: 1900-01-01 | LH2: 1900-01-01 | LI2: 1900-01-01 | LJ2: 1900-01-01 | LK2: 1900-01-01 | LL2: 1900-01-01 | LM2: 1900-01-01 | LN2: 1900-01-01 | LO2: 1900-01-01 | LP2: 1900-01-01 | LQ2: 1900-01-01 | LR2: 1900-01-01 | LS2: =LS17 -> 1900-01-01 | LT2: 1900-01-01 | LU2: 1900-01-01 | LV2: 1900-01-01 | LW2: 1900-01-01 | LX2: 1900-01-01 | LY2: 1900-01-01 | LZ2: 1900-01-01 | MA2: 1900-01-01 | MB2: 1900-01-01 | MC2: 1900-01-01 | MD2: 1900-01-01 | ME2: 1900-01-01 | MF2: 1900-01-01 | MG2: 1900-01-01 | MH2: 1900-01-01 | MI2: 1900-01-01 | MJ2: 1900-01-01 | MK2: 1900-01-01 | ML2: 1900-01-01 | MM2: 1900-01-01 | MN2: 1900-01-01 | MO2: 1900-01-01 | MP2: 1900-01-01 | MQ2: 1900-01-01 | MR2: 1900-01-01 | MS2: 1900-01-01 | MT2: 1900-01-01 | MU2: 1900-01-01 | MV2: 1900-01-01 | MW2: 1900-01-01 | MX2: 1900-01-01 | MY2: 1900-01-01 | MZ2: 1900-01-01 | NA2: 1900-01-01 | NB2: 1900-01-01 | NC2: 1900-01-01 | ND2: 1900-01-01 | NE2: 1900-01-01 | NF2: 1900-01-01 | NG2: 1900-01-01 | NH2: 1900-01-01 | NI2: 1900-01-01 | NJ2: 1900-01-01 | NK2: 1900-01-01 | NL2: 1900-01-01 | NM2: 1900-01-01 | NN2: 1900-01-01 | NO2: 1900-01-01 | NP2: 1900-01-01 | NQ2: 1900-01-01 | NR2: 1900-01-01 | NS2: 1900-01-01 | NT2: 1900-01-01 | NU2: 1900-01-01 | NV2: 1900-01-01 | NW2: 1900-01-01 | NX2: 1900-01-01 | NY2: 1900-01-01 | NZ2: 1900-01-01 | OA2: 1900-01-01 | OB2: 1900-01-01 | OC2: 1900-01-01 | OD2: 1900-01-01 | OE2: =OE17 -> 1900-01-01 | OF2: 1900-01-01 | OG2: 1900-01-01 | OH2: 1900-01-01 | OI2: 1900-01-01 | OJ2: 1900-01-01 | OK2: 1900-01-01 | OL2: 1900-01-01 | OM2: 1900-01-01 | ON2: 1900-01-01 | OO2: 1900-01-01 | OP2: 1900-01-01 | OQ2: 1900-01-01 | OR2: 1900-01-01 | OS2: 1900-01-01 | OT2: 1900-01-01 | OU2: 1900-01-01 | OV2: 1900-01-01 | OW2: 1900-01-01 | OX2: 1900-01-01 | OY2: 1900-01-01 | OZ2: 1900-01-01 | PA2: 1900-01-01 | PB2: 1900-01-01 | PC2: 1900-01-01 | PD2: 1900-01-01 | PE2: 1900-01-01 | PF2: 1900-01-01 | PG2: 1900-01-01 | PH2: 1900-01-01 | PI2: 1900-01-01 | PJ2: 1900-01-01 | PK2: 1900-01-01 | PL2: 1900-01-01 | PM2: 1900-01-01 | PN2: 1900-01-01 | PO2: 1900-01-01 | PP2: 1900-01-01 | PQ2: 1900-01-01 | PR2: 1900-01-01 | PS2: 1900-01-01 | PT2: 1900-01-01 | PU2: 1900-01-01 | PV2: 1900-01-01 | PW2: 1900-01-01 | PX2: 1900-01-01 | PY2: 1900-01-01 | PZ2: 1900-01-01 | QA2: 1900-01-01 | QB2: 1900-01-01 | QC2: 1900-01-01 | QD2: 1900-01-01 | QE2: 1900-01-01 | QF2: 1900-01-01 | QG2: 1900-01-01 | QH2: 1900-01-01 | QI2: 1900-01-01 | QJ2: 1900-01-01 | QK2: 1900-01-01 | QL2: 1900-01-01 | QM2: 1900-01-01 | QN2: 1900-01-01 | QO2: 1900-01-01 | QP2: 1900-01-01 | QQ2: =QQ17 -> 1900-01-01 | QR2: 1900-01-01 | QS2: 1900-01-01 | QT2: 1900-01-01 | QU2: 1900-01-01 | QV2: 1900-01-01 | QW2: 1900-01-01 | QX2: 1900-01-01 | QY2: 1900-01-01 | QZ2: 1900-01-01 | RA2: 1900-01-01 | RB2: 1900-01-01 | RC2: 1900-01-01 | RD2: 1900-01-01 | RE2: 1900-01-01 | RF2: 1900-01-01 | RG2: 1900-01-01 | RH2: 1900-01-01 | RI2: 1900-01-01 | RJ2: 1900-01-01 | RK2: 1900-01-01 | RL2: 1900-01-01 | RM2: 1900-01-01 | RN2: 1900-01-01 | RO2: 1900-01-01 | RP2: 1900-01-01 | RQ2: 1900-01-01 | RR2: 1900-01-01 | RS2: 1900-01-01 | RT2: 1900-01-01 | RU2: 1900-01-01 | RV2: 1900-01-01 | RW2: 1900-01-01 | RX2: 1900-01-01 | RY2: 1900-01-01 | RZ2: 1900-01-01 | SA2: 1900-01-01 | SB2: 1900-01-01 | SC2: 1900-01-01 | SD2: 1900-01-01 | SE2: 1900-01-01 | SF2: 1900-01-01 | SG2: 1900-01-01 | SH2: 1900-01-01 | SI2: 1900-01-01 | SJ2: 1900-01-01 | SK2: 1900-01-01 | SL2: 1900-01-01 | SM2: 1900-01-01 | SN2: 1900-01-01 | SO2: 1900-01-01
E3: Model period end date - semi-annual - header | J3: =J18 -> 00:00:00 | K3: =K18 -> 00:00:00 | L3: 00:00:00 | M3: 00:00:00 | N3: 00:00:00 | O3: 00:00:00 | P3: 00:00:00 | Q3: 00:00:00 | R3: 00:00:00 | S3: 00:00:00 | T3: 00:00:00 | U3: 00:00:00 | V3: 00:00:00 | W3: 00:00:00 | X3: 00:00:00 | Y3: 00:00:00 | Z3: 00:00:00 | AA3: 00:00:00 | AB3: 00:00:00 | AC3: 00:00:00 | AD3: 00:00:00 | AE3: 00:00:00 | AF3: 00:00:00 | AG3: 00:00:00 | AH3: 00:00:00 | AI3: 00:00:00 | AJ3: 00:00:00 | AK3: 00:00:00 | AL3: 00:00:00 | AM3: 00:00:00 | AN3: 00:00:00 | AO3: 00:00:00 | AP3: 00:00:00 | AQ3: 00:00:00 | AR3: 00:00:00 | AS3: 00:00:00 | AT3: 00:00:00 | AU3: 00:00:00 | AV3: 00:00:00 | AW3: 00:00:00 | AX3: 00:00:00 | AY3: 00:00:00 | AZ3: 00:00:00 | BA3: 00:00:00 | BB3: 00:00:00 | BC3: 00:00:00 | BD3: 00:00:00 | BE3: 00:00:00 | BF3: 00:00:00 | BG3: 00:00:00 | BH3: 00:00:00 | BI3: 00:00:00 | BJ3: 00:00:00 | BK3: 00:00:00 | BL3: 00:00:00 | BM3: 00:00:00 | BN3: 00:00:00 | BO3: 00:00:00 | BP3: 00:00:00 | BQ3: 00:00:00 | BR3: 00:00:00 | BS3: 00:00:00 | BT3: 00:00:00 | BU3: 00:00:00 | BV3: 00:00:00 | BW3: =BW18 -> 00:00:00 | BX3: 00:00:00 | BY3: 00:00:00 | BZ3: 00:00:00 | CA3: 00:00:00 | CB3: 00:00:00 | CC3: 00:00:00 | CD3: 00:00:00 | CE3: 00:00:00 | CF3: 00:00:00 | CG3: 00:00:00 | CH3: 00:00:00 | CI3: 00:00:00 | CJ3: 00:00:00 | CK3: 00:00:00 | CL3: 00:00:00 | CM3: 00:00:00 | CN3: 00:00:00 | CO3: 00:00:00 | CP3: 00:00:00 | CQ3: 00:00:00 | CR3: 00:00:00 | CS3: 00:00:00 | CT3: 00:00:00 | CU3: 00:00:00 | CV3: 00:00:00 | CW3: 00:00:00 | CX3: 00:00:00 | CY3: 00:00:00 | CZ3: 00:00:00 | DA3: 00:00:00 | DB3: 00:00:00 | DC3: 00:00:00 | DD3: 00:00:00 | DE3: 00:00:00 | DF3: 00:00:00 | DG3: 00:00:00 | DH3: 00:00:00 | DI3: 00:00:00 | DJ3: 00:00:00 | DK3: 00:00:00 | DL3: 00:00:00 | DM3: 00:00:00 | DN3: 00:00:00 | DO3: 00:00:00 | DP3: 00:00:00 | DQ3: 00:00:00 | DR3: 00:00:00 | DS3: 00:00:00 | DT3: 00:00:00 | DU3: 00:00:00 | DV3: 00:00:00 | DW3: 00:00:00 | DX3: 00:00:00 | DY3: 00:00:00 | DZ3: 00:00:00 | EA3: 00:00:00 | EB3: 00:00:00 | EC3: 00:00:00 | ED3: 00:00:00 | EE3: 00:00:00 | EF3: 00:00:00 | EG3: 00:00:00 | EH3: 00:00:00 | EI3: =EI18 -> 00:00:00 | EJ3: 00:00:00 | EK3: 00:00:00 | EL3: 00:00:00 | EM3: 00:00:00 | EN3: 00:00:00 | EO3: 00:00:00 | EP3: 00:00:00 | EQ3: 00:00:00 | ER3: 00:00:00 | ES3: 00:00:00 | ET3: 00:00:00 | EU3: 00:00:00 | EV3: 00:00:00 | EW3: 00:00:00 | EX3: 00:00:00 | EY3: 00:00:00 | EZ3: 00:00:00 | FA3: 00:00:00 | FB3: 00:00:00 | FC3: 00:00:00 | FD3: 00:00:00 | FE3: 00:00:00 | FF3: 00:00:00 | FG3: 00:00:00 | FH3: 00:00:00 | FI3: 00:00:00 | FJ3: 00:00:00 | FK3: 00:00:00 | FL3: 00:00:00 | FM3: 00:00:00 | FN3: 00:00:00 | FO3: 00:00:00 | FP3: 00:00:00 | FQ3: 00:00:00 | FR3: 00:00:00 | FS3: 00:00:00 | FT3: 00:00:00 | FU3: 00:00:00 | FV3: 00:00:00 | FW3: 00:00:00 | FX3: 00:00:00 | FY3: 00:00:00 | FZ3: 00:00:00 | GA3: 00:00:00 | GB3: 00:00:00 | GC3: 00:00:00 | GD3: 00:00:00 | GE3: 00:00:00 | GF3: 00:00:00 | GG3: 00:00:00 | GH3: 00:00:00 | GI3: 00:00:00 | GJ3: 00:00:00 | GK3: 00:00:00 | GL3: 00:00:00 | GM3: 00:00:00 | GN3: 00:00:00 | GO3: 00:00:00 | GP3: 00:00:00 | GQ3: 00:00:00 | GR3: 00:00:00 | GS3: 00:00:00 | GT3: 00:00:00 | GU3: =GU18 -> 00:00:00 | GV3: 00:00:00 | GW3: 00:00:00 | GX3: 00:00:00 | GY3: 00:00:00 | GZ3: 00:00:00 | HA3: 00:00:00 | HB3: 00:00:00 | HC3: 00:00:00 | HD3: 00:00:00 | HE3: 00:00:00 | HF3: 00:00:00 | HG3: 00:00:00 | HH3: 00:00:00 | HI3: 00:00:00 | HJ3: 00:00:00 | HK3: 00:00:00 | HL3: 00:00:00 | HM3: 00:00:00 | HN3: 00:00:00 | HO3: 00:00:00 | HP3: 00:00:00 | HQ3: 00:00:00 | HR3: 00:00:00 | HS3: 00:00:00 | HT3: 00:00:00 | HU3: 00:00:00 | HV3: 00:00:00 | HW3: 00:00:00 | HX3: 00:00:00 | HY3: 00:00:00 | HZ3: 00:00:00 | IA3: 00:00:00 | IB3: 00:00:00 | IC3: 00:00:00 | ID3: 00:00:00 | IE3: 00:00:00 | IF3: 00:00:00 | IG3: 00:00:00 | IH3: 00:00:00 | II3: 00:00:00 | IJ3: 00:00:00 | IK3: 00:00:00 | IL3: 00:00:00 | IM3: 00:00:00 | IN3: 00:00:00 | IO3: 00:00:00 | IP3: 00:00:00 | IQ3: 00:00:00 | IR3: 00:00:00 | IS3: 00:00:00 | IT3: 00:00:00 | IU3: 00:00:00 | IV3: 00:00:00 | IW3: 00:00:00 | IX3: 00:00:00 | IY3: 00:00:00 | IZ3: 00:00:00 | JA3: 00:00:00 | JB3: 00:00:00 | JC3: 00:00:00 | JD3: 00:00:00 | JE3: 00:00:00 | JF3: 00:00:00 | JG3: =JG18 -> 00:00:00 | JH3: 00:00:00 | JI3: 00:00:00 | JJ3: 00:00:00 | JK3: 00:00:00 | JL3: 00:00:00 | JM3: 00:00:00 | JN3: 00:00:00 | JO3: 00:00:00 | JP3: 00:00:00 | JQ3: 00:00:00 | JR3: 00:00:00 | JS3: 00:00:00 | JT3: 00:00:00 | JU3: 00:00:00 | JV3: 00:00:00 | JW3: 00:00:00 | JX3: 00:00:00 | JY3: 00:00:00 | JZ3: 00:00:00 | KA3: 00:00:00 | KB3: 00:00:00 | KC3: 00:00:00 | KD3: 00:00:00 | KE3: 00:00:00 | KF3: 00:00:00 | KG3: 00:00:00 | KH3: 00:00:00 | KI3: 00:00:00 | KJ3: 00:00:00 | KK3: 00:00:00 | KL3: 00:00:00 | KM3: 00:00:00 | KN3: 00:00:00 | KO3: 00:00:00 | KP3: 00:00:00 | KQ3: 00:00:00 | KR3: 00:00:00 | KS3: 00:00:00 | KT3: 00:00:00 | KU3: 00:00:00 | KV3: 00:00:00 | KW3: 00:00:00 | KX3: 00:00:00 | KY3: 00:00:00 | KZ3: 00:00:00 | LA3: 00:00:00 | LB3: 00:00:00 | LC3: 00:00:00 | LD3: 00:00:00 | LE3: 00:00:00 | LF3: 00:00:00 | LG3: 00:00:00 | LH3: 00:00:00 | LI3: 00:00:00 | LJ3: 00:00:00 | LK3: 00:00:00 | LL3: 00:00:00 | LM3: 00:00:00 | LN3: 00:00:00 | LO3: 00:00:00 | LP3: 00:00:00 | LQ3: 00:00:00 | LR3: 00:00:00 | LS3: =LS18 -> 00:00:00 | LT3: 00:00:00 | LU3: 00:00:00 | LV3: 00:00:00 | LW3: 00:00:00 | LX3: 00:00:00 | LY3: 00:00:00 | LZ3: 00:00:00 | MA3: 00:00:00 | MB3: 00:00:00 | MC3: 00:00:00 | MD3: 00:00:00 | ME3: 00:00:00 | MF3: 00:00:00 | MG3: 00:00:00 | MH3: 00:00:00 | MI3: 00:00:00 | MJ3: 00:00:00 | MK3: 00:00:00 | ML3: 00:00:00 | MM3: 00:00:00 | MN3: 00:00:00 | MO3: 00:00:00 | MP3: 00:00:00 | MQ3: 00:00:00 | MR3: 00:00:00 | MS3: 00:00:00 | MT3: 00:00:00 | MU3: 00:00:00 | MV3: 00:00:00 | MW3: 00:00:00 | MX3: 00:00:00 | MY3: 00:00:00 | MZ3: 00:00:00 | NA3: 00:00:00 | NB3: 00:00:00 | NC3: 00:00:00 | ND3: 00:00:00 | NE3: 00:00:00 | NF3: 00:00:00 | NG3: 00:00:00 | NH3: 00:00:00 | NI3: 00:00:00 | NJ3: 00:00:00 | NK3: 00:00:00 | NL3: 00:00:00 | NM3: 00:00:00 | NN3: 00:00:00 | NO3: 00:00:00 | NP3: 00:00:00 | NQ3: 00:00:00 | NR3: 00:00:00 | NS3: 00:00:00 | NT3: 00:00:00 | NU3: 00:00:00 | NV3: 00:00:00 | NW3: 00:00:00 | NX3: 00:00:00 | NY3: 00:00:00 | NZ3: 00:00:00 | OA3: 00:00:00 | OB3: 00:00:00 | OC3: 00:00:00 | OD3: 00:00:00 | OE3: =OE18 -> 00:00:00 | OF3: 00:00:00 | OG3: 00:00:00 | OH3: 00:00:00 | OI3: 00:00:00 | OJ3: 00:00:00 | OK3: 00:00:00 | OL3: 00:00:00 | OM3: 00:00:00 | ON3: 00:00:00 | OO3: 00:00:00 | OP3: 00:00:00 | OQ3: 00:00:00 | OR3: 00:00:00 | OS3: 00:00:00 | OT3: 00:00:00 | OU3: 00:00:00 | OV3: 00:00:00 | OW3: 00:00:00 | OX3: 00:00:00 | OY3: 00:00:00 | OZ3: 00:00:00 | PA3: 00:00:00 | PB3: 00:00:00 | PC3: 00:00:00 | PD3: 00:00:00 | PE3: 00:00:00 | PF3: 00:00:00 | PG3: 00:00:00 | PH3: 00:00:00 | PI3: 00:00:00 | PJ3: 00:00:00 | PK3: 00:00:00 | PL3: 00:00:00 | PM3: 00:00:00 | PN3: 00:00:00 | PO3: 00:00:00 | PP3: 00:00:00 | PQ3: 00:00:00 | PR3: 00:00:00 | PS3: 00:00:00 | PT3: 00:00:00 | PU3: 00:00:00 | PV3: 00:00:00 | PW3: 00:00:00 | PX3: 00:00:00 | PY3: 00:00:00 | PZ3: 00:00:00 | QA3: 00:00:00 | QB3: 00:00:00 | QC3: 00:00:00 | QD3: 00:00:00 | QE3: 00:00:00 | QF3: 00:00:00 | QG3: 00:00:00 | QH3: 00:00:00 | QI3: 00:00:00 | QJ3: 00:00:00 | QK3: 00:00:00 | QL3: 00:00:00 | QM3: 00:00:00 | QN3: 00:00:00 | QO3: 00:00:00 | QP3: 00:00:00 | QQ3: =QQ18 -> 00:00:00 | QR3: 00:00:00 | QS3: 00:00:00 | QT3: 00:00:00 | QU3: 00:00:00 | QV3: 00:00:00 | QW3: 00:00:00 | QX3: 00:00:00 | QY3: 00:00:00 | QZ3: 00:00:00 | RA3: 00:00:00 | RB3: 00:00:00 | RC3: 00:00:00 | RD3: 00:00:00 | RE3: 00:00:00 | RF3: 00:00:00 | RG3: 00:00:00 | RH3: 00:00:00 | RI3: 00:00:00 | RJ3: 00:00:00 | RK3: 00:00:00 | RL3: 00:00:00 | RM3: 00:00:00 | RN3: 00:00:00 | RO3: 00:00:00 | RP3: 00:00:00 | RQ3: 00:00:00 | RR3: 00:00:00 | RS3: 00:00:00 | RT3: 00:00:00 | RU3: 00:00:00 | RV3: 00:00:00 | RW3: 00:00:00 | RX3: 00:00:00 | RY3: 00:00:00 | RZ3: 00:00:00 | SA3: 00:00:00 | SB3: 00:00:00 | SC3: 00:00:00 | SD3: 00:00:00 | SE3: 00:00:00 | SF3: 00:00:00 | SG3: 00:00:00 | SH3: 00:00:00 | SI3: 00:00:00 | SJ3: 00:00:00 | SK3: 00:00:00 | SL3: 00:00:00 | SM3: 00:00:00 | SN3: 00:00:00 | SO3: 00:00:00
E4: =TimeM!E4 -> Timeline label | J4: =TimeM!J4 -> FC/Const. | K4: =TimeM!K4 -> Const | L4: =TimeM!L4 -> Const | M4: =TimeM!M4 -> Const | N4: =TimeM!N4 -> Const | O4: =TimeM!O4 -> Const | P4: =TimeM!P4 -> Const | Q4: =TimeM!Q4 -> Const | R4: =TimeM!R4 -> Const | S4: =TimeM!S4 -> Const | T4: =TimeM!T4 -> Const | U4: =TimeM!U4 -> Const | V4: =TimeM!V4 -> Const | W4: =TimeM!W4 -> Const | X4: =TimeM!X4 -> Const | Y4: =TimeM!Y4 -> Const | Z4: =TimeM!Z4 -> Const | AA4: =TimeM!AA4 -> Const | AB4: =TimeM!AB4 -> Const | AC4: =TimeM!AC4 -> Const | AD4: =TimeM!AD4 -> Const | AE4: =TimeM!AE4 -> Const | AF4: =TimeM!AF4 -> Const | AG4: =TimeM!AG4 -> Const | AH4: =TimeM!AH4 -> Const | AI4: =TimeM!AI4 -> Const | AJ4: =TimeM!AJ4 -> Const | AK4: =TimeM!AK4 -> Const | AL4: =TimeM!AL4 -> Const | AM4: =TimeM!AM4 -> Const | AN4: =TimeM!AN4 -> Const | AO4: =TimeM!AO4 -> Const | AP4: =TimeM!AP4 -> Const | AQ4: =TimeM!AQ4 -> Const | AR4: =TimeM!AR4 -> Const | AS4: =TimeM!AS4 -> Const | AT4: =TimeM!AT4 -> Const | AU4: =TimeM!AU4 -> Const | AV4: =TimeM!AV4 -> Const | AW4: =TimeM!AW4 -> Const | AX4: =TimeM!AX4 -> Const | AY4: =TimeM!AY4 -> Const | AZ4: =TimeM!AZ4 -> Const | BA4: =TimeM!BA4 -> Const | BB4: =TimeM!BB4 -> Const | BC4: =TimeM!BC4 -> Const | BD4: =TimeM!BD4 -> Const | BE4: =TimeM!BE4 -> Const | BF4: =TimeM!BF4 -> Const | BG4: =TimeM!BG4 -> Const | BH4: =TimeM!BH4 -> Const | BI4: =TimeM!BI4 -> Const | BJ4: =TimeM!BJ4 -> Const | BK4: =TimeM!BK4 -> Const | BL4: =TimeM!BL4 -> Const | BM4: =TimeM!BM4 -> Const | BN4: =TimeM!BN4 -> Const | BO4: =TimeM!BO4 -> Const | BP4: =TimeM!BP4 -> Const | BQ4: =TimeM!BQ4 -> Const | BR4: =TimeM!BR4 -> Const | BS4: =TimeM!BS4 -> Const | BT4: =TimeM!BT4 -> Const | BU4: =TimeM!BU4 -> Const | BV4: =TimeM!BV4 -> Const | BW4: =TimeM!BW4 -> Const | BX4: =TimeM!BX4 -> Const | BY4: =TimeM!BY4 -> Const | BZ4: =TimeM!BZ4 -> Const | CA4: =TimeM!CA4 -> Const | CB4: =TimeM!CB4 -> Const | CC4: =TimeM!CC4 -> Const | CD4: =TimeM!CD4 -> Const | CE4: =TimeM!CE4 -> Const | CF4: =TimeM!CF4 -> Const | CG4: =TimeM!CG4 -> Const | CH4: =TimeM!CH4 -> Const | CI4: =TimeM!CI4 -> Const | CJ4: =TimeM!CJ4 -> Const | CK4: =TimeM!CK4 -> Const | CL4: =TimeM!CL4 -> Const | CM4: =TimeM!CM4 -> Const | CN4: =TimeM!CN4 -> Const | CO4: =TimeM!CO4 -> Const | CP4: =TimeM!CP4 -> Const | CQ4: =TimeM!CQ4 -> Const | CR4: =TimeM!CR4 -> Const | CS4: =TimeM!CS4 -> Const | CT4: =TimeM!CT4 -> Const | CU4: =TimeM!CU4 -> Const | CV4: =TimeM!CV4 -> Const | CW4: =TimeM!CW4 -> Const | CX4: =TimeM!CX4 -> Const | CY4: =TimeM!CY4 -> Const | CZ4: =TimeM!CZ4 -> Const | DA4: =TimeM!DA4 -> Const | DB4: =TimeM!DB4 -> Const | DC4: =TimeM!DC4 -> Const | DD4: =TimeM!DD4 -> Const | DE4: =TimeM!DE4 -> Const | DF4: =TimeM!DF4 -> Const | DG4: =TimeM!DG4 -> Const | DH4: =TimeM!DH4 -> Const | DI4: =TimeM!DI4 -> Const | DJ4: =TimeM!DJ4 -> Const | DK4: =TimeM!DK4 -> Const | DL4: =TimeM!DL4 -> Const | DM4: =TimeM!DM4 -> Const | DN4: =TimeM!DN4 -> Const | DO4: =TimeM!DO4 -> Const | DP4: =TimeM!DP4 -> Const | DQ4: =TimeM!DQ4 -> Const | DR4: =TimeM!DR4 -> Const | DS4: =TimeM!DS4 -> Const | DT4: =TimeM!DT4 -> Const | DU4: =TimeM!DU4 -> Const | DV4: =TimeM!DV4 -> Const | DW4: =TimeM!DW4 -> Const | DX4: =TimeM!DX4 -> Const | DY4: =TimeM!DY4 -> Const | DZ4: =TimeM!DZ4 -> Const | EA4: =TimeM!EA4 -> Const | EB4: =TimeM!EB4 -> Const | EC4: =TimeM!EC4 -> Const | ED4: =TimeM!ED4 -> Const | EE4: =TimeM!EE4 -> Const | EF4: =TimeM!EF4 -> Const | EG4: =TimeM!EG4 -> Const | EH4: =TimeM!EH4 -> Const | EI4: =TimeM!EI4 -> Const | EJ4: =TimeM!EJ4 -> Const | EK4: =TimeM!EK4 -> Const | EL4: =TimeM!EL4 -> Const | EM4: =TimeM!EM4 -> Const | EN4: =TimeM!EN4 -> Const | EO4: =TimeM!EO4 -> Const | EP4: =TimeM!EP4 -> Const | EQ4: =TimeM!EQ4 -> Const | ER4: =TimeM!ER4 -> Const | ES4: =TimeM!ES4 -> Const | ET4: =TimeM!ET4 -> Const | EU4: =TimeM!EU4 -> Const | EV4: =TimeM!EV4 -> Const | EW4: =TimeM!EW4 -> Const | EX4: =TimeM!EX4 -> Const | EY4: =TimeM!EY4 -> Const | EZ4: =TimeM!EZ4 -> Const | FA4: =TimeM!FA4 -> Const | FB4: =TimeM!FB4 -> Const | FC4: =TimeM!FC4 -> Const | FD4: =TimeM!FD4 -> Const | FE4: =TimeM!FE4 -> Const | FF4: =TimeM!FF4 -> Const | FG4: =TimeM!FG4 -> Const | FH4: =TimeM!FH4 -> Const | FI4: =TimeM!FI4 -> Const | FJ4: =TimeM!FJ4 -> Const | FK4: =TimeM!FK4 -> Const | FL4: =TimeM!FL4 -> Const | FM4: =TimeM!FM4 -> Const | FN4: =TimeM!FN4 -> Const | FO4: =TimeM!FO4 -> Const | FP4: =TimeM!FP4 -> Const | FQ4: =TimeM!FQ4 -> Const | FR4: =TimeM!FR4 -> Const | FS4: =TimeM!FS4 -> Const | FT4: =TimeM!FT4 -> Const | FU4: =TimeM!FU4 -> Const | FV4: =TimeM!FV4 -> Const | FW4: =TimeM!FW4 -> Const | FX4: =TimeM!FX4 -> Const | FY4: =TimeM!FY4 -> Const | FZ4: =TimeM!FZ4 -> Const | GA4: =TimeM!GA4 -> Const | GB4: =TimeM!GB4 -> Const | GC4: =TimeM!GC4 -> Const | GD4: =TimeM!GD4 -> Const | GE4: =TimeM!GE4 -> Const | GF4: =TimeM!GF4 -> Const | GG4: =TimeM!GG4 -> Const | GH4: =TimeM!GH4 -> Const | GI4: =TimeM!GI4 -> Const | GJ4: =TimeM!GJ4 -> Const | GK4: =TimeM!GK4 -> Const | GL4: =TimeM!GL4 -> Const | GM4: =TimeM!GM4 -> Const | GN4: =TimeM!GN4 -> Const | GO4: =TimeM!GO4 -> Const | GP4: =TimeM!GP4 -> Const | GQ4: =TimeM!GQ4 -> Const | GR4: =TimeM!GR4 -> Const | GS4: =TimeM!GS4 -> Const | GT4: =TimeM!GT4 -> Const | GU4: =TimeM!GU4 -> Const | GV4: =TimeM!GV4 -> Const | GW4: =TimeM!GW4 -> Const | GX4: =TimeM!GX4 -> Const | GY4: =TimeM!GY4 -> Const | GZ4: =TimeM!GZ4 -> Const | HA4: =TimeM!HA4 -> Const | HB4: =TimeM!HB4 -> Const | HC4: =TimeM!HC4 -> Const | HD4: =TimeM!HD4 -> Const | HE4: =TimeM!HE4 -> Const | HF4: =TimeM!HF4 -> Const | HG4: =TimeM!HG4 -> Const | HH4: =TimeM!HH4 -> Const | HI4: =TimeM!HI4 -> Const | HJ4: =TimeM!HJ4 -> Const | HK4: =TimeM!HK4 -> Const | HL4: =TimeM!HL4 -> Const | HM4: =TimeM!HM4 -> Const | HN4: =TimeM!HN4 -> Const | HO4: =TimeM!HO4 -> Const | HP4: =TimeM!HP4 -> Const | HQ4: =TimeM!HQ4 -> Const | HR4: =TimeM!HR4 -> Const | HS4: =TimeM!HS4 -> Const | HT4: =TimeM!HT4 -> Const | HU4: =TimeM!HU4 -> Const | HV4: =TimeM!HV4 -> Const | HW4: =TimeM!HW4 -> Const | HX4: =TimeM!HX4 -> Const | HY4: =TimeM!HY4 -> Const | HZ4: =TimeM!HZ4 -> Const | IA4: =TimeM!IA4 -> Const | IB4: =TimeM!IB4 -> Const | IC4: =TimeM!IC4 -> Const | ID4: =TimeM!ID4 -> Const | IE4: =TimeM!IE4 -> Const | IF4: =TimeM!IF4 -> Const | IG4: =TimeM!IG4 -> Const | IH4: =TimeM!IH4 -> Const | II4: =TimeM!II4 -> Const | IJ4: =TimeM!IJ4 -> Const | IK4: =TimeM!IK4 -> Const | IL4: =TimeM!IL4 -> Const | IM4: =TimeM!IM4 -> Const | IN4: =TimeM!IN4 -> Const | IO4: =TimeM!IO4 -> Const | IP4: =TimeM!IP4 -> Const | IQ4: =TimeM!IQ4 -> Const | IR4: =TimeM!IR4 -> Const | IS4: =TimeM!IS4 -> Const | IT4: =TimeM!IT4 -> Const | IU4: =TimeM!IU4 -> Const | IV4: =TimeM!IV4 -> Const | IW4: =TimeM!IW4 -> Const | IX4: =TimeM!IX4 -> Const | IY4: =TimeM!IY4 -> Const | IZ4: =TimeM!IZ4 -> Const | JA4: =TimeM!JA4 -> Const | JB4: =TimeM!JB4 -> Const | JC4: =TimeM!JC4 -> Const | JD4: =TimeM!JD4 -> Const | JE4: =TimeM!JE4 -> Const | JF4: =TimeM!JF4 -> Const | JG4: =TimeM!JG4 -> Const | JH4: =TimeM!JH4 -> Const | JI4: =TimeM!JI4 -> Const | JJ4: =TimeM!JJ4 -> Const | JK4: =TimeM!JK4 -> Const | JL4: =TimeM!JL4 -> Const | JM4: =TimeM!JM4 -> Const | JN4: =TimeM!JN4 -> Const | JO4: =TimeM!JO4 -> Const | JP4: =TimeM!JP4 -> Const | JQ4: =TimeM!JQ4 -> Const | JR4: =TimeM!JR4 -> Const | JS4: =TimeM!JS4 -> Const | JT4: =TimeM!JT4 -> Const | JU4: =TimeM!JU4 -> Const | JV4: =TimeM!JV4 -> Const | JW4: =TimeM!JW4 -> Const | JX4: =TimeM!JX4 -> Const | JY4: =TimeM!JY4 -> Const | JZ4: =TimeM!JZ4 -> Const | KA4: =TimeM!KA4 -> Const | KB4: =TimeM!KB4 -> Const | KC4: =TimeM!KC4 -> Const | KD4: =TimeM!KD4 -> Const | KE4: =TimeM!KE4 -> Const | KF4: =TimeM!KF4 -> Const | KG4: =TimeM!KG4 -> Const | KH4: =TimeM!KH4 -> Const | KI4: =TimeM!KI4 -> Const | KJ4: =TimeM!KJ4 -> Const | KK4: =TimeM!KK4 -> Const | KL4: =TimeM!KL4 -> Const | KM4: =TimeM!KM4 -> Const | KN4: =TimeM!KN4 -> Const | KO4: =TimeM!KO4 -> Const | KP4: =TimeM!KP4 -> Const | KQ4: =TimeM!KQ4 -> Const | KR4: =TimeM!KR4 -> Const | KS4: =TimeM!KS4 -> Const | KT4: =TimeM!KT4 -> Const | KU4: =TimeM!KU4 -> Const | KV4: =TimeM!KV4 -> Const | KW4: =TimeM!KW4 -> Const | KX4: =TimeM!KX4 -> Const | KY4: =TimeM!KY4 -> Const | KZ4: =TimeM!KZ4 -> Const | LA4: =TimeM!LA4 -> Const | LB4: =TimeM!LB4 -> Const | LC4: =TimeM!LC4 -> Const | LD4: =TimeM!LD4 -> Const | LE4: =TimeM!LE4 -> Const | LF4: =TimeM!LF4 -> Const | LG4: =TimeM!LG4 -> Const | LH4: =TimeM!LH4 -> Const | LI4: =TimeM!LI4 -> Const | LJ4: =TimeM!LJ4 -> Const | LK4: =TimeM!LK4 -> Const | LL4: =TimeM!LL4 -> Const | LM4: =TimeM!LM4 -> Const | LN4: =TimeM!LN4 -> Const | LO4: =TimeM!LO4 -> Const | LP4: =TimeM!LP4 -> Const | LQ4: =TimeM!LQ4 -> Const | LR4: =TimeM!LR4 -> Const | LS4: =TimeM!LS4 -> Const | LT4: =TimeM!LT4 -> Const | LU4: =TimeM!LU4 -> Const | LV4: =TimeM!LV4 -> Const | LW4: =TimeM!LW4 -> Const | LX4: =TimeM!LX4 -> Const | LY4: =TimeM!LY4 -> Const | LZ4: =TimeM!LZ4 -> Const | MA4: =TimeM!MA4 -> Const | MB4: =TimeM!MB4 -> Const | MC4: =TimeM!MC4 -> Const | MD4: =TimeM!MD4 -> Const | ME4: =TimeM!ME4 -> Const | MF4: =TimeM!MF4 -> Const | MG4: =TimeM!MG4 -> Const | MH4: =TimeM!MH4 -> Const | MI4: =TimeM!MI4 -> Const | MJ4: =TimeM!MJ4 -> Const | MK4: =TimeM!MK4 -> Const | ML4: =TimeM!ML4 -> Const | MM4: =TimeM!MM4 -> Const | MN4: =TimeM!MN4 -> Const | MO4: =TimeM!MO4 -> Const | MP4: =TimeM!MP4 -> Const | MQ4: =TimeM!MQ4 -> Const | MR4: =TimeM!MR4 -> Const | MS4: =TimeM!MS4 -> Const | MT4: =TimeM!MT4 -> Const | MU4: =TimeM!MU4 -> Const | MV4: =TimeM!MV4 -> Const | MW4: =TimeM!MW4 -> Const | MX4: =TimeM!MX4 -> Const | MY4: =TimeM!MY4 -> Const | MZ4: =TimeM!MZ4 -> Const | NA4: =TimeM!NA4 -> Const | NB4: =TimeM!NB4 -> Const | NC4: =TimeM!NC4 -> Const | ND4: =TimeM!ND4 -> Const | NE4: =TimeM!NE4 -> Const | NF4: =TimeM!NF4 -> Const | NG4: =TimeM!NG4 -> Const | NH4: =TimeM!NH4 -> Const | NI4: =TimeM!NI4 -> Const | NJ4: =TimeM!NJ4 -> Const | NK4: =TimeM!NK4 -> Const | NL4: =TimeM!NL4 -> Const | NM4: =TimeM!NM4 -> Const | NN4: =TimeM!NN4 -> Const | NO4: =TimeM!NO4 -> Const | NP4: =TimeM!NP4 -> Const | NQ4: =TimeM!NQ4 -> Const | NR4: =TimeM!NR4 -> Const | NS4: =TimeM!NS4 -> Const | NT4: =TimeM!NT4 -> Const | NU4: =TimeM!NU4 -> Const | NV4: =TimeM!NV4 -> Const | NW4: =TimeM!NW4 -> Const | NX4: =TimeM!NX4 -> Const | NY4: =TimeM!NY4 -> Const | NZ4: =TimeM!NZ4 -> Const | OA4: =TimeM!OA4 -> Const | OB4: =TimeM!OB4 -> Const | OC4: =TimeM!OC4 -> Const | OD4: =TimeM!OD4 -> Const | OE4: =TimeM!OE4 -> Const | OF4: =TimeM!OF4 -> Const | OG4: =TimeM!OG4 -> Const | OH4: =TimeM!OH4 -> Const | OI4: =TimeM!OI4 -> Const | OJ4: =TimeM!OJ4 -> Const | OK4: =TimeM!OK4 -> Const | OL4: =TimeM!OL4 -> Const | OM4: =TimeM!OM4 -> Const | ON4: =TimeM!ON4 -> Const | OO4: =TimeM!OO4 -> Const | OP4: =TimeM!OP4 -> Const | OQ4: =TimeM!OQ4 -> Const | OR4: =TimeM!OR4 -> Const | OS4: =TimeM!OS4 -> Const | OT4: =TimeM!OT4 -> Const | OU4: =TimeM!OU4 -> Const | OV4: =TimeM!OV4 -> Const | OW4: =TimeM!OW4 -> Const | OX4: =TimeM!OX4 -> Const | OY4: =TimeM!OY4 -> Const | OZ4: =TimeM!OZ4 -> Const | PA4: =TimeM!PA4 -> Const | PB4: =TimeM!PB4 -> Const | PC4: =TimeM!PC4 -> Const | PD4: =TimeM!PD4 -> Const | PE4: =TimeM!PE4 -> Const | PF4: =TimeM!PF4 -> Const | PG4: =TimeM!PG4 -> Const | PH4: =TimeM!PH4 -> Const | PI4: =TimeM!PI4 -> Const | PJ4: =TimeM!PJ4 -> Const | PK4: =TimeM!PK4 -> Const | PL4: =TimeM!PL4 -> Const | PM4: =TimeM!PM4 -> Const | PN4: =TimeM!PN4 -> Const | PO4: =TimeM!PO4 -> Const | PP4: =TimeM!PP4 -> Const | PQ4: =TimeM!PQ4 -> Const | PR4: =TimeM!PR4 -> Const | PS4: =TimeM!PS4 -> Const | PT4: =TimeM!PT4 -> Const | PU4: =TimeM!PU4 -> Const | PV4: =TimeM!PV4 -> Const | PW4: =TimeM!PW4 -> Const | PX4: =TimeM!PX4 -> Const | PY4: =TimeM!PY4 -> Const | PZ4: =TimeM!PZ4 -> Const | QA4: =TimeM!QA4 -> Const | QB4: =TimeM!QB4 -> Const | QC4: =TimeM!QC4 -> Const | QD4: =TimeM!QD4 -> Const | QE4: =TimeM!QE4 -> Const | QF4: =TimeM!QF4 -> Const | QG4: =TimeM!QG4 -> Const | QH4: =TimeM!QH4 -> Const | QI4: =TimeM!QI4 -> Const | QJ4: =TimeM!QJ4 -> Const | QK4: =TimeM!QK4 -> Const | QL4: =TimeM!QL4 -> Const | QM4: =TimeM!QM4 -> Const | QN4: =TimeM!QN4 -> Const | QO4: =TimeM!QO4 -> Const | QP4: =TimeM!QP4 -> Const | QQ4: =TimeM!QQ4 -> Const | QR4: =TimeM!QR4 -> Const | QS4: =TimeM!QS4 -> Const | QT4: =TimeM!QT4 -> Const | QU4: =TimeM!QU4 -> Const | QV4: =TimeM!QV4 -> Const | QW4: =TimeM!QW4 -> Const | QX4: =TimeM!QX4 -> Const | QY4: =TimeM!QY4 -> Const | QZ4: =TimeM!QZ4 -> Const | RA4: =TimeM!RA4 -> Const | RB4: =TimeM!RB4 -> Const | RC4: =TimeM!RC4 -> Const | RD4: =TimeM!RD4 -> Const | RE4: =TimeM!RE4 -> Const | RF4: =TimeM!RF4 -> Const | RG4: =TimeM!RG4 -> Const | RH4: =TimeM!RH4 -> Const | RI4: =TimeM!RI4 -> Const | RJ4: =TimeM!RJ4 -> Const | RK4: =TimeM!RK4 -> Const | RL4: =TimeM!RL4 -> Const | RM4: =TimeM!RM4 -> Const | RN4: =TimeM!RN4 -> Const | RO4: =TimeM!RO4 -> Const | RP4: =TimeM!RP4 -> Const | RQ4: =TimeM!RQ4 -> Const | RR4: =TimeM!RR4 -> Const | RS4: =TimeM!RS4 -> Const | RT4: =TimeM!RT4 -> Const | RU4: =TimeM!RU4 -> Const | RV4: =TimeM!RV4 -> Const | RW4: =TimeM!RW4 -> Const | RX4: =TimeM!RX4 -> Const | RY4: =TimeM!RY4 -> Const | RZ4: =TimeM!RZ4 -> Const | SA4: =TimeM!SA4 -> Const | SB4: =TimeM!SB4 -> Const | SC4: =TimeM!SC4 -> Const | SD4: =TimeM!SD4 -> Const | SE4: =TimeM!SE4 -> Const | SF4: =TimeM!SF4 -> Const | SG4: =TimeM!SG4 -> Const | SH4: =TimeM!SH4 -> Const | SI4: =TimeM!SI4 -> Const | SJ4: =TimeM!SJ4 -> Const | SK4: =TimeM!SK4 -> Const | SL4: =TimeM!SL4 -> Const | SM4: =TimeM!SM4 -> Const | SN4: =TimeM!SN4 -> Const | SO4: =TimeM!SO4 -> Const
E5: =Checks!$E$12 -> S-Curve (Lookup) Error Repayment Flag Test Error Circular Check Error | F5: Constant | G5: Unit | H5: Total
E7: Model Counter | J7: =I7+1 -> 1 | K7: =J7+1 -> 2 | L7: 3 | M7: 4 | N7: 5 | O7: 6 | P7: 7 | Q7: 8 | R7: 9 | S7: 10 | T7: 11 | U7: 12 | V7: 13 | W7: 14 | X7: 15 | Y7: 16 | Z7: 17 | AA7: 18 | AB7: 19 | AC7: 20 | AD7: 21 | AE7: 22 | AF7: 23 | AG7: 24 | AH7: 25 | AI7: 26 | AJ7: 27 | AK7: 28 | AL7: 29 | AM7: 30 | AN7: 31 | AO7: 32 | AP7: 33 | AQ7: 34 | AR7: 35 | AS7: 36 | AT7: 37 | AU7: 38 | AV7: 39 | AW7: 40 | AX7: 41 | AY7: 42 | AZ7: 43 | BA7: 44 | BB7: 45 | BC7: 46 | BD7: 47 | BE7: 48 | BF7: 49 | BG7: 50 | BH7: 51 | BI7: 52 | BJ7: 53 | BK7: 54 | BL7: 55 | BM7: 56 | BN7: 57 | BO7: 58 | BP7: 59 | BQ7: 60 | BR7: 61 | BS7: 62 | BT7: 63 | BU7: 64 | BV7: 65 | BW7: =BV7+1 -> 66 | BX7: 67 | BY7: 68 | BZ7: 69 | CA7: 70 | CB7: 71 | CC7: 72 | CD7: 73 | CE7: 74 | CF7: 75 | CG7: 76 | CH7: 77 | CI7: 78 | CJ7: 79 | CK7: 80 | CL7: 81 | CM7: 82 | CN7: 83 | CO7: 84 | CP7: 85 | CQ7: 86 | CR7: 87 | CS7: 88 | CT7: 89 | CU7: 90 | CV7: 91 | CW7: 92 | CX7: 93 | CY7: 94 | CZ7: 95 | DA7: 96 | DB7: 97 | DC7: 98 | DD7: 99 | DE7: 100 | DF7: 101 | DG7: 102 | DH7: 103 | DI7: 104 | DJ7: 105 | DK7: 106 | DL7: 107 | DM7: 108 | DN7: 109 | DO7: 110 | DP7: 111 | DQ7: 112 | DR7: 113 | DS7: 114 | DT7: 115 | DU7: 116 | DV7: 117 | DW7: 118 | DX7: 119 | DY7: 120 | DZ7: 121 | EA7: 122 | EB7: 123 | EC7: 124 | ED7: 125 | EE7: 126 | EF7: 127 | EG7: 128 | EH7: 129 | EI7: =EH7+1 -> 130 | EJ7: 131 | EK7: 132 | EL7: 133 | EM7: 134 | EN7: 135 | EO7: 136 | EP7: 137 | EQ7: 138 | ER7: 139 | ES7: 140 | ET7: 141 | EU7: 142 | EV7: 143 | EW7: 144 | EX7: 145 | EY7: 146 | EZ7: 147 | FA7: 148 | FB7: 149 | FC7: 150 | FD7: 151 | FE7: 152 | FF7: 153 | FG7: 154 | FH7: 155 | FI7: 156 | FJ7: 157 | FK7: 158 | FL7: 159 | FM7: 160 | FN7: 161 | FO7: 162 | FP7: 163 | FQ7: 164 | FR7: 165 | FS7: 166 | FT7: 167 | FU7: 168 | FV7: 169 | FW7: 170 | FX7: 171 | FY7: 172 | FZ7: 173 | GA7: 174 | GB7: 175 | GC7: 176 | GD7: 177 | GE7: 178 | GF7: 179 | GG7: 180 | GH7: 181 | GI7: 182 | GJ7: 183 | GK7: 184 | GL7: 185 | GM7: 186 | GN7: 187 | GO7: 188 | GP7: 189 | GQ7: 190 | GR7: 191 | GS7: 192 | GT7: 193 | GU7: =GT7+1 -> 194 | GV7: 195 | GW7: 196 | GX7: 197 | GY7: 198 | GZ7: 199 | HA7: 200 | HB7: 201 | HC7: 202 | HD7: 203 | HE7: 204 | HF7: 205 | HG7: 206 | HH7: 207 | HI7: 208 | HJ7: 209 | HK7: 210 | HL7: 211 | HM7: 212 | HN7: 213 | HO7: 214 | HP7: 215 | HQ7: 216 | HR7: 217 | HS7: 218 | HT7: 219 | HU7: 220 | HV7: 221 | HW7: 222 | HX7: 223 | HY7: 224 | HZ7: 225 | IA7: 226 | IB7: 227 | IC7: 228 | ID7: 229 | IE7: 230 | IF7: 231 | IG7: 232 | IH7: 233 | II7: 234 | IJ7: 235 | IK7: 236 | IL7: 237 | IM7: 238 | IN7: 239 | IO7: 240 | IP7: 241 | IQ7: 242 | IR7: 243 | IS7: 244 | IT7: 245 | IU7: 246 | IV7: 247 | IW7: 248 | IX7: 249 | IY7: 250 | IZ7: 251 | JA7: 252 | JB7: 253 | JC7: 254 | JD7: 255 | JE7: 256 | JF7: 257 | JG7: =JF7+1 -> 258 | JH7: 259 | JI7: 260 | JJ7: 261 | JK7: 262 | JL7: 263 | JM7: 264 | JN7: 265 | JO7: 266 | JP7: 267 | JQ7: 268 | JR7: 269 | JS7: 270 | JT7: 271 | JU7: 272 | JV7: 273 | JW7: 274 | JX7: 275 | JY7: 276 | JZ7: 277 | KA7: 278 | KB7: 279 | KC7: 280 | KD7: 281 | KE7: 282 | KF7: 283 | KG7: 284 | KH7: 285 | KI7: 286 | KJ7: 287 | KK7: 288 | KL7: 289 | KM7: 290 | KN7: 291 | KO7: 292 | KP7: 293 | KQ7: 294 | KR7: 295 | KS7: 296 | KT7: 297 | KU7: 298 | KV7: 299 | KW7: 300 | KX7: 301 | KY7: 302 | KZ7: 303 | LA7: 304 | LB7: 305 | LC7: 306 | LD7: 307 | LE7: 308 | LF7: 309 | LG7: 310 | LH7: 311 | LI7: 312 | LJ7: 313 | LK7: 314 | LL7: 315 | LM7: 316 | LN7: 317 | LO7: 318 | LP7: 319 | LQ7: 320 | LR7: 321 | LS7: =LR7+1 -> 322 | LT7: 323 | LU7: 324 | LV7: 325 | LW7: 326 | LX7: 327 | LY7: 328 | LZ7: 329 | MA7: 330 | MB7: 331 | MC7: 332 | MD7: 333 | ME7: 334 | MF7: 335 | MG7: 336 | MH7: 337 | MI7: 338 | MJ7: 339 | MK7: 340 | ML7: 341 | MM7: 342 | MN7: 343 | MO7: 344 | MP7: 345 | MQ7: 346 | MR7: 347 | MS7: 348 | MT7: 349 | MU7: 350 | MV7: 351 | MW7: 352 | MX7: 353 | MY7: 354 | MZ7: 355 | NA7: 356 | NB7: 357 | NC7: 358 | ND7: 359 | NE7: 360 | NF7: 361 | NG7: 362 | NH7: 363 | NI7: 364 | NJ7: 365 | NK7: 366 | NL7: 367 | NM7: 368 | NN7: 369 | NO7: 370 | NP7: 371 | NQ7: 372 | NR7: 373 | NS7: 374 | NT7: 375 | NU7: 376 | NV7: 377 | NW7: 378 | NX7: 379 | NY7: 380 | NZ7: 381 | OA7: 382 | OB7: 383 | OC7: 384 | OD7: 385 | OE7: =OD7+1 -> 386 | OF7: 387 | OG7: 388 | OH7: 389 | OI7: 390 | OJ7: 391 | OK7: 392 | OL7: 393 | OM7: 394 | ON7: 395 | OO7: 396 | OP7: 397 | OQ7: 398 | OR7: 399 | OS7: 400 | OT7: 401 | OU7: 402 | OV7: 403 | OW7: 404 | OX7: 405 | OY7: 406 | OZ7: 407 | PA7: 408 | PB7: 409 | PC7: 410 | PD7: 411 | PE7: 412 | PF7: 413 | PG7: 414 | PH7: 415 | PI7: 416 | PJ7: 417 | PK7: 418 | PL7: 419 | PM7: 420 | PN7: 421 | PO7: 422 | PP7: 423 | PQ7: 424 | PR7: 425 | PS7: 426 | PT7: 427 | PU7: 428 | PV7: 429 | PW7: 430 | PX7: 431 | PY7: 432 | PZ7: 433 | QA7: 434 | QB7: 435 | QC7: 436 | QD7: 437 | QE7: 438 | QF7: 439 | QG7: 440 | QH7: 441 | QI7: 442 | QJ7: 443 | QK7: 444 | QL7: 445 | QM7: 446 | QN7: 447 | QO7: 448 | QP7: 449 | QQ7: =QP7+1 -> 450 | QR7: 451 | QS7: 452 | QT7: 453 | QU7: 454 | QV7: 455 | QW7: 456 | QX7: 457 | QY7: 458 | QZ7: 459 | RA7: 460 | RB7: 461 | RC7: 462 | RD7: 463 | RE7: 464 | RF7: 465 | RG7: 466 | RH7: 467 | RI7: 468 | RJ7: 469 | RK7: 470 | RL7: 471 | RM7: 472 | RN7: 473 | RO7: 474 | RP7: 475 | RQ7: 476 | RR7: 477 | RS7: 478 | RT7: 479 | RU7: 480 | RV7: 481 | RW7: 482 | RX7: 483 | RY7: 484 | RZ7: 485 | SA7: 486 | SB7: 487 | SC7: 488 | SD7: 489 | SE7: 490 | SF7: 491 | SG7: 492 | SH7: 493 | SI7: 494 | SJ7: 495 | SK7: 496 | SL7: 497 | SM7: 498 | SN7: 499 | SO7: 500
E8: =InputC!E11 -> Construction Period | F8: =InputC!F11 -> 24
E9: Pre-COD Flag | J9: =(J7<=$F8)*1 -> 1 | K9: =(K7<=$F8)*1 -> 1 | L9: 1 | M9: 1 | N9: 1 | O9: 1 | P9: 1 | Q9: 1 | R9: 1 | S9: 1 | T9: 1 | U9: 1 | V9: 1 | W9: 1 | X9: 1 | Y9: 1 | Z9: 1 | AA9: 1 | AB9: 1 | AC9: 1 | AD9: 1 | AE9: 1 | AF9: 1 | AG9: 1 | AH9: 0 | AI9: 0 | AJ9: 0 | AK9: 0 | AL9: 0 | AM9: 0 | AN9: 0 | AO9: 0 | AP9: 0 | AQ9: 0 | AR9: 0 | AS9: 0 | AT9: 0 | AU9: 0 | AV9: 0 | AW9: 0 | AX9: 0 | AY9: 0 | AZ9: 0 | BA9: 0 | BB9: 0 | BC9: 0 | BD9: 0 | BE9: 0 | BF9: 0 | BG9: 0 | BH9: 0 | BI9: 0 | BJ9: 0 | BK9: 0 | BL9: 0 | BM9: 0 | BN9: 0 | BO9: 0 | BP9: 0 | BQ9: 0 | BR9: 0 | BS9: 0 | BT9: 0 | BU9: 0 | BV9: 0 | BW9: =(BW7<=$F8)*1 -> 0 | BX9: 0 | BY9: 0 | BZ9: 0 | CA9: 0 | CB9: 0 | CC9: 0 | CD9: 0 | CE9: 0 | CF9: 0 | CG9: 0 | CH9: 0 | CI9: 0 | CJ9: 0 | CK9: 0 | CL9: 0 | CM9: 0 | CN9: 0 | CO9: 0 | CP9: 0 | CQ9: 0 | CR9: 0 | CS9: 0 | CT9: 0 | CU9: 0 | CV9: 0 | CW9: 0 | CX9: 0 | CY9: 0 | CZ9: 0 | DA9: 0 | DB9: 0 | DC9: 0 | DD9: 0 | DE9: 0 | DF9: 0 | DG9: 0 | DH9: 0 | DI9: 0 | DJ9: 0 | DK9: 0 | DL9: 0 | DM9: 0 | DN9: 0 | DO9: 0 | DP9: 0 | DQ9: 0 | DR9: 0 | DS9: 0 | DT9: 0 | DU9: 0 | DV9: 0 | DW9: 0 | DX9: 0 | DY9: 0 | DZ9: 0 | EA9: 0 | EB9: 0 | EC9: 0 | ED9: 0 | EE9: 0 | EF9: 0 | EG9: 0 | EH9: 0 | EI9: =(EI7<=$F8)*1 -> 0 | EJ9: 0 | EK9: 0 | EL9: 0 | EM9: 0 | EN9: 0 | EO9: 0 | EP9: 0 | EQ9: 0 | ER9: 0 | ES9: 0 | ET9: 0 | EU9: 0 | EV9: 0 | EW9: 0 | EX9: 0 | EY9: 0 | EZ9: 0 | FA9: 0 | FB9: 0 | FC9: 0 | FD9: 0 | FE9: 0 | FF9: 0 | FG9: 0 | FH9: 0 | FI9: 0 | FJ9: 0 | FK9: 0 | FL9: 0 | FM9: 0 | FN9: 0 | FO9: 0 | FP9: 0 | FQ9: 0 | FR9: 0 | FS9: 0 | FT9: 0 | FU9: 0 | FV9: 0 | FW9: 0 | FX9: 0 | FY9: 0 | FZ9: 0 | GA9: 0 | GB9: 0 | GC9: 0 | GD9: 0 | GE9: 0 | GF9: 0 | GG9: 0 | GH9: 0 | GI9: 0 | GJ9: 0 | GK9: 0 | GL9: 0 | GM9: 0 | GN9: 0 | GO9: 0 | GP9: 0 | GQ9: 0 | GR9: 0 | GS9: 0 | GT9: 0 | GU9: =(GU7<=$F8)*1 -> 0 | GV9: 0 | GW9: 0 | GX9: 0 | GY9: 0 | GZ9: 0 | HA9: 0 | HB9: 0 | HC9: 0 | HD9: 0 | HE9: 0 | HF9: 0 | HG9: 0 | HH9: 0 | HI9: 0 | HJ9: 0 | HK9: 0 | HL9: 0 | HM9: 0 | HN9: 0 | HO9: 0 | HP9: 0 | HQ9: 0 | HR9: 0 | HS9: 0 | HT9: 0 | HU9: 0 | HV9: 0 | HW9: 0 | HX9: 0 | HY9: 0 | HZ9: 0 | IA9: 0 | IB9: 0 | IC9: 0 | ID9: 0 | IE9: 0 | IF9: 0 | IG9: 0 | IH9: 0 | II9: 0 | IJ9: 0 | IK9: 0 | IL9: 0 | IM9: 0 | IN9: 0 | IO9: 0 | IP9: 0 | IQ9: 0 | IR9: 0 | IS9: 0 | IT9: 0 | IU9: 0 | IV9: 0 | IW9: 0 | IX9: 0 | IY9: 0 | IZ9: 0 | JA9: 0 | JB9: 0 | JC9: 0 | JD9: 0 | JE9: 0 | JF9: 0 | JG9: =(JG7<=$F8)*1 -> 0 | JH9: 0 | JI9: 0 | JJ9: 0 | JK9: 0 | JL9: 0 | JM9: 0 | JN9: 0 | JO9: 0 | JP9: 0 | JQ9: 0 | JR9: 0 | JS9: 0 | JT9: 0 | JU9: 0 | JV9: 0 | JW9: 0 | JX9: 0 | JY9: 0 | JZ9: 0 | KA9: 0 | KB9: 0 | KC9: 0 | KD9: 0 | KE9: 0 | KF9: 0 | KG9: 0 | KH9: 0 | KI9: 0 | KJ9: 0 | KK9: 0 | KL9: 0 | KM9: 0 | KN9: 0 | KO9: 0 | KP9: 0 | KQ9: 0 | KR9: 0 | KS9: 0 | KT9: 0 | KU9: 0 | KV9: 0 | KW9: 0 | KX9: 0 | KY9: 0 | KZ9: 0 | LA9: 0 | LB9: 0 | LC9: 0 | LD9: 0 | LE9: 0 | LF9: 0 | LG9: 0 | LH9: 0 | LI9: 0 | LJ9: 0 | LK9: 0 | LL9: 0 | LM9: 0 | LN9: 0 | LO9: 0 | LP9: 0 | LQ9: 0 | LR9: 0 | LS9: =(LS7<=$F8)*1 -> 0 | LT9: 0 | LU9: 0 | LV9: 0 | LW9: 0 | LX9: 0 | LY9: 0 | LZ9: 0 | MA9: 0 | MB9: 0 | MC9: 0 | MD9: 0 | ME9: 0 | MF9: 0 | MG9: 0 | MH9: 0 | MI9: 0 | MJ9: 0 | MK9: 0 | ML9: 0 | MM9: 0 | MN9: 0 | MO9: 0 | MP9: 0 | MQ9: 0 | MR9: 0 | MS9: 0 | MT9: 0 | MU9: 0 | MV9: 0 | MW9: 0 | MX9: 0 | MY9: 0 | MZ9: 0 | NA9: 0 | NB9: 0 | NC9: 0 | ND9: 0 | NE9: 0 | NF9: 0 | NG9: 0 | NH9: 0 | NI9: 0 | NJ9: 0 | NK9: 0 | NL9: 0 | NM9: 0 | NN9: 0 | NO9: 0 | NP9: 0 | NQ9: 0 | NR9: 0 | NS9: 0 | NT9: 0 | NU9: 0 | NV9: 0 | NW9: 0 | NX9: 0 | NY9: 0 | NZ9: 0 | OA9: 0 | OB9: 0 | OC9: 0 | OD9: 0 | OE9: =(OE7<=$F8)*1 -> 0 | OF9: 0 | OG9: 0 | OH9: 0 | OI9: 0 | OJ9: 0 | OK9: 0 | OL9: 0 | OM9: 0 | ON9: 0 | OO9: 0 | OP9: 0 | OQ9: 0 | OR9: 0 | OS9: 0 | OT9: 0 | OU9: 0 | OV9: 0 | OW9: 0 | OX9: 0 | OY9: 0 | OZ9: 0 | PA9: 0 | PB9: 0 | PC9: 0 | PD9: 0 | PE9: 0 | PF9: 0 | PG9: 0 | PH9: 0 | PI9: 0 | PJ9: 0 | PK9: 0 | PL9: 0 | PM9: 0 | PN9: 0 | PO9: 0 | PP9: 0 | PQ9: 0 | PR9: 0 | PS9: 0 | PT9: 0 | PU9: 0 | PV9: 0 | PW9: 0 | PX9: 0 | PY9: 0 | PZ9: 0 | QA9: 0 | QB9: 0 | QC9: 0 | QD9: 0 | QE9: 0 | QF9: 0 | QG9: 0 | QH9: 0 | QI9: 0 | QJ9: 0 | QK9: 0 | QL9: 0 | QM9: 0 | QN9: 0 | QO9: 0 | QP9: 0 | QQ9: =(QQ7<=$F8)*1 -> 0 | QR9: 0 | QS9: 0 | QT9: 0 | QU9: 0 | QV9: 0 | QW9: 0 | QX9: 0 | QY9: 0 | QZ9: 0 | RA9: 0 | RB9: 0 | RC9: 0 | RD9: 0 | RE9: 0 | RF9: 0 | RG9: 0 | RH9: 0 | RI9: 0 | RJ9: 0 | RK9: 0 | RL9: 0 | RM9: 0 | RN9: 0 | RO9: 0 | RP9: 0 | RQ9: 0 | RR9: 0 | RS9: 0 | RT9: 0 | RU9: 0 | RV9: 0 | RW9: 0 | RX9: 0 | RY9: 0 | RZ9: 0 | SA9: 0 | SB9: 0 | SC9: 0 | SD9: 0 | SE9: 0 | SF9: 0 | SG9: 0 | SH9: 0 | SI9: 0 | SJ9: 0 | SK9: 0 | SL9: 0 | SM9: 0 | SN9: 0 | SO9: 0
E10: Post COD Flag | J10: =NOT(J9)*1 -> 0 | K10: =NOT(K9)*1 -> 0 | L10: 0 | M10: 0 | N10: 0 | O10: 0 | P10: 0 | Q10: 0 | R10: 0 | S10: 0 | T10: 0 | U10: 0 | V10: 0 | W10: 0 | X10: 0 | Y10: 0 | Z10: 0 | AA10: 0 | AB10: 0 | AC10: 0 | AD10: 0 | AE10: 0 | AF10: 0 | AG10: 0 | AH10: 1 | AI10: 1 | AJ10: 1 | AK10: 1 | AL10: 1 | AM10: 1 | AN10: 1 | AO10: 1 | AP10: 1 | AQ10: 1 | AR10: 1 | AS10: 1 | AT10: 1 | AU10: 1 | AV10: 1 | AW10: 1 | AX10: 1 | AY10: 1 | AZ10: 1 | BA10: 1 | BB10: 1 | BC10: 1 | BD10: 1 | BE10: 1 | BF10: 1 | BG10: 1 | BH10: 1 | BI10: 1 | BJ10: 1 | BK10: 1 | BL10: 1 | BM10: 1 | BN10: 1 | BO10: 1 | BP10: 1 | BQ10: 1 | BR10: 1 | BS10: 1 | BT10: 1 | BU10: 1 | BV10: 1 | BW10: =NOT(BW9)*1 -> 1 | BX10: 1 | BY10: 1 | BZ10: 1 | CA10: 1 | CB10: 1 | CC10: 1 | CD10: 1 | CE10: 1 | CF10: 1 | CG10: 1 | CH10: 1 | CI10: 1 | CJ10: 1 | CK10: 1 | CL10: 1 | CM10: 1 | CN10: 1 | CO10: 1 | CP10: 1 | CQ10: 1 | CR10: 1 | CS10: 1 | CT10: 1 | CU10: 1 | CV10: 1 | CW10: 1 | CX10: 1 | CY10: 1 | CZ10: 1 | DA10: 1 | DB10: 1 | DC10: 1 | DD10: 1 | DE10: 1 | DF10: 1 | DG10: 1 | DH10: 1 | DI10: 1 | DJ10: 1 | DK10: 1 | DL10: 1 | DM10: 1 | DN10: 1 | DO10: 1 | DP10: 1 | DQ10: 1 | DR10: 1 | DS10: 1 | DT10: 1 | DU10: 1 | DV10: 1 | DW10: 1 | DX10: 1 | DY10: 1 | DZ10: 1 | EA10: 1 | EB10: 1 | EC10: 1 | ED10: 1 | EE10: 1 | EF10: 1 | EG10: 1 | EH10: 1 | EI10: =NOT(EI9)*1 -> 1 | EJ10: 1 | EK10: 1 | EL10: 1 | EM10: 1 | EN10: 1 | EO10: 1 | EP10: 1 | EQ10: 1 | ER10: 1 | ES10: 1 | ET10: 1 | EU10: 1 | EV10: 1 | EW10: 1 | EX10: 1 | EY10: 1 | EZ10: 1 | FA10: 1 | FB10: 1 | FC10: 1 | FD10: 1 | FE10: 1 | FF10: 1 | FG10: 1 | FH10: 1 | FI10: 1 | FJ10: 1 | FK10: 1 | FL10: 1 | FM10: 1 | FN10: 1 | FO10: 1 | FP10: 1 | FQ10: 1 | FR10: 1 | FS10: 1 | FT10: 1 | FU10: 1 | FV10: 1 | FW10: 1 | FX10: 1 | FY10: 1 | FZ10: 1 | GA10: 1 | GB10: 1 | GC10: 1 | GD10: 1 | GE10: 1 | GF10: 1 | GG10: 1 | GH10: 1 | GI10: 1 | GJ10: 1 | GK10: 1 | GL10: 1 | GM10: 1 | GN10: 1 | GO10: 1 | GP10: 1 | GQ10: 1 | GR10: 1 | GS10: 1 | GT10: 1 | GU10: =NOT(GU9)*1 -> 1 | GV10: 1 | GW10: 1 | GX10: 1 | GY10: 1 | GZ10: 1 | HA10: 1 | HB10: 1 | HC10: 1 | HD10: 1 | HE10: 1 | HF10: 1 | HG10: 1 | HH10: 1 | HI10: 1 | HJ10: 1 | HK10: 1 | HL10: 1 | HM10: 1 | HN10: 1 | HO10: 1 | HP10: 1 | HQ10: 1 | HR10: 1 | HS10: 1 | HT10: 1 | HU10: 1 | HV10: 1 | HW10: 1 | HX10: 1 | HY10: 1 | HZ10: 1 | IA10: 1 | IB10: 1 | IC10: 1 | ID10: 1 | IE10: 1 | IF10: 1 | IG10: 1 | IH10: 1 | II10: 1 | IJ10: 1 | IK10: 1 | IL10: 1 | IM10: 1 | IN10: 1 | IO10: 1 | IP10: 1 | IQ10: 1 | IR10: 1 | IS10: 1 | IT10: 1 | IU10: 1 | IV10: 1 | IW10: 1 | IX10: 1 | IY10: 1 | IZ10: 1 | JA10: 1 | JB10: 1 | JC10: 1 | JD10: 1 | JE10: 1 | JF10: 1 | JG10: =NOT(JG9)*1 -> 1 | JH10: 1 | JI10: 1 | JJ10: 1 | JK10: 1 | JL10: 1 | JM10: 1 | JN10: 1 | JO10: 1 | JP10: 1 | JQ10: 1 | JR10: 1 | JS10: 1 | JT10: 1 | JU10: 1 | JV10: 1 | JW10: 1 | JX10: 1 | JY10: 1 | JZ10: 1 | KA10: 1 | KB10: 1 | KC10: 1 | KD10: 1 | KE10: 1 | KF10: 1 | KG10: 1 | KH10: 1 | KI10: 1 | KJ10: 1 | KK10: 1 | KL10: 1 | KM10: 1 | KN10: 1 | KO10: 1 | KP10: 1 | KQ10: 1 | KR10: 1 | KS10: 1 | KT10: 1 | KU10: 1 | KV10: 1 | KW10: 1 | KX10: 1 | KY10: 1 | KZ10: 1 | LA10: 1 | LB10: 1 | LC10: 1 | LD10: 1 | LE10: 1 | LF10: 1 | LG10: 1 | LH10: 1 | LI10: 1 | LJ10: 1 | LK10: 1 | LL10: 1 | LM10: 1 | LN10: 1 | LO10: 1 | LP10: 1 | LQ10: 1 | LR10: 1 | LS10: =NOT(LS9)*1 -> 1 | LT10: 1 | LU10: 1 | LV10: 1 | LW10: 1 | LX10: 1 | LY10: 1 | LZ10: 1 | MA10: 1 | MB10: 1 | MC10: 1 | MD10: 1 | ME10: 1 | MF10: 1 | MG10: 1 | MH10: 1 | MI10: 1 | MJ10: 1 | MK10: 1 | ML10: 1 | MM10: 1 | MN10: 1 | MO10: 1 | MP10: 1 | MQ10: 1 | MR10: 1 | MS10: 1 | MT10: 1 | MU10: 1 | MV10: 1 | MW10: 1 | MX10: 1 | MY10: 1 | MZ10: 1 | NA10: 1 | NB10: 1 | NC10: 1 | ND10: 1 | NE10: 1 | NF10: 1 | NG10: 1 | NH10: 1 | NI10: 1 | NJ10: 1 | NK10: 1 | NL10: 1 | NM10: 1 | NN10: 1 | NO10: 1 | NP10: 1 | NQ10: 1 | NR10: 1 | NS10: 1 | NT10: 1 | NU10: 1 | NV10: 1 | NW10: 1 | NX10: 1 | NY10: 1 | NZ10: 1 | OA10: 1 | OB10: 1 | OC10: 1 | OD10: 1 | OE10: =NOT(OE9)*1 -> 1 | OF10: 1 | OG10: 1 | OH10: 1 | OI10: 1 | OJ10: 1 | OK10: 1 | OL10: 1 | OM10: 1 | ON10: 1 | OO10: 1 | OP10: 1 | OQ10: 1 | OR10: 1 | OS10: 1 | OT10: 1 | OU10: 1 | OV10: 1 | OW10: 1 | OX10: 1 | OY10: 1 | OZ10: 1 | PA10: 1 | PB10: 1 | PC10: 1 | PD10: 1 | PE10: 1 | PF10: 1 | PG10: 1 | PH10: 1 | PI10: 1 | PJ10: 1 | PK10: 1 | PL10: 1 | PM10: 1 | PN10: 1 | PO10: 1 | PP10: 1 | PQ10: 1 | PR10: 1 | PS10: 1 | PT10: 1 | PU10: 1 | PV10: 1 | PW10: 1 | PX10: 1 | PY10: 1 | PZ10: 1 | QA10: 1 | QB10: 1 | QC10: 1 | QD10: 1 | QE10: 1 | QF10: 1 | QG10: 1 | QH10: 1 | QI10: 1 | QJ10: 1 | QK10: 1 | QL10: 1 | QM10: 1 | QN10: 1 | QO10: 1 | QP10: 1 | QQ10: =NOT(QQ9)*1 -> 1 | QR10: 1 | QS10: 1 | QT10: 1 | QU10: 1 | QV10: 1 | QW10: 1 | QX10: 1 | QY10: 1 | QZ10: 1 | RA10: 1 | RB10: 1 | RC10: 1 | RD10: 1 | RE10: 1 | RF10: 1 | RG10: 1 | RH10: 1 | RI10: 1 | RJ10: 1 | RK10: 1 | RL10: 1 | RM10: 1 | RN10: 1 | RO10: 1 | RP10: 1 | RQ10: 1 | RR10: 1 | RS10: 1 | RT10: 1 | RU10: 1 | RV10: 1 | RW10: 1 | RX10: 1 | RY10: 1 | RZ10: 1 | SA10: 1 | SB10: 1 | SC10: 1 | SD10: 1 | SE10: 1 | SF10: 1 | SG10: 1 | SH10: 1 | SI10: 1 | SJ10: 1 | SK10: 1 | SL10: 1 | SM10: 1 | SN10: 1 | SO10: 1
E12: =InputC!E18 -> Months in Period for Semi-Annual | F12: =InputC!F18 -> 6 | G12: =InputC!G18 -> Months
E13: =InputC!E19 -> Months in Period pre-COD | F13: =InputC!F19 -> 1 | G13: =InputC!G19 -> Months
E14: Months in Period for SA Sheets | J14: =IF(J9,$F$13,$F$12) -> 1 | K14: =IF(K9,$F$13,$F$12) -> 1 | L14: 1 | M14: 1 | N14: 1 | O14: 1 | P14: 1 | Q14: 1 | R14: 1 | S14: 1 | T14: 1 | U14: 1 | V14: 1 | W14: 1 | X14: 1 | Y14: 1 | Z14: 1 | AA14: 1 | AB14: 1 | AC14: 1 | AD14: 1 | AE14: 1 | AF14: 1 | AG14: 1 | AH14: 6 | AI14: 6 | AJ14: 6 | AK14: 6 | AL14: 6 | AM14: 6 | AN14: 6 | AO14: 6 | AP14: 6 | AQ14: 6 | AR14: 6 | AS14: 6 | AT14: 6 | AU14: 6 | AV14: 6 | AW14: 6 | AX14: 6 | AY14: 6 | AZ14: 6 | BA14: 6 | BB14: 6 | BC14: 6 | BD14: 6 | BE14: 6 | BF14: 6 | BG14: 6 | BH14: 6 | BI14: 6 | BJ14: 6 | BK14: 6 | BL14: 6 | BM14: 6 | BN14: 6 | BO14: 6 | BP14: 6 | BQ14: 6 | BR14: 6 | BS14: 6 | BT14: 6 | BU14: 6 | BV14: 6 | BW14: =IF(BW9,$F$13,$F$12) -> 6 | BX14: 6 | BY14: 6 | BZ14: 6 | CA14: 6 | CB14: 6 | CC14: 6 | CD14: 6 | CE14: 6 | CF14: 6 | CG14: 6 | CH14: 6 | CI14: 6 | CJ14: 6 | CK14: 6 | CL14: 6 | CM14: 6 | CN14: 6 | CO14: 6 | CP14: 6 | CQ14: 6 | CR14: 6 | CS14: 6 | CT14: 6 | CU14: 6 | CV14: 6 | CW14: 6 | CX14: 6 | CY14: 6 | CZ14: 6 | DA14: 6 | DB14: 6 | DC14: 6 | DD14: 6 | DE14: 6 | DF14: 6 | DG14: 6 | DH14: 6 | DI14: 6 | DJ14: 6 | DK14: 6 | DL14: 6 | DM14: 6 | DN14: 6 | DO14: 6 | DP14: 6 | DQ14: 6 | DR14: 6 | DS14: 6 | DT14: 6 | DU14: 6 | DV14: 6 | DW14: 6 | DX14: 6 | DY14: 6 | DZ14: 6 | EA14: 6 | EB14: 6 | EC14: 6 | ED14: 6 | EE14: 6 | EF14: 6 | EG14: 6 | EH14: 6 | EI14: =IF(EI9,$F$13,$F$12) -> 6 | EJ14: 6 | EK14: 6 | EL14: 6 | EM14: 6 | EN14: 6 | EO14: 6 | EP14: 6 | EQ14: 6 | ER14: 6 | ES14: 6 | ET14: 6 | EU14: 6 | EV14: 6 | EW14: 6 | EX14: 6 | EY14: 6 | EZ14: 6 | FA14: 6 | FB14: 6 | FC14: 6 | FD14: 6 | FE14: 6 | FF14: 6 | FG14: 6 | FH14: 6 | FI14: 6 | FJ14: 6 | FK14: 6 | FL14: 6 | FM14: 6 | FN14: 6 | FO14: 6 | FP14: 6 | FQ14: 6 | FR14: 6 | FS14: 6 | FT14: 6 | FU14: 6 | FV14: 6 | FW14: 6 | FX14: 6 | FY14: 6 | FZ14: 6 | GA14: 6 | GB14: 6 | GC14: 6 | GD14: 6 | GE14: 6 | GF14: 6 | GG14: 6 | GH14: 6 | GI14: 6 | GJ14: 6 | GK14: 6 | GL14: 6 | GM14: 6 | GN14: 6 | GO14: 6 | GP14: 6 | GQ14: 6 | GR14: 6 | GS14: 6 | GT14: 6 | GU14: =IF(GU9,$F$13,$F$12) -> 6 | GV14: 6 | GW14: 6 | GX14: 6 | GY14: 6 | GZ14: 6 | HA14: 6 | HB14: 6 | HC14: 6 | HD14: 6 | HE14: 6 | HF14: 6 | HG14: 6 | HH14: 6 | HI14: 6 | HJ14: 6 | HK14: 6 | HL14: 6 | HM14: 6 | HN14: 6 | HO14: 6 | HP14: 6 | HQ14: 6 | HR14: 6 | HS14: 6 | HT14: 6 | HU14: 6 | HV14: 6 | HW14: 6 | HX14: 6 | HY14: 6 | HZ14: 6 | IA14: 6 | IB14: 6 | IC14: 6 | ID14: 6 | IE14: 6 | IF14: 6 | IG14: 6 | IH14: 6 | II14: 6 | IJ14: 6 | IK14: 6 | IL14: 6 | IM14: 6 | IN14: 6 | IO14: 6 | IP14: 6 | IQ14: 6 | IR14: 6 | IS14: 6 | IT14: 6 | IU14: 6 | IV14: 6 | IW14: 6 | IX14: 6 | IY14: 6 | IZ14: 6 | JA14: 6 | JB14: 6 | JC14: 6 | JD14: 6 | JE14: 6 | JF14: 6 | JG14: =IF(JG9,$F$13,$F$12) -> 6 | JH14: 6 | JI14: 6 | JJ14: 6 | JK14: 6 | JL14: 6 | JM14: 6 | JN14: 6 | JO14: 6 | JP14: 6 | JQ14: 6 | JR14: 6 | JS14: 6 | JT14: 6 | JU14: 6 | JV14: 6 | JW14: 6 | JX14: 6 | JY14: 6 | JZ14: 6 | KA14: 6 | KB14: 6 | KC14: 6 | KD14: 6 | KE14: 6 | KF14: 6 | KG14: 6 | KH14: 6 | KI14: 6 | KJ14: 6 | KK14: 6 | KL14: 6 | KM14: 6 | KN14: 6 | KO14: 6 | KP14: 6 | KQ14: 6 | KR14: 6 | KS14: 6 | KT14: 6 | KU14: 6 | KV14: 6 | KW14: 6 | KX14: 6 | KY14: 6 | KZ14: 6 | LA14: 6 | LB14: 6 | LC14: 6 | LD14: 6 | LE14: 6 | LF14: 6 | LG14: 6 | LH14: 6 | LI14: 6 | LJ14: 6 | LK14: 6 | LL14: 6 | LM14: 6 | LN14: 6 | LO14: 6 | LP14: 6 | LQ14: 6 | LR14: 6 | LS14: =IF(LS9,$F$13,$F$12) -> 6 | LT14: 6 | LU14: 6 | LV14: 6 | LW14: 6 | LX14: 6 | LY14: 6 | LZ14: 6 | MA14: 6 | MB14: 6 | MC14: 6 | MD14: 6 | ME14: 6 | MF14: 6 | MG14: 6 | MH14: 6 | MI14: 6 | MJ14: 6 | MK14: 6 | ML14: 6 | MM14: 6 | MN14: 6 | MO14: 6 | MP14: 6 | MQ14: 6 | MR14: 6 | MS14: 6 | MT14: 6 | MU14: 6 | MV14: 6 | MW14: 6 | MX14: 6 | MY14: 6 | MZ14: 6 | NA14: 6 | NB14: 6 | NC14: 6 | ND14: 6 | NE14: 6 | NF14: 6 | NG14: 6 | NH14: 6 | NI14: 6 | NJ14: 6 | NK14: 6 | NL14: 6 | NM14: 6 | NN14: 6 | NO14: 6 | NP14: 6 | NQ14: 6 | NR14: 6 | NS14: 6 | NT14: 6 | NU14: 6 | NV14: 6 | NW14: 6 | NX14: 6 | NY14: 6 | NZ14: 6 | OA14: 6 | OB14: 6 | OC14: 6 | OD14: 6 | OE14: =IF(OE9,$F$13,$F$12) -> 6 | OF14: 6 | OG14: 6 | OH14: 6 | OI14: 6 | OJ14: 6 | OK14: 6 | OL14: 6 | OM14: 6 | ON14: 6 | OO14: 6 | OP14: 6 | OQ14: 6 | OR14: 6 | OS14: 6 | OT14: 6 | OU14: 6 | OV14: 6 | OW14: 6 | OX14: 6 | OY14: 6 | OZ14: 6 | PA14: 6 | PB14: 6 | PC14: 6 | PD14: 6 | PE14: 6 | PF14: 6 | PG14: 6 | PH14: 6 | PI14: 6 | PJ14: 6 | PK14: 6 | PL14: 6 | PM14: 6 | PN14: 6 | PO14: 6 | PP14: 6 | PQ14: 6 | PR14: 6 | PS14: 6 | PT14: 6 | PU14: 6 | PV14: 6 | PW14: 6 | PX14: 6 | PY14: 6 | PZ14: 6 | QA14: 6 | QB14: 6 | QC14: 6 | QD14: 6 | QE14: 6 | QF14: 6 | QG14: 6 | QH14: 6 | QI14: 6 | QJ14: 6 | QK14: 6 | QL14: 6 | QM14: 6 | QN14: 6 | QO14: 6 | QP14: 6 | QQ14: =IF(QQ9,$F$13,$F$12) -> 6 | QR14: 6 | QS14: 6 | QT14: 6 | QU14: 6 | QV14: 6 | QW14: 6 | QX14: 6 | QY14: 6 | QZ14: 6 | RA14: 6 | RB14: 6 | RC14: 6 | RD14: 6 | RE14: 6 | RF14: 6 | RG14: 6 | RH14: 6 | RI14: 6 | RJ14: 6 | RK14: 6 | RL14: 6 | RM14: 6 | RN14: 6 | RO14: 6 | RP14: 6 | RQ14: 6 | RR14: 6 | RS14: 6 | RT14: 6 | RU14: 6 | RV14: 6 | RW14: 6 | RX14: 6 | RY14: 6 | RZ14: 6 | SA14: 6 | SB14: 6 | SC14: 6 | SD14: 6 | SE14: 6 | SF14: 6 | SG14: 6 | SH14: 6 | SI14: 6 | SJ14: 6 | SK14: 6 | SL14: 6 | SM14: 6 | SN14: 6 | SO14: 6
E16: =InputC!E9 -> Financial Close Date | F16: =InputC!F9 -> 2023-01-01 | G16: =InputC!G9 -> Date
E17: Semi-Annual Start Date | J17: =IF(J7=1,$F$16,I18+1) -> 2023-01-01 | K17: =IF(K7=1,$F$16,J18+1) -> 1900-01-01 | L17: 1900-01-01 | M17: 1900-01-01 | N17: 1900-01-01 | O17: 1900-01-01 | P17: 1900-01-01 | Q17: 1900-01-01 | R17: 1900-01-01 | S17: 1900-01-01 | T17: 1900-01-01 | U17: 1900-01-01 | V17: 1900-01-01 | W17: 1900-01-01 | X17: 1900-01-01 | Y17: 1900-01-01 | Z17: 1900-01-01 | AA17: 1900-01-01 | AB17: 1900-01-01 | AC17: 1900-01-01 | AD17: 1900-01-01 | AE17: 1900-01-01 | AF17: 1900-01-01 | AG17: 1900-01-01 | AH17: 1900-01-01 | AI17: 1900-01-01 | AJ17: 1900-01-01 | AK17: 1900-01-01 | AL17: 1900-01-01 | AM17: 1900-01-01 | AN17: 1900-01-01 | AO17: 1900-01-01 | AP17: 1900-01-01 | AQ17: 1900-01-01 | AR17: 1900-01-01 | AS17: 1900-01-01 | AT17: 1900-01-01 | AU17: 1900-01-01 | AV17: 1900-01-01 | AW17: 1900-01-01 | AX17: 1900-01-01 | AY17: 1900-01-01 | AZ17: 1900-01-01 | BA17: 1900-01-01 | BB17: 1900-01-01 | BC17: 1900-01-01 | BD17: 1900-01-01 | BE17: 1900-01-01 | BF17: 1900-01-01 | BG17: 1900-01-01 | BH17: 1900-01-01 | BI17: 1900-01-01 | BJ17: 1900-01-01 | BK17: 1900-01-01 | BL17: 1900-01-01 | BM17: 1900-01-01 | BN17: 1900-01-01 | BO17: 1900-01-01 | BP17: 1900-01-01 | BQ17: 1900-01-01 | BR17: 1900-01-01 | BS17: 1900-01-01 | BT17: 1900-01-01 | BU17: 1900-01-01 | BV17: 1900-01-01 | BW17: =IF(BW7=1,$F$16,BV18+1) -> 1900-01-01 | BX17: 1900-01-01 | BY17: 1900-01-01 | BZ17: 1900-01-01 | CA17: 1900-01-01 | CB17: 1900-01-01 | CC17: 1900-01-01 | CD17: 1900-01-01 | CE17: 1900-01-01 | CF17: 1900-01-01 | CG17: 1900-01-01 | CH17: 1900-01-01 | CI17: 1900-01-01 | CJ17: 1900-01-01 | CK17: 1900-01-01 | CL17: 1900-01-01 | CM17: 1900-01-01 | CN17: 1900-01-01 | CO17: 1900-01-01 | CP17: 1900-01-01 | CQ17: 1900-01-01 | CR17: 1900-01-01 | CS17: 1900-01-01 | CT17: 1900-01-01 | CU17: 1900-01-01 | CV17: 1900-01-01 | CW17: 1900-01-01 | CX17: 1900-01-01 | CY17: 1900-01-01 | CZ17: 1900-01-01 | DA17: 1900-01-01 | DB17: 1900-01-01 | DC17: 1900-01-01 | DD17: 1900-01-01 | DE17: 1900-01-01 | DF17: 1900-01-01 | DG17: 1900-01-01 | DH17: 1900-01-01 | DI17: 1900-01-01 | DJ17: 1900-01-01 | DK17: 1900-01-01 | DL17: 1900-01-01 | DM17: 1900-01-01 | DN17: 1900-01-01 | DO17: 1900-01-01 | DP17: 1900-01-01 | DQ17: 1900-01-01 | DR17: 1900-01-01 | DS17: 1900-01-01 | DT17: 1900-01-01 | DU17: 1900-01-01 | DV17: 1900-01-01 | DW17: 1900-01-01 | DX17: 1900-01-01 | DY17: 1900-01-01 | DZ17: 1900-01-01 | EA17: 1900-01-01 | EB17: 1900-01-01 | EC17: 1900-01-01 | ED17: 1900-01-01 | EE17: 1900-01-01 | EF17: 1900-01-01 | EG17: 1900-01-01 | EH17: 1900-01-01 | EI17: =IF(EI7=1,$F$16,EH18+1) -> 1900-01-01 | EJ17: 1900-01-01 | EK17: 1900-01-01 | EL17: 1900-01-01 | EM17: 1900-01-01 | EN17: 1900-01-01 | EO17: 1900-01-01 | EP17: 1900-01-01 | EQ17: 1900-01-01 | ER17: 1900-01-01 | ES17: 1900-01-01 | ET17: 1900-01-01 | EU17: 1900-01-01 | EV17: 1900-01-01 | EW17: 1900-01-01 | EX17: 1900-01-01 | EY17: 1900-01-01 | EZ17: 1900-01-01 | FA17: 1900-01-01 | FB17: 1900-01-01 | FC17: 1900-01-01 | FD17: 1900-01-01 | FE17: 1900-01-01 | FF17: 1900-01-01 | FG17: 1900-01-01 | FH17: 1900-01-01 | FI17: 1900-01-01 | FJ17: 1900-01-01 | FK17: 1900-01-01 | FL17: 1900-01-01 | FM17: 1900-01-01 | FN17: 1900-01-01 | FO17: 1900-01-01 | FP17: 1900-01-01 | FQ17: 1900-01-01 | FR17: 1900-01-01 | FS17: 1900-01-01 | FT17: 1900-01-01 | FU17: 1900-01-01 | FV17: 1900-01-01 | FW17: 1900-01-01 | FX17: 1900-01-01 | FY17: 1900-01-01 | FZ17: 1900-01-01 | GA17: 1900-01-01 | GB17: 1900-01-01 | GC17: 1900-01-01 | GD17: 1900-01-01 | GE17: 1900-01-01 | GF17: 1900-01-01 | GG17: 1900-01-01 | GH17: 1900-01-01 | GI17: 1900-01-01 | GJ17: 1900-01-01 | GK17: 1900-01-01 | GL17: 1900-01-01 | GM17: 1900-01-01 | GN17: 1900-01-01 | GO17: 1900-01-01 | GP17: 1900-01-01 | GQ17: 1900-01-01 | GR17: 1900-01-01 | GS17: 1900-01-01 | GT17: 1900-01-01 | GU17: =IF(GU7=1,$F$16,GT18+1) -> 1900-01-01 | GV17: 1900-01-01 | GW17: 1900-01-01 | GX17: 1900-01-01 | GY17: 1900-01-01 | GZ17: 1900-01-01 | HA17: 1900-01-01 | HB17: 1900-01-01 | HC17: 1900-01-01 | HD17: 1900-01-01 | HE17: 1900-01-01 | HF17: 1900-01-01 | HG17: 1900-01-01 | HH17: 1900-01-01 | HI17: 1900-01-01 | HJ17: 1900-01-01 | HK17: 1900-01-01 | HL17: 1900-01-01 | HM17: 1900-01-01 | HN17: 1900-01-01 | HO17: 1900-01-01 | HP17: 1900-01-01 | HQ17: 1900-01-01 | HR17: 1900-01-01 | HS17: 1900-01-01 | HT17: 1900-01-01 | HU17: 1900-01-01 | HV17: 1900-01-01 | HW17: 1900-01-01 | HX17: 1900-01-01 | HY17: 1900-01-01 | HZ17: 1900-01-01 | IA17: 1900-01-01 | IB17: 1900-01-01 | IC17: 1900-01-01 | ID17: 1900-01-01 | IE17: 1900-01-01 | IF17: 1900-01-01 | IG17: 1900-01-01 | IH17: 1900-01-01 | II17: 1900-01-01 | IJ17: 1900-01-01 | IK17: 1900-01-01 | IL17: 1900-01-01 | IM17: 1900-01-01 | IN17: 1900-01-01 | IO17: 1900-01-01 | IP17: 1900-01-01 | IQ17: 1900-01-01 | IR17: 1900-01-01 | IS17: 1900-01-01 | IT17: 1900-01-01 | IU17: 1900-01-01 | IV17: 1900-01-01 | IW17: 1900-01-01 | IX17: 1900-01-01 | IY17: 1900-01-01 | IZ17: 1900-01-01 | JA17: 1900-01-01 | JB17: 1900-01-01 | JC17: 1900-01-01 | JD17: 1900-01-01 | JE17: 1900-01-01 | JF17: 1900-01-01 | JG17: =IF(JG7=1,$F$16,JF18+1) -> 1900-01-01 | JH17: 1900-01-01 | JI17: 1900-01-01 | JJ17: 1900-01-01 | JK17: 1900-01-01 | JL17: 1900-01-01 | JM17: 1900-01-01 | JN17: 1900-01-01 | JO17: 1900-01-01 | JP17: 1900-01-01 | JQ17: 1900-01-01 | JR17: 1900-01-01 | JS17: 1900-01-01 | JT17: 1900-01-01 | JU17: 1900-01-01 | JV17: 1900-01-01 | JW17: 1900-01-01 | JX17: 1900-01-01 | JY17: 1900-01-01 | JZ17: 1900-01-01 | KA17: 1900-01-01 | KB17: 1900-01-01 | KC17: 1900-01-01 | KD17: 1900-01-01 | KE17: 1900-01-01 | KF17: 1900-01-01 | KG17: 1900-01-01 | KH17: 1900-01-01 | KI17: 1900-01-01 | KJ17: 1900-01-01 | KK17: 1900-01-01 | KL17: 1900-01-01 | KM17: 1900-01-01 | KN17: 1900-01-01 | KO17: 1900-01-01 | KP17: 1900-01-01 | KQ17: 1900-01-01 | KR17: 1900-01-01 | KS17: 1900-01-01 | KT17: 1900-01-01 | KU17: 1900-01-01 | KV17: 1900-01-01 | KW17: 1900-01-01 | KX17: 1900-01-01 | KY17: 1900-01-01 | KZ17: 1900-01-01 | LA17: 1900-01-01 | LB17: 1900-01-01 | LC17: 1900-01-01 | LD17: 1900-01-01 | LE17: 1900-01-01 | LF17: 1900-01-01 | LG17: 1900-01-01 | LH17: 1900-01-01 | LI17: 1900-01-01 | LJ17: 1900-01-01 | LK17: 1900-01-01 | LL17: 1900-01-01 | LM17: 1900-01-01 | LN17: 1900-01-01 | LO17: 1900-01-01 | LP17: 1900-01-01 | LQ17: 1900-01-01 | LR17: 1900-01-01 | LS17: =IF(LS7=1,$F$16,LR18+1) -> 1900-01-01 | LT17: 1900-01-01 | LU17: 1900-01-01 | LV17: 1900-01-01 | LW17: 1900-01-01 | LX17: 1900-01-01 | LY17: 1900-01-01 | LZ17: 1900-01-01 | MA17: 1900-01-01 | MB17: 1900-01-01 | MC17: 1900-01-01 | MD17: 1900-01-01 | ME17: 1900-01-01 | MF17: 1900-01-01 | MG17: 1900-01-01 | MH17: 1900-01-01 | MI17: 1900-01-01 | MJ17: 1900-01-01 | MK17: 1900-01-01 | ML17: 1900-01-01 | MM17: 1900-01-01 | MN17: 1900-01-01 | MO17: 1900-01-01 | MP17: 1900-01-01 | MQ17: 1900-01-01 | MR17: 1900-01-01 | MS17: 1900-01-01 | MT17: 1900-01-01 | MU17: 1900-01-01 | MV17: 1900-01-01 | MW17: 1900-01-01 | MX17: 1900-01-01 | MY17: 1900-01-01 | MZ17: 1900-01-01 | NA17: 1900-01-01 | NB17: 1900-01-01 | NC17: 1900-01-01 | ND17: 1900-01-01 | NE17: 1900-01-01 | NF17: 1900-01-01 | NG17: 1900-01-01 | NH17: 1900-01-01 | NI17: 1900-01-01 | NJ17: 1900-01-01 | NK17: 1900-01-01 | NL17: 1900-01-01 | NM17: 1900-01-01 | NN17: 1900-01-01 | NO17: 1900-01-01 | NP17: 1900-01-01 | NQ17: 1900-01-01 | NR17: 1900-01-01 | NS17: 1900-01-01 | NT17: 1900-01-01 | NU17: 1900-01-01 | NV17: 1900-01-01 | NW17: 1900-01-01 | NX17: 1900-01-01 | NY17: 1900-01-01 | NZ17: 1900-01-01 | OA17: 1900-01-01 | OB17: 1900-01-01 | OC17: 1900-01-01 | OD17: 1900-01-01 | OE17: =IF(OE7=1,$F$16,OD18+1) -> 1900-01-01 | OF17: 1900-01-01 | OG17: 1900-01-01 | OH17: 1900-01-01 | OI17: 1900-01-01 | OJ17: 1900-01-01 | OK17: 1900-01-01 | OL17: 1900-01-01 | OM17: 1900-01-01 | ON17: 1900-01-01 | OO17: 1900-01-01 | OP17: 1900-01-01 | OQ17: 1900-01-01 | OR17: 1900-01-01 | OS17: 1900-01-01 | OT17: 1900-01-01 | OU17: 1900-01-01 | OV17: 1900-01-01 | OW17: 1900-01-01 | OX17: 1900-01-01 | OY17: 1900-01-01 | OZ17: 1900-01-01 | PA17: 1900-01-01 | PB17: 1900-01-01 | PC17: 1900-01-01 | PD17: 1900-01-01 | PE17: 1900-01-01 | PF17: 1900-01-01 | PG17: 1900-01-01 | PH17: 1900-01-01 | PI17: 1900-01-01 | PJ17: 1900-01-01 | PK17: 1900-01-01 | PL17: 1900-01-01 | PM17: 1900-01-01 | PN17: 1900-01-01 | PO17: 1900-01-01 | PP17: 1900-01-01 | PQ17: 1900-01-01 | PR17: 1900-01-01 | PS17: 1900-01-01 | PT17: 1900-01-01 | PU17: 1900-01-01 | PV17: 1900-01-01 | PW17: 1900-01-01 | PX17: 1900-01-01 | PY17: 1900-01-01 | PZ17: 1900-01-01 | QA17: 1900-01-01 | QB17: 1900-01-01 | QC17: 1900-01-01 | QD17: 1900-01-01 | QE17: 1900-01-01 | QF17: 1900-01-01 | QG17: 1900-01-01 | QH17: 1900-01-01 | QI17: 1900-01-01 | QJ17: 1900-01-01 | QK17: 1900-01-01 | QL17: 1900-01-01 | QM17: 1900-01-01 | QN17: 1900-01-01 | QO17: 1900-01-01 | QP17: 1900-01-01 | QQ17: =IF(QQ7=1,$F$16,QP18+1) -> 1900-01-01 | QR17: 1900-01-01 | QS17: 1900-01-01 | QT17: 1900-01-01 | QU17: 1900-01-01 | QV17: 1900-01-01 | QW17: 1900-01-01 | QX17: 1900-01-01 | QY17: 1900-01-01 | QZ17: 1900-01-01 | RA17: 1900-01-01 | RB17: 1900-01-01 | RC17: 1900-01-01 | RD17: 1900-01-01 | RE17: 1900-01-01 | RF17: 1900-01-01 | RG17: 1900-01-01 | RH17: 1900-01-01 | RI17: 1900-01-01 | RJ17: 1900-01-01 | RK17: 1900-01-01 | RL17: 1900-01-01 | RM17: 1900-01-01 | RN17: 1900-01-01 | RO17: 1900-01-01 | RP17: 1900-01-01 | RQ17: 1900-01-01 | RR17: 1900-01-01 | RS17: 1900-01-01 | RT17: 1900-01-01 | RU17: 1900-01-01 | RV17: 1900-01-01 | RW17: 1900-01-01 | RX17: 1900-01-01 | RY17: 1900-01-01 | RZ17: 1900-01-01 | SA17: 1900-01-01 | SB17: 1900-01-01 | SC17: 1900-01-01 | SD17: 1900-01-01 | SE17: 1900-01-01 | SF17: 1900-01-01 | SG17: 1900-01-01 | SH17: 1900-01-01 | SI17: 1900-01-01 | SJ17: 1900-01-01 | SK17: 1900-01-01 | SL17: 1900-01-01 | SM17: 1900-01-01 | SN17: 1900-01-01 | SO17: 1900-01-01
E18: Semi-Annual End Date
E20: Repayment Start Date | F20: =InputC!F13 -> 2025-01-01
E21: Repayment End Date | F21: =InputC!F86 -> 2042-12-01
E22: Repayment Flag | H22: =SUM(J22:SO22) -> 0 | J22: =AND(J2>=$F20,J2<=$F21)*1 -> 0 | K22: =AND(K2>=$F20,K2<=$F21)*1 -> 0 | L22: 0 | M22: 0 | N22: 0 | O22: 0 | P22: 0 | Q22: 0 | R22: 0 | S22: 0 | T22: 0 | U22: 0 | V22: 0 | W22: 0 | X22: 0 | Y22: 0 | Z22: 0 | AA22: 0 | AB22: 0 | AC22: 0 | AD22: 0 | AE22: 0 | AF22: 0 | AG22: 0 | AH22: 0 | AI22: 0 | AJ22: 0 | AK22: 0 | AL22: 0 | AM22: 0 | AN22: 0 | AO22: 0 | AP22: 0 | AQ22: 0 | AR22: 0 | AS22: 0 | AT22: 0 | AU22: 0 | AV22: 0 | AW22: 0 | AX22: 0 | AY22: 0 | AZ22: 0 | BA22: 0 | BB22: 0 | BC22: 0 | BD22: 0 | BE22: 0 | BF22: 0 | BG22: 0 | BH22: 0 | BI22: 0 | BJ22: 0 | BK22: 0 | BL22: 0 | BM22: 0 | BN22: 0 | BO22: 0 | BP22: 0 | BQ22: 0 | BR22: 0 | BS22: 0 | BT22: 0 | BU22: 0 | BV22: 0 | BW22: =AND(BW2>=$F20,BW2<=$F21)*1 -> 0 | BX22: 0 | BY22: 0 | BZ22: 0 | CA22: 0 | CB22: 0 | CC22: 0 | CD22: 0 | CE22: 0 | CF22: 0 | CG22: 0 | CH22: 0 | CI22: 0 | CJ22: 0 | CK22: 0 | CL22: 0 | CM22: 0 | CN22: 0 | CO22: 0 | CP22: 0 | CQ22: 0 | CR22: 0 | CS22: 0 | CT22: 0 | CU22: 0 | CV22: 0 | CW22: 0 | CX22: 0 | CY22: 0 | CZ22: 0 | DA22: 0 | DB22: 0 | DC22: 0 | DD22: 0 | DE22: 0 | DF22: 0 | DG22: 0 | DH22: 0 | DI22: 0 | DJ22: 0 | DK22: 0 | DL22: 0 | DM22: 0 | DN22: 0 | DO22: 0 | DP22: 0 | DQ22: 0 | DR22: 0 | DS22: 0 | DT22: 0 | DU22: 0 | DV22: 0 | DW22: 0 | DX22: 0 | DY22: 0 | DZ22: 0 | EA22: 0 | EB22: 0 | EC22: 0 | ED22: 0 | EE22: 0 | EF22: 0 | EG22: 0 | EH22: 0 | EI22: =AND(EI2>=$F20,EI2<=$F21)*1 -> 0 | EJ22: 0 | EK22: 0 | EL22: 0 | EM22: 0 | EN22: 0 | EO22: 0 | EP22: 0 | EQ22: 0 | ER22: 0 | ES22: 0 | ET22: 0 | EU22: 0 | EV22: 0 | EW22: 0 | EX22: 0 | EY22: 0 | EZ22: 0 | FA22: 0 | FB22: 0 | FC22: 0 | FD22: 0 | FE22: 0 | FF22: 0 | FG22: 0 | FH22: 0 | FI22: 0 | FJ22: 0 | FK22: 0 | FL22: 0 | FM22: 0 | FN22: 0 | FO22: 0 | FP22: 0 | FQ22: 0 | FR22: 0 | FS22: 0 | FT22: 0 | FU22: 0 | FV22: 0 | FW22: 0 | FX22: 0 | FY22: 0 | FZ22: 0 | GA22: 0 | GB22: 0 | GC22: 0 | GD22: 0 | GE22: 0 | GF22: 0 | GG22: 0 | GH22: 0 | GI22: 0 | GJ22: 0 | GK22: 0 | GL22: 0 | GM22: 0 | GN22: 0 | GO22: 0 | GP22: 0 | GQ22: 0 | GR22: 0 | GS22: 0 | GT22: 0 | GU22: =AND(GU2>=$F20,GU2<=$F21)*1 -> 0 | GV22: 0 | GW22: 0 | GX22: 0 | GY22: 0 | GZ22: 0 | HA22: 0 | HB22: 0 | HC22: 0 | HD22: 0 | HE22: 0 | HF22: 0 | HG22: 0 | HH22: 0 | HI22: 0 | HJ22: 0 | HK22: 0 | HL22: 0 | HM22: 0 | HN22: 0 | HO22: 0 | HP22: 0 | HQ22: 0 | HR22: 0 | HS22: 0 | HT22: 0 | HU22: 0 | HV22: 0 | HW22: 0 | HX22: 0 | HY22: 0 | HZ22: 0 | IA22: 0 | IB22: 0 | IC22: 0 | ID22: 0 | IE22: 0 | IF22: 0 | IG22: 0 | IH22: 0 | II22: 0 | IJ22: 0 | IK22: 0 | IL22: 0 | IM22: 0 | IN22: 0 | IO22: 0 | IP22: 0 | IQ22: 0 | IR22: 0 | IS22: 0 | IT22: 0 | IU22: 0 | IV22: 0 | IW22: 0 | IX22: 0 | IY22: 0 | IZ22: 0 | JA22: 0 | JB22: 0 | JC22: 0 | JD22: 0 | JE22: 0 | JF22: 0 | JG22: =AND(JG2>=$F20,JG2<=$F21)*1 -> 0 | JH22: 0 | JI22: 0 | JJ22: 0 | JK22: 0 | JL22: 0 | JM22: 0 | JN22: 0 | JO22: 0 | JP22: 0 | JQ22: 0 | JR22: 0 | JS22: 0 | JT22: 0 | JU22: 0 | JV22: 0 | JW22: 0 | JX22: 0 | JY22: 0 | JZ22: 0 | KA22: 0 | KB22: 0 | KC22: 0 | KD22: 0 | KE22: 0 | KF22: 0 | KG22: 0 | KH22: 0 | KI22: 0 | KJ22: 0 | KK22: 0 | KL22: 0 | KM22: 0 | KN22: 0 | KO22: 0 | KP22: 0 | KQ22: 0 | KR22: 0 | KS22: 0 | KT22: 0 | KU22: 0 | KV22: 0 | KW22: 0 | KX22: 0 | KY22: 0 | KZ22: 0 | LA22: 0 | LB22: 0 | LC22: 0 | LD22: 0 | LE22: 0 | LF22: 0 | LG22: 0 | LH22: 0 | LI22: 0 | LJ22: 0 | LK22: 0 | LL22: 0 | LM22: 0 | LN22: 0 | LO22: 0 | LP22: 0 | LQ22: 0 | LR22: 0 | LS22: =AND(LS2>=$F20,LS2<=$F21)*1 -> 0 | LT22: 0 | LU22: 0 | LV22: 0 | LW22: 0 | LX22: 0 | LY22: 0 | LZ22: 0 | MA22: 0 | MB22: 0 | MC22: 0 | MD22: 0 | ME22: 0 | MF22: 0 | MG22: 0 | MH22: 0 | MI22: 0 | MJ22: 0 | MK22: 0 | ML22: 0 | MM22: 0 | MN22: 0 | MO22: 0 | MP22: 0 | MQ22: 0 | MR22: 0 | MS22: 0 | MT22: 0 | MU22: 0 | MV22: 0 | MW22: 0 | MX22: 0 | MY22: 0 | MZ22: 0 | NA22: 0 | NB22: 0 | NC22: 0 | ND22: 0 | NE22: 0 | NF22: 0 | NG22: 0 | NH22: 0 | NI22: 0 | NJ22: 0 | NK22: 0 | NL22: 0 | NM22: 0 | NN22: 0 | NO22: 0 | NP22: 0 | NQ22: 0 | NR22: 0 | NS22: 0 | NT22: 0 | NU22: 0 | NV22: 0 | NW22: 0 | NX22: 0 | NY22: 0 | NZ22: 0 | OA22: 0 | OB22: 0 | OC22: 0 | OD22: 0 | OE22: =AND(OE2>=$F20,OE2<=$F21)*1 -> 0 | OF22: 0 | OG22: 0 | OH22: 0 | OI22: 0 | OJ22: 0 | OK22: 0 | OL22: 0 | OM22: 0 | ON22: 0 | OO22: 0 | OP22: 0 | OQ22: 0 | OR22: 0 | OS22: 0 | OT22: 0 | OU22: 0 | OV22: 0 | OW22: 0 | OX22: 0 | OY22: 0 | OZ22: 0 | PA22: 0 | PB22: 0 | PC22: 0 | PD22: 0 | PE22: 0 | PF22: 0 | PG22: 0 | PH22: 0 | PI22: 0 | PJ22: 0 | PK22: 0 | PL22: 0 | PM22: 0 | PN22: 0 | PO22: 0 | PP22: 0 | PQ22: 0 | PR22: 0 | PS22: 0 | PT22: 0 | PU22: 0 | PV22: 0 | PW22: 0 | PX22: 0 | PY22: 0 | PZ22: 0 | QA22: 0 | QB22: 0 | QC22: 0 | QD22: 0 | QE22: 0 | QF22: 0 | QG22: 0 | QH22: 0 | QI22: 0 | QJ22: 0 | QK22: 0 | QL22: 0 | QM22: 0 | QN22: 0 | QO22: 0 | QP22: 0 | QQ22: =AND(QQ2>=$F20,QQ2<=$F21)*1 -> 0 | QR22: 0 | QS22: 0 | QT22: 0 | QU22: 0 | QV22: 0 | QW22: 0 | QX22: 0 | QY22: 0 | QZ22: 0 | RA22: 0 | RB22: 0 | RC22: 0 | RD22: 0 | RE22: 0 | RF22: 0 | RG22: 0 | RH22: 0 | RI22: 0 | RJ22: 0 | RK22: 0 | RL22: 0 | RM22: 0 | RN22: 0 | RO22: 0 | RP22: 0 | RQ22: 0 | RR22: 0 | RS22: 0 | RT22: 0 | RU22: 0 | RV22: 0 | RW22: 0 | RX22: 0 | RY22: 0 | RZ22: 0 | SA22: 0 | SB22: 0 | SC22: 0 | SD22: 0 | SE22: 0 | SF22: 0 | SG22: 0 | SH22: 0 | SI22: 0 | SJ22: 0 | SK22: 0 | SL22: 0 | SM22: 0 | SN22: 0 | SO22: 0
E23: Repayment Flag Test | F23: =InputC!F85 -> 18 | H23: =H22/Semi=F23 -> FALSE
